Workbook

Sheet Plan Lvl
A1: SAMP | B1: Description | C1: ='Program Lvl'!D1 -> FY19 (R) | D1: ='Program Lvl'!E1 -> FY20 (R) | E1: ='Program Lvl'!F1 -> FY21 (R) | F1: ='Program Lvl'!G1 -> FY22 (R) | G1: ='Program Lvl'!H1 -> FY23 (R) | H1: ='Program Lvl'!I1 -> FY24 (R) | I1: ='Program Lvl'!J1 -> FY25 (R) | J1: ='Program Lvl'!K1 -> FY26 (R) | K1: ='Program Lvl'!L1 -> FY27 (R) | L1: ='Program Lvl'!M1 -> FY28 (R) | M1: ='Program Lvl'!N1 -> FY19 (N) | N1: ='Program Lvl'!O1 -> FY20 (N) | O1: ='Program Lvl'!P1 -> FY21 (N) | P1: ='Program Lvl'!Q1 -> FY22 (N) | Q1: ='Program Lvl'!R1 -> FY23 (N) | R1: ='Program Lvl'!S1 -> FY24 (N) | S1: ='Program Lvl'!T1 -> FY25 (N) | T1: ='Program Lvl'!U1 -> FY26 (N) | U1: ='Program Lvl'!V1 -> FY27 (N) | V1: ='Program Lvl'!W1 -> FY28 (N) | W1: Total (R) | X1: Total (N)
A2: PR | B2: Major projects | C2: =SUMIF('Program Lvl'!$A$2:$A$201,$A2,'Program Lvl'!D$2:D$201) -> 46024482 | D2: =SUMIF('Program Lvl'!$A$2:$A$201,$A2,'Program Lvl'!E$2:E$201) -> 77331906.83 | E2: =SUMIF('Program Lvl'!$A$2:$A$201,$A2,'Program Lvl'!F$2:F$201) -> 87144488.34 | F2: =SUMIF('Program Lvl'!$A$2:$A$201,$A2,'Program Lvl'!G$2:G$201) -> 98765767 | G2: =SUMIF('Program Lvl'!$A$2:$A$201,$A2,'Program Lvl'!H$2:H$201) -> 80637767 | H2: =SUMIF('Program Lvl'!$A$2:$A$201,$A2,'Program Lvl'!I$2:I$201) -> 79768167 | I2: =SUMIF('Program Lvl'!$A$2:$A$201,$A2,'Program Lvl'!J$2:J$201) -> 92249439.02 | J2: =SUMIF('Program Lvl'!$A$2:$A$201,$A2,'Program Lvl'!K$2:K$201) -> 85707000 | K2: =SUMIF('Program Lvl'!$A$2:$A$201,$A2,'Program Lvl'!L$2:L$201) -> 92133000 | L2: =SUMIF('Program Lvl'!$A$2:$A$201,$A2,'Program Lvl'!M$2:M$201) -> 90829000 | M2: =SUMIF('Program Lvl'!$A$2:$A$201,$A2,'Program Lvl'!N$2:N$201) -> 46024482 | N2: =SUMIF('Program Lvl'!$A$2:$A$201,$A2,'Program Lvl'!O$2:O$201) -> 79265204.5 | O2: =SUMIF('Program Lvl'!$A$2:$A$201,$A2,'Program Lvl'!P$2:P$201) -> 91556178.06 | P2: =SUMIF('Program Lvl'!$A$2:$A$201,$A2,'Program Lvl'!Q$2:Q$201) -> 106359928.6 | Q2: =SUMIF('Program Lvl'!$A$2:$A$201,$A2,'Program Lvl'!R$2:R$201) -> 89009006.69 | R2: =SUMIF('Program Lvl'!$A$2:$A$201,$A2,'Program Lvl'!S$2:S$201) -> 90250359.27 | S2: =SUMIF('Program Lvl'!$A$2:$A$201,$A2,'Program Lvl'!T$2:T$201) -> 106981067.3 | T2: =SUMIF('Program Lvl'!$A$2:$A$201,$A2,'Program Lvl'!U$2:U$201) -> 101878689.9 | U2: =SUMIF('Program Lvl'!$A$2:$A$201,$A2,'Program Lvl'!V$2:V$201) -> 112255114.2 | V2: =SUMIF('Program Lvl'!$A$2:$A$201,$A2,'Program Lvl'!W$2:W$201) -> 113432974.7 | W2: =SUM(C2:L2) -> 830591017.2 | X2: =SUM(M2:V2) -> 937013005.1 | Y2: Growth
A3: PRL | B3: Major projects - land | C3: =SUMIF('Program Lvl'!$A$2:$A$201,$A3,'Program Lvl'!D$2:D$201) -> 4020000 | D3: =SUMIF('Program Lvl'!$A$2:$A$201,$A3,'Program Lvl'!E$2:E$201) -> 8975609.756 | E3: =SUMIF('Program Lvl'!$A$2:$A$201,$A3,'Program Lvl'!F$2:F$201) -> 0 | F3: =SUMIF('Program Lvl'!$A$2:$A$201,$A3,'Program Lvl'!G$2:G$201) -> 0 | G3: =SUMIF('Program Lvl'!$A$2:$A$201,$A3,'Program Lvl'!H$2:H$201) -> 4000000 | H3: =SUMIF('Program Lvl'!$A$2:$A$201,$A3,'Program Lvl'!I$2:I$201) -> 6500000 | I3: =SUMIF('Program Lvl'!$A$2:$A$201,$A3,'Program Lvl'!J$2:J$201) -> 5500000 | J3: =SUMIF('Program Lvl'!$A$2:$A$201,$A3,'Program Lvl'!K$2:K$201) -> 5000000 | K3: =SUMIF('Program Lvl'!$A$2:$A$201,$A3,'Program Lvl'!L$2:L$201) -> 0 | L3: =SUMIF('Program Lvl'!$A$2:$A$201,$A3,'Program Lvl'!M$2:M$201) -> 0 | M3: =SUMIF('Program Lvl'!$A$2:$A$201,$A3,'Program Lvl'!N$2:N$201) -> 4020000 | N3: =SUMIF('Program Lvl'!$A$2:$A$201,$A3,'Program Lvl'!O$2:O$201) -> 9200000 | O3: =SUMIF('Program Lvl'!$A$2:$A$201,$A3,'Program Lvl'!P$2:P$201) -> 0 | P3: =SUMIF('Program Lvl'!$A$2:$A$201,$A3,'Program Lvl'!Q$2:Q$201) -> 0 | Q3: =SUMIF('Program Lvl'!$A$2:$A$201,$A3,'Program Lvl'!R$2:R$201) -> 4415251.562 | R3: =SUMIF('Program Lvl'!$A$2:$A$201,$A3,'Program Lvl'!S$2:S$201) -> 7354153.384 | S3: =SUMIF('Program Lvl'!$A$2:$A$201,$A3,'Program Lvl'!T$2:T$201) -> 6378313.8 | T3: =SUMIF('Program Lvl'!$A$2:$A$201,$A3,'Program Lvl'!U$2:U$201) -> 5943428.768 | U3: =SUMIF('Program Lvl'!$A$2:$A$201,$A3,'Program Lvl'!V$2:V$201) -> 0 | V3: =SUMIF('Program Lvl'!$A$2:$A$201,$A3,'Program Lvl'!W$2:W$201) -> 0 | W3: =SUM(C3:L3) -> 33995609.76 | X3: 37311147.51 | Y3: Growth
A4: AG | B4: Automation growth | C4: =SUMIF('Program Lvl'!$A$2:$A$201,$A4,'Program Lvl'!D$2:D$201) -> 300000 | D4: =SUMIF('Program Lvl'!$A$2:$A$201,$A4,'Program Lvl'!E$2:E$201) -> 300000 | E4: =SUMIF('Program Lvl'!$A$2:$A$201,$A4,'Program Lvl'!F$2:F$201) -> 300000 | F4: =SUMIF('Program Lvl'!$A$2:$A$201,$A4,'Program Lvl'!G$2:G$201) -> 300000 | G4: =SUMIF('Program Lvl'!$A$2:$A$201,$A4,'Program Lvl'!H$2:H$201) -> 300000 | H4: =SUMIF('Program Lvl'!$A$2:$A$201,$A4,'Program Lvl'!I$2:I$201) -> 300000 | I4: =SUMIF('Program Lvl'!$A$2:$A$201,$A4,'Program Lvl'!J$2:J$201) -> 300000 | J4: =SUMIF('Program Lvl'!$A$2:$A$201,$A4,'Program Lvl'!K$2:K$201) -> 300000 | K4: =SUMIF('Program Lvl'!$A$2:$A$201,$A4,'Program Lvl'!L$2:L$201) -> 300000 | L4: =SUMIF('Program Lvl'!$A$2:$A$201,$A4,'Program Lvl'!M$2:M$201) -> 300000 | M4: =SUMIF('Program Lvl'!$A$2:$A$201,$A4,'Program Lvl'!N$2:N$201) -> 300000 | N4: =SUMIF('Program Lvl'!$A$2:$A$201,$A4,'Program Lvl'!O$2:O$201) -> 307500 | O4: =SUMIF('Program Lvl'!$A$2:$A$201,$A4,'Program Lvl'!P$2:P$201) -> 315187.5 | P4: =SUMIF('Program Lvl'!$A$2:$A$201,$A4,'Program Lvl'!Q$2:Q$201) -> 323067.1875 | Q4: =SUMIF('Program Lvl'!$A$2:$A$201,$A4,'Program Lvl'!R$2:R$201) -> 331143.8672 | R4: =SUMIF('Program Lvl'!$A$2:$A$201,$A4,'Program Lvl'!S$2:S$201) -> 339422.4639 | S4: =SUMIF('Program Lvl'!$A$2:$A$201,$A4,'Program Lvl'!T$2:T$201) -> 347908.0255 | T4: =SUMIF('Program Lvl'!$A$2:$A$201,$A4,'Program Lvl'!U$2:U$201) -> 356605.7261 | U4: =SUMIF('Program Lvl'!$A$2:$A$201,$A4,'Program Lvl'!V$2:V$201) -> 365520.8693 | V4: =SUMIF('Program Lvl'!$A$2:$A$201,$A4,'Program Lvl'!W$2:W$201) -> 374658.891 | W4: 3000000 | X4: =SUM(M4:V4) -> 3361014.53 | Y4: Growth
A5: HV | B5: Distribution works program | C5: =SUMIF('Program Lvl'!$A$2:$A$201,$A5,'Program Lvl'!D$2:D$201) -> 7057544 | D5: =SUMIF('Program Lvl'!$A$2:$A$201,$A5,'Program Lvl'!E$2:E$201) -> 6800844 | E5: =SUMIF('Program Lvl'!$A$2:$A$201,$A5,'Program Lvl'!F$2:F$201) -> 7103063 | F5: =SUMIF('Program Lvl'!$A$2:$A$201,$A5,'Program Lvl'!G$2:G$201) -> 6647368 | G5: =SUMIF('Program Lvl'!$A$2:$A$201,$A5,'Program Lvl'!H$2:H$201) -> 6275047 | H5: =SUMIF('Program Lvl'!$A$2:$A$201,$A5,'Program Lvl'!I$2:I$201) -> 5947097 | I5: =SUMIF('Program Lvl'!$A$2:$A$201,$A5,'Program Lvl'!J$2:J$201) -> 6000000 | J5: =SUMIF('Program Lvl'!$A$2:$A$201,$A5,'Program Lvl'!K$2:K$201) -> 6000000 | K5: =SUMIF('Program Lvl'!$A$2:$A$201,$A5,'Program Lvl'!L$2:L$201) -> 6000000 | L5: =SUMIF('Program Lvl'!$A$2:$A$201,$A5,'Program Lvl'!M$2:M$201) -> 6000000 | M5: =SUMIF('Program Lvl'!$A$2:$A$201,$A5,'Program Lvl'!N$2:N$201) -> 7057544 | N5: =SUMIF('Program Lvl'!$A$2:$A$201,$A5,'Program Lvl'!O$2:O$201) -> 6970865.1 | O5: =SUMIF('Program Lvl'!$A$2:$A$201,$A5,'Program Lvl'!P$2:P$201) -> 7462655.564 | P5: =SUMIF('Program Lvl'!$A$2:$A$201,$A5,'Program Lvl'!Q$2:Q$201) -> 7158488.28 | Q5: =SUMIF('Program Lvl'!$A$2:$A$201,$A5,'Program Lvl'!R$2:R$201) -> 6926477.768 | R5: =SUMIF('Program Lvl'!$A$2:$A$201,$A5,'Program Lvl'!S$2:S$201) -> 6728594.389 | S5: =SUMIF('Program Lvl'!$A$2:$A$201,$A5,'Program Lvl'!T$2:T$201) -> 6958160.509 | T5: =SUMIF('Program Lvl'!$A$2:$A$201,$A5,'Program Lvl'!U$2:U$201) -> 7132114.522 | U5: =SUMIF('Program Lvl'!$A$2:$A$201,$A5,'Program Lvl'!V$2:V$201) -> 7310417.385 | V5: =SUMIF('Program Lvl'!$A$2:$A$201,$A5,'Program Lvl'!W$2:W$201) -> 7493177.82 | W5: 63830963 | X5: 71198495.34 | Y5: Growth
A6: EH | B6: Dist environmental enhancement | C6: =SUMIF('Program Lvl'!$A$2:$A$201,$A6,'Program Lvl'!D$2:D$201) -> 0 | D6: =SUMIF('Program Lvl'!$A$2:$A$201,$A6,'Program Lvl'!E$2:E$201) -> 0 | E6: =SUMIF('Program Lvl'!$A$2:$A$201,$A6,'Program Lvl'!F$2:F$201) -> 0 | F6: =SUMIF('Program Lvl'!$A$2:$A$201,$A6,'Program Lvl'!G$2:G$201) -> 0 | G6: =SUMIF('Program Lvl'!$A$2:$A$201,$A6,'Program Lvl'!H$2:H$201) -> 0 | H6: =SUMIF('Program Lvl'!$A$2:$A$201,$A6,'Program Lvl'!I$2:I$201) -> 0 | I6: =SUMIF('Program Lvl'!$A$2:$A$201,$A6,'Program Lvl'!J$2:J$201) -> 0 | J6: =SUMIF('Program Lvl'!$A$2:$A$201,$A6,'Program Lvl'!K$2:K$201) -> 0 | K6: =SUMIF('Program Lvl'!$A$2:$A$201,$A6,'Program Lvl'!L$2:L$201) -> 0 | L6: =SUMIF('Program Lvl'!$A$2:$A$201,$A6,'Program Lvl'!M$2:M$201) -> 0 | M6: =SUMIF('Program Lvl'!$A$2:$A$201,$A6,'Program Lvl'!N$2:N$201) -> 0 | N6: =SUMIF('Program Lvl'!$A$2:$A$201,$A6,'Program Lvl'!O$2:O$201) -> 0 | O6: =SUMIF('Program Lvl'!$A$2:$A$201,$A6,'Program Lvl'!P$2:P$201) -> 0 | P6: =SUMIF('Program Lvl'!$A$2:$A$201,$A6,'Program Lvl'!Q$2:Q$201) -> 0 | Q6: =SUMIF('Program Lvl'!$A$2:$A$201,$A6,'Program Lvl'!R$2:R$201) -> 0 | R6: =SUMIF('Program Lvl'!$A$2:$A$201,$A6,'Program Lvl'!S$2:S$201) -> 0 | S6: =SUMIF('Program Lvl'!$A$2:$A$201,$A6,'Program Lvl'!T$2:T$201) -> 0 | T6: =SUMIF('Program Lvl'!$A$2:$A$201,$A6,'Program Lvl'!U$2:U$201) -> 0 | U6: =SUMIF('Program Lvl'!$A$2:$A$201,$A6,'Program Lvl'!V$2:V$201) -> 0 | V6: =SUMIF('Program Lvl'!$A$2:$A$201,$A6,'Program Lvl'!W$2:W$201) -> 0 | W6: 0 | X6: 0 | Y6: Growth
A7: LV | B7: Low voltage development capital | C7: =SUMIF('Program Lvl'!$A$2:$A$201,$A7,'Program Lvl'!D$2:D$201) -> 1870000 | D7: =SUMIF('Program Lvl'!$A$2:$A$201,$A7,'Program Lvl'!E$2:E$201) -> 1870000 | E7: =SUMIF('Program Lvl'!$A$2:$A$201,$A7,'Program Lvl'!F$2:F$201) -> 1870000 | F7: =SUMIF('Program Lvl'!$A$2:$A$201,$A7,'Program Lvl'!G$2:G$201) -> 1870000 | G7: =SUMIF('Program Lvl'!$A$2:$A$201,$A7,'Program Lvl'!H$2:H$201) -> 1870000 | H7: =SUMIF('Program Lvl'!$A$2:$A$201,$A7,'Program Lvl'!I$2:I$201) -> 1870000 | I7: =SUMIF('Program Lvl'!$A$2:$A$201,$A7,'Program Lvl'!J$2:J$201) -> 1870000 | J7: =SUMIF('Program Lvl'!$A$2:$A$201,$A7,'Program Lvl'!K$2:K$201) -> 1870000 | K7: =SUMIF('Program Lvl'!$A$2:$A$201,$A7,'Program Lvl'!L$2:L$201) -> 1870000 | L7: =SUMIF('Program Lvl'!$A$2:$A$201,$A7,'Program Lvl'!M$2:M$201) -> 1870000 | M7: =SUMIF('Program Lvl'!$A$2:$A$201,$A7,'Program Lvl'!N$2:N$201) -> 1870000 | N7: =SUMIF('Program Lvl'!$A$2:$A$201,$A7,'Program Lvl'!O$2:O$201) -> 1916750 | O7: =SUMIF('Program Lvl'!$A$2:$A$201,$A7,'Program Lvl'!P$2:P$201) -> 1964668.75 | P7: =SUMIF('Program Lvl'!$A$2:$A$201,$A7,'Program Lvl'!Q$2:Q$201) -> 2013785.469 | Q7: =SUMIF('Program Lvl'!$A$2:$A$201,$A7,'Program Lvl'!R$2:R$201) -> 2064130.105 | R7: =SUMIF('Program Lvl'!$A$2:$A$201,$A7,'Program Lvl'!S$2:S$201) -> 2115733.358 | S7: =SUMIF('Program Lvl'!$A$2:$A$201,$A7,'Program Lvl'!T$2:T$201) -> 2168626.692 | T7: =SUMIF('Program Lvl'!$A$2:$A$201,$A7,'Program Lvl'!U$2:U$201) -> 2222842.359 | U7: =SUMIF('Program Lvl'!$A$2:$A$201,$A7,'Program Lvl'!V$2:V$201) -> 2278413.418 | V7: =SUMIF('Program Lvl'!$A$2:$A$201,$A7,'Program Lvl'!W$2:W$201) -> 2335373.754 | W7: 18700000 | X7: 20950323.91 | Y7: Growth
A8: AR | B8: Asset relocation | C8: =SUMIF('Program Lvl'!$A$2:$A$201,$A8,'Program Lvl'!D$2:D$201) -> 1674562.911 | D8: =SUMIF('Program Lvl'!$A$2:$A$201,$A8,'Program Lvl'!E$2:E$201) -> 1817759 | E8: =SUMIF('Program Lvl'!$A$2:$A$201,$A8,'Program Lvl'!F$2:F$201) -> 1809464 | F8: =SUMIF('Program Lvl'!$A$2:$A$201,$A8,'Program Lvl'!G$2:G$201) -> 1815980 | G8: =SUMIF('Program Lvl'!$A$2:$A$201,$A8,'Program Lvl'!H$2:H$201) -> 1824516 | H8: =SUMIF('Program Lvl'!$A$2:$A$201,$A8,'Program Lvl'!I$2:I$201) -> 1838449 | I8: =SUMIF('Program Lvl'!$A$2:$A$201,$A8,'Program Lvl'!J$2:J$201) -> 1846369 | J8: =SUMIF('Program Lvl'!$A$2:$A$201,$A8,'Program Lvl'!K$2:K$201) -> 1854271 | K8: =SUMIF('Program Lvl'!$A$2:$A$201,$A8,'Program Lvl'!L$2:L$201) -> 1862211 | L8: =SUMIF('Program Lvl'!$A$2:$A$201,$A8,'Program Lvl'!M$2:M$201) -> 1878172 | M8: =SUMIF('Program Lvl'!$A$2:$A$201,$A8,'Program Lvl'!N$2:N$201) -> 1674562.911 | N8: =SUMIF('Program Lvl'!$A$2:$A$201,$A8,'Program Lvl'!O$2:O$201) -> 1863202.975 | O8: =SUMIF('Program Lvl'!$A$2:$A$201,$A8,'Program Lvl'!P$2:P$201) -> 1901068.115 | P8: =SUMIF('Program Lvl'!$A$2:$A$201,$A8,'Program Lvl'!Q$2:Q$201) -> 1955611.837 | Q8: =SUMIF('Program Lvl'!$A$2:$A$201,$A8,'Program Lvl'!R$2:R$201) -> 2013924.28 | R8: =SUMIF('Program Lvl'!$A$2:$A$201,$A8,'Program Lvl'!S$2:S$201) -> 2080036.298 | S8: =SUMIF('Program Lvl'!$A$2:$A$201,$A8,'Program Lvl'!T$2:T$201) -> 2141221.977 | T8: =SUMIF('Program Lvl'!$A$2:$A$201,$A8,'Program Lvl'!U$2:U$201) -> 2204145.521 | U8: =SUMIF('Program Lvl'!$A$2:$A$201,$A8,'Program Lvl'!V$2:V$201) -> 2268923.278 | V8: =SUMIF('Program Lvl'!$A$2:$A$201,$A8,'Program Lvl'!W$2:W$201) -> 2345579.462 | W8: 18221753.91 | X8: 20448276.65 | Y8: Growth
A9: DU | B9: Duct installation RMS road works | C9: =SUMIF('Program Lvl'!$A$2:$A$201,$A9,'Program Lvl'!D$2:D$201) -> 1955226.018 | D9: =SUMIF('Program Lvl'!$A$2:$A$201,$A9,'Program Lvl'!E$2:E$201) -> 2152731 | E9: =SUMIF('Program Lvl'!$A$2:$A$201,$A9,'Program Lvl'!F$2:F$201) -> 2206549 | F9: =SUMIF('Program Lvl'!$A$2:$A$201,$A9,'Program Lvl'!G$2:G$201) -> 2261713 | G9: =SUMIF('Program Lvl'!$A$2:$A$201,$A9,'Program Lvl'!H$2:H$201) -> 2318255 | H9: =SUMIF('Program Lvl'!$A$2:$A$201,$A9,'Program Lvl'!I$2:I$201) -> 2376212 | I9: =SUMIF('Program Lvl'!$A$2:$A$201,$A9,'Program Lvl'!J$2:J$201) -> 2435617 | J9: =SUMIF('Program Lvl'!$A$2:$A$201,$A9,'Program Lvl'!K$2:K$201) -> 2496508 | K9: =SUMIF('Program Lvl'!$A$2:$A$201,$A9,'Program Lvl'!L$2:L$201) -> 2558920 | L9: =SUMIF('Program Lvl'!$A$2:$A$201,$A9,'Program Lvl'!M$2:M$201) -> 2558920 | M9: =SUMIF('Program Lvl'!$A$2:$A$201,$A9,'Program Lvl'!N$2:N$201) -> 1955226.018 | N9: =SUMIF('Program Lvl'!$A$2:$A$201,$A9,'Program Lvl'!O$2:O$201) -> 2206549.275 | O9: =SUMIF('Program Lvl'!$A$2:$A$201,$A9,'Program Lvl'!P$2:P$201) -> 2318255.543 | P9: =SUMIF('Program Lvl'!$A$2:$A$201,$A9,'Program Lvl'!Q$2:Q$201) -> 2435617.526 | Q9: =SUMIF('Program Lvl'!$A$2:$A$201,$A9,'Program Lvl'!R$2:R$201) -> 2558919.753 | R9: =SUMIF('Program Lvl'!$A$2:$A$201,$A9,'Program Lvl'!S$2:S$201) -> 2688465.772 | S9: =SUMIF('Program Lvl'!$A$2:$A$201,$A9,'Program Lvl'!T$2:T$201) -> 2824569.004 | T9: =SUMIF('Program Lvl'!$A$2:$A$201,$A9,'Program Lvl'!U$2:U$201) -> 2967563.494 | U9: =SUMIF('Program Lvl'!$A$2:$A$201,$A9,'Program Lvl'!V$2:V$201) -> 3117795.542 | V9: =SUMIF('Program Lvl'!$A$2:$A$201,$A9,'Program Lvl'!W$2:W$201) -> 3195740.431 | W9: 23320651.02 | X9: 26268702.36 | Y9: Growth
A10: IC | B10: Industrial & commercial | C10: =SUMIF('Program Lvl'!$A$2:$A$201,$A10,'Program Lvl'!D$2:D$201) -> 10000000 | D10: =SUMIF('Program Lvl'!$A$2:$A$201,$A10,'Program Lvl'!E$2:E$201) -> 13836506 | E10: =SUMIF('Program Lvl'!$A$2:$A$201,$A10,'Program Lvl'!F$2:F$201) -> 13286183 | F10: =SUMIF('Program Lvl'!$A$2:$A$201,$A10,'Program Lvl'!G$2:G$201) -> 13262397 | G10: =SUMIF('Program Lvl'!$A$2:$A$201,$A10,'Program Lvl'!H$2:H$201) -> 13309313 | H10: =SUMIF('Program Lvl'!$A$2:$A$201,$A10,'Program Lvl'!I$2:I$201) -> 13547284 | I10: =SUMIF('Program Lvl'!$A$2:$A$201,$A10,'Program Lvl'!J$2:J$201) -> 13569703 | J10: =SUMIF('Program Lvl'!$A$2:$A$201,$A10,'Program Lvl'!K$2:K$201) -> 13590130 | K10: =SUMIF('Program Lvl'!$A$2:$A$201,$A10,'Program Lvl'!L$2:L$201) -> 13610660 | L10: =SUMIF('Program Lvl'!$A$2:$A$201,$A10,'Program Lvl'!M$2:M$201) -> 13651924 | M10: =SUMIF('Program Lvl'!$A$2:$A$201,$A10,'Program Lvl'!N$2:N$201) -> 10000000 | N10: =SUMIF('Program Lvl'!$A$2:$A$201,$A10,'Program Lvl'!O$2:O$201) -> 14182418.65 | O10: =SUMIF('Program Lvl'!$A$2:$A$201,$A10,'Program Lvl'!P$2:P$201) -> 13958796.01 | P10: =SUMIF('Program Lvl'!$A$2:$A$201,$A10,'Program Lvl'!Q$2:Q$201) -> 14282150.99 | Q10: =SUMIF('Program Lvl'!$A$2:$A$201,$A10,'Program Lvl'!R$2:R$201) -> 14690991.25 | R10: =SUMIF('Program Lvl'!$A$2:$A$201,$A10,'Program Lvl'!S$2:S$201) -> 15327508.38 | S10: =SUMIF('Program Lvl'!$A$2:$A$201,$A10,'Program Lvl'!T$2:T$201) -> 15736695.26 | T10: =SUMIF('Program Lvl'!$A$2:$A$201,$A10,'Program Lvl'!U$2:U$201) -> 16154393.92 | U10: =SUMIF('Program Lvl'!$A$2:$A$201,$A10,'Program Lvl'!V$2:V$201) -> 16583267.58 | V10: =SUMIF('Program Lvl'!$A$2:$A$201,$A10,'Program Lvl'!W$2:W$201) -> 17049382.35 | W10: 131664100 | X10: 147965604.4 | Y10: Growth
A11: NU | B11: Non-urban extension | C11: =SUMIF('Program Lvl'!$A$2:$A$201,$A11,'Program Lvl'!D$2:D$201) -> 850000 | D11: =SUMIF('Program Lvl'!$A$2:$A$201,$A11,'Program Lvl'!E$2:E$201) -> 1731521 | E11: =SUMIF('Program Lvl'!$A$2:$A$201,$A11,'Program Lvl'!F$2:F$201) -> 1666575 | F11: =SUMIF('Program Lvl'!$A$2:$A$201,$A11,'Program Lvl'!G$2:G$201) -> 1664189 | G11: =SUMIF('Program Lvl'!$A$2:$A$201,$A11,'Program Lvl'!H$2:H$201) -> 1670205 | H11: =SUMIF('Program Lvl'!$A$2:$A$201,$A11,'Program Lvl'!I$2:I$201) -> 1698923 | I11: =SUMIF('Program Lvl'!$A$2:$A$201,$A11,'Program Lvl'!J$2:J$201) -> 1702034 | J11: =SUMIF('Program Lvl'!$A$2:$A$201,$A11,'Program Lvl'!K$2:K$201) -> 1704910 | K11: =SUMIF('Program Lvl'!$A$2:$A$201,$A11,'Program Lvl'!L$2:L$201) -> 1707800 | L11: =SUMIF('Program Lvl'!$A$2:$A$201,$A11,'Program Lvl'!M$2:M$201) -> 1713610 | M11: =SUMIF('Program Lvl'!$A$2:$A$201,$A11,'Program Lvl'!N$2:N$201) -> 850000 | N11: =SUMIF('Program Lvl'!$A$2:$A$201,$A11,'Program Lvl'!O$2:O$201) -> 1774809.025 | O11: =SUMIF('Program Lvl'!$A$2:$A$201,$A11,'Program Lvl'!P$2:P$201) -> 1750945.359 | P11: =SUMIF('Program Lvl'!$A$2:$A$201,$A11,'Program Lvl'!Q$2:Q$201) -> 1792149.532 | Q11: =SUMIF('Program Lvl'!$A$2:$A$201,$A11,'Program Lvl'!R$2:R$201) -> 1843593.809 | R11: =SUMIF('Program Lvl'!$A$2:$A$201,$A11,'Program Lvl'!S$2:S$201) -> 1922175.435 | S11: =SUMIF('Program Lvl'!$A$2:$A$201,$A11,'Program Lvl'!T$2:T$201) -> 1973837.627 | T11: =SUMIF('Program Lvl'!$A$2:$A$201,$A11,'Program Lvl'!U$2:U$201) -> 2026602.228 | U11: =SUMIF('Program Lvl'!$A$2:$A$201,$A11,'Program Lvl'!V$2:V$201) -> 2080788.468 | V11: =SUMIF('Program Lvl'!$A$2:$A$201,$A11,'Program Lvl'!W$2:W$201) -> 2140064.074 | W11: 16109767 | X11: 18154965.56 | Y11: Growth
A12: UR | B12: Underground residential | C12: =SUMIF('Program Lvl'!$A$2:$A$201,$A12,'Program Lvl'!D$2:D$201) -> 33939845.57 | D12: =SUMIF('Program Lvl'!$A$2:$A$201,$A12,'Program Lvl'!E$2:E$201) -> 43969550 | E12: =SUMIF('Program Lvl'!$A$2:$A$201,$A12,'Program Lvl'!F$2:F$201) -> 42124113 | F12: =SUMIF('Program Lvl'!$A$2:$A$201,$A12,'Program Lvl'!G$2:G$201) -> 42033971 | G12: =SUMIF('Program Lvl'!$A$2:$A$201,$A12,'Program Lvl'!H$2:H$201) -> 42179479 | H12: =SUMIF('Program Lvl'!$A$2:$A$201,$A12,'Program Lvl'!I$2:I$201) -> 42961866 | I12: =SUMIF('Program Lvl'!$A$2:$A$201,$A12,'Program Lvl'!J$2:J$201) -> 43025596 | J12: =SUMIF('Program Lvl'!$A$2:$A$201,$A12,'Program Lvl'!K$2:K$201) -> 43082634 | K12: =SUMIF('Program Lvl'!$A$2:$A$201,$A12,'Program Lvl'!L$2:L$201) -> 43139956 | L12: =SUMIF('Program Lvl'!$A$2:$A$201,$A12,'Program Lvl'!M$2:M$201) -> 43255175 | M12: =SUMIF('Program Lvl'!$A$2:$A$201,$A12,'Program Lvl'!N$2:N$201) -> 33939845.57 | N12: =SUMIF('Program Lvl'!$A$2:$A$201,$A12,'Program Lvl'!O$2:O$201) -> 45068788.75 | O12: =SUMIF('Program Lvl'!$A$2:$A$201,$A12,'Program Lvl'!P$2:P$201) -> 44256646.22 | P12: =SUMIF('Program Lvl'!$A$2:$A$201,$A12,'Program Lvl'!Q$2:Q$201) -> 45265989.3 | Q12: =SUMIF('Program Lvl'!$A$2:$A$201,$A12,'Program Lvl'!R$2:R$201) -> 46558252.64 | R12: =SUMIF('Program Lvl'!$A$2:$A$201,$A12,'Program Lvl'!S$2:S$201) -> 48607408.03 | S12: =SUMIF('Program Lvl'!$A$2:$A$201,$A12,'Program Lvl'!T$2:T$201) -> 49896500.5 | T12: =SUMIF('Program Lvl'!$A$2:$A$201,$A12,'Program Lvl'!U$2:U$201) -> 51211713.27 | U12: =SUMIF('Program Lvl'!$A$2:$A$201,$A12,'Program Lvl'!V$2:V$201) -> 52561847.39 | V12: =SUMIF('Program Lvl'!$A$2:$A$201,$A12,'Program Lvl'!W$2:W$201) -> 54019786.32 | W12: 419712185.6 | X12: 471386778 | Y12: Growth
A13: RC | B13: Reliability compliance | C13: =SUMIF('Program Lvl'!$A$2:$A$201,$A13,'Program Lvl'!D$2:D$201) -> 4000000 | D13: =SUMIF('Program Lvl'!$A$2:$A$201,$A13,'Program Lvl'!E$2:E$201) -> 4000000 | E13: =SUMIF('Program Lvl'!$A$2:$A$201,$A13,'Program Lvl'!F$2:F$201) -> 4000000 | F13: =SUMIF('Program Lvl'!$A$2:$A$201,$A13,'Program Lvl'!G$2:G$201) -> 4000000 | G13: =SUMIF('Program Lvl'!$A$2:$A$201,$A13,'Program Lvl'!H$2:H$201) -> 4000000 | H13: =SUMIF('Program Lvl'!$A$2:$A$201,$A13,'Program Lvl'!I$2:I$201) -> 4000000 | I13: =SUMIF('Program Lvl'!$A$2:$A$201,$A13,'Program Lvl'!J$2:J$201) -> 4000000 | J13: =SUMIF('Program Lvl'!$A$2:$A$201,$A13,'Program Lvl'!K$2:K$201) -> 4000000 | K13: =SUMIF('Program Lvl'!$A$2:$A$201,$A13,'Program Lvl'!L$2:L$201) -> 4000000 | L13: =SUMIF('Program Lvl'!$A$2:$A$201,$A13,'Program Lvl'!M$2:M$201) -> 4000000 | M13: =SUMIF('Program Lvl'!$A$2:$A$201,$A13,'Program Lvl'!N$2:N$201) -> 4000000 | N13: =SUMIF('Program Lvl'!$A$2:$A$201,$A13,'Program Lvl'!O$2:O$201) -> 4100000 | O13: =SUMIF('Program Lvl'!$A$2:$A$201,$A13,'Program Lvl'!P$2:P$201) -> 4202500 | P13: =SUMIF('Program Lvl'!$A$2:$A$201,$A13,'Program Lvl'!Q$2:Q$201) -> 4307562.5 | Q13: =SUMIF('Program Lvl'!$A$2:$A$201,$A13,'Program Lvl'!R$2:R$201) -> 4415251.562 | R13: =SUMIF('Program Lvl'!$A$2:$A$201,$A13,'Program Lvl'!S$2:S$201) -> 4525632.852 | S13: =SUMIF('Program Lvl'!$A$2:$A$201,$A13,'Program Lvl'!T$2:T$201) -> 4638773.673 | T13: =SUMIF('Program Lvl'!$A$2:$A$201,$A13,'Program Lvl'!U$2:U$201) -> 4754743.015 | U13: =SUMIF('Program Lvl'!$A$2:$A$201,$A13,'Program Lvl'!V$2:V$201) -> 4873611.59 | V13: =SUMIF('Program Lvl'!$A$2:$A$201,$A13,'Program Lvl'!W$2:W$201) -> 4995451.88 | W13: 40000000 | X13: 44813527.07 | Y13: Reliability
A14: PQ | B14: Power quality capital | C14: =SUMIF('Program Lvl'!$A$2:$A$201,$A14,'Program Lvl'!D$2:D$201) -> 1015000 | D14: =SUMIF('Program Lvl'!$A$2:$A$201,$A14,'Program Lvl'!E$2:E$201) -> 442400 | E14: =SUMIF('Program Lvl'!$A$2:$A$201,$A14,'Program Lvl'!F$2:F$201) -> 717700 | F14: =SUMIF('Program Lvl'!$A$2:$A$201,$A14,'Program Lvl'!G$2:G$201) -> 973300 | G14: =SUMIF('Program Lvl'!$A$2:$A$201,$A14,'Program Lvl'!H$2:H$201) -> 1047600 | H14: =SUMIF('Program Lvl'!$A$2:$A$201,$A14,'Program Lvl'!I$2:I$201) -> 1464538 | I14: =SUMIF('Program Lvl'!$A$2:$A$201,$A14,'Program Lvl'!J$2:J$201) -> 1399560 | J14: =SUMIF('Program Lvl'!$A$2:$A$201,$A14,'Program Lvl'!K$2:K$201) -> 1529516 | K14: =SUMIF('Program Lvl'!$A$2:$A$201,$A14,'Program Lvl'!L$2:L$201) -> 1529516 | L14: =SUMIF('Program Lvl'!$A$2:$A$201,$A14,'Program Lvl'!M$2:M$201) -> 1269604 | M14: =SUMIF('Program Lvl'!$A$2:$A$201,$A14,'Program Lvl'!N$2:N$201) -> 1015000 | N14: =SUMIF('Program Lvl'!$A$2:$A$201,$A14,'Program Lvl'!O$2:O$201) -> 453460 | O14: =SUMIF('Program Lvl'!$A$2:$A$201,$A14,'Program Lvl'!P$2:P$201) -> 754033.5625 | P14: =SUMIF('Program Lvl'!$A$2:$A$201,$A14,'Program Lvl'!Q$2:Q$201) -> 1048137.645 | Q14: =SUMIF('Program Lvl'!$A$2:$A$201,$A14,'Program Lvl'!R$2:R$201) -> 1156354.384 | R14: =SUMIF('Program Lvl'!$A$2:$A$201,$A14,'Program Lvl'!S$2:S$201) -> 1656990.321 | S14: =SUMIF('Program Lvl'!$A$2:$A$201,$A14,'Program Lvl'!T$2:T$201) -> 1623060.52 | T14: =SUMIF('Program Lvl'!$A$2:$A$201,$A14,'Program Lvl'!U$2:U$201) -> 1818113.879 | U14: =SUMIF('Program Lvl'!$A$2:$A$201,$A14,'Program Lvl'!V$2:V$201) -> 1863566.726 | V14: =SUMIF('Program Lvl'!$A$2:$A$201,$A14,'Program Lvl'!W$2:W$201) -> 1585561.422 | W14: 11388734 | X14: 12974278.46 | Y14: Reliability
A15: TS | B15: Transmission substation capital (rebuild) | C15: =SUMIF('Program Lvl'!$A$2:$A$201,$A15,'Program Lvl'!D$2:D$201) -> 54347180.72 | D15: =SUMIF('Program Lvl'!$A$2:$A$201,$A15,'Program Lvl'!E$2:E$201) -> 50688000 | E15: =SUMIF('Program Lvl'!$A$2:$A$201,$A15,'Program Lvl'!F$2:F$201) -> 49573428.57 | F15: =SUMIF('Program Lvl'!$A$2:$A$201,$A15,'Program Lvl'!G$2:G$201) -> 50862000 | G15: =SUMIF('Program Lvl'!$A$2:$A$201,$A15,'Program Lvl'!H$2:H$201) -> 51587000 | H15: =SUMIF('Program Lvl'!$A$2:$A$201,$A15,'Program Lvl'!I$2:I$201) -> 59391000 | I15: =SUMIF('Program Lvl'!$A$2:$A$201,$A15,'Program Lvl'!J$2:J$201) -> 55641000 | J15: =SUMIF('Program Lvl'!$A$2:$A$201,$A15,'Program Lvl'!K$2:K$201) -> 59421000 | K15: =SUMIF('Program Lvl'!$A$2:$A$201,$A15,'Program Lvl'!L$2:L$201) -> 55921000 | L15: =SUMIF('Program Lvl'!$A$2:$A$201,$A15,'Program Lvl'!M$2:M$201) -> 58521000 | M15: =SUMIF('Program Lvl'!$A$2:$A$201,$A15,'Program Lvl'!N$2:N$201) -> 54347180.72 | N15: =SUMIF('Program Lvl'!$A$2:$A$201,$A15,'Program Lvl'!O$2:O$201) -> 51955200 | O15: =SUMIF('Program Lvl'!$A$2:$A$201,$A15,'Program Lvl'!P$2:P$201) -> 52083083.39 | P15: =SUMIF('Program Lvl'!$A$2:$A$201,$A15,'Program Lvl'!Q$2:Q$201) -> 54772810.97 | Q15: =SUMIF('Program Lvl'!$A$2:$A$201,$A15,'Program Lvl'!R$2:R$201) -> 56942395.59 | R15: =SUMIF('Program Lvl'!$A$2:$A$201,$A15,'Program Lvl'!S$2:S$201) -> 67195465.17 | S15: =SUMIF('Program Lvl'!$A$2:$A$201,$A15,'Program Lvl'!T$2:T$201) -> 64526501.48 | T15: =SUMIF('Program Lvl'!$A$2:$A$201,$A15,'Program Lvl'!U$2:U$201) -> 70632896.17 | U15: =SUMIF('Program Lvl'!$A$2:$A$201,$A15,'Program Lvl'!V$2:V$201) -> 68134308.43 | V15: =SUMIF('Program Lvl'!$A$2:$A$201,$A15,'Program Lvl'!W$2:W$201) -> 73084709.86 | W15: 545952609.3 | X15: 613674551.8 | Y15: Sustainability
A16: TM | B16: Transmission mains capital (refurb) | C16: =SUMIF('Program Lvl'!$A$2:$A$201,$A16,'Program Lvl'!D$2:D$201) -> 13859524.81 | D16: =SUMIF('Program Lvl'!$A$2:$A$201,$A16,'Program Lvl'!E$2:E$201) -> 18265000 | E16: =SUMIF('Program Lvl'!$A$2:$A$201,$A16,'Program Lvl'!F$2:F$201) -> 29137000 | F16: =SUMIF('Program Lvl'!$A$2:$A$201,$A16,'Program Lvl'!G$2:G$201) -> 31395000 | G16: =SUMIF('Program Lvl'!$A$2:$A$201,$A16,'Program Lvl'!H$2:H$201) -> 32995000 | H16: =SUMIF('Program Lvl'!$A$2:$A$201,$A16,'Program Lvl'!I$2:I$201) -> 34655000 | I16: =SUMIF('Program Lvl'!$A$2:$A$201,$A16,'Program Lvl'!J$2:J$201) -> 42800000 | J16: =SUMIF('Program Lvl'!$A$2:$A$201,$A16,'Program Lvl'!K$2:K$201) -> 47927000 | K16: =SUMIF('Program Lvl'!$A$2:$A$201,$A16,'Program Lvl'!L$2:L$201) -> 52420000 | L16: =SUMIF('Program Lvl'!$A$2:$A$201,$A16,'Program Lvl'!M$2:M$201) -> 54520000 | M16: =SUMIF('Program Lvl'!$A$2:$A$201,$A16,'Program Lvl'!N$2:N$201) -> 13859524.81 | N16: =SUMIF('Program Lvl'!$A$2:$A$201,$A16,'Program Lvl'!O$2:O$201) -> 18721625 | O16: =SUMIF('Program Lvl'!$A$2:$A$201,$A16,'Program Lvl'!P$2:P$201) -> 30612060.62 | P16: =SUMIF('Program Lvl'!$A$2:$A$201,$A16,'Program Lvl'!Q$2:Q$201) -> 33808981.17 | Q16: =SUMIF('Program Lvl'!$A$2:$A$201,$A16,'Program Lvl'!R$2:R$201) -> 36420306.33 | R16: =SUMIF('Program Lvl'!$A$2:$A$201,$A16,'Program Lvl'!S$2:S$201) -> 39208951.62 | S16: =SUMIF('Program Lvl'!$A$2:$A$201,$A16,'Program Lvl'!T$2:T$201) -> 49634878.3 | T16: =SUMIF('Program Lvl'!$A$2:$A$201,$A16,'Program Lvl'!U$2:U$201) -> 56970142.12 | U16: =SUMIF('Program Lvl'!$A$2:$A$201,$A16,'Program Lvl'!V$2:V$201) -> 63868679.89 | V16: =SUMIF('Program Lvl'!$A$2:$A$201,$A16,'Program Lvl'!W$2:W$201) -> 68088009.12 | W16: 357973524.8 | X16: 411193159 | Y16: Sustainability
A17: DS | B17: Distribution refurbishment capital | C17: =SUMIF('Program Lvl'!$A$2:$A$201,$A17,'Program Lvl'!D$2:D$201) -> 62411426.22 | D17: =SUMIF('Program Lvl'!$A$2:$A$201,$A17,'Program Lvl'!E$2:E$201) -> 66709000 | E17: =SUMIF('Program Lvl'!$A$2:$A$201,$A17,'Program Lvl'!F$2:F$201) -> 71916000 | F17: =SUMIF('Program Lvl'!$A$2:$A$201,$A17,'Program Lvl'!G$2:G$201) -> 76635000 | G17: =SUMIF('Program Lvl'!$A$2:$A$201,$A17,'Program Lvl'!H$2:H$201) -> 78550000 | H17: =SUMIF('Program Lvl'!$A$2:$A$201,$A17,'Program Lvl'!I$2:I$201) -> 76850500 | I17: =SUMIF('Program Lvl'!$A$2:$A$201,$A17,'Program Lvl'!J$2:J$201) -> 97970500 | J17: =SUMIF('Program Lvl'!$A$2:$A$201,$A17,'Program Lvl'!K$2:K$201) -> 109563000 | K17: =SUMIF('Program Lvl'!$A$2:$A$201,$A17,'Program Lvl'!L$2:L$201) -> 120733000 | L17: =SUMIF('Program Lvl'!$A$2:$A$201,$A17,'Program Lvl'!M$2:M$201) -> 124933000 | M17: =SUMIF('Program Lvl'!$A$2:$A$201,$A17,'Program Lvl'!N$2:N$201) -> 62411426.22 | N17: =SUMIF('Program Lvl'!$A$2:$A$201,$A17,'Program Lvl'!O$2:O$201) -> 68376725 | O17: =SUMIF('Program Lvl'!$A$2:$A$201,$A17,'Program Lvl'!P$2:P$201) -> 75556747.5 | P17: =SUMIF('Program Lvl'!$A$2:$A$201,$A17,'Program Lvl'!Q$2:Q$201) -> 82527513.05 | Q17: =SUMIF('Program Lvl'!$A$2:$A$201,$A17,'Program Lvl'!R$2:R$201) -> 86704502.56 | R17: =SUMIF('Program Lvl'!$A$2:$A$201,$A17,'Program Lvl'!S$2:S$201) -> 86949286.86 | S17: =SUMIF('Program Lvl'!$A$2:$A$201,$A17,'Program Lvl'!T$2:T$201) -> 113615744 | T17: =SUMIF('Program Lvl'!$A$2:$A$201,$A17,'Program Lvl'!U$2:U$201) -> 130235977.2 | U17: =SUMIF('Program Lvl'!$A$2:$A$201,$A17,'Program Lvl'!V$2:V$201) -> 147101437 | V17: =SUMIF('Program Lvl'!$A$2:$A$201,$A17,'Program Lvl'!W$2:W$201) -> 156024197.4 | W17: 886271426.2 | X17: 1009503557 | Y17: Sustainability
A18: AU | B18: Automation capital | C18: =SUMIF('Program Lvl'!$A$2:$A$201,$A18,'Program Lvl'!D$2:D$201) -> 2044144 | D18: =SUMIF('Program Lvl'!$A$2:$A$201,$A18,'Program Lvl'!E$2:E$201) -> 3840000 | E18: =SUMIF('Program Lvl'!$A$2:$A$201,$A18,'Program Lvl'!F$2:F$201) -> 3840000 | F18: =SUMIF('Program Lvl'!$A$2:$A$201,$A18,'Program Lvl'!G$2:G$201) -> 2840000 | G18: =SUMIF('Program Lvl'!$A$2:$A$201,$A18,'Program Lvl'!H$2:H$201) -> 2840000 | H18: =SUMIF('Program Lvl'!$A$2:$A$201,$A18,'Program Lvl'!I$2:I$201) -> 3840000 | I18: =SUMIF('Program Lvl'!$A$2:$A$201,$A18,'Program Lvl'!J$2:J$201) -> 3840000 | J18: =SUMIF('Program Lvl'!$A$2:$A$201,$A18,'Program Lvl'!K$2:K$201) -> 3840000 | K18: =SUMIF('Program Lvl'!$A$2:$A$201,$A18,'Program Lvl'!L$2:L$201) -> 3840000 | L18: =SUMIF('Program Lvl'!$A$2:$A$201,$A18,'Program Lvl'!M$2:M$201) -> 3840000 | M18: =SUMIF('Program Lvl'!$A$2:$A$201,$A18,'Program Lvl'!N$2:N$201) -> 2044144 | N18: =SUMIF('Program Lvl'!$A$2:$A$201,$A18,'Program Lvl'!O$2:O$201) -> 3936000 | O18: =SUMIF('Program Lvl'!$A$2:$A$201,$A18,'Program Lvl'!P$2:P$201) -> 4034400 | P18: =SUMIF('Program Lvl'!$A$2:$A$201,$A18,'Program Lvl'!Q$2:Q$201) -> 3058369.375 | Q18: =SUMIF('Program Lvl'!$A$2:$A$201,$A18,'Program Lvl'!R$2:R$201) -> 3134828.609 | R18: =SUMIF('Program Lvl'!$A$2:$A$201,$A18,'Program Lvl'!S$2:S$201) -> 4344607.537 | S18: =SUMIF('Program Lvl'!$A$2:$A$201,$A18,'Program Lvl'!T$2:T$201) -> 4453222.726 | T18: =SUMIF('Program Lvl'!$A$2:$A$201,$A18,'Program Lvl'!U$2:U$201) -> 4564553.294 | U18: =SUMIF('Program Lvl'!$A$2:$A$201,$A18,'Program Lvl'!V$2:V$201) -> 4678667.126 | V18: =SUMIF('Program Lvl'!$A$2:$A$201,$A18,'Program Lvl'!W$2:W$201) -> 4795633.805 | W18: 34604144 | X18: 39044426.47 | Y18: Sustainability
A19: CC | B19: Communications refurbishment | C19: =SUMIF('Program Lvl'!$A$2:$A$201,$A19,'Program Lvl'!D$2:D$201) -> 2170000 | D19: =SUMIF('Program Lvl'!$A$2:$A$201,$A19,'Program Lvl'!E$2:E$201) -> 1646000 | E19: =SUMIF('Program Lvl'!$A$2:$A$201,$A19,'Program Lvl'!F$2:F$201) -> 1646000 | F19: =SUMIF('Program Lvl'!$A$2:$A$201,$A19,'Program Lvl'!G$2:G$201) -> 1646000 | G19: =SUMIF('Program Lvl'!$A$2:$A$201,$A19,'Program Lvl'!H$2:H$201) -> 1646000 | H19: =SUMIF('Program Lvl'!$A$2:$A$201,$A19,'Program Lvl'!I$2:I$201) -> 1646000 | I19: =SUMIF('Program Lvl'!$A$2:$A$201,$A19,'Program Lvl'!J$2:J$201) -> 1846000 | J19: =SUMIF('Program Lvl'!$A$2:$A$201,$A19,'Program Lvl'!K$2:K$201) -> 1846000 | K19: =SUMIF('Program Lvl'!$A$2:$A$201,$A19,'Program Lvl'!L$2:L$201) -> 1846000 | L19: =SUMIF('Program Lvl'!$A$2:$A$201,$A19,'Program Lvl'!M$2:M$201) -> 1846000 | M19: =SUMIF('Program Lvl'!$A$2:$A$201,$A19,'Program Lvl'!N$2:N$201) -> 2170000 | N19: =SUMIF('Program Lvl'!$A$2:$A$201,$A19,'Program Lvl'!O$2:O$201) -> 1687150 | O19: =SUMIF('Program Lvl'!$A$2:$A$201,$A19,'Program Lvl'!P$2:P$201) -> 1729328.75 | P19: =SUMIF('Program Lvl'!$A$2:$A$201,$A19,'Program Lvl'!Q$2:Q$201) -> 1772561.969 | Q19: =SUMIF('Program Lvl'!$A$2:$A$201,$A19,'Program Lvl'!R$2:R$201) -> 1816876.018 | R19: =SUMIF('Program Lvl'!$A$2:$A$201,$A19,'Program Lvl'!S$2:S$201) -> 1862297.918 | S19: =SUMIF('Program Lvl'!$A$2:$A$201,$A19,'Program Lvl'!T$2:T$201) -> 2140794.05 | T19: =SUMIF('Program Lvl'!$A$2:$A$201,$A19,'Program Lvl'!U$2:U$201) -> 2194313.901 | U19: =SUMIF('Program Lvl'!$A$2:$A$201,$A19,'Program Lvl'!V$2:V$201) -> 2249171.749 | V19: =SUMIF('Program Lvl'!$A$2:$A$201,$A19,'Program Lvl'!W$2:W$201) -> 2305401.043 | W19: 17784000 | X19: 19927895.4 | Y19: Sustainability
A20: PS | B20: Protection systems capital | C20: =SUMIF('Program Lvl'!$A$2:$A$201,$A20,'Program Lvl'!D$2:D$201) -> 9940800 | D20: =SUMIF('Program Lvl'!$A$2:$A$201,$A20,'Program Lvl'!E$2:E$201) -> 8898000 | E20: =SUMIF('Program Lvl'!$A$2:$A$201,$A20,'Program Lvl'!F$2:F$201) -> 5798000 | F20: =SUMIF('Program Lvl'!$A$2:$A$201,$A20,'Program Lvl'!G$2:G$201) -> 5248000 | G20: =SUMIF('Program Lvl'!$A$2:$A$201,$A20,'Program Lvl'!H$2:H$201) -> 5248000 | H20: =SUMIF('Program Lvl'!$A$2:$A$201,$A20,'Program Lvl'!I$2:I$201) -> 5248000 | I20: =SUMIF('Program Lvl'!$A$2:$A$201,$A20,'Program Lvl'!J$2:J$201) -> 5248000 | J20: =SUMIF('Program Lvl'!$A$2:$A$201,$A20,'Program Lvl'!K$2:K$201) -> 5248000 | K20: =SUMIF('Program Lvl'!$A$2:$A$201,$A20,'Program Lvl'!L$2:L$201) -> 5248000 | L20: =SUMIF('Program Lvl'!$A$2:$A$201,$A20,'Program Lvl'!M$2:M$201) -> 5248000 | M20: =SUMIF('Program Lvl'!$A$2:$A$201,$A20,'Program Lvl'!N$2:N$201) -> 9940800 | N20: =SUMIF('Program Lvl'!$A$2:$A$201,$A20,'Program Lvl'!O$2:O$201) -> 9120450 | O20: =SUMIF('Program Lvl'!$A$2:$A$201,$A20,'Program Lvl'!P$2:P$201) -> 6091523.75 | P20: =SUMIF('Program Lvl'!$A$2:$A$201,$A20,'Program Lvl'!Q$2:Q$201) -> 5651522 | Q20: =SUMIF('Program Lvl'!$A$2:$A$201,$A20,'Program Lvl'!R$2:R$201) -> 5792810.05 | R20: =SUMIF('Program Lvl'!$A$2:$A$201,$A20,'Program Lvl'!S$2:S$201) -> 5937630.301 | S20: =SUMIF('Program Lvl'!$A$2:$A$201,$A20,'Program Lvl'!T$2:T$201) -> 6086071.059 | T20: =SUMIF('Program Lvl'!$A$2:$A$201,$A20,'Program Lvl'!U$2:U$201) -> 6238222.835 | U20: =SUMIF('Program Lvl'!$A$2:$A$201,$A20,'Program Lvl'!V$2:V$201) -> 6394178.406 | V20: =SUMIF('Program Lvl'!$A$2:$A$201,$A20,'Program Lvl'!W$2:W$201) -> 6554032.866 | W20: 61372800 | X20: 67807241.27 | Y20: Sustainability
A21: EF | B21: Efficiency | C21: =SUMIF('Program Lvl'!$A$2:$A$201,$A21,'Program Lvl'!D$2:D$201) -> 14244814 | D21: =SUMIF('Program Lvl'!$A$2:$A$201,$A21,'Program Lvl'!E$2:E$201) -> 9085365.854 | E21: =SUMIF('Program Lvl'!$A$2:$A$201,$A21,'Program Lvl'!F$2:F$201) -> 4116894.706 | F21: =SUMIF('Program Lvl'!$A$2:$A$201,$A21,'Program Lvl'!G$2:G$201) -> 2092859.941 | G21: =SUMIF('Program Lvl'!$A$2:$A$201,$A21,'Program Lvl'!H$2:H$201) -> 2000000 | H21: =SUMIF('Program Lvl'!$A$2:$A$201,$A21,'Program Lvl'!I$2:I$201) -> 2000000 | I21: =SUMIF('Program Lvl'!$A$2:$A$201,$A21,'Program Lvl'!J$2:J$201) -> 2000000 | J21: =SUMIF('Program Lvl'!$A$2:$A$201,$A21,'Program Lvl'!K$2:K$201) -> 2000000 | K21: =SUMIF('Program Lvl'!$A$2:$A$201,$A21,'Program Lvl'!L$2:L$201) -> 2000000 | L21: =SUMIF('Program Lvl'!$A$2:$A$201,$A21,'Program Lvl'!M$2:M$201) -> 2000000 | M21: =SUMIF('Program Lvl'!$A$2:$A$201,$A21,'Program Lvl'!N$2:N$201) -> 14244814 | N21: =SUMIF('Program Lvl'!$A$2:$A$201,$A21,'Program Lvl'!O$2:O$201) -> 9312500 | O21: =SUMIF('Program Lvl'!$A$2:$A$201,$A21,'Program Lvl'!P$2:P$201) -> 4325312.5 | P21: =SUMIF('Program Lvl'!$A$2:$A$201,$A21,'Program Lvl'!Q$2:Q$201) -> 2253781.25 | Q21: =SUMIF('Program Lvl'!$A$2:$A$201,$A21,'Program Lvl'!R$2:R$201) -> 2207625.781 | R21: =SUMIF('Program Lvl'!$A$2:$A$201,$A21,'Program Lvl'!S$2:S$201) -> 2262816.426 | S21: =SUMIF('Program Lvl'!$A$2:$A$201,$A21,'Program Lvl'!T$2:T$201) -> 2319386.836 | T21: =SUMIF('Program Lvl'!$A$2:$A$201,$A21,'Program Lvl'!U$2:U$201) -> 2377371.507 | U21: =SUMIF('Program Lvl'!$A$2:$A$201,$A21,'Program Lvl'!V$2:V$201) -> 2436805.795 | V21: =SUMIF('Program Lvl'!$A$2:$A$201,$A21,'Program Lvl'!W$2:W$201) -> 2497725.94 | W21: 41539934.5 | X21: 44238140.04 | Y21: Efficiency
A22: MC | B22: Metering capital | C22: =SUMIF('Program Lvl'!$A$2:$A$201,$A22,'Program Lvl'!D$2:D$201) -> 905000 | D22: =SUMIF('Program Lvl'!$A$2:$A$201,$A22,'Program Lvl'!E$2:E$201) -> 2462584 | E22: =SUMIF('Program Lvl'!$A$2:$A$201,$A22,'Program Lvl'!F$2:F$201) -> 1737185 | F22: =SUMIF('Program Lvl'!$A$2:$A$201,$A22,'Program Lvl'!G$2:G$201) -> 1686786 | G22: =SUMIF('Program Lvl'!$A$2:$A$201,$A22,'Program Lvl'!H$2:H$201) -> 1636386 | H22: =SUMIF('Program Lvl'!$A$2:$A$201,$A22,'Program Lvl'!I$2:I$201) -> 1590987 | I22: =SUMIF('Program Lvl'!$A$2:$A$201,$A22,'Program Lvl'!J$2:J$201) -> 1540588 | J22: =SUMIF('Program Lvl'!$A$2:$A$201,$A22,'Program Lvl'!K$2:K$201) -> 1490189 | K22: =SUMIF('Program Lvl'!$A$2:$A$201,$A22,'Program Lvl'!L$2:L$201) -> 1439790 | L22: =SUMIF('Program Lvl'!$A$2:$A$201,$A22,'Program Lvl'!M$2:M$201) -> 1389391 | M22: =SUMIF('Program Lvl'!$A$2:$A$201,$A22,'Program Lvl'!N$2:N$201) -> 905000 | N22: =SUMIF('Program Lvl'!$A$2:$A$201,$A22,'Program Lvl'!O$2:O$201) -> 2524148.6 | O22: =SUMIF('Program Lvl'!$A$2:$A$201,$A22,'Program Lvl'!P$2:P$201) -> 1825129.991 | P22: =SUMIF('Program Lvl'!$A$2:$A$201,$A22,'Program Lvl'!Q$2:Q$201) -> 1816484.03 | Q22: =SUMIF('Program Lvl'!$A$2:$A$201,$A22,'Program Lvl'!R$2:R$201) -> 1806263.961 | R22: =SUMIF('Program Lvl'!$A$2:$A$201,$A22,'Program Lvl'!S$2:S$201) -> 1800055.758 | S22: =SUMIF('Program Lvl'!$A$2:$A$201,$A22,'Program Lvl'!T$2:T$201) -> 1786609.764 | T22: =SUMIF('Program Lvl'!$A$2:$A$201,$A22,'Program Lvl'!U$2:U$201) -> 1771366.435 | U22: =SUMIF('Program Lvl'!$A$2:$A$201,$A22,'Program Lvl'!V$2:V$201) -> 1754244.308 | V22: =SUMIF('Program Lvl'!$A$2:$A$201,$A22,'Program Lvl'!W$2:W$201) -> 1735158.971 | W22: 15878886 | X22: 17724461.82 | Y22: Miscellaneous
A23: SL | B23: Streetlighting capital | C23: =SUMIF('Program Lvl'!$A$2:$A$201,$A23,'Program Lvl'!D$2:D$201) -> 4400000 | D23: =SUMIF('Program Lvl'!$A$2:$A$201,$A23,'Program Lvl'!E$2:E$201) -> 4750000 | E23: =SUMIF('Program Lvl'!$A$2:$A$201,$A23,'Program Lvl'!F$2:F$201) -> 4750000 | F23: =SUMIF('Program Lvl'!$A$2:$A$201,$A23,'Program Lvl'!G$2:G$201) -> 4750000 | G23: =SUMIF('Program Lvl'!$A$2:$A$201,$A23,'Program Lvl'!H$2:H$201) -> 4750000 | H23: =SUMIF('Program Lvl'!$A$2:$A$201,$A23,'Program Lvl'!I$2:I$201) -> 4750000 | I23: =SUMIF('Program Lvl'!$A$2:$A$201,$A23,'Program Lvl'!J$2:J$201) -> 4750000 | J23: =SUMIF('Program Lvl'!$A$2:$A$201,$A23,'Program Lvl'!K$2:K$201) -> 4750000 | K23: =SUMIF('Program Lvl'!$A$2:$A$201,$A23,'Program Lvl'!L$2:L$201) -> 4750000 | L23: =SUMIF('Program Lvl'!$A$2:$A$201,$A23,'Program Lvl'!M$2:M$201) -> 4750000 | M23: =SUMIF('Program Lvl'!$A$2:$A$201,$A23,'Program Lvl'!N$2:N$201) -> 4400000 | N23: =SUMIF('Program Lvl'!$A$2:$A$201,$A23,'Program Lvl'!O$2:O$201) -> 4868750 | O23: =SUMIF('Program Lvl'!$A$2:$A$201,$A23,'Program Lvl'!P$2:P$201) -> 4990468.75 | P23: =SUMIF('Program Lvl'!$A$2:$A$201,$A23,'Program Lvl'!Q$2:Q$201) -> 5115230.469 | Q23: =SUMIF('Program Lvl'!$A$2:$A$201,$A23,'Program Lvl'!R$2:R$201) -> 5243111.23 | R23: =SUMIF('Program Lvl'!$A$2:$A$201,$A23,'Program Lvl'!S$2:S$201) -> 5374189.011 | S23: =SUMIF('Program Lvl'!$A$2:$A$201,$A23,'Program Lvl'!T$2:T$201) -> 5508543.737 | T23: =SUMIF('Program Lvl'!$A$2:$A$201,$A23,'Program Lvl'!U$2:U$201) -> 5646257.33 | U23: =SUMIF('Program Lvl'!$A$2:$A$201,$A23,'Program Lvl'!V$2:V$201) -> 5787413.763 | V23: =SUMIF('Program Lvl'!$A$2:$A$201,$A23,'Program Lvl'!W$2:W$201) -> 5932099.107 | W23: 47150000 | X23: 52866063.4 | Y23: Miscellaneous
A24: SP | B24: Essential spares | C24: =SUMIF('Program Lvl'!$A$2:$A$201,$A24,'Program Lvl'!D$2:D$201) -> 1239026 | D24: =SUMIF('Program Lvl'!$A$2:$A$201,$A24,'Program Lvl'!E$2:E$201) -> 1000000 | E24: =SUMIF('Program Lvl'!$A$2:$A$201,$A24,'Program Lvl'!F$2:F$201) -> 1000000 | F24: =SUMIF('Program Lvl'!$A$2:$A$201,$A24,'Program Lvl'!G$2:G$201) -> 1000000 | G24: =SUMIF('Program Lvl'!$A$2:$A$201,$A24,'Program Lvl'!H$2:H$201) -> 1000000 | H24: =SUMIF('Program Lvl'!$A$2:$A$201,$A24,'Program Lvl'!I$2:I$201) -> 1000000 | I24: =SUMIF('Program Lvl'!$A$2:$A$201,$A24,'Program Lvl'!J$2:J$201) -> 1000000 | J24: =SUMIF('Program Lvl'!$A$2:$A$201,$A24,'Program Lvl'!K$2:K$201) -> 1000000 | K24: =SUMIF('Program Lvl'!$A$2:$A$201,$A24,'Program Lvl'!L$2:L$201) -> 1000000 | L24: =SUMIF('Program Lvl'!$A$2:$A$201,$A24,'Program Lvl'!M$2:M$201) -> 1000000 | M24: =SUMIF('Program Lvl'!$A$2:$A$201,$A24,'Program Lvl'!N$2:N$201) -> 1239026 | N24: =SUMIF('Program Lvl'!$A$2:$A$201,$A24,'Program Lvl'!O$2:O$201) -> 1025000 | O24: =SUMIF('Program Lvl'!$A$2:$A$201,$A24,'Program Lvl'!P$2:P$201) -> 1050625 | P24: =SUMIF('Program Lvl'!$A$2:$A$201,$A24,'Program Lvl'!Q$2:Q$201) -> 1076890.625 | Q24: =SUMIF('Program Lvl'!$A$2:$A$201,$A24,'Program Lvl'!R$2:R$201) -> 1103812.891 | R24: =SUMIF('Program Lvl'!$A$2:$A$201,$A24,'Program Lvl'!S$2:S$201) -> 1131408.213 | S24: =SUMIF('Program Lvl'!$A$2:$A$201,$A24,'Program Lvl'!T$2:T$201) -> 1159693.418 | T24: =SUMIF('Program Lvl'!$A$2:$A$201,$A24,'Program Lvl'!U$2:U$201) -> 1188685.754 | U24: =SUMIF('Program Lvl'!$A$2:$A$201,$A24,'Program Lvl'!V$2:V$201) -> 1218402.898 | V24: =SUMIF('Program Lvl'!$A$2:$A$201,$A24,'Program Lvl'!W$2:W$201) -> 1248862.97 | W24: 10239026 | X24: 11442407.77 | Y24: Miscellaneous
A25: SW | B25: Network switching | C25: ='Program Lvl'!D203 -> 3277639.003 | D25: ='Program Lvl'!E203 -> 6283900.886 | E25: ='Program Lvl'!F203 -> 6382175.545 | F25: ='Program Lvl'!G203 -> 6686467.753 | G25: ='Program Lvl'!H203 -> 6495126.357 | H25: ='Program Lvl'!I203 -> 6714861.54 | I25: ='Program Lvl'!J203 -> 7423719.277 | J25: ='Program Lvl'!K203 -> 7683873.515 | K25: ='Program Lvl'!L203 -> 7944102.706 | L25: ='Program Lvl'!M203 -> 8085985.768 | M25: ='Program Lvl'!N203 -> 3277639.003 | N25: ='Program Lvl'!O203 -> 6440998.409 | O25: ='Program Lvl'!P203 -> 6705273.181 | P25: ='Program Lvl'!Q203 -> 7200594.438 | Q25: ='Program Lvl'!R203 -> 7169404.199 | R25: ='Program Lvl'!S203 -> 7597249.494 | S25: ='Program Lvl'!T203 -> 8609238.384 | T25: ='Program Lvl'!U203 -> 9133710.98 | U25: ='Program Lvl'!V203 -> 9679117.755 | V25: ='Program Lvl'!W203 -> 10098288.2 | W25: 66977852.35 | X25: 75911514.04 | Y25: Switching & Overheads
A26: OH | B26: Capitalised overheads | C26: ='Program Lvl'!D204 -> 73255146 | D26: ='Program Lvl'!E204 -> 73106139.08 | E26: ='Program Lvl'!F204 -> 73273110.1 | F26: ='Program Lvl'!G204 -> 73775204.56 | G26: ='Program Lvl'!H204 -> 73462071.76 | H26: ='Program Lvl'!I204 -> 73820942.42 | I26: ='Program Lvl'!J204 -> 76860996.1 | J26: ='Program Lvl'!K204 -> 77233408.49 | K26: ='Program Lvl'!L204 -> 77593252.76 | L26: ='Program Lvl'!M204 -> 77784338.94 | M26: ='Program Lvl'!N204 -> 73255146 | N26: ='Program Lvl'!O204 -> 74933792.56 | O26: ='Program Lvl'!P204 -> 76982561.3 | P26: ='Program Lvl'!Q204 -> 79447826.14 | Q26: ='Program Lvl'!R204 -> 81088381.78 | R26: ='Program Lvl'!S204 -> 83521620.54 | S26: ='Program Lvl'!T204 -> 89135191.29 | T26: ='Program Lvl'!U204 -> 91806252.38 | U26: ='Program Lvl'!V204 -> 94539843.99 | V26: ='Program Lvl'!W204 -> 97141980.55 | W26: 750164610.2 | X26: 841852596.5 | Y26: Switching & Overheads
B27: Total | C27: =SUM(C2:C26) -> 354801361.3 | D27: 409962817.4 | E27: 415397929.3 | F27: 432212003.3 | G27: 421641766.1 | H27: 433779827 | I27: 474819121.4 | J27: 489137440 | K27: 503447208.5 | L27: 511244120.7 | M27: =SUM(M2:M26) -> 354801361.3 | N27: 420211887.8 | O27: 436427449.4 | P27: 465445054.3 | Q27: 465413616.7 | R27: 490782058.8 | S27: 550644609.9 | T27: 581430706.5 | U27: 613401537.5 | V27: 638473851 | W27: 4446443595 | X27: 5017032133
B29: SW & OH % | C29: =SUM(C25:C26)/SUM(C2:C24) -> 0.2750320788 | D29: 0.2401590372 | E29: 0.237251023 | F29: 0.2287465433 | G29: 0.234008807 | H29: 0.2279891483 | I29: 0.2158189242 | J29: 0.2100768117 | K29: 0.2046789633 | L29: 0.2018702739 | M29: =SUM(M25:M26)/SUM(M2:M24) -> 0.2750320788 | N29: =SUM(N25:N26)/SUM(N2:N24) -> 0.2401590372 | O29: 0.237251023 | P29: 0.2287465433 | Q29: 0.234008807 | R29: 0.2279891483 | S29: 0.2158189242 | T29: 0.2100768117 | U29: 0.2046789633 | V29: 0.2018702739
B31: Check | C31: =IF(ROUND(C27-'Division Lvl'!E377,0)=0,"OK","ERR") -> OK | D31: =IF(ROUND(D27-'Division Lvl'!F377,0)=0,"OK","ERR") -> OK | E31: =IF(ROUND(E27-'Division Lvl'!G377,0)=0,"OK","ERR") -> OK | F31: =IF(ROUND(F27-'Division Lvl'!H377,0)=0,"OK","ERR") -> OK | G31: =IF(ROUND(G27-'Division Lvl'!I377,0)=0,"OK","ERR") -> OK | H31: =IF(ROUND(H27-'Division Lvl'!J377,0)=0,"OK","ERR") -> OK | I31: =IF(ROUND(I27-'Division Lvl'!K377,0)=0,"OK","ERR") -> OK | J31: =IF(ROUND(J27-'Division Lvl'!L377,0)=0,"OK","ERR") -> OK | K31: =IF(ROUND(K27-'Division Lvl'!M377,0)=0,"OK","ERR") -> OK | L31: =IF(ROUND(L27-'Division Lvl'!N377,0)=0,"OK","ERR") -> OK | M31: =IF(ROUND(M27-'Division Lvl'!P377,0)=0,"OK","ERR") -> OK | N31: =IF(ROUND(N27-'Division Lvl'!Q377,0)=0,"OK","ERR") -> OK | O31: =IF(ROUND(O27-'Division Lvl'!R377,0)=0,"OK","ERR") -> OK | P31: =IF(ROUND(P27-'Division Lvl'!S377,0)=0,"OK","ERR") -> OK | Q31: =IF(ROUND(Q27-'Division Lvl'!T377,0)=0,"OK","ERR") -> OK | R31: =IF(ROUND(R27-'Division Lvl'!U377,0)=0,"OK","ERR") -> OK | S31: =IF(ROUND(S27-'Division Lvl'!V377,0)=0,"OK","ERR") -> OK | T31: =IF(ROUND(T27-'Division Lvl'!W377,0)=0,"OK","ERR") -> OK | U31: =IF(ROUND(U27-'Division Lvl'!X377,0)=0,"OK","ERR") -> OK | V31: =IF(ROUND(V27-'Division Lvl'!Y377,0)=0,"OK","ERR") -> OK

Sheet Program Lvl
A1: Code | B1: ID | C1: Description | D1: ='Division Lvl'!E1 -> FY19 (R) | E1: ='Division Lvl'!F1 -> FY20 (R) | F1: ='Division Lvl'!G1 -> FY21 (R) | G1: ='Division Lvl'!H1 -> FY22 (R) | H1: ='Division Lvl'!I1 -> FY23 (R) | I1: ='Division Lvl'!J1 -> FY24 (R) | J1: ='Division Lvl'!K1 -> FY25 (R) | K1: ='Division Lvl'!L1 -> FY26 (R) | L1: ='Division Lvl'!M1 -> FY27 (R) | M1: ='Division Lvl'!N1 -> FY28 (R) | N1: ='Division Lvl'!P1 -> FY19 (N) | O1: ='Division Lvl'!Q1 -> FY20 (N) | P1: ='Division Lvl'!R1 -> FY21 (N) | Q1: ='Division Lvl'!S1 -> FY22 (N) | R1: ='Division Lvl'!T1 -> FY23 (N) | S1: ='Division Lvl'!U1 -> FY24 (N) | T1: ='Division Lvl'!V1 -> FY25 (N) | U1: ='Division Lvl'!W1 -> FY26 (N) | V1: ='Division Lvl'!X1 -> FY27 (N) | W1: ='Division Lvl'!Y1 -> FY28 (N) | X1: Total (R) | Y1: Total (N) | Z1: Ctrl | AA1: Driver
A2: =INDEX('Division Lvl'!$AD$2:$AD$372,MATCH(B2,'Division Lvl'!$A$2:$A$372,0)) -> AG | B2: AG | C2: =INDEX('Division Lvl'!$B$2:$B$372,MATCH(B2,'Division Lvl'!$A$2:$A$372,0)) -> Automation - operational/capacity risk | D2: =SUMIF('Division Lvl'!$A$2:$A$372,$B2,'Division Lvl'!E$2:E$372) -> 300000 | E2: =SUMIF('Division Lvl'!$A$2:$A$372,$B2,'Division Lvl'!F$2:F$372) -> 300000 | F2: =SUMIF('Division Lvl'!$A$2:$A$372,$B2,'Division Lvl'!G$2:G$372) -> 300000 | G2: =SUMIF('Division Lvl'!$A$2:$A$372,$B2,'Division Lvl'!H$2:H$372) -> 300000 | H2: =SUMIF('Division Lvl'!$A$2:$A$372,$B2,'Division Lvl'!I$2:I$372) -> 300000 | I2: =SUMIF('Division Lvl'!$A$2:$A$372,$B2,'Division Lvl'!J$2:J$372) -> 300000 | J2: =SUMIF('Division Lvl'!$A$2:$A$372,$B2,'Division Lvl'!K$2:K$372) -> 300000 | K2: =SUMIF('Division Lvl'!$A$2:$A$372,$B2,'Division Lvl'!L$2:L$372) -> 300000 | L2: =SUMIF('Division Lvl'!$A$2:$A$372,$B2,'Division Lvl'!M$2:M$372) -> 300000 | M2: =SUMIF('Division Lvl'!$A$2:$A$372,$B2,'Division Lvl'!N$2:N$372) -> 300000 | N2: =SUMIF('Division Lvl'!$A$2:$A$372,$B2,'Division Lvl'!P$2:P$372) -> 300000 | O2: =SUMIF('Division Lvl'!$A$2:$A$372,$B2,'Division Lvl'!Q$2:Q$372) -> 307500 | P2: =SUMIF('Division Lvl'!$A$2:$A$372,$B2,'Division Lvl'!R$2:R$372) -> 315187.5 | Q2: =SUMIF('Division Lvl'!$A$2:$A$372,$B2,'Division Lvl'!S$2:S$372) -> 323067.1875 | R2: =SUMIF('Division Lvl'!$A$2:$A$372,$B2,'Division Lvl'!T$2:T$372) -> 331143.8672 | S2: =SUMIF('Division Lvl'!$A$2:$A$372,$B2,'Division Lvl'!U$2:U$372) -> 339422.4639 | T2: =SUMIF('Division Lvl'!$A$2:$A$372,$B2,'Division Lvl'!V$2:V$372) -> 347908.0255 | U2: =SUMIF('Division Lvl'!$A$2:$A$372,$B2,'Division Lvl'!W$2:W$372) -> 356605.7261 | V2: =SUMIF('Division Lvl'!$A$2:$A$372,$B2,'Division Lvl'!X$2:X$372) -> 365520.8693 | W2: =SUMIF('Division Lvl'!$A$2:$A$372,$B2,'Division Lvl'!Y$2:Y$372) -> 374658.891 | X2: =SUM(D2:M2) -> 3000000 | Y2: =SUM(N2:W2) -> 3361014.53 | Z2: Std | AA2: =INDEX('Division Lvl'!$AF$2:$AF$372,MATCH(B2,'Division Lvl'!$A$2:$A$372,0)) -> Capacity
A3: =INDEX('Division Lvl'!$AD$2:$AD$372,MATCH(B3,'Division Lvl'!$A$2:$A$372,0)) -> AR | B3: AR | C3: =INDEX('Division Lvl'!$B$2:$B$372,MATCH(B3,'Division Lvl'!$A$2:$A$372,0)) -> Asset relocation | D3: =SUMIF('Division Lvl'!$A$2:$A$372,$B3,'Division Lvl'!E$2:E$372) -> 1674562.911 | E3: =SUMIF('Division Lvl'!$A$2:$A$372,$B3,'Division Lvl'!F$2:F$372) -> 1817759 | F3: =SUMIF('Division Lvl'!$A$2:$A$372,$B3,'Division Lvl'!G$2:G$372) -> 1809464 | G3: =SUMIF('Division Lvl'!$A$2:$A$372,$B3,'Division Lvl'!H$2:H$372) -> 1815980 | H3: =SUMIF('Division Lvl'!$A$2:$A$372,$B3,'Division Lvl'!I$2:I$372) -> 1824516 | I3: =SUMIF('Division Lvl'!$A$2:$A$372,$B3,'Division Lvl'!J$2:J$372) -> 1838449 | J3: =SUMIF('Division Lvl'!$A$2:$A$372,$B3,'Division Lvl'!K$2:K$372) -> 1846369 | K3: =SUMIF('Division Lvl'!$A$2:$A$372,$B3,'Division Lvl'!L$2:L$372) -> 1854271 | L3: =SUMIF('Division Lvl'!$A$2:$A$372,$B3,'Division Lvl'!M$2:M$372) -> 1862211 | M3: =SUMIF('Division Lvl'!$A$2:$A$372,$B3,'Division Lvl'!N$2:N$372) -> 1878172 | N3: =SUMIF('Division Lvl'!$A$2:$A$372,$B3,'Division Lvl'!P$2:P$372) -> 1674562.911 | O3: =SUMIF('Division Lvl'!$A$2:$A$372,$B3,'Division Lvl'!Q$2:Q$372) -> 1863202.975 | P3: =SUMIF('Division Lvl'!$A$2:$A$372,$B3,'Division Lvl'!R$2:R$372) -> 1901068.115 | Q3: =SUMIF('Division Lvl'!$A$2:$A$372,$B3,'Division Lvl'!S$2:S$372) -> 1955611.837 | R3: =SUMIF('Division Lvl'!$A$2:$A$372,$B3,'Division Lvl'!T$2:T$372) -> 2013924.28 | S3: =SUMIF('Division Lvl'!$A$2:$A$372,$B3,'Division Lvl'!U$2:U$372) -> 2080036.298 | T3: =SUMIF('Division Lvl'!$A$2:$A$372,$B3,'Division Lvl'!V$2:V$372) -> 2141221.977 | U3: =SUMIF('Division Lvl'!$A$2:$A$372,$B3,'Division Lvl'!W$2:W$372) -> 2204145.521 | V3: =SUMIF('Division Lvl'!$A$2:$A$372,$B3,'Division Lvl'!X$2:X$372) -> 2268923.278 | W3: =SUMIF('Division Lvl'!$A$2:$A$372,$B3,'Division Lvl'!Y$2:Y$372) -> 2345579.462 | X3: 18221753.91 | Y3: 20448276.65 | Z3: Std | AA3: =INDEX('Division Lvl'!$AF$2:$AF$372,MATCH(B3,'Division Lvl'!$A$2:$A$372,0)) -> Network Connection
A4: =INDEX('Division Lvl'!$AD$2:$AD$372,MATCH(B4,'Division Lvl'!$A$2:$A$372,0)) -> AU | B4: AU004 | C4: =INDEX('Division Lvl'!$B$2:$B$372,MATCH(B4,'Division Lvl'!$A$2:$A$372,0)) -> Substation SCADA RTU replacement | D4: =SUMIF('Division Lvl'!$A$2:$A$372,$B4,'Division Lvl'!E$2:E$372) -> 1044144 | E4: =SUMIF('Division Lvl'!$A$2:$A$372,$B4,'Division Lvl'!F$2:F$372) -> 1840000 | F4: =SUMIF('Division Lvl'!$A$2:$A$372,$B4,'Division Lvl'!G$2:G$372) -> 1840000 | G4: =SUMIF('Division Lvl'!$A$2:$A$372,$B4,'Division Lvl'!H$2:H$372) -> 1840000 | H4: =SUMIF('Division Lvl'!$A$2:$A$372,$B4,'Division Lvl'!I$2:I$372) -> 1840000 | I4: =SUMIF('Division Lvl'!$A$2:$A$372,$B4,'Division Lvl'!J$2:J$372) -> 1840000 | J4: =SUMIF('Division Lvl'!$A$2:$A$372,$B4,'Division Lvl'!K$2:K$372) -> 1840000 | K4: =SUMIF('Division Lvl'!$A$2:$A$372,$B4,'Division Lvl'!L$2:L$372) -> 1840000 | L4: =SUMIF('Division Lvl'!$A$2:$A$372,$B4,'Division Lvl'!M$2:M$372) -> 1840000 | M4: =SUMIF('Division Lvl'!$A$2:$A$372,$B4,'Division Lvl'!N$2:N$372) -> 1840000 | N4: =SUMIF('Division Lvl'!$A$2:$A$372,$B4,'Division Lvl'!P$2:P$372) -> 1044144 | O4: =SUMIF('Division Lvl'!$A$2:$A$372,$B4,'Division Lvl'!Q$2:Q$372) -> 1886000 | P4: =SUMIF('Division Lvl'!$A$2:$A$372,$B4,'Division Lvl'!R$2:R$372) -> 1933150 | Q4: =SUMIF('Division Lvl'!$A$2:$A$372,$B4,'Division Lvl'!S$2:S$372) -> 1981478.75 | R4: =SUMIF('Division Lvl'!$A$2:$A$372,$B4,'Division Lvl'!T$2:T$372) -> 2031015.719 | S4: =SUMIF('Division Lvl'!$A$2:$A$372,$B4,'Division Lvl'!U$2:U$372) -> 2081791.112 | T4: =SUMIF('Division Lvl'!$A$2:$A$372,$B4,'Division Lvl'!V$2:V$372) -> 2133835.89 | U4: =SUMIF('Division Lvl'!$A$2:$A$372,$B4,'Division Lvl'!W$2:W$372) -> 2187181.787 | V4: =SUMIF('Division Lvl'!$A$2:$A$372,$B4,'Division Lvl'!X$2:X$372) -> 2241861.331 | W4: =SUMIF('Division Lvl'!$A$2:$A$372,$B4,'Division Lvl'!Y$2:Y$372) -> 2297907.865 | X4: 17604144 | Y4: 19818366.45 | Z4: Std | AA4: =INDEX('Division Lvl'!$AF$2:$AF$372,MATCH(B4,'Division Lvl'!$A$2:$A$372,0)) -> Renewal
A5: =INDEX('Division Lvl'!$AD$2:$AD$372,MATCH(B5,'Division Lvl'!$A$2:$A$372,0)) -> AU | B5: AU013 | C5: =INDEX('Division Lvl'!$B$2:$B$372,MATCH(B5,'Division Lvl'!$A$2:$A$372,0)) -> SCADA master station development software | D5: =SUMIF('Division Lvl'!$A$2:$A$372,$B5,'Division Lvl'!E$2:E$372) -> 1000000 | E5: =SUMIF('Division Lvl'!$A$2:$A$372,$B5,'Division Lvl'!F$2:F$372) -> 2000000 | F5: =SUMIF('Division Lvl'!$A$2:$A$372,$B5,'Division Lvl'!G$2:G$372) -> 2000000 | G5: =SUMIF('Division Lvl'!$A$2:$A$372,$B5,'Division Lvl'!H$2:H$372) -> 1000000 | H5: =SUMIF('Division Lvl'!$A$2:$A$372,$B5,'Division Lvl'!I$2:I$372) -> 1000000 | I5: =SUMIF('Division Lvl'!$A$2:$A$372,$B5,'Division Lvl'!J$2:J$372) -> 2000000 | J5: =SUMIF('Division Lvl'!$A$2:$A$372,$B5,'Division Lvl'!K$2:K$372) -> 2000000 | K5: =SUMIF('Division Lvl'!$A$2:$A$372,$B5,'Division Lvl'!L$2:L$372) -> 2000000 | L5: =SUMIF('Division Lvl'!$A$2:$A$372,$B5,'Division Lvl'!M$2:M$372) -> 2000000 | M5: =SUMIF('Division Lvl'!$A$2:$A$372,$B5,'Division Lvl'!N$2:N$372) -> 2000000 | N5: =SUMIF('Division Lvl'!$A$2:$A$372,$B5,'Division Lvl'!P$2:P$372) -> 1000000 | O5: =SUMIF('Division Lvl'!$A$2:$A$372,$B5,'Division Lvl'!Q$2:Q$372) -> 2050000 | P5: =SUMIF('Division Lvl'!$A$2:$A$372,$B5,'Division Lvl'!R$2:R$372) -> 2101250 | Q5: =SUMIF('Division Lvl'!$A$2:$A$372,$B5,'Division Lvl'!S$2:S$372) -> 1076890.625 | R5: =SUMIF('Division Lvl'!$A$2:$A$372,$B5,'Division Lvl'!T$2:T$372) -> 1103812.891 | S5: =SUMIF('Division Lvl'!$A$2:$A$372,$B5,'Division Lvl'!U$2:U$372) -> 2262816.426 | T5: =SUMIF('Division Lvl'!$A$2:$A$372,$B5,'Division Lvl'!V$2:V$372) -> 2319386.836 | U5: =SUMIF('Division Lvl'!$A$2:$A$372,$B5,'Division Lvl'!W$2:W$372) -> 2377371.507 | V5: =SUMIF('Division Lvl'!$A$2:$A$372,$B5,'Division Lvl'!X$2:X$372) -> 2436805.795 | W5: =SUMIF('Division Lvl'!$A$2:$A$372,$B5,'Division Lvl'!Y$2:Y$372) -> 2497725.94 | X5: 17000000 | Y5: 19226060.02 | Z5: Std | AA5: =INDEX('Division Lvl'!$AF$2:$AF$372,MATCH(B5,'Division Lvl'!$A$2:$A$372,0)) -> Renewal
A6: =INDEX('Division Lvl'!$AD$2:$AD$372,MATCH(B6,'Division Lvl'!$A$2:$A$372,0)) -> CC | B6: CC002 | C6: =INDEX('Division Lvl'!$B$2:$B$372,MATCH(B6,'Division Lvl'!$A$2:$A$372,0)) -> Communications development SCADA | D6: =SUMIF('Division Lvl'!$A$2:$A$372,$B6,'Division Lvl'!E$2:E$372) -> 750000 | E6: =SUMIF('Division Lvl'!$A$2:$A$372,$B6,'Division Lvl'!F$2:F$372) -> 500000 | F6: =SUMIF('Division Lvl'!$A$2:$A$372,$B6,'Division Lvl'!G$2:G$372) -> 500000 | G6: =SUMIF('Division Lvl'!$A$2:$A$372,$B6,'Division Lvl'!H$2:H$372) -> 500000 | H6: =SUMIF('Division Lvl'!$A$2:$A$372,$B6,'Division Lvl'!I$2:I$372) -> 500000 | I6: =SUMIF('Division Lvl'!$A$2:$A$372,$B6,'Division Lvl'!J$2:J$372) -> 500000 | J6: =SUMIF('Division Lvl'!$A$2:$A$372,$B6,'Division Lvl'!K$2:K$372) -> 500000 | K6: =SUMIF('Division Lvl'!$A$2:$A$372,$B6,'Division Lvl'!L$2:L$372) -> 500000 | L6: =SUMIF('Division Lvl'!$A$2:$A$372,$B6,'Division Lvl'!M$2:M$372) -> 500000 | M6: =SUMIF('Division Lvl'!$A$2:$A$372,$B6,'Division Lvl'!N$2:N$372) -> 500000 | N6: =SUMIF('Division Lvl'!$A$2:$A$372,$B6,'Division Lvl'!P$2:P$372) -> 750000 | O6: =SUMIF('Division Lvl'!$A$2:$A$372,$B6,'Division Lvl'!Q$2:Q$372) -> 512500 | P6: =SUMIF('Division Lvl'!$A$2:$A$372,$B6,'Division Lvl'!R$2:R$372) -> 525312.5 | Q6: =SUMIF('Division Lvl'!$A$2:$A$372,$B6,'Division Lvl'!S$2:S$372) -> 538445.3125 | R6: =SUMIF('Division Lvl'!$A$2:$A$372,$B6,'Division Lvl'!T$2:T$372) -> 551906.4453 | S6: =SUMIF('Division Lvl'!$A$2:$A$372,$B6,'Division Lvl'!U$2:U$372) -> 565704.1064 | T6: =SUMIF('Division Lvl'!$A$2:$A$372,$B6,'Division Lvl'!V$2:V$372) -> 579846.7091 | U6: =SUMIF('Division Lvl'!$A$2:$A$372,$B6,'Division Lvl'!W$2:W$372) -> 594342.8768 | V6: =SUMIF('Division Lvl'!$A$2:$A$372,$B6,'Division Lvl'!X$2:X$372) -> 609201.4488 | W6: =SUMIF('Division Lvl'!$A$2:$A$372,$B6,'Division Lvl'!Y$2:Y$372) -> 624431.485 | X6: 5250000 | Y6: 5851690.884 | Z6: Std | AA6: =INDEX('Division Lvl'!$AF$2:$AF$372,MATCH(B6,'Division Lvl'!$A$2:$A$372,0)) -> Renewal
A7: =INDEX('Division Lvl'!$AD$2:$AD$372,MATCH(B7,'Division Lvl'!$A$2:$A$372,0)) -> CC | B7: CC007 | C7: =INDEX('Division Lvl'!$B$2:$B$372,MATCH(B7,'Division Lvl'!$A$2:$A$372,0)) -> SCADA radio repeaters | D7: =SUMIF('Division Lvl'!$A$2:$A$372,$B7,'Division Lvl'!E$2:E$372) -> 870000 | E7: =SUMIF('Division Lvl'!$A$2:$A$372,$B7,'Division Lvl'!F$2:F$372) -> 696000 | F7: =SUMIF('Division Lvl'!$A$2:$A$372,$B7,'Division Lvl'!G$2:G$372) -> 696000 | G7: =SUMIF('Division Lvl'!$A$2:$A$372,$B7,'Division Lvl'!H$2:H$372) -> 696000 | H7: =SUMIF('Division Lvl'!$A$2:$A$372,$B7,'Division Lvl'!I$2:I$372) -> 696000 | I7: =SUMIF('Division Lvl'!$A$2:$A$372,$B7,'Division Lvl'!J$2:J$372) -> 696000 | J7: =SUMIF('Division Lvl'!$A$2:$A$372,$B7,'Division Lvl'!K$2:K$372) -> 696000 | K7: =SUMIF('Division Lvl'!$A$2:$A$372,$B7,'Division Lvl'!L$2:L$372) -> 696000 | L7: =SUMIF('Division Lvl'!$A$2:$A$372,$B7,'Division Lvl'!M$2:M$372) -> 696000 | M7: =SUMIF('Division Lvl'!$A$2:$A$372,$B7,'Division Lvl'!N$2:N$372) -> 696000 | N7: =SUMIF('Division Lvl'!$A$2:$A$372,$B7,'Division Lvl'!P$2:P$372) -> 870000 | O7: =SUMIF('Division Lvl'!$A$2:$A$372,$B7,'Division Lvl'!Q$2:Q$372) -> 713400 | P7: =SUMIF('Division Lvl'!$A$2:$A$372,$B7,'Division Lvl'!R$2:R$372) -> 731235 | Q7: =SUMIF('Division Lvl'!$A$2:$A$372,$B7,'Division Lvl'!S$2:S$372) -> 749515.875 | R7: =SUMIF('Division Lvl'!$A$2:$A$372,$B7,'Division Lvl'!T$2:T$372) -> 768253.7719 | S7: =SUMIF('Division Lvl'!$A$2:$A$372,$B7,'Division Lvl'!U$2:U$372) -> 787460.1162 | T7: =SUMIF('Division Lvl'!$A$2:$A$372,$B7,'Division Lvl'!V$2:V$372) -> 807146.6191 | U7: =SUMIF('Division Lvl'!$A$2:$A$372,$B7,'Division Lvl'!W$2:W$372) -> 827325.2846 | V7: =SUMIF('Division Lvl'!$A$2:$A$372,$B7,'Division Lvl'!X$2:X$372) -> 848008.4167 | W7: =SUMIF('Division Lvl'!$A$2:$A$372,$B7,'Division Lvl'!Y$2:Y$372) -> 869208.6271 | X7: 7134000 | Y7: 7971553.71 | Z7: Std | AA7: =INDEX('Division Lvl'!$AF$2:$AF$372,MATCH(B7,'Division Lvl'!$A$2:$A$372,0)) -> Renewal
A8: =INDEX('Division Lvl'!$AD$2:$AD$372,MATCH(B8,'Division Lvl'!$A$2:$A$372,0)) -> CC | B8: CC020 | C8: =INDEX('Division Lvl'!$B$2:$B$372,MATCH(B8,'Division Lvl'!$A$2:$A$372,0)) -> Microwave refurbishment and extension | D8: =SUMIF('Division Lvl'!$A$2:$A$372,$B8,'Division Lvl'!E$2:E$372) -> 550000 | E8: =SUMIF('Division Lvl'!$A$2:$A$372,$B8,'Division Lvl'!F$2:F$372) -> 450000 | F8: =SUMIF('Division Lvl'!$A$2:$A$372,$B8,'Division Lvl'!G$2:G$372) -> 450000 | G8: =SUMIF('Division Lvl'!$A$2:$A$372,$B8,'Division Lvl'!H$2:H$372) -> 450000 | H8: =SUMIF('Division Lvl'!$A$2:$A$372,$B8,'Division Lvl'!I$2:I$372) -> 450000 | I8: =SUMIF('Division Lvl'!$A$2:$A$372,$B8,'Division Lvl'!J$2:J$372) -> 450000 | J8: =SUMIF('Division Lvl'!$A$2:$A$372,$B8,'Division Lvl'!K$2:K$372) -> 650000 | K8: =SUMIF('Division Lvl'!$A$2:$A$372,$B8,'Division Lvl'!L$2:L$372) -> 650000 | L8: =SUMIF('Division Lvl'!$A$2:$A$372,$B8,'Division Lvl'!M$2:M$372) -> 650000 | M8: =SUMIF('Division Lvl'!$A$2:$A$372,$B8,'Division Lvl'!N$2:N$372) -> 650000 | N8: =SUMIF('Division Lvl'!$A$2:$A$372,$B8,'Division Lvl'!P$2:P$372) -> 550000 | O8: =SUMIF('Division Lvl'!$A$2:$A$372,$B8,'Division Lvl'!Q$2:Q$372) -> 461250 | P8: =SUMIF('Division Lvl'!$A$2:$A$372,$B8,'Division Lvl'!R$2:R$372) -> 472781.25 | Q8: =SUMIF('Division Lvl'!$A$2:$A$372,$B8,'Division Lvl'!S$2:S$372) -> 484600.7812 | R8: =SUMIF('Division Lvl'!$A$2:$A$372,$B8,'Division Lvl'!T$2:T$372) -> 496715.8008 | S8: =SUMIF('Division Lvl'!$A$2:$A$372,$B8,'Division Lvl'!U$2:U$372) -> 509133.6958 | T8: =SUMIF('Division Lvl'!$A$2:$A$372,$B8,'Division Lvl'!V$2:V$372) -> 753800.7218 | U8: =SUMIF('Division Lvl'!$A$2:$A$372,$B8,'Division Lvl'!W$2:W$372) -> 772645.7399 | V8: =SUMIF('Division Lvl'!$A$2:$A$372,$B8,'Division Lvl'!X$2:X$372) -> 791961.8834 | W8: =SUMIF('Division Lvl'!$A$2:$A$372,$B8,'Division Lvl'!Y$2:Y$372) -> 811760.9305 | X8: 5400000 | Y8: 6104650.803 | Z8: Std | AA8: =INDEX('Division Lvl'!$AF$2:$AF$372,MATCH(B8,'Division Lvl'!$A$2:$A$372,0)) -> Renewal
A9: =INDEX('Division Lvl'!$AD$2:$AD$372,MATCH(B9,'Division Lvl'!$A$2:$A$372,0)) -> DS | B9: DS002 | C9: =INDEX('Division Lvl'!$B$2:$B$372,MATCH(B9,'Division Lvl'!$A$2:$A$372,0)) -> Pole substation refurbishment | D9: =SUMIF('Division Lvl'!$A$2:$A$372,$B9,'Division Lvl'!E$2:E$372) -> 735000 | E9: =SUMIF('Division Lvl'!$A$2:$A$372,$B9,'Division Lvl'!F$2:F$372) -> 735000 | F9: =SUMIF('Division Lvl'!$A$2:$A$372,$B9,'Division Lvl'!G$2:G$372) -> 735000 | G9: =SUMIF('Division Lvl'!$A$2:$A$372,$B9,'Division Lvl'!H$2:H$372) -> 735000 | H9: =SUMIF('Division Lvl'!$A$2:$A$372,$B9,'Division Lvl'!I$2:I$372) -> 787500 | I9: =SUMIF('Division Lvl'!$A$2:$A$372,$B9,'Division Lvl'!J$2:J$372) -> 840000 | J9: =SUMIF('Division Lvl'!$A$2:$A$372,$B9,'Division Lvl'!K$2:K$372) -> 892500 | K9: =SUMIF('Division Lvl'!$A$2:$A$372,$B9,'Division Lvl'!L$2:L$372) -> 945000 | L9: =SUMIF('Division Lvl'!$A$2:$A$372,$B9,'Division Lvl'!M$2:M$372) -> 945000 | M9: =SUMIF('Division Lvl'!$A$2:$A$372,$B9,'Division Lvl'!N$2:N$372) -> 945000 | N9: =SUMIF('Division Lvl'!$A$2:$A$372,$B9,'Division Lvl'!P$2:P$372) -> 735000 | O9: =SUMIF('Division Lvl'!$A$2:$A$372,$B9,'Division Lvl'!Q$2:Q$372) -> 753375 | P9: =SUMIF('Division Lvl'!$A$2:$A$372,$B9,'Division Lvl'!R$2:R$372) -> 772209.375 | Q9: =SUMIF('Division Lvl'!$A$2:$A$372,$B9,'Division Lvl'!S$2:S$372) -> 791514.6094 | R9: =SUMIF('Division Lvl'!$A$2:$A$372,$B9,'Division Lvl'!T$2:T$372) -> 869252.6514 | S9: =SUMIF('Division Lvl'!$A$2:$A$372,$B9,'Division Lvl'!U$2:U$372) -> 950382.8988 | T9: =SUMIF('Division Lvl'!$A$2:$A$372,$B9,'Division Lvl'!V$2:V$372) -> 1035026.376 | U9: =SUMIF('Division Lvl'!$A$2:$A$372,$B9,'Division Lvl'!W$2:W$372) -> 1123308.037 | V9: =SUMIF('Division Lvl'!$A$2:$A$372,$B9,'Division Lvl'!X$2:X$372) -> 1151390.738 | W9: =SUMIF('Division Lvl'!$A$2:$A$372,$B9,'Division Lvl'!Y$2:Y$372) -> 1180175.507 | X9: 8295000 | Y9: 9361635.192 | Z9: Std | AA9: =INDEX('Division Lvl'!$AF$2:$AF$372,MATCH(B9,'Division Lvl'!$A$2:$A$372,0)) -> Renewal
A10: =INDEX('Division Lvl'!$AD$2:$AD$372,MATCH(B10,'Division Lvl'!$A$2:$A$372,0)) -> DS | B10: DS005 | C10: =INDEX('Division Lvl'!$B$2:$B$372,MATCH(B10,'Division Lvl'!$A$2:$A$372,0)) -> Distribution pole replacement | D10: =SUMIF('Division Lvl'!$A$2:$A$372,$B10,'Division Lvl'!E$2:E$372) -> 10800000 | E10: =SUMIF('Division Lvl'!$A$2:$A$372,$B10,'Division Lvl'!F$2:F$372) -> 11330000 | F10: =SUMIF('Division Lvl'!$A$2:$A$372,$B10,'Division Lvl'!G$2:G$372) -> 12100000 | G10: =SUMIF('Division Lvl'!$A$2:$A$372,$B10,'Division Lvl'!H$2:H$372) -> 12870000 | H10: =SUMIF('Division Lvl'!$A$2:$A$372,$B10,'Division Lvl'!I$2:I$372) -> 13640000 | I10: =SUMIF('Division Lvl'!$A$2:$A$372,$B10,'Division Lvl'!J$2:J$372) -> 14410000 | J10: =SUMIF('Division Lvl'!$A$2:$A$372,$B10,'Division Lvl'!K$2:K$372) -> 15180000 | K10: =SUMIF('Division Lvl'!$A$2:$A$372,$B10,'Division Lvl'!L$2:L$372) -> 16720000 | L10: =SUMIF('Division Lvl'!$A$2:$A$372,$B10,'Division Lvl'!M$2:M$372) -> 17490000 | M10: =SUMIF('Division Lvl'!$A$2:$A$372,$B10,'Division Lvl'!N$2:N$372) -> 17490000 | N10: =SUMIF('Division Lvl'!$A$2:$A$372,$B10,'Division Lvl'!P$2:P$372) -> 10800000 | O10: =SUMIF('Division Lvl'!$A$2:$A$372,$B10,'Division Lvl'!Q$2:Q$372) -> 11613250 | P10: =SUMIF('Division Lvl'!$A$2:$A$372,$B10,'Division Lvl'!R$2:R$372) -> 12712562.5 | Q10: =SUMIF('Division Lvl'!$A$2:$A$372,$B10,'Division Lvl'!S$2:S$372) -> 13859582.34 | R10: =SUMIF('Division Lvl'!$A$2:$A$372,$B10,'Division Lvl'!T$2:T$372) -> 15056007.83 | S10: =SUMIF('Division Lvl'!$A$2:$A$372,$B10,'Division Lvl'!U$2:U$372) -> 16303592.35 | T10: =SUMIF('Division Lvl'!$A$2:$A$372,$B10,'Division Lvl'!V$2:V$372) -> 17604146.09 | U10: =SUMIF('Division Lvl'!$A$2:$A$372,$B10,'Division Lvl'!W$2:W$372) -> 19874825.8 | V10: =SUMIF('Division Lvl'!$A$2:$A$372,$B10,'Division Lvl'!X$2:X$372) -> 21309866.68 | W10: =SUMIF('Division Lvl'!$A$2:$A$372,$B10,'Division Lvl'!Y$2:Y$372) -> 21842613.34 | X10: 142030000 | Y10: 160976446.9 | Z10: Std | AA10: =INDEX('Division Lvl'!$AF$2:$AF$372,MATCH(B10,'Division Lvl'!$A$2:$A$372,0)) -> Renewal
A11: =INDEX('Division Lvl'!$AD$2:$AD$372,MATCH(B11,'Division Lvl'!$A$2:$A$372,0)) -> DS | B11: DS006 | C11: =INDEX('Division Lvl'!$B$2:$B$372,MATCH(B11,'Division Lvl'!$A$2:$A$372,0)) -> LV CONSAC cable replacement | D11: =SUMIF('Division Lvl'!$A$2:$A$372,$B11,'Division Lvl'!E$2:E$372) -> 6000000 | E11: =SUMIF('Division Lvl'!$A$2:$A$372,$B11,'Division Lvl'!F$2:F$372) -> 6950000 | F11: =SUMIF('Division Lvl'!$A$2:$A$372,$B11,'Division Lvl'!G$2:G$372) -> 8700000 | G11: =SUMIF('Division Lvl'!$A$2:$A$372,$B11,'Division Lvl'!H$2:H$372) -> 9750000 | H11: =SUMIF('Division Lvl'!$A$2:$A$372,$B11,'Division Lvl'!I$2:I$372) -> 10550000 | I11: =SUMIF('Division Lvl'!$A$2:$A$372,$B11,'Division Lvl'!J$2:J$372) -> 10550000 | J11: =SUMIF('Division Lvl'!$A$2:$A$372,$B11,'Division Lvl'!K$2:K$372) -> 10550000 | K11: =SUMIF('Division Lvl'!$A$2:$A$372,$B11,'Division Lvl'!L$2:L$372) -> 10550000 | L11: =SUMIF('Division Lvl'!$A$2:$A$372,$B11,'Division Lvl'!M$2:M$372) -> 10550000 | M11: =SUMIF('Division Lvl'!$A$2:$A$372,$B11,'Division Lvl'!N$2:N$372) -> 10550000 | N11: =SUMIF('Division Lvl'!$A$2:$A$372,$B11,'Division Lvl'!P$2:P$372) -> 6000000 | O11: =SUMIF('Division Lvl'!$A$2:$A$372,$B11,'Division Lvl'!Q$2:Q$372) -> 7123750 | P11: =SUMIF('Division Lvl'!$A$2:$A$372,$B11,'Division Lvl'!R$2:R$372) -> 9140437.5 | Q11: =SUMIF('Division Lvl'!$A$2:$A$372,$B11,'Division Lvl'!S$2:S$372) -> 10499683.59 | R11: =SUMIF('Division Lvl'!$A$2:$A$372,$B11,'Division Lvl'!T$2:T$372) -> 11645226 | S11: =SUMIF('Division Lvl'!$A$2:$A$372,$B11,'Division Lvl'!U$2:U$372) -> 11936356.65 | T11: =SUMIF('Division Lvl'!$A$2:$A$372,$B11,'Division Lvl'!V$2:V$372) -> 12234765.56 | U11: =SUMIF('Division Lvl'!$A$2:$A$372,$B11,'Division Lvl'!W$2:W$372) -> 12540634.7 | V11: =SUMIF('Division Lvl'!$A$2:$A$372,$B11,'Division Lvl'!X$2:X$372) -> 12854150.57 | W11: =SUMIF('Division Lvl'!$A$2:$A$372,$B11,'Division Lvl'!Y$2:Y$372) -> 13175504.33 | X11: 94700000 | Y11: 107150508.9 | Z11: Std | AA11: =INDEX('Division Lvl'!$AF$2:$AF$372,MATCH(B11,'Division Lvl'!$A$2:$A$372,0)) -> Renewal
A12: =INDEX('Division Lvl'!$AD$2:$AD$372,MATCH(B12,'Division Lvl'!$A$2:$A$372,0)) -> DS | B12: DS007 | C12: =INDEX('Division Lvl'!$B$2:$B$372,MATCH(B12,'Division Lvl'!$A$2:$A$372,0)) -> Service wire replacement program | D12: =SUMIF('Division Lvl'!$A$2:$A$372,$B12,'Division Lvl'!E$2:E$372) -> 9167401 | E12: =SUMIF('Division Lvl'!$A$2:$A$372,$B12,'Division Lvl'!F$2:F$372) -> 9200000 | F12: =SUMIF('Division Lvl'!$A$2:$A$372,$B12,'Division Lvl'!G$2:G$372) -> 9300000 | G12: =SUMIF('Division Lvl'!$A$2:$A$372,$B12,'Division Lvl'!H$2:H$372) -> 9300000 | H12: =SUMIF('Division Lvl'!$A$2:$A$372,$B12,'Division Lvl'!I$2:I$372) -> 9450000 | I12: =SUMIF('Division Lvl'!$A$2:$A$372,$B12,'Division Lvl'!J$2:J$372) -> 9800000 | J12: =SUMIF('Division Lvl'!$A$2:$A$372,$B12,'Division Lvl'!K$2:K$372) -> 10300000 | K12: =SUMIF('Division Lvl'!$A$2:$A$372,$B12,'Division Lvl'!L$2:L$372) -> 11300000 | L12: =SUMIF('Division Lvl'!$A$2:$A$372,$B12,'Division Lvl'!M$2:M$372) -> 12300000 | M12: =SUMIF('Division Lvl'!$A$2:$A$372,$B12,'Division Lvl'!N$2:N$372) -> 12900000 | N12: =SUMIF('Division Lvl'!$A$2:$A$372,$B12,'Division Lvl'!P$2:P$372) -> 9167401 | O12: =SUMIF('Division Lvl'!$A$2:$A$372,$B12,'Division Lvl'!Q$2:Q$372) -> 9430000 | P12: =SUMIF('Division Lvl'!$A$2:$A$372,$B12,'Division Lvl'!R$2:R$372) -> 9770812.5 | Q12: =SUMIF('Division Lvl'!$A$2:$A$372,$B12,'Division Lvl'!S$2:S$372) -> 10015082.81 | R12: =SUMIF('Division Lvl'!$A$2:$A$372,$B12,'Division Lvl'!T$2:T$372) -> 10431031.82 | S12: =SUMIF('Division Lvl'!$A$2:$A$372,$B12,'Division Lvl'!U$2:U$372) -> 11087800.49 | T12: =SUMIF('Division Lvl'!$A$2:$A$372,$B12,'Division Lvl'!V$2:V$372) -> 11944842.21 | U12: =SUMIF('Division Lvl'!$A$2:$A$372,$B12,'Division Lvl'!W$2:W$372) -> 13432149.02 | V12: =SUMIF('Division Lvl'!$A$2:$A$372,$B12,'Division Lvl'!X$2:X$372) -> 14986355.64 | W12: =SUMIF('Division Lvl'!$A$2:$A$372,$B12,'Division Lvl'!Y$2:Y$372) -> 16110332.31 | X12: 103017401 | Y12: 116375807.8 | Z12: Std | AA12: =INDEX('Division Lvl'!$AF$2:$AF$372,MATCH(B12,'Division Lvl'!$A$2:$A$372,0)) -> Renewal
A13: =INDEX('Division Lvl'!$AD$2:$AD$372,MATCH(B13,'Division Lvl'!$A$2:$A$372,0)) -> DS | B13: DS008 | C13: =INDEX('Division Lvl'!$B$2:$B$372,MATCH(B13,'Division Lvl'!$A$2:$A$372,0)) -> Traffic black spot remediation | D13: =SUMIF('Division Lvl'!$A$2:$A$372,$B13,'Division Lvl'!E$2:E$372) -> 1700000 | E13: =SUMIF('Division Lvl'!$A$2:$A$372,$B13,'Division Lvl'!F$2:F$372) -> 1000000 | F13: =SUMIF('Division Lvl'!$A$2:$A$372,$B13,'Division Lvl'!G$2:G$372) -> 1000000 | G13: =SUMIF('Division Lvl'!$A$2:$A$372,$B13,'Division Lvl'!H$2:H$372) -> 1000000 | H13: =SUMIF('Division Lvl'!$A$2:$A$372,$B13,'Division Lvl'!I$2:I$372) -> 1000000 | I13: =SUMIF('Division Lvl'!$A$2:$A$372,$B13,'Division Lvl'!J$2:J$372) -> 1000000 | J13: =SUMIF('Division Lvl'!$A$2:$A$372,$B13,'Division Lvl'!K$2:K$372) -> 1000000 | K13: =SUMIF('Division Lvl'!$A$2:$A$372,$B13,'Division Lvl'!L$2:L$372) -> 1000000 | L13: =SUMIF('Division Lvl'!$A$2:$A$372,$B13,'Division Lvl'!M$2:M$372) -> 1000000 | M13: =SUMIF('Division Lvl'!$A$2:$A$372,$B13,'Division Lvl'!N$2:N$372) -> 1000000 | N13: =SUMIF('Division Lvl'!$A$2:$A$372,$B13,'Division Lvl'!P$2:P$372) -> 1700000 | O13: =SUMIF('Division Lvl'!$A$2:$A$372,$B13,'Division Lvl'!Q$2:Q$372) -> 1025000 | P13: =SUMIF('Division Lvl'!$A$2:$A$372,$B13,'Division Lvl'!R$2:R$372) -> 1050625 | Q13: =SUMIF('Division Lvl'!$A$2:$A$372,$B13,'Division Lvl'!S$2:S$372) -> 1076890.625 | R13: =SUMIF('Division Lvl'!$A$2:$A$372,$B13,'Division Lvl'!T$2:T$372) -> 1103812.891 | S13: =SUMIF('Division Lvl'!$A$2:$A$372,$B13,'Division Lvl'!U$2:U$372) -> 1131408.213 | T13: =SUMIF('Division Lvl'!$A$2:$A$372,$B13,'Division Lvl'!V$2:V$372) -> 1159693.418 | U13: =SUMIF('Division Lvl'!$A$2:$A$372,$B13,'Division Lvl'!W$2:W$372) -> 1188685.754 | V13: =SUMIF('Division Lvl'!$A$2:$A$372,$B13,'Division Lvl'!X$2:X$372) -> 1218402.898 | W13: =SUMIF('Division Lvl'!$A$2:$A$372,$B13,'Division Lvl'!Y$2:Y$372) -> 1248862.97 | X13: 10700000 | Y13: 11903381.77 | Z13: Std | AA13: =INDEX('Division Lvl'!$AF$2:$AF$372,MATCH(B13,'Division Lvl'!$A$2:$A$372,0)) -> Renewal
A14: =INDEX('Division Lvl'!$AD$2:$AD$372,MATCH(B14,'Division Lvl'!$A$2:$A$372,0)) -> DS | B14: DS011 | C14: =INDEX('Division Lvl'!$B$2:$B$372,MATCH(B14,'Division Lvl'!$A$2:$A$372,0)) -> HV distribution steel mains replacement | D14: =SUMIF('Division Lvl'!$A$2:$A$372,$B14,'Division Lvl'!E$2:E$372) -> 4800000 | E14: =SUMIF('Division Lvl'!$A$2:$A$372,$B14,'Division Lvl'!F$2:F$372) -> 4800000 | F14: =SUMIF('Division Lvl'!$A$2:$A$372,$B14,'Division Lvl'!G$2:G$372) -> 4800000 | G14: =SUMIF('Division Lvl'!$A$2:$A$372,$B14,'Division Lvl'!H$2:H$372) -> 4800000 | H14: =SUMIF('Division Lvl'!$A$2:$A$372,$B14,'Division Lvl'!I$2:I$372) -> 5600000 | I14: =SUMIF('Division Lvl'!$A$2:$A$372,$B14,'Division Lvl'!J$2:J$372) -> 5600000 | J14: =SUMIF('Division Lvl'!$A$2:$A$372,$B14,'Division Lvl'!K$2:K$372) -> 6400000 | K14: =SUMIF('Division Lvl'!$A$2:$A$372,$B14,'Division Lvl'!L$2:L$372) -> 6400000 | L14: =SUMIF('Division Lvl'!$A$2:$A$372,$B14,'Division Lvl'!M$2:M$372) -> 6400000 | M14: =SUMIF('Division Lvl'!$A$2:$A$372,$B14,'Division Lvl'!N$2:N$372) -> 6400000 | N14: =SUMIF('Division Lvl'!$A$2:$A$372,$B14,'Division Lvl'!P$2:P$372) -> 4800000 | O14: =SUMIF('Division Lvl'!$A$2:$A$372,$B14,'Division Lvl'!Q$2:Q$372) -> 4920000 | P14: =SUMIF('Division Lvl'!$A$2:$A$372,$B14,'Division Lvl'!R$2:R$372) -> 5043000 | Q14: =SUMIF('Division Lvl'!$A$2:$A$372,$B14,'Division Lvl'!S$2:S$372) -> 5169075 | R14: =SUMIF('Division Lvl'!$A$2:$A$372,$B14,'Division Lvl'!T$2:T$372) -> 6181352.187 | S14: =SUMIF('Division Lvl'!$A$2:$A$372,$B14,'Division Lvl'!U$2:U$372) -> 6335885.992 | T14: =SUMIF('Division Lvl'!$A$2:$A$372,$B14,'Division Lvl'!V$2:V$372) -> 7422037.877 | U14: =SUMIF('Division Lvl'!$A$2:$A$372,$B14,'Division Lvl'!W$2:W$372) -> 7607588.823 | V14: =SUMIF('Division Lvl'!$A$2:$A$372,$B14,'Division Lvl'!X$2:X$372) -> 7797778.544 | W14: =SUMIF('Division Lvl'!$A$2:$A$372,$B14,'Division Lvl'!Y$2:Y$372) -> 7992723.008 | X14: 56000000 | Y14: 63269441.43 | Z14: Std | AA14: =INDEX('Division Lvl'!$AF$2:$AF$372,MATCH(B14,'Division Lvl'!$A$2:$A$372,0)) -> Renewal
A15: =INDEX('Division Lvl'!$AD$2:$AD$372,MATCH(B15,'Division Lvl'!$A$2:$A$372,0)) -> DS | B15: DS014 | C15: =INDEX('Division Lvl'!$B$2:$B$372,MATCH(B15,'Division Lvl'!$A$2:$A$372,0)) -> LV cable network renewal | D15: =SUMIF('Division Lvl'!$A$2:$A$372,$B15,'Division Lvl'!E$2:E$372) -> 0 | E15: =SUMIF('Division Lvl'!$A$2:$A$372,$B15,'Division Lvl'!F$2:F$372) -> 650000 | F15: =SUMIF('Division Lvl'!$A$2:$A$372,$B15,'Division Lvl'!G$2:G$372) -> 1950000 | G15: =SUMIF('Division Lvl'!$A$2:$A$372,$B15,'Division Lvl'!H$2:H$372) -> 2340000 | H15: =SUMIF('Division Lvl'!$A$2:$A$372,$B15,'Division Lvl'!I$2:I$372) -> 2340000 | I15: =SUMIF('Division Lvl'!$A$2:$A$372,$B15,'Division Lvl'!J$2:J$372) -> 1300000 | J15: =SUMIF('Division Lvl'!$A$2:$A$372,$B15,'Division Lvl'!K$2:K$372) -> 1300000 | K15: =SUMIF('Division Lvl'!$A$2:$A$372,$B15,'Division Lvl'!L$2:L$372) -> 1300000 | L15: =SUMIF('Division Lvl'!$A$2:$A$372,$B15,'Division Lvl'!M$2:M$372) -> 1300000 | M15: =SUMIF('Division Lvl'!$A$2:$A$372,$B15,'Division Lvl'!N$2:N$372) -> 1300000 | N15: =SUMIF('Division Lvl'!$A$2:$A$372,$B15,'Division Lvl'!P$2:P$372) -> 0 | O15: =SUMIF('Division Lvl'!$A$2:$A$372,$B15,'Division Lvl'!Q$2:Q$372) -> 666250 | P15: =SUMIF('Division Lvl'!$A$2:$A$372,$B15,'Division Lvl'!R$2:R$372) -> 2048718.75 | Q15: =SUMIF('Division Lvl'!$A$2:$A$372,$B15,'Division Lvl'!S$2:S$372) -> 2519924.062 | R15: =SUMIF('Division Lvl'!$A$2:$A$372,$B15,'Division Lvl'!T$2:T$372) -> 2582922.164 | S15: =SUMIF('Division Lvl'!$A$2:$A$372,$B15,'Division Lvl'!U$2:U$372) -> 1470830.677 | T15: =SUMIF('Division Lvl'!$A$2:$A$372,$B15,'Division Lvl'!V$2:V$372) -> 1507601.444 | U15: =SUMIF('Division Lvl'!$A$2:$A$372,$B15,'Division Lvl'!W$2:W$372) -> 1545291.48 | V15: =SUMIF('Division Lvl'!$A$2:$A$372,$B15,'Division Lvl'!X$2:X$372) -> 1583923.767 | W15: =SUMIF('Division Lvl'!$A$2:$A$372,$B15,'Division Lvl'!Y$2:Y$372) -> 1623521.861 | X15: 13780000 | Y15: 15548984.2 | Z15: Std | AA15: =INDEX('Division Lvl'!$AF$2:$AF$372,MATCH(B15,'Division Lvl'!$A$2:$A$372,0)) -> Renewal
A16: =INDEX('Division Lvl'!$AD$2:$AD$372,MATCH(B16,'Division Lvl'!$A$2:$A$372,0)) -> DS | B16: DS301 | C16: =INDEX('Division Lvl'!$B$2:$B$372,MATCH(B16,'Division Lvl'!$A$2:$A$372,0)) -> Ground substation refurbishment program | D16: =SUMIF('Division Lvl'!$A$2:$A$372,$B16,'Division Lvl'!E$2:E$372) -> 510000 | E16: =SUMIF('Division Lvl'!$A$2:$A$372,$B16,'Division Lvl'!F$2:F$372) -> 510000 | F16: =SUMIF('Division Lvl'!$A$2:$A$372,$B16,'Division Lvl'!G$2:G$372) -> 510000 | G16: =SUMIF('Division Lvl'!$A$2:$A$372,$B16,'Division Lvl'!H$2:H$372) -> 850000 | H16: =SUMIF('Division Lvl'!$A$2:$A$372,$B16,'Division Lvl'!I$2:I$372) -> 850000 | I16: =SUMIF('Division Lvl'!$A$2:$A$372,$B16,'Division Lvl'!J$2:J$372) -> 1020000 | J16: =SUMIF('Division Lvl'!$A$2:$A$372,$B16,'Division Lvl'!K$2:K$372) -> 1275000 | K16: =SUMIF('Division Lvl'!$A$2:$A$372,$B16,'Division Lvl'!L$2:L$372) -> 1275000 | L16: =SUMIF('Division Lvl'!$A$2:$A$372,$B16,'Division Lvl'!M$2:M$372) -> 1275000 | M16: =SUMIF('Division Lvl'!$A$2:$A$372,$B16,'Division Lvl'!N$2:N$372) -> 1275000 | N16: =SUMIF('Division Lvl'!$A$2:$A$372,$B16,'Division Lvl'!P$2:P$372) -> 510000 | O16: =SUMIF('Division Lvl'!$A$2:$A$372,$B16,'Division Lvl'!Q$2:Q$372) -> 522750 | P16: =SUMIF('Division Lvl'!$A$2:$A$372,$B16,'Division Lvl'!R$2:R$372) -> 535818.75 | Q16: =SUMIF('Division Lvl'!$A$2:$A$372,$B16,'Division Lvl'!S$2:S$372) -> 915357.0312 | R16: =SUMIF('Division Lvl'!$A$2:$A$372,$B16,'Division Lvl'!T$2:T$372) -> 938240.957 | S16: =SUMIF('Division Lvl'!$A$2:$A$372,$B16,'Division Lvl'!U$2:U$372) -> 1154036.377 | T16: =SUMIF('Division Lvl'!$A$2:$A$372,$B16,'Division Lvl'!V$2:V$372) -> 1478609.108 | U16: =SUMIF('Division Lvl'!$A$2:$A$372,$B16,'Division Lvl'!W$2:W$372) -> 1515574.336 | V16: =SUMIF('Division Lvl'!$A$2:$A$372,$B16,'Division Lvl'!X$2:X$372) -> 1553463.694 | W16: =SUMIF('Division Lvl'!$A$2:$A$372,$B16,'Division Lvl'!Y$2:Y$372) -> 1592300.287 | X16: 9350000 | Y16: 10716150.54 | Z16: Std | AA16: =INDEX('Division Lvl'!$AF$2:$AF$372,MATCH(B16,'Division Lvl'!$A$2:$A$372,0)) -> Renewal
A17: =INDEX('Division Lvl'!$AD$2:$AD$372,MATCH(B17,'Division Lvl'!$A$2:$A$372,0)) -> DS | B17: DS302 | C17: =INDEX('Division Lvl'!$B$2:$B$372,MATCH(B17,'Division Lvl'!$A$2:$A$372,0)) -> Distribution transformer replacement program | D17: =SUMIF('Division Lvl'!$A$2:$A$372,$B17,'Division Lvl'!E$2:E$372) -> 1170000 | E17: =SUMIF('Division Lvl'!$A$2:$A$372,$B17,'Division Lvl'!F$2:F$372) -> 1170000 | F17: =SUMIF('Division Lvl'!$A$2:$A$372,$B17,'Division Lvl'!G$2:G$372) -> 1170000 | G17: =SUMIF('Division Lvl'!$A$2:$A$372,$B17,'Division Lvl'!H$2:H$372) -> 1170000 | H17: =SUMIF('Division Lvl'!$A$2:$A$372,$B17,'Division Lvl'!I$2:I$372) -> 1462500 | I17: =SUMIF('Division Lvl'!$A$2:$A$372,$B17,'Division Lvl'!J$2:J$372) -> 1462500 | J17: =SUMIF('Division Lvl'!$A$2:$A$372,$B17,'Division Lvl'!K$2:K$372) -> 1755000 | K17: =SUMIF('Division Lvl'!$A$2:$A$372,$B17,'Division Lvl'!L$2:L$372) -> 1755000 | L17: =SUMIF('Division Lvl'!$A$2:$A$372,$B17,'Division Lvl'!M$2:M$372) -> 1755000 | M17: =SUMIF('Division Lvl'!$A$2:$A$372,$B17,'Division Lvl'!N$2:N$372) -> 1755000 | N17: =SUMIF('Division Lvl'!$A$2:$A$372,$B17,'Division Lvl'!P$2:P$372) -> 1170000 | O17: =SUMIF('Division Lvl'!$A$2:$A$372,$B17,'Division Lvl'!Q$2:Q$372) -> 1199250 | P17: =SUMIF('Division Lvl'!$A$2:$A$372,$B17,'Division Lvl'!R$2:R$372) -> 1229231.25 | Q17: =SUMIF('Division Lvl'!$A$2:$A$372,$B17,'Division Lvl'!S$2:S$372) -> 1259962.031 | R17: =SUMIF('Division Lvl'!$A$2:$A$372,$B17,'Division Lvl'!T$2:T$372) -> 1614326.353 | S17: =SUMIF('Division Lvl'!$A$2:$A$372,$B17,'Division Lvl'!U$2:U$372) -> 1654684.511 | T17: =SUMIF('Division Lvl'!$A$2:$A$372,$B17,'Division Lvl'!V$2:V$372) -> 2035261.949 | U17: =SUMIF('Division Lvl'!$A$2:$A$372,$B17,'Division Lvl'!W$2:W$372) -> 2086143.498 | V17: =SUMIF('Division Lvl'!$A$2:$A$372,$B17,'Division Lvl'!X$2:X$372) -> 2138297.085 | W17: =SUMIF('Division Lvl'!$A$2:$A$372,$B17,'Division Lvl'!Y$2:Y$372) -> 2191754.512 | X17: 14625000 | Y17: 16578911.19 | Z17: Std | AA17: =INDEX('Division Lvl'!$AF$2:$AF$372,MATCH(B17,'Division Lvl'!$A$2:$A$372,0)) -> Renewal
A18: =INDEX('Division Lvl'!$AD$2:$AD$372,MATCH(B18,'Division Lvl'!$A$2:$A$372,0)) -> DS | B18: DS305 | C18: =INDEX('Division Lvl'!$B$2:$B$372,MATCH(B18,'Division Lvl'!$A$2:$A$372,0)) -> Compact LV switchgear replacement | D18: =SUMIF('Division Lvl'!$A$2:$A$372,$B18,'Division Lvl'!E$2:E$372) -> 508400 | E18: =SUMIF('Division Lvl'!$A$2:$A$372,$B18,'Division Lvl'!F$2:F$372) -> 500000 | F18: =SUMIF('Division Lvl'!$A$2:$A$372,$B18,'Division Lvl'!G$2:G$372) -> 500000 | G18: =SUMIF('Division Lvl'!$A$2:$A$372,$B18,'Division Lvl'!H$2:H$372) -> 500000 | H18: =SUMIF('Division Lvl'!$A$2:$A$372,$B18,'Division Lvl'!I$2:I$372) -> 500000 | I18: =SUMIF('Division Lvl'!$A$2:$A$372,$B18,'Division Lvl'!J$2:J$372) -> 500000 | J18: =SUMIF('Division Lvl'!$A$2:$A$372,$B18,'Division Lvl'!K$2:K$372) -> 500000 | K18: =SUMIF('Division Lvl'!$A$2:$A$372,$B18,'Division Lvl'!L$2:L$372) -> 500000 | L18: =SUMIF('Division Lvl'!$A$2:$A$372,$B18,'Division Lvl'!M$2:M$372) -> 500000 | M18: =SUMIF('Division Lvl'!$A$2:$A$372,$B18,'Division Lvl'!N$2:N$372) -> 500000 | N18: =SUMIF('Division Lvl'!$A$2:$A$372,$B18,'Division Lvl'!P$2:P$372) -> 508400 | O18: =SUMIF('Division Lvl'!$A$2:$A$372,$B18,'Division Lvl'!Q$2:Q$372) -> 512500 | P18: =SUMIF('Division Lvl'!$A$2:$A$372,$B18,'Division Lvl'!R$2:R$372) -> 525312.5 | Q18: =SUMIF('Division Lvl'!$A$2:$A$372,$B18,'Division Lvl'!S$2:S$372) -> 538445.3125 | R18: =SUMIF('Division Lvl'!$A$2:$A$372,$B18,'Division Lvl'!T$2:T$372) -> 551906.4453 | S18: =SUMIF('Division Lvl'!$A$2:$A$372,$B18,'Division Lvl'!U$2:U$372) -> 565704.1064 | T18: =SUMIF('Division Lvl'!$A$2:$A$372,$B18,'Division Lvl'!V$2:V$372) -> 579846.7091 | U18: =SUMIF('Division Lvl'!$A$2:$A$372,$B18,'Division Lvl'!W$2:W$372) -> 594342.8768 | V18: =SUMIF('Division Lvl'!$A$2:$A$372,$B18,'Division Lvl'!X$2:X$372) -> 609201.4488 | W18: =SUMIF('Division Lvl'!$A$2:$A$372,$B18,'Division Lvl'!Y$2:Y$372) -> 624431.485 | X18: 5008400 | Y18: 5610090.884 | Z18: Std | AA18: =INDEX('Division Lvl'!$AF$2:$AF$372,MATCH(B18,'Division Lvl'!$A$2:$A$372,0)) -> Renewal
A19: =INDEX('Division Lvl'!$AD$2:$AD$372,MATCH(B19,'Division Lvl'!$A$2:$A$372,0)) -> DS | B19: DS307 | C19: =INDEX('Division Lvl'!$B$2:$B$372,MATCH(B19,'Division Lvl'!$A$2:$A$372,0)) -> Holec MD4 epoxy switchgear replacement | D19: =SUMIF('Division Lvl'!$A$2:$A$372,$B19,'Division Lvl'!E$2:E$372) -> 4035224.669 | E19: =SUMIF('Division Lvl'!$A$2:$A$372,$B19,'Division Lvl'!F$2:F$372) -> 5950000 | F19: =SUMIF('Division Lvl'!$A$2:$A$372,$B19,'Division Lvl'!G$2:G$372) -> 6300000 | G19: =SUMIF('Division Lvl'!$A$2:$A$372,$B19,'Division Lvl'!H$2:H$372) -> 7875000 | H19: =SUMIF('Division Lvl'!$A$2:$A$372,$B19,'Division Lvl'!I$2:I$372) -> 7875000 | I19: =SUMIF('Division Lvl'!$A$2:$A$372,$B19,'Division Lvl'!J$2:J$372) -> 7875000 | J19: =SUMIF('Division Lvl'!$A$2:$A$372,$B19,'Division Lvl'!K$2:K$372) -> 7875000 | K19: =SUMIF('Division Lvl'!$A$2:$A$372,$B19,'Division Lvl'!L$2:L$372) -> 7875000 | L19: =SUMIF('Division Lvl'!$A$2:$A$372,$B19,'Division Lvl'!M$2:M$372) -> 7875000 | M19: =SUMIF('Division Lvl'!$A$2:$A$372,$B19,'Division Lvl'!N$2:N$372) -> 7875000 | N19: =SUMIF('Division Lvl'!$A$2:$A$372,$B19,'Division Lvl'!P$2:P$372) -> 4035224.669 | O19: =SUMIF('Division Lvl'!$A$2:$A$372,$B19,'Division Lvl'!Q$2:Q$372) -> 6098750 | P19: =SUMIF('Division Lvl'!$A$2:$A$372,$B19,'Division Lvl'!R$2:R$372) -> 6618937.5 | Q19: =SUMIF('Division Lvl'!$A$2:$A$372,$B19,'Division Lvl'!S$2:S$372) -> 8480513.672 | R19: =SUMIF('Division Lvl'!$A$2:$A$372,$B19,'Division Lvl'!T$2:T$372) -> 8692526.514 | S19: =SUMIF('Division Lvl'!$A$2:$A$372,$B19,'Division Lvl'!U$2:U$372) -> 8909839.677 | T19: =SUMIF('Division Lvl'!$A$2:$A$372,$B19,'Division Lvl'!V$2:V$372) -> 9132585.668 | U19: =SUMIF('Division Lvl'!$A$2:$A$372,$B19,'Division Lvl'!W$2:W$372) -> 9360900.31 | V19: =SUMIF('Division Lvl'!$A$2:$A$372,$B19,'Division Lvl'!X$2:X$372) -> 9594922.818 | W19: =SUMIF('Division Lvl'!$A$2:$A$372,$B19,'Division Lvl'!Y$2:Y$372) -> 9834795.888 | X19: 71410224.67 | Y19: 80758996.72 | Z19: Std | AA19: =INDEX('Division Lvl'!$AF$2:$AF$372,MATCH(B19,'Division Lvl'!$A$2:$A$372,0)) -> Renewal
A20: =INDEX('Division Lvl'!$AD$2:$AD$372,MATCH(B20,'Division Lvl'!$A$2:$A$372,0)) -> DS | B20: DS308 | C20: =INDEX('Division Lvl'!$B$2:$B$372,MATCH(B20,'Division Lvl'!$A$2:$A$372,0)) -> HV RGB12 switchgear replacement | D20: =SUMIF('Division Lvl'!$A$2:$A$372,$B20,'Division Lvl'!E$2:E$372) -> 598000 | E20: =SUMIF('Division Lvl'!$A$2:$A$372,$B20,'Division Lvl'!F$2:F$372) -> 0 | F20: =SUMIF('Division Lvl'!$A$2:$A$372,$B20,'Division Lvl'!G$2:G$372) -> 0 | G20: =SUMIF('Division Lvl'!$A$2:$A$372,$B20,'Division Lvl'!H$2:H$372) -> 0 | H20: =SUMIF('Division Lvl'!$A$2:$A$372,$B20,'Division Lvl'!I$2:I$372) -> 0 | I20: =SUMIF('Division Lvl'!$A$2:$A$372,$B20,'Division Lvl'!J$2:J$372) -> 0 | J20: =SUMIF('Division Lvl'!$A$2:$A$372,$B20,'Division Lvl'!K$2:K$372) -> 0 | K20: =SUMIF('Division Lvl'!$A$2:$A$372,$B20,'Division Lvl'!L$2:L$372) -> 0 | L20: =SUMIF('Division Lvl'!$A$2:$A$372,$B20,'Division Lvl'!M$2:M$372) -> 0 | M20: =SUMIF('Division Lvl'!$A$2:$A$372,$B20,'Division Lvl'!N$2:N$372) -> 0 | N20: =SUMIF('Division Lvl'!$A$2:$A$372,$B20,'Division Lvl'!P$2:P$372) -> 598000 | O20: =SUMIF('Division Lvl'!$A$2:$A$372,$B20,'Division Lvl'!Q$2:Q$372) -> 0 | P20: =SUMIF('Division Lvl'!$A$2:$A$372,$B20,'Division Lvl'!R$2:R$372) -> 0 | Q20: =SUMIF('Division Lvl'!$A$2:$A$372,$B20,'Division Lvl'!S$2:S$372) -> 0 | R20: =SUMIF('Division Lvl'!$A$2:$A$372,$B20,'Division Lvl'!T$2:T$372) -> 0 | S20: =SUMIF('Division Lvl'!$A$2:$A$372,$B20,'Division Lvl'!U$2:U$372) -> 0 | T20: =SUMIF('Division Lvl'!$A$2:$A$372,$B20,'Division Lvl'!V$2:V$372) -> 0 | U20: =SUMIF('Division Lvl'!$A$2:$A$372,$B20,'Division Lvl'!W$2:W$372) -> 0 | V20: =SUMIF('Division Lvl'!$A$2:$A$372,$B20,'Division Lvl'!X$2:X$372) -> 0 | W20: =SUMIF('Division Lvl'!$A$2:$A$372,$B20,'Division Lvl'!Y$2:Y$372) -> 0 | X20: 598000 | Y20: 598000 | Z20: Std | AA20: =INDEX('Division Lvl'!$AF$2:$AF$372,MATCH(B20,'Division Lvl'!$A$2:$A$372,0)) -> Renewal
A21: =INDEX('Division Lvl'!$AD$2:$AD$372,MATCH(B21,'Division Lvl'!$A$2:$A$372,0)) -> DS | B21: DS312 | C21: =INDEX('Division Lvl'!$B$2:$B$372,MATCH(B21,'Division Lvl'!$A$2:$A$372,0)) -> Miscellaneous substation renewal expenditure | D21: =SUMIF('Division Lvl'!$A$2:$A$372,$B21,'Division Lvl'!E$2:E$372) -> 750000 | E21: =SUMIF('Division Lvl'!$A$2:$A$372,$B21,'Division Lvl'!F$2:F$372) -> 3500000 | F21: =SUMIF('Division Lvl'!$A$2:$A$372,$B21,'Division Lvl'!G$2:G$372) -> 3500000 | G21: =SUMIF('Division Lvl'!$A$2:$A$372,$B21,'Division Lvl'!H$2:H$372) -> 3500000 | H21: =SUMIF('Division Lvl'!$A$2:$A$372,$B21,'Division Lvl'!I$2:I$372) -> 3500000 | I21: =SUMIF('Division Lvl'!$A$2:$A$372,$B21,'Division Lvl'!J$2:J$372) -> 3500000 | J21: =SUMIF('Division Lvl'!$A$2:$A$372,$B21,'Division Lvl'!K$2:K$372) -> 4000000 | K21: =SUMIF('Division Lvl'!$A$2:$A$372,$B21,'Division Lvl'!L$2:L$372) -> 4000000 | L21: =SUMIF('Division Lvl'!$A$2:$A$372,$B21,'Division Lvl'!M$2:M$372) -> 4000000 | M21: =SUMIF('Division Lvl'!$A$2:$A$372,$B21,'Division Lvl'!N$2:N$372) -> 4000000 | N21: =SUMIF('Division Lvl'!$A$2:$A$372,$B21,'Division Lvl'!P$2:P$372) -> 750000 | O21: =SUMIF('Division Lvl'!$A$2:$A$372,$B21,'Division Lvl'!Q$2:Q$372) -> 3587500 | P21: =SUMIF('Division Lvl'!$A$2:$A$372,$B21,'Division Lvl'!R$2:R$372) -> 3677187.5 | Q21: =SUMIF('Division Lvl'!$A$2:$A$372,$B21,'Division Lvl'!S$2:S$372) -> 3769117.187 | R21: =SUMIF('Division Lvl'!$A$2:$A$372,$B21,'Division Lvl'!T$2:T$372) -> 3863345.117 | S21: =SUMIF('Division Lvl'!$A$2:$A$372,$B21,'Division Lvl'!U$2:U$372) -> 3959928.745 | T21: =SUMIF('Division Lvl'!$A$2:$A$372,$B21,'Division Lvl'!V$2:V$372) -> 4638773.673 | U21: =SUMIF('Division Lvl'!$A$2:$A$372,$B21,'Division Lvl'!W$2:W$372) -> 4754743.015 | V21: =SUMIF('Division Lvl'!$A$2:$A$372,$B21,'Division Lvl'!X$2:X$372) -> 4873611.59 | W21: =SUMIF('Division Lvl'!$A$2:$A$372,$B21,'Division Lvl'!Y$2:Y$372) -> 4995451.88 | X21: 34250000 | Y21: 38869658.71 | Z21: Std | AA21: =INDEX('Division Lvl'!$AF$2:$AF$372,MATCH(B21,'Division Lvl'!$A$2:$A$372,0)) -> Renewal
A22: =INDEX('Division Lvl'!$AD$2:$AD$372,MATCH(B22,'Division Lvl'!$A$2:$A$372,0)) -> DS | B22: DS315 | C22: =INDEX('Division Lvl'!$B$2:$B$372,MATCH(B22,'Division Lvl'!$A$2:$A$372,0)) -> Low voltage switchgear replacement | D22: =SUMIF('Division Lvl'!$A$2:$A$372,$B22,'Division Lvl'!E$2:E$372) -> 354000 | E22: =SUMIF('Division Lvl'!$A$2:$A$372,$B22,'Division Lvl'!F$2:F$372) -> 708000 | F22: =SUMIF('Division Lvl'!$A$2:$A$372,$B22,'Division Lvl'!G$2:G$372) -> 708000 | G22: =SUMIF('Division Lvl'!$A$2:$A$372,$B22,'Division Lvl'!H$2:H$372) -> 708000 | H22: =SUMIF('Division Lvl'!$A$2:$A$372,$B22,'Division Lvl'!I$2:I$372) -> 708000 | I22: =SUMIF('Division Lvl'!$A$2:$A$372,$B22,'Division Lvl'!J$2:J$372) -> 708000 | J22: =SUMIF('Division Lvl'!$A$2:$A$372,$B22,'Division Lvl'!K$2:K$372) -> 708000 | K22: =SUMIF('Division Lvl'!$A$2:$A$372,$B22,'Division Lvl'!L$2:L$372) -> 708000 | L22: =SUMIF('Division Lvl'!$A$2:$A$372,$B22,'Division Lvl'!M$2:M$372) -> 708000 | M22: =SUMIF('Division Lvl'!$A$2:$A$372,$B22,'Division Lvl'!N$2:N$372) -> 708000 | N22: =SUMIF('Division Lvl'!$A$2:$A$372,$B22,'Division Lvl'!P$2:P$372) -> 354000 | O22: =SUMIF('Division Lvl'!$A$2:$A$372,$B22,'Division Lvl'!Q$2:Q$372) -> 725700 | P22: =SUMIF('Division Lvl'!$A$2:$A$372,$B22,'Division Lvl'!R$2:R$372) -> 743842.5 | Q22: =SUMIF('Division Lvl'!$A$2:$A$372,$B22,'Division Lvl'!S$2:S$372) -> 762438.5625 | R22: =SUMIF('Division Lvl'!$A$2:$A$372,$B22,'Division Lvl'!T$2:T$372) -> 781499.5266 | S22: =SUMIF('Division Lvl'!$A$2:$A$372,$B22,'Division Lvl'!U$2:U$372) -> 801037.0147 | T22: =SUMIF('Division Lvl'!$A$2:$A$372,$B22,'Division Lvl'!V$2:V$372) -> 821062.9401 | U22: =SUMIF('Division Lvl'!$A$2:$A$372,$B22,'Division Lvl'!W$2:W$372) -> 841589.5136 | V22: =SUMIF('Division Lvl'!$A$2:$A$372,$B22,'Division Lvl'!X$2:X$372) -> 862629.2514 | W22: =SUMIF('Division Lvl'!$A$2:$A$372,$B22,'Division Lvl'!Y$2:Y$372) -> 884194.9827 | X22: 6726000 | Y22: 7577994.292 | Z22: Std | AA22: =INDEX('Division Lvl'!$AF$2:$AF$372,MATCH(B22,'Division Lvl'!$A$2:$A$372,0)) -> Renewal
A23: =INDEX('Division Lvl'!$AD$2:$AD$372,MATCH(B23,'Division Lvl'!$A$2:$A$372,0)) -> DS | B23: DS317 | C23: =INDEX('Division Lvl'!$B$2:$B$372,MATCH(B23,'Division Lvl'!$A$2:$A$372,0)) -> Future distribution substation renewals | D23: =SUMIF('Division Lvl'!$A$2:$A$372,$B23,'Division Lvl'!E$2:E$372) -> 0 | E23: =SUMIF('Division Lvl'!$A$2:$A$372,$B23,'Division Lvl'!F$2:F$372) -> 0 | F23: =SUMIF('Division Lvl'!$A$2:$A$372,$B23,'Division Lvl'!G$2:G$372) -> 0 | G23: =SUMIF('Division Lvl'!$A$2:$A$372,$B23,'Division Lvl'!H$2:H$372) -> 0 | H23: =SUMIF('Division Lvl'!$A$2:$A$372,$B23,'Division Lvl'!I$2:I$372) -> 0 | I23: =SUMIF('Division Lvl'!$A$2:$A$372,$B23,'Division Lvl'!J$2:J$372) -> 0 | J23: =SUMIF('Division Lvl'!$A$2:$A$372,$B23,'Division Lvl'!K$2:K$372) -> 9200000 | K23: =SUMIF('Division Lvl'!$A$2:$A$372,$B23,'Division Lvl'!L$2:L$372) -> 13700000 | L23: =SUMIF('Division Lvl'!$A$2:$A$372,$B23,'Division Lvl'!M$2:M$372) -> 18400000 | M23: =SUMIF('Division Lvl'!$A$2:$A$372,$B23,'Division Lvl'!N$2:N$372) -> 20200000 | N23: =SUMIF('Division Lvl'!$A$2:$A$372,$B23,'Division Lvl'!P$2:P$372) -> 0 | O23: =SUMIF('Division Lvl'!$A$2:$A$372,$B23,'Division Lvl'!Q$2:Q$372) -> 0 | P23: =SUMIF('Division Lvl'!$A$2:$A$372,$B23,'Division Lvl'!R$2:R$372) -> 0 | Q23: =SUMIF('Division Lvl'!$A$2:$A$372,$B23,'Division Lvl'!S$2:S$372) -> 0 | R23: =SUMIF('Division Lvl'!$A$2:$A$372,$B23,'Division Lvl'!T$2:T$372) -> 0 | S23: =SUMIF('Division Lvl'!$A$2:$A$372,$B23,'Division Lvl'!U$2:U$372) -> 0 | T23: =SUMIF('Division Lvl'!$A$2:$A$372,$B23,'Division Lvl'!V$2:V$372) -> 10669179.45 | U23: =SUMIF('Division Lvl'!$A$2:$A$372,$B23,'Division Lvl'!W$2:W$372) -> 16284994.83 | V23: =SUMIF('Division Lvl'!$A$2:$A$372,$B23,'Division Lvl'!X$2:X$372) -> 22418613.31 | W23: =SUMIF('Division Lvl'!$A$2:$A$372,$B23,'Division Lvl'!Y$2:Y$372) -> 25227031.99 | X23: 61500000 | Y23: 74599819.58 | Z23: Std | AA23: =INDEX('Division Lvl'!$AF$2:$AF$372,MATCH(B23,'Division Lvl'!$A$2:$A$372,0)) -> Renewal
A24: =INDEX('Division Lvl'!$AD$2:$AD$372,MATCH(B24,'Division Lvl'!$A$2:$A$372,0)) -> DS | B24: DS318 | C24: =INDEX('Division Lvl'!$B$2:$B$372,MATCH(B24,'Division Lvl'!$A$2:$A$372,0)) -> Distribution substation earthing refurbishment | D24: =SUMIF('Division Lvl'!$A$2:$A$372,$B24,'Division Lvl'!E$2:E$372) -> 676000 | E24: =SUMIF('Division Lvl'!$A$2:$A$372,$B24,'Division Lvl'!F$2:F$372) -> 270000 | F24: =SUMIF('Division Lvl'!$A$2:$A$372,$B24,'Division Lvl'!G$2:G$372) -> 270000 | G24: =SUMIF('Division Lvl'!$A$2:$A$372,$B24,'Division Lvl'!H$2:H$372) -> 270000 | H24: =SUMIF('Division Lvl'!$A$2:$A$372,$B24,'Division Lvl'!I$2:I$372) -> 270000 | I24: =SUMIF('Division Lvl'!$A$2:$A$372,$B24,'Division Lvl'!J$2:J$372) -> 270000 | J24: =SUMIF('Division Lvl'!$A$2:$A$372,$B24,'Division Lvl'!K$2:K$372) -> 270000 | K24: =SUMIF('Division Lvl'!$A$2:$A$372,$B24,'Division Lvl'!L$2:L$372) -> 270000 | L24: =SUMIF('Division Lvl'!$A$2:$A$372,$B24,'Division Lvl'!M$2:M$372) -> 270000 | M24: =SUMIF('Division Lvl'!$A$2:$A$372,$B24,'Division Lvl'!N$2:N$372) -> 270000 | N24: =SUMIF('Division Lvl'!$A$2:$A$372,$B24,'Division Lvl'!P$2:P$372) -> 676000 | O24: =SUMIF('Division Lvl'!$A$2:$A$372,$B24,'Division Lvl'!Q$2:Q$372) -> 276750 | P24: =SUMIF('Division Lvl'!$A$2:$A$372,$B24,'Division Lvl'!R$2:R$372) -> 283668.75 | Q24: =SUMIF('Division Lvl'!$A$2:$A$372,$B24,'Division Lvl'!S$2:S$372) -> 290760.4687 | R24: =SUMIF('Division Lvl'!$A$2:$A$372,$B24,'Division Lvl'!T$2:T$372) -> 298029.4805 | S24: =SUMIF('Division Lvl'!$A$2:$A$372,$B24,'Division Lvl'!U$2:U$372) -> 305480.2175 | T24: =SUMIF('Division Lvl'!$A$2:$A$372,$B24,'Division Lvl'!V$2:V$372) -> 313117.2229 | U24: =SUMIF('Division Lvl'!$A$2:$A$372,$B24,'Division Lvl'!W$2:W$372) -> 320945.1535 | V24: =SUMIF('Division Lvl'!$A$2:$A$372,$B24,'Division Lvl'!X$2:X$372) -> 328968.7823 | W24: =SUMIF('Division Lvl'!$A$2:$A$372,$B24,'Division Lvl'!Y$2:Y$372) -> 337193.0019 | X24: 3106000 | Y24: 3430913.077 | Z24: Std | AA24: =INDEX('Division Lvl'!$AF$2:$AF$372,MATCH(B24,'Division Lvl'!$A$2:$A$372,0)) -> Renewal
A25: =INDEX('Division Lvl'!$AD$2:$AD$372,MATCH(B25,'Division Lvl'!$A$2:$A$372,0)) -> DS | B25: DS405 | C25: =INDEX('Division Lvl'!$B$2:$B$372,MATCH(B25,'Division Lvl'!$A$2:$A$372,0)) -> Air break switch replacement | D25: =SUMIF('Division Lvl'!$A$2:$A$372,$B25,'Division Lvl'!E$2:E$372) -> 6146400.549 | E25: =SUMIF('Division Lvl'!$A$2:$A$372,$B25,'Division Lvl'!F$2:F$372) -> 3690000 | F25: =SUMIF('Division Lvl'!$A$2:$A$372,$B25,'Division Lvl'!G$2:G$372) -> 3690000 | G25: =SUMIF('Division Lvl'!$A$2:$A$372,$B25,'Division Lvl'!H$2:H$372) -> 3690000 | H25: =SUMIF('Division Lvl'!$A$2:$A$372,$B25,'Division Lvl'!I$2:I$372) -> 3690000 | I25: =SUMIF('Division Lvl'!$A$2:$A$372,$B25,'Division Lvl'!J$2:J$372) -> 3690000 | J25: =SUMIF('Division Lvl'!$A$2:$A$372,$B25,'Division Lvl'!K$2:K$372) -> 3690000 | K25: =SUMIF('Division Lvl'!$A$2:$A$372,$B25,'Division Lvl'!L$2:L$372) -> 3690000 | L25: =SUMIF('Division Lvl'!$A$2:$A$372,$B25,'Division Lvl'!M$2:M$372) -> 3690000 | M25: =SUMIF('Division Lvl'!$A$2:$A$372,$B25,'Division Lvl'!N$2:N$372) -> 3690000 | N25: =SUMIF('Division Lvl'!$A$2:$A$372,$B25,'Division Lvl'!P$2:P$372) -> 6146400.549 | O25: =SUMIF('Division Lvl'!$A$2:$A$372,$B25,'Division Lvl'!Q$2:Q$372) -> 3782250 | P25: =SUMIF('Division Lvl'!$A$2:$A$372,$B25,'Division Lvl'!R$2:R$372) -> 3876806.25 | Q25: =SUMIF('Division Lvl'!$A$2:$A$372,$B25,'Division Lvl'!S$2:S$372) -> 3973726.406 | R25: =SUMIF('Division Lvl'!$A$2:$A$372,$B25,'Division Lvl'!T$2:T$372) -> 4073069.566 | S25: =SUMIF('Division Lvl'!$A$2:$A$372,$B25,'Division Lvl'!U$2:U$372) -> 4174896.306 | T25: =SUMIF('Division Lvl'!$A$2:$A$372,$B25,'Division Lvl'!V$2:V$372) -> 4279268.713 | U25: =SUMIF('Division Lvl'!$A$2:$A$372,$B25,'Division Lvl'!W$2:W$372) -> 4386250.431 | V25: =SUMIF('Division Lvl'!$A$2:$A$372,$B25,'Division Lvl'!X$2:X$372) -> 4495906.692 | W25: =SUMIF('Division Lvl'!$A$2:$A$372,$B25,'Division Lvl'!Y$2:Y$372) -> 4608304.359 | X25: 39356400.55 | Y25: 43796879.27 | Z25: Std | AA25: =INDEX('Division Lvl'!$AF$2:$AF$372,MATCH(B25,'Division Lvl'!$A$2:$A$372,0)) -> Renewal
A26: =INDEX('Division Lvl'!$AD$2:$AD$372,MATCH(B26,'Division Lvl'!$A$2:$A$372,0)) -> DS | B26: DS409 | C26: =INDEX('Division Lvl'!$B$2:$B$372,MATCH(B26,'Division Lvl'!$A$2:$A$372,0)) -> Miscellaneous mains renewal expenditure | D26: =SUMIF('Division Lvl'!$A$2:$A$372,$B26,'Division Lvl'!E$2:E$372) -> 750000 | E26: =SUMIF('Division Lvl'!$A$2:$A$372,$B26,'Division Lvl'!F$2:F$372) -> 1100000 | F26: =SUMIF('Division Lvl'!$A$2:$A$372,$B26,'Division Lvl'!G$2:G$372) -> 1150000 | G26: =SUMIF('Division Lvl'!$A$2:$A$372,$B26,'Division Lvl'!H$2:H$372) -> 1150000 | H26: =SUMIF('Division Lvl'!$A$2:$A$372,$B26,'Division Lvl'!I$2:I$372) -> 1200000 | I26: =SUMIF('Division Lvl'!$A$2:$A$372,$B26,'Division Lvl'!J$2:J$372) -> 1200000 | J26: =SUMIF('Division Lvl'!$A$2:$A$372,$B26,'Division Lvl'!K$2:K$372) -> 1400000 | K26: =SUMIF('Division Lvl'!$A$2:$A$372,$B26,'Division Lvl'!L$2:L$372) -> 1400000 | L26: =SUMIF('Division Lvl'!$A$2:$A$372,$B26,'Division Lvl'!M$2:M$372) -> 1400000 | M26: =SUMIF('Division Lvl'!$A$2:$A$372,$B26,'Division Lvl'!N$2:N$372) -> 1400000 | N26: =SUMIF('Division Lvl'!$A$2:$A$372,$B26,'Division Lvl'!P$2:P$372) -> 750000 | O26: =SUMIF('Division Lvl'!$A$2:$A$372,$B26,'Division Lvl'!Q$2:Q$372) -> 1127500 | P26: =SUMIF('Division Lvl'!$A$2:$A$372,$B26,'Division Lvl'!R$2:R$372) -> 1208218.75 | Q26: =SUMIF('Division Lvl'!$A$2:$A$372,$B26,'Division Lvl'!S$2:S$372) -> 1238424.219 | R26: =SUMIF('Division Lvl'!$A$2:$A$372,$B26,'Division Lvl'!T$2:T$372) -> 1324575.469 | S26: =SUMIF('Division Lvl'!$A$2:$A$372,$B26,'Division Lvl'!U$2:U$372) -> 1357689.855 | T26: =SUMIF('Division Lvl'!$A$2:$A$372,$B26,'Division Lvl'!V$2:V$372) -> 1623570.785 | U26: =SUMIF('Division Lvl'!$A$2:$A$372,$B26,'Division Lvl'!W$2:W$372) -> 1664160.055 | V26: =SUMIF('Division Lvl'!$A$2:$A$372,$B26,'Division Lvl'!X$2:X$372) -> 1705764.057 | W26: =SUMIF('Division Lvl'!$A$2:$A$372,$B26,'Division Lvl'!Y$2:Y$372) -> 1748408.158 | X26: 12150000 | Y26: 13748311.35 | Z26: Std | AA26: =INDEX('Division Lvl'!$AF$2:$AF$372,MATCH(B26,'Division Lvl'!$A$2:$A$372,0)) -> Renewal
A27: =INDEX('Division Lvl'!$AD$2:$AD$372,MATCH(B27,'Division Lvl'!$A$2:$A$372,0)) -> DS | B27: DS413 | C27: =INDEX('Division Lvl'!$B$2:$B$372,MATCH(B27,'Division Lvl'!$A$2:$A$372,0)) -> Low mains remediation | D27: =SUMIF('Division Lvl'!$A$2:$A$372,$B27,'Division Lvl'!E$2:E$372) -> 1800000 | E27: =SUMIF('Division Lvl'!$A$2:$A$372,$B27,'Division Lvl'!F$2:F$372) -> 1625000 | F27: =SUMIF('Division Lvl'!$A$2:$A$372,$B27,'Division Lvl'!G$2:G$372) -> 1625000 | G27: =SUMIF('Division Lvl'!$A$2:$A$372,$B27,'Division Lvl'!H$2:H$372) -> 1625000 | H27: =SUMIF('Division Lvl'!$A$2:$A$372,$B27,'Division Lvl'!I$2:I$372) -> 1625000 | I27: =SUMIF('Division Lvl'!$A$2:$A$372,$B27,'Division Lvl'!J$2:J$372) -> 1625000 | J27: =SUMIF('Division Lvl'!$A$2:$A$372,$B27,'Division Lvl'!K$2:K$372) -> 975000 | K27: =SUMIF('Division Lvl'!$A$2:$A$372,$B27,'Division Lvl'!L$2:L$372) -> 975000 | L27: =SUMIF('Division Lvl'!$A$2:$A$372,$B27,'Division Lvl'!M$2:M$372) -> 975000 | M27: =SUMIF('Division Lvl'!$A$2:$A$372,$B27,'Division Lvl'!N$2:N$372) -> 975000 | N27: =SUMIF('Division Lvl'!$A$2:$A$372,$B27,'Division Lvl'!P$2:P$372) -> 1800000 | O27: =SUMIF('Division Lvl'!$A$2:$A$372,$B27,'Division Lvl'!Q$2:Q$372) -> 1665625 | P27: =SUMIF('Division Lvl'!$A$2:$A$372,$B27,'Division Lvl'!R$2:R$372) -> 1707265.625 | Q27: =SUMIF('Division Lvl'!$A$2:$A$372,$B27,'Division Lvl'!S$2:S$372) -> 1749947.266 | R27: =SUMIF('Division Lvl'!$A$2:$A$372,$B27,'Division Lvl'!T$2:T$372) -> 1793695.947 | S27: =SUMIF('Division Lvl'!$A$2:$A$372,$B27,'Division Lvl'!U$2:U$372) -> 1838538.346 | T27: =SUMIF('Division Lvl'!$A$2:$A$372,$B27,'Division Lvl'!V$2:V$372) -> 1130701.083 | U27: =SUMIF('Division Lvl'!$A$2:$A$372,$B27,'Division Lvl'!W$2:W$372) -> 1158968.61 | V27: =SUMIF('Division Lvl'!$A$2:$A$372,$B27,'Division Lvl'!X$2:X$372) -> 1187942.825 | W27: =SUMIF('Division Lvl'!$A$2:$A$372,$B27,'Division Lvl'!Y$2:Y$372) -> 1217641.396 | X27: 13825000 | Y27: 15250326.1 | Z27: Std | AA27: =INDEX('Division Lvl'!$AF$2:$AF$372,MATCH(B27,'Division Lvl'!$A$2:$A$372,0)) -> Renewal
A28: =INDEX('Division Lvl'!$AD$2:$AD$372,MATCH(B28,'Division Lvl'!$A$2:$A$372,0)) -> DS | B28: DS414 | C28: =INDEX('Division Lvl'!$B$2:$B$372,MATCH(B28,'Division Lvl'!$A$2:$A$372,0)) -> Copper distribution mains replacement | D28: =SUMIF('Division Lvl'!$A$2:$A$372,$B28,'Division Lvl'!E$2:E$372) -> 5600000 | E28: =SUMIF('Division Lvl'!$A$2:$A$372,$B28,'Division Lvl'!F$2:F$372) -> 1440000 | F28: =SUMIF('Division Lvl'!$A$2:$A$372,$B28,'Division Lvl'!G$2:G$372) -> 2400000 | G28: =SUMIF('Division Lvl'!$A$2:$A$372,$B28,'Division Lvl'!H$2:H$372) -> 2400000 | H28: =SUMIF('Division Lvl'!$A$2:$A$372,$B28,'Division Lvl'!I$2:I$372) -> 2400000 | I28: =SUMIF('Division Lvl'!$A$2:$A$372,$B28,'Division Lvl'!J$2:J$372) -> 2400000 | J28: =SUMIF('Division Lvl'!$A$2:$A$372,$B28,'Division Lvl'!K$2:K$372) -> 2400000 | K28: =SUMIF('Division Lvl'!$A$2:$A$372,$B28,'Division Lvl'!L$2:L$372) -> 2400000 | L28: =SUMIF('Division Lvl'!$A$2:$A$372,$B28,'Division Lvl'!M$2:M$372) -> 2400000 | M28: =SUMIF('Division Lvl'!$A$2:$A$372,$B28,'Division Lvl'!N$2:N$372) -> 2400000 | N28: =SUMIF('Division Lvl'!$A$2:$A$372,$B28,'Division Lvl'!P$2:P$372) -> 5600000 | O28: =SUMIF('Division Lvl'!$A$2:$A$372,$B28,'Division Lvl'!Q$2:Q$372) -> 1476000 | P28: =SUMIF('Division Lvl'!$A$2:$A$372,$B28,'Division Lvl'!R$2:R$372) -> 2521500 | Q28: =SUMIF('Division Lvl'!$A$2:$A$372,$B28,'Division Lvl'!S$2:S$372) -> 2584537.5 | R28: =SUMIF('Division Lvl'!$A$2:$A$372,$B28,'Division Lvl'!T$2:T$372) -> 2649150.937 | S28: =SUMIF('Division Lvl'!$A$2:$A$372,$B28,'Division Lvl'!U$2:U$372) -> 2715379.711 | T28: =SUMIF('Division Lvl'!$A$2:$A$372,$B28,'Division Lvl'!V$2:V$372) -> 2783264.204 | U28: =SUMIF('Division Lvl'!$A$2:$A$372,$B28,'Division Lvl'!W$2:W$372) -> 2852845.809 | V28: =SUMIF('Division Lvl'!$A$2:$A$372,$B28,'Division Lvl'!X$2:X$372) -> 2924166.954 | W28: =SUMIF('Division Lvl'!$A$2:$A$372,$B28,'Division Lvl'!Y$2:Y$372) -> 2997271.128 | X28: 26240000 | Y28: 29104116.24 | Z28: Std | AA28: =INDEX('Division Lvl'!$AF$2:$AF$372,MATCH(B28,'Division Lvl'!$A$2:$A$372,0)) -> Renewal
A29: =INDEX('Division Lvl'!$AD$2:$AD$372,MATCH(B29,'Division Lvl'!$A$2:$A$372,0)) -> DS | B29: DS415 | C29: =INDEX('Division Lvl'!$B$2:$B$372,MATCH(B29,'Division Lvl'!$A$2:$A$372,0)) -> LV mains replacement | D29: =SUMIF('Division Lvl'!$A$2:$A$372,$B29,'Division Lvl'!E$2:E$372) -> 550000 | E29: =SUMIF('Division Lvl'!$A$2:$A$372,$B29,'Division Lvl'!F$2:F$372) -> 880000 | F29: =SUMIF('Division Lvl'!$A$2:$A$372,$B29,'Division Lvl'!G$2:G$372) -> 1100000 | G29: =SUMIF('Division Lvl'!$A$2:$A$372,$B29,'Division Lvl'!H$2:H$372) -> 1210000 | H29: =SUMIF('Division Lvl'!$A$2:$A$372,$B29,'Division Lvl'!I$2:I$372) -> 1210000 | I29: =SUMIF('Division Lvl'!$A$2:$A$372,$B29,'Division Lvl'!J$2:J$372) -> 1100000 | J29: =SUMIF('Division Lvl'!$A$2:$A$372,$B29,'Division Lvl'!K$2:K$372) -> 1100000 | K29: =SUMIF('Division Lvl'!$A$2:$A$372,$B29,'Division Lvl'!L$2:L$372) -> 1100000 | L29: =SUMIF('Division Lvl'!$A$2:$A$372,$B29,'Division Lvl'!M$2:M$372) -> 1100000 | M29: =SUMIF('Division Lvl'!$A$2:$A$372,$B29,'Division Lvl'!N$2:N$372) -> 1100000 | N29: =SUMIF('Division Lvl'!$A$2:$A$372,$B29,'Division Lvl'!P$2:P$372) -> 550000 | O29: =SUMIF('Division Lvl'!$A$2:$A$372,$B29,'Division Lvl'!Q$2:Q$372) -> 902000 | P29: =SUMIF('Division Lvl'!$A$2:$A$372,$B29,'Division Lvl'!R$2:R$372) -> 1155687.5 | Q29: =SUMIF('Division Lvl'!$A$2:$A$372,$B29,'Division Lvl'!S$2:S$372) -> 1303037.656 | R29: =SUMIF('Division Lvl'!$A$2:$A$372,$B29,'Division Lvl'!T$2:T$372) -> 1335613.598 | S29: =SUMIF('Division Lvl'!$A$2:$A$372,$B29,'Division Lvl'!U$2:U$372) -> 1244549.034 | T29: =SUMIF('Division Lvl'!$A$2:$A$372,$B29,'Division Lvl'!V$2:V$372) -> 1275662.76 | U29: =SUMIF('Division Lvl'!$A$2:$A$372,$B29,'Division Lvl'!W$2:W$372) -> 1307554.329 | V29: =SUMIF('Division Lvl'!$A$2:$A$372,$B29,'Division Lvl'!X$2:X$372) -> 1340243.187 | W29: =SUMIF('Division Lvl'!$A$2:$A$372,$B29,'Division Lvl'!Y$2:Y$372) -> 1373749.267 | X29: 10450000 | Y29: 11788097.33 | Z29: Std | AA29: =INDEX('Division Lvl'!$AF$2:$AF$372,MATCH(B29,'Division Lvl'!$A$2:$A$372,0)) -> Renewal
A30: =INDEX('Division Lvl'!$AD$2:$AD$372,MATCH(B30,'Division Lvl'!$A$2:$A$372,0)) -> DS | B30: DS416 | C30: =INDEX('Division Lvl'!$B$2:$B$372,MATCH(B30,'Division Lvl'!$A$2:$A$372,0)) -> Asbestos service fuse replacement | D30: =SUMIF('Division Lvl'!$A$2:$A$372,$B30,'Division Lvl'!E$2:E$372) -> 261000 | E30: =SUMIF('Division Lvl'!$A$2:$A$372,$B30,'Division Lvl'!F$2:F$372) -> 261000 | F30: =SUMIF('Division Lvl'!$A$2:$A$372,$B30,'Division Lvl'!G$2:G$372) -> 0 | G30: =SUMIF('Division Lvl'!$A$2:$A$372,$B30,'Division Lvl'!H$2:H$372) -> 0 | H30: =SUMIF('Division Lvl'!$A$2:$A$372,$B30,'Division Lvl'!I$2:I$372) -> 0 | I30: =SUMIF('Division Lvl'!$A$2:$A$372,$B30,'Division Lvl'!J$2:J$372) -> 0 | J30: =SUMIF('Division Lvl'!$A$2:$A$372,$B30,'Division Lvl'!K$2:K$372) -> 0 | K30: =SUMIF('Division Lvl'!$A$2:$A$372,$B30,'Division Lvl'!L$2:L$372) -> 0 | L30: =SUMIF('Division Lvl'!$A$2:$A$372,$B30,'Division Lvl'!M$2:M$372) -> 0 | M30: =SUMIF('Division Lvl'!$A$2:$A$372,$B30,'Division Lvl'!N$2:N$372) -> 0 | N30: =SUMIF('Division Lvl'!$A$2:$A$372,$B30,'Division Lvl'!P$2:P$372) -> 261000 | O30: =SUMIF('Division Lvl'!$A$2:$A$372,$B30,'Division Lvl'!Q$2:Q$372) -> 267525 | P30: =SUMIF('Division Lvl'!$A$2:$A$372,$B30,'Division Lvl'!R$2:R$372) -> 0 | Q30: =SUMIF('Division Lvl'!$A$2:$A$372,$B30,'Division Lvl'!S$2:S$372) -> 0 | R30: =SUMIF('Division Lvl'!$A$2:$A$372,$B30,'Division Lvl'!T$2:T$372) -> 0 | S30: =SUMIF('Division Lvl'!$A$2:$A$372,$B30,'Division Lvl'!U$2:U$372) -> 0 | T30: =SUMIF('Division Lvl'!$A$2:$A$372,$B30,'Division Lvl'!V$2:V$372) -> 0 | U30: =SUMIF('Division Lvl'!$A$2:$A$372,$B30,'Division Lvl'!W$2:W$372) -> 0 | V30: =SUMIF('Division Lvl'!$A$2:$A$372,$B30,'Division Lvl'!X$2:X$372) -> 0 | W30: =SUMIF('Division Lvl'!$A$2:$A$372,$B30,'Division Lvl'!Y$2:Y$372) -> 0 | X30: 522000 | Y30: 528525 | Z30: Std | AA30: =INDEX('Division Lvl'!$AF$2:$AF$372,MATCH(B30,'Division Lvl'!$A$2:$A$372,0)) -> Renewal
A31: =INDEX('Division Lvl'!$AD$2:$AD$372,MATCH(B31,'Division Lvl'!$A$2:$A$372,0)) -> DS | B31: DS417 | C31: =INDEX('Division Lvl'!$B$2:$B$372,MATCH(B31,'Division Lvl'!$A$2:$A$372,0)) -> Distribution access track reconstruction | D31: =SUMIF('Division Lvl'!$A$2:$A$372,$B31,'Division Lvl'!E$2:E$372) -> 500000 | E31: =SUMIF('Division Lvl'!$A$2:$A$372,$B31,'Division Lvl'!F$2:F$372) -> 440000 | F31: =SUMIF('Division Lvl'!$A$2:$A$372,$B31,'Division Lvl'!G$2:G$372) -> 1408000 | G31: =SUMIF('Division Lvl'!$A$2:$A$372,$B31,'Division Lvl'!H$2:H$372) -> 1892000 | H31: =SUMIF('Division Lvl'!$A$2:$A$372,$B31,'Division Lvl'!I$2:I$372) -> 1892000 | I31: =SUMIF('Division Lvl'!$A$2:$A$372,$B31,'Division Lvl'!J$2:J$372) -> 0 | J31: =SUMIF('Division Lvl'!$A$2:$A$372,$B31,'Division Lvl'!K$2:K$372) -> 0 | K31: =SUMIF('Division Lvl'!$A$2:$A$372,$B31,'Division Lvl'!L$2:L$372) -> 0 | L31: =SUMIF('Division Lvl'!$A$2:$A$372,$B31,'Division Lvl'!M$2:M$372) -> 0 | M31: =SUMIF('Division Lvl'!$A$2:$A$372,$B31,'Division Lvl'!N$2:N$372) -> 0 | N31: =SUMIF('Division Lvl'!$A$2:$A$372,$B31,'Division Lvl'!P$2:P$372) -> 500000 | O31: =SUMIF('Division Lvl'!$A$2:$A$372,$B31,'Division Lvl'!Q$2:Q$372) -> 451000 | P31: =SUMIF('Division Lvl'!$A$2:$A$372,$B31,'Division Lvl'!R$2:R$372) -> 1479280 | Q31: =SUMIF('Division Lvl'!$A$2:$A$372,$B31,'Division Lvl'!S$2:S$372) -> 2037477.062 | R31: =SUMIF('Division Lvl'!$A$2:$A$372,$B31,'Division Lvl'!T$2:T$372) -> 2088413.989 | S31: =SUMIF('Division Lvl'!$A$2:$A$372,$B31,'Division Lvl'!U$2:U$372) -> 0 | T31: =SUMIF('Division Lvl'!$A$2:$A$372,$B31,'Division Lvl'!V$2:V$372) -> 0 | U31: =SUMIF('Division Lvl'!$A$2:$A$372,$B31,'Division Lvl'!W$2:W$372) -> 0 | V31: =SUMIF('Division Lvl'!$A$2:$A$372,$B31,'Division Lvl'!X$2:X$372) -> 0 | W31: =SUMIF('Division Lvl'!$A$2:$A$372,$B31,'Division Lvl'!Y$2:Y$372) -> 0 | X31: 6132000 | Y31: 6556171.052 | Z31: Std | AA31: =INDEX('Division Lvl'!$AF$2:$AF$372,MATCH(B31,'Division Lvl'!$A$2:$A$372,0)) -> Renewal
A32: =INDEX('Division Lvl'!$AD$2:$AD$372,MATCH(B32,'Division Lvl'!$A$2:$A$372,0)) -> DS | B32: DS418 | C32: =INDEX('Division Lvl'!$B$2:$B$372,MATCH(B32,'Division Lvl'!$A$2:$A$372,0)) -> Pole top structure/hardware refurbishment | D32: =SUMIF('Division Lvl'!$A$2:$A$372,$B32,'Division Lvl'!E$2:E$372) -> 5000000 | E32: =SUMIF('Division Lvl'!$A$2:$A$372,$B32,'Division Lvl'!F$2:F$372) -> 10000000 | F32: =SUMIF('Division Lvl'!$A$2:$A$372,$B32,'Division Lvl'!G$2:G$372) -> 9000000 | G32: =SUMIF('Division Lvl'!$A$2:$A$372,$B32,'Division Lvl'!H$2:H$372) -> 9000000 | H32: =SUMIF('Division Lvl'!$A$2:$A$372,$B32,'Division Lvl'!I$2:I$372) -> 8000000 | I32: =SUMIF('Division Lvl'!$A$2:$A$372,$B32,'Division Lvl'!J$2:J$372) -> 8000000 | J32: =SUMIF('Division Lvl'!$A$2:$A$372,$B32,'Division Lvl'!K$2:K$372) -> 8000000 | K32: =SUMIF('Division Lvl'!$A$2:$A$372,$B32,'Division Lvl'!L$2:L$372) -> 8000000 | L32: =SUMIF('Division Lvl'!$A$2:$A$372,$B32,'Division Lvl'!M$2:M$372) -> 8000000 | M32: =SUMIF('Division Lvl'!$A$2:$A$372,$B32,'Division Lvl'!N$2:N$372) -> 8000000 | N32: =SUMIF('Division Lvl'!$A$2:$A$372,$B32,'Division Lvl'!P$2:P$372) -> 5000000 | O32: =SUMIF('Division Lvl'!$A$2:$A$372,$B32,'Division Lvl'!Q$2:Q$372) -> 10250000 | P32: =SUMIF('Division Lvl'!$A$2:$A$372,$B32,'Division Lvl'!R$2:R$372) -> 9455625 | Q32: =SUMIF('Division Lvl'!$A$2:$A$372,$B32,'Division Lvl'!S$2:S$372) -> 9692015.625 | R32: =SUMIF('Division Lvl'!$A$2:$A$372,$B32,'Division Lvl'!T$2:T$372) -> 8830503.125 | S32: =SUMIF('Division Lvl'!$A$2:$A$372,$B32,'Division Lvl'!U$2:U$372) -> 9051265.703 | T32: =SUMIF('Division Lvl'!$A$2:$A$372,$B32,'Division Lvl'!V$2:V$372) -> 9277547.346 | U32: =SUMIF('Division Lvl'!$A$2:$A$372,$B32,'Division Lvl'!W$2:W$372) -> 9509486.029 | V32: =SUMIF('Division Lvl'!$A$2:$A$372,$B32,'Division Lvl'!X$2:X$372) -> 9747223.18 | W32: =SUMIF('Division Lvl'!$A$2:$A$372,$B32,'Division Lvl'!Y$2:Y$372) -> 9990903.76 | X32: 81000000 | Y32: 90804569.77 | Z32: Std | AA32: =INDEX('Division Lvl'!$AF$2:$AF$372,MATCH(B32,'Division Lvl'!$A$2:$A$372,0)) -> Renewal
A33: =INDEX('Division Lvl'!$AD$2:$AD$372,MATCH(B33,'Division Lvl'!$A$2:$A$372,0)) -> DS | B33: DS420 | C33: =INDEX('Division Lvl'!$B$2:$B$372,MATCH(B33,'Division Lvl'!$A$2:$A$372,0)) -> Future distribution feeder refurbishment works | D33: =SUMIF('Division Lvl'!$A$2:$A$372,$B33,'Division Lvl'!E$2:E$372) -> 0 | E33: =SUMIF('Division Lvl'!$A$2:$A$372,$B33,'Division Lvl'!F$2:F$372) -> 0 | F33: =SUMIF('Division Lvl'!$A$2:$A$372,$B33,'Division Lvl'!G$2:G$372) -> 0 | G33: =SUMIF('Division Lvl'!$A$2:$A$372,$B33,'Division Lvl'!H$2:H$372) -> 0 | H33: =SUMIF('Division Lvl'!$A$2:$A$372,$B33,'Division Lvl'!I$2:I$372) -> 0 | I33: =SUMIF('Division Lvl'!$A$2:$A$372,$B33,'Division Lvl'!J$2:J$372) -> 0 | J33: =SUMIF('Division Lvl'!$A$2:$A$372,$B33,'Division Lvl'!K$2:K$372) -> 9200000 | K33: =SUMIF('Division Lvl'!$A$2:$A$372,$B33,'Division Lvl'!L$2:L$372) -> 13700000 | L33: =SUMIF('Division Lvl'!$A$2:$A$372,$B33,'Division Lvl'!M$2:M$372) -> 18400000 | M33: =SUMIF('Division Lvl'!$A$2:$A$372,$B33,'Division Lvl'!N$2:N$372) -> 20200000 | N33: =SUMIF('Division Lvl'!$A$2:$A$372,$B33,'Division Lvl'!P$2:P$372) -> 0 | O33: =SUMIF('Division Lvl'!$A$2:$A$372,$B33,'Division Lvl'!Q$2:Q$372) -> 0 | P33: =SUMIF('Division Lvl'!$A$2:$A$372,$B33,'Division Lvl'!R$2:R$372) -> 0 | Q33: =SUMIF('Division Lvl'!$A$2:$A$372,$B33,'Division Lvl'!S$2:S$372) -> 0 | R33: =SUMIF('Division Lvl'!$A$2:$A$372,$B33,'Division Lvl'!T$2:T$372) -> 0 | S33: =SUMIF('Division Lvl'!$A$2:$A$372,$B33,'Division Lvl'!U$2:U$372) -> 0 | T33: =SUMIF('Division Lvl'!$A$2:$A$372,$B33,'Division Lvl'!V$2:V$372) -> 10669179.45 | U33: =SUMIF('Division Lvl'!$A$2:$A$372,$B33,'Division Lvl'!W$2:W$372) -> 16284994.83 | V33: =SUMIF('Division Lvl'!$A$2:$A$372,$B33,'Division Lvl'!X$2:X$372) -> 22418613.31 | W33: =SUMIF('Division Lvl'!$A$2:$A$372,$B33,'Division Lvl'!Y$2:Y$372) -> 25227031.99 | X33: 61500000 | Y33: 74599819.58 | Z33: Std | AA33: =INDEX('Division Lvl'!$AF$2:$AF$372,MATCH(B33,'Division Lvl'!$A$2:$A$372,0)) -> Renewal
A34: =INDEX('Division Lvl'!$AD$2:$AD$372,MATCH(B34,'Division Lvl'!$A$2:$A$372,0)) -> DU | B34: DU | C34: =INDEX('Division Lvl'!$B$2:$B$372,MATCH(B34,'Division Lvl'!$A$2:$A$372,0)) -> Duct installation RMS road works | D34: =SUMIF('Division Lvl'!$A$2:$A$372,$B34,'Division Lvl'!E$2:E$372) -> 1955226.018 | E34: =SUMIF('Division Lvl'!$A$2:$A$372,$B34,'Division Lvl'!F$2:F$372) -> 2152731 | F34: =SUMIF('Division Lvl'!$A$2:$A$372,$B34,'Division Lvl'!G$2:G$372) -> 2206549 | G34: =SUMIF('Division Lvl'!$A$2:$A$372,$B34,'Division Lvl'!H$2:H$372) -> 2261713 | H34: =SUMIF('Division Lvl'!$A$2:$A$372,$B34,'Division Lvl'!I$2:I$372) -> 2318255 | I34: =SUMIF('Division Lvl'!$A$2:$A$372,$B34,'Division Lvl'!J$2:J$372) -> 2376212 | J34: =SUMIF('Division Lvl'!$A$2:$A$372,$B34,'Division Lvl'!K$2:K$372) -> 2435617 | K34: =SUMIF('Division Lvl'!$A$2:$A$372,$B34,'Division Lvl'!L$2:L$372) -> 2496508 | L34: =SUMIF('Division Lvl'!$A$2:$A$372,$B34,'Division Lvl'!M$2:M$372) -> 2558920 | M34: =SUMIF('Division Lvl'!$A$2:$A$372,$B34,'Division Lvl'!N$2:N$372) -> 2558920 | N34: =SUMIF('Division Lvl'!$A$2:$A$372,$B34,'Division Lvl'!P$2:P$372) -> 1955226.018 | O34: =SUMIF('Division Lvl'!$A$2:$A$372,$B34,'Division Lvl'!Q$2:Q$372) -> 2206549.275 | P34: =SUMIF('Division Lvl'!$A$2:$A$372,$B34,'Division Lvl'!R$2:R$372) -> 2318255.543 | Q34: =SUMIF('Division Lvl'!$A$2:$A$372,$B34,'Division Lvl'!S$2:S$372) -> 2435617.526 | R34: =SUMIF('Division Lvl'!$A$2:$A$372,$B34,'Division Lvl'!T$2:T$372) -> 2558919.753 | S34: =SUMIF('Division Lvl'!$A$2:$A$372,$B34,'Division Lvl'!U$2:U$372) -> 2688465.772 | T34: =SUMIF('Division Lvl'!$A$2:$A$372,$B34,'Division Lvl'!V$2:V$372) -> 2824569.004 | U34: =SUMIF('Division Lvl'!$A$2:$A$372,$B34,'Division Lvl'!W$2:W$372) -> 2967563.494 | V34: =SUMIF('Division Lvl'!$A$2:$A$372,$B34,'Division Lvl'!X$2:X$372) -> 3117795.542 | W34: =SUMIF('Division Lvl'!$A$2:$A$372,$B34,'Division Lvl'!Y$2:Y$372) -> 3195740.431 | X34: =SUM(D34:M34) -> 23320651.02 | Y34: =SUM(N34:W34) -> 26268702.36 | Z34: Std | AA34: =INDEX('Division Lvl'!$AF$2:$AF$372,MATCH(B34,'Division Lvl'!$A$2:$A$372,0)) -> Network Connection
A35: =INDEX('Division Lvl'!$AD$2:$AD$372,MATCH(B35,'Division Lvl'!$A$2:$A$372,0)) -> EF | B35: EF001 | C35: =INDEX('Division Lvl'!$B$2:$B$372,MATCH(B35,'Division Lvl'!$A$2:$A$372,0)) -> Distribution management system | D35: =SUMIF('Division Lvl'!$A$2:$A$372,$B35,'Division Lvl'!E$2:E$372) -> 12000000 | E35: =SUMIF('Division Lvl'!$A$2:$A$372,$B35,'Division Lvl'!F$2:F$372) -> 8585365.854 | F35: =SUMIF('Division Lvl'!$A$2:$A$372,$B35,'Division Lvl'!G$2:G$372) -> 3616894.706 | G35: =SUMIF('Division Lvl'!$A$2:$A$372,$B35,'Division Lvl'!H$2:H$372) -> 92859.94109 | H35: =SUMIF('Division Lvl'!$A$2:$A$372,$B35,'Division Lvl'!I$2:I$372) -> 0 | I35: =SUMIF('Division Lvl'!$A$2:$A$372,$B35,'Division Lvl'!J$2:J$372) -> 0 | J35: =SUMIF('Division Lvl'!$A$2:$A$372,$B35,'Division Lvl'!K$2:K$372) -> 0 | K35: =SUMIF('Division Lvl'!$A$2:$A$372,$B35,'Division Lvl'!L$2:L$372) -> 0 | L35: =SUMIF('Division Lvl'!$A$2:$A$372,$B35,'Division Lvl'!M$2:M$372) -> 0 | M35: =SUMIF('Division Lvl'!$A$2:$A$372,$B35,'Division Lvl'!N$2:N$372) -> 0 | N35: =SUMIF('Division Lvl'!$A$2:$A$372,$B35,'Division Lvl'!P$2:P$372) -> 12000000 | O35: =SUMIF('Division Lvl'!$A$2:$A$372,$B35,'Division Lvl'!Q$2:Q$372) -> 8800000 | P35: =SUMIF('Division Lvl'!$A$2:$A$372,$B35,'Division Lvl'!R$2:R$372) -> 3800000 | Q35: =SUMIF('Division Lvl'!$A$2:$A$372,$B35,'Division Lvl'!S$2:S$372) -> 100000 | R35: =SUMIF('Division Lvl'!$A$2:$A$372,$B35,'Division Lvl'!T$2:T$372) -> 0 | S35: =SUMIF('Division Lvl'!$A$2:$A$372,$B35,'Division Lvl'!U$2:U$372) -> 0 | T35: =SUMIF('Division Lvl'!$A$2:$A$372,$B35,'Division Lvl'!V$2:V$372) -> 0 | U35: =SUMIF('Division Lvl'!$A$2:$A$372,$B35,'Division Lvl'!W$2:W$372) -> 0 | V35: =SUMIF('Division Lvl'!$A$2:$A$372,$B35,'Division Lvl'!X$2:X$372) -> 0 | W35: =SUMIF('Division Lvl'!$A$2:$A$372,$B35,'Division Lvl'!Y$2:Y$372) -> 0 | X35: 24295120.5 | Y35: 24700000 | Z35: Std | AA35: =INDEX('Division Lvl'!$AF$2:$AF$372,MATCH(B35,'Division Lvl'!$A$2:$A$372,0)) -> Other System
A36: =INDEX('Division Lvl'!$AD$2:$AD$372,MATCH(B36,'Division Lvl'!$A$2:$A$372,0)) -> EF | B36: EF002 | C36: =INDEX('Division Lvl'!$B$2:$B$372,MATCH(B36,'Division Lvl'!$A$2:$A$372,0)) -> Technology pilots | D36: =SUMIF('Division Lvl'!$A$2:$A$372,$B36,'Division Lvl'!E$2:E$372) -> 552599 | E36: =SUMIF('Division Lvl'!$A$2:$A$372,$B36,'Division Lvl'!F$2:F$372) -> 500000 | F36: =SUMIF('Division Lvl'!$A$2:$A$372,$B36,'Division Lvl'!G$2:G$372) -> 500000 | G36: =SUMIF('Division Lvl'!$A$2:$A$372,$B36,'Division Lvl'!H$2:H$372) -> 2000000 | H36: =SUMIF('Division Lvl'!$A$2:$A$372,$B36,'Division Lvl'!I$2:I$372) -> 2000000 | I36: =SUMIF('Division Lvl'!$A$2:$A$372,$B36,'Division Lvl'!J$2:J$372) -> 2000000 | J36: =SUMIF('Division Lvl'!$A$2:$A$372,$B36,'Division Lvl'!K$2:K$372) -> 2000000 | K36: =SUMIF('Division Lvl'!$A$2:$A$372,$B36,'Division Lvl'!L$2:L$372) -> 2000000 | L36: =SUMIF('Division Lvl'!$A$2:$A$372,$B36,'Division Lvl'!M$2:M$372) -> 2000000 | M36: =SUMIF('Division Lvl'!$A$2:$A$372,$B36,'Division Lvl'!N$2:N$372) -> 2000000 | N36: =SUMIF('Division Lvl'!$A$2:$A$372,$B36,'Division Lvl'!P$2:P$372) -> 552599 | O36: =SUMIF('Division Lvl'!$A$2:$A$372,$B36,'Division Lvl'!Q$2:Q$372) -> 512500 | P36: =SUMIF('Division Lvl'!$A$2:$A$372,$B36,'Division Lvl'!R$2:R$372) -> 525312.5 | Q36: =SUMIF('Division Lvl'!$A$2:$A$372,$B36,'Division Lvl'!S$2:S$372) -> 2153781.25 | R36: =SUMIF('Division Lvl'!$A$2:$A$372,$B36,'Division Lvl'!T$2:T$372) -> 2207625.781 | S36: =SUMIF('Division Lvl'!$A$2:$A$372,$B36,'Division Lvl'!U$2:U$372) -> 2262816.426 | T36: =SUMIF('Division Lvl'!$A$2:$A$372,$B36,'Division Lvl'!V$2:V$372) -> 2319386.836 | U36: =SUMIF('Division Lvl'!$A$2:$A$372,$B36,'Division Lvl'!W$2:W$372) -> 2377371.507 | V36: =SUMIF('Division Lvl'!$A$2:$A$372,$B36,'Division Lvl'!X$2:X$372) -> 2436805.795 | W36: =SUMIF('Division Lvl'!$A$2:$A$372,$B36,'Division Lvl'!Y$2:Y$372) -> 2497725.94 | X36: 15552599 | Y36: 17845925.04 | Z36: Std | AA36: =INDEX('Division Lvl'!$AF$2:$AF$372,MATCH(B36,'Division Lvl'!$A$2:$A$372,0)) -> Other System
A37: =INDEX('Division Lvl'!$AD$2:$AD$372,MATCH(B37,'Division Lvl'!$A$2:$A$372,0)) -> EF | B37: EF003 | C37: =INDEX('Division Lvl'!$B$2:$B$372,MATCH(B37,'Division Lvl'!$A$2:$A$372,0)) -> Battery energy storage system pilot | D37: =SUMIF('Division Lvl'!$A$2:$A$372,$B37,'Division Lvl'!E$2:E$372) -> 1692215 | E37: =SUMIF('Division Lvl'!$A$2:$A$372,$B37,'Division Lvl'!F$2:F$372) -> 0 | F37: =SUMIF('Division Lvl'!$A$2:$A$372,$B37,'Division Lvl'!G$2:G$372) -> 0 | G37: =SUMIF('Division Lvl'!$A$2:$A$372,$B37,'Division Lvl'!H$2:H$372) -> 0 | H37: =SUMIF('Division Lvl'!$A$2:$A$372,$B37,'Division Lvl'!I$2:I$372) -> 0 | I37: =SUMIF('Division Lvl'!$A$2:$A$372,$B37,'Division Lvl'!J$2:J$372) -> 0 | J37: =SUMIF('Division Lvl'!$A$2:$A$372,$B37,'Division Lvl'!K$2:K$372) -> 0 | K37: =SUMIF('Division Lvl'!$A$2:$A$372,$B37,'Division Lvl'!L$2:L$372) -> 0 | L37: =SUMIF('Division Lvl'!$A$2:$A$372,$B37,'Division Lvl'!M$2:M$372) -> 0 | M37: =SUMIF('Division Lvl'!$A$2:$A$372,$B37,'Division Lvl'!N$2:N$372) -> 0 | N37: =SUMIF('Division Lvl'!$A$2:$A$372,$B37,'Division Lvl'!P$2:P$372) -> 1692215 | O37: =SUMIF('Division Lvl'!$A$2:$A$372,$B37,'Division Lvl'!Q$2:Q$372) -> 0 | P37: =SUMIF('Division Lvl'!$A$2:$A$372,$B37,'Division Lvl'!R$2:R$372) -> 0 | Q37: =SUMIF('Division Lvl'!$A$2:$A$372,$B37,'Division Lvl'!S$2:S$372) -> 0 | R37: =SUMIF('Division Lvl'!$A$2:$A$372,$B37,'Division Lvl'!T$2:T$372) -> 0 | S37: =SUMIF('Division Lvl'!$A$2:$A$372,$B37,'Division Lvl'!U$2:U$372) -> 0 | T37: =SUMIF('Division Lvl'!$A$2:$A$372,$B37,'Division Lvl'!V$2:V$372) -> 0 | U37: =SUMIF('Division Lvl'!$A$2:$A$372,$B37,'Division Lvl'!W$2:W$372) -> 0 | V37: =SUMIF('Division Lvl'!$A$2:$A$372,$B37,'Division Lvl'!X$2:X$372) -> 0 | W37: =SUMIF('Division Lvl'!$A$2:$A$372,$B37,'Division Lvl'!Y$2:Y$372) -> 0 | X37: 1692215 | Y37: 1692215 | Z37: Std | AA37: =INDEX('Division Lvl'!$AF$2:$AF$372,MATCH(B37,'Division Lvl'!$A$2:$A$372,0)) -> Other System
A38: =INDEX('Division Lvl'!$AD$2:$AD$372,MATCH(B38,'Division Lvl'!$A$2:$A$372,0)) -> EH | B38: EH | C38: =INDEX('Division Lvl'!$B$2:$B$372,MATCH(B38,'Division Lvl'!$A$2:$A$372,0)) -> Dist environmental enhancement program | D38: =SUMIF('Division Lvl'!$A$2:$A$372,$B38,'Division Lvl'!E$2:E$372) -> 0 | E38: =SUMIF('Division Lvl'!$A$2:$A$372,$B38,'Division Lvl'!F$2:F$372) -> 0 | F38: =SUMIF('Division Lvl'!$A$2:$A$372,$B38,'Division Lvl'!G$2:G$372) -> 0 | G38: =SUMIF('Division Lvl'!$A$2:$A$372,$B38,'Division Lvl'!H$2:H$372) -> 0 | H38: =SUMIF('Division Lvl'!$A$2:$A$372,$B38,'Division Lvl'!I$2:I$372) -> 0 | I38: =SUMIF('Division Lvl'!$A$2:$A$372,$B38,'Division Lvl'!J$2:J$372) -> 0 | J38: =SUMIF('Division Lvl'!$A$2:$A$372,$B38,'Division Lvl'!K$2:K$372) -> 0 | K38: =SUMIF('Division Lvl'!$A$2:$A$372,$B38,'Division Lvl'!L$2:L$372) -> 0 | L38: =SUMIF('Division Lvl'!$A$2:$A$372,$B38,'Division Lvl'!M$2:M$372) -> 0 | M38: =SUMIF('Division Lvl'!$A$2:$A$372,$B38,'Division Lvl'!N$2:N$372) -> 0 | N38: =SUMIF('Division Lvl'!$A$2:$A$372,$B38,'Division Lvl'!P$2:P$372) -> 0 | O38: =SUMIF('Division Lvl'!$A$2:$A$372,$B38,'Division Lvl'!Q$2:Q$372) -> 0 | P38: =SUMIF('Division Lvl'!$A$2:$A$372,$B38,'Division Lvl'!R$2:R$372) -> 0 | Q38: =SUMIF('Division Lvl'!$A$2:$A$372,$B38,'Division Lvl'!S$2:S$372) -> 0 | R38: =SUMIF('Division Lvl'!$A$2:$A$372,$B38,'Division Lvl'!T$2:T$372) -> 0 | S38: =SUMIF('Division Lvl'!$A$2:$A$372,$B38,'Division Lvl'!U$2:U$372) -> 0 | T38: =SUMIF('Division Lvl'!$A$2:$A$372,$B38,'Division Lvl'!V$2:V$372) -> 0 | U38: =SUMIF('Division Lvl'!$A$2:$A$372,$B38,'Division Lvl'!W$2:W$372) -> 0 | V38: =SUMIF('Division Lvl'!$A$2:$A$372,$B38,'Division Lvl'!X$2:X$372) -> 0 | W38: =SUMIF('Division Lvl'!$A$2:$A$372,$B38,'Division Lvl'!Y$2:Y$372) -> 0 | X38: 0 | Y38: 0 | Z38: Std | AA38: =INDEX('Division Lvl'!$AF$2:$AF$372,MATCH(B38,'Division Lvl'!$A$2:$A$372,0)) -> Other System
A39: =INDEX('Division Lvl'!$AD$2:$AD$372,MATCH(B39,'Division Lvl'!$A$2:$A$372,0)) -> HV | B39: HVW | C39: =INDEX('Division Lvl'!$B$2:$B$372,MATCH(B39,'Division Lvl'!$A$2:$A$372,0)) -> HV development works | D39: =SUMIF('Division Lvl'!$A$2:$A$372,$B39,'Division Lvl'!E$2:E$372) -> 7057544 | E39: =SUMIF('Division Lvl'!$A$2:$A$372,$B39,'Division Lvl'!F$2:F$372) -> 6800844 | F39: =SUMIF('Division Lvl'!$A$2:$A$372,$B39,'Division Lvl'!G$2:G$372) -> 7103063 | G39: =SUMIF('Division Lvl'!$A$2:$A$372,$B39,'Division Lvl'!H$2:H$372) -> 6647368 | H39: =SUMIF('Division Lvl'!$A$2:$A$372,$B39,'Division Lvl'!I$2:I$372) -> 6275047 | I39: =SUMIF('Division Lvl'!$A$2:$A$372,$B39,'Division Lvl'!J$2:J$372) -> 5947097 | J39: =SUMIF('Division Lvl'!$A$2:$A$372,$B39,'Division Lvl'!K$2:K$372) -> 6000000 | K39: =SUMIF('Division Lvl'!$A$2:$A$372,$B39,'Division Lvl'!L$2:L$372) -> 6000000 | L39: =SUMIF('Division Lvl'!$A$2:$A$372,$B39,'Division Lvl'!M$2:M$372) -> 6000000 | M39: =SUMIF('Division Lvl'!$A$2:$A$372,$B39,'Division Lvl'!N$2:N$372) -> 6000000 | N39: =SUMIF('Division Lvl'!$A$2:$A$372,$B39,'Division Lvl'!P$2:P$372) -> 7057544 | O39: =SUMIF('Division Lvl'!$A$2:$A$372,$B39,'Division Lvl'!Q$2:Q$372) -> 6970865.1 | P39: =SUMIF('Division Lvl'!$A$2:$A$372,$B39,'Division Lvl'!R$2:R$372) -> 7462655.564 | Q39: =SUMIF('Division Lvl'!$A$2:$A$372,$B39,'Division Lvl'!S$2:S$372) -> 7158488.28 | R39: =SUMIF('Division Lvl'!$A$2:$A$372,$B39,'Division Lvl'!T$2:T$372) -> 6926477.768 | S39: =SUMIF('Division Lvl'!$A$2:$A$372,$B39,'Division Lvl'!U$2:U$372) -> 6728594.389 | T39: =SUMIF('Division Lvl'!$A$2:$A$372,$B39,'Division Lvl'!V$2:V$372) -> 6958160.509 | U39: =SUMIF('Division Lvl'!$A$2:$A$372,$B39,'Division Lvl'!W$2:W$372) -> 7132114.522 | V39: =SUMIF('Division Lvl'!$A$2:$A$372,$B39,'Division Lvl'!X$2:X$372) -> 7310417.385 | W39: =SUMIF('Division Lvl'!$A$2:$A$372,$B39,'Division Lvl'!Y$2:Y$372) -> 7493177.82 | X39: 63830963 | Y39: 71198495.34 | Z39: Std | AA39: =INDEX('Division Lvl'!$AF$2:$AF$372,MATCH(B39,'Division Lvl'!$A$2:$A$372,0)) -> Capacity
A40: =INDEX('Division Lvl'!$AD$2:$AD$372,MATCH(B40,'Division Lvl'!$A$2:$A$372,0)) -> IC | B40: IC | C40: =INDEX('Division Lvl'!$B$2:$B$372,MATCH(B40,'Division Lvl'!$A$2:$A$372,0)) -> Industrial & commercial | D40: =SUMIF('Division Lvl'!$A$2:$A$372,$B40,'Division Lvl'!E$2:E$372) -> 10000000 | E40: =SUMIF('Division Lvl'!$A$2:$A$372,$B40,'Division Lvl'!F$2:F$372) -> 13836506 | F40: =SUMIF('Division Lvl'!$A$2:$A$372,$B40,'Division Lvl'!G$2:G$372) -> 13286183 | G40: =SUMIF('Division Lvl'!$A$2:$A$372,$B40,'Division Lvl'!H$2:H$372) -> 13262397 | H40: =SUMIF('Division Lvl'!$A$2:$A$372,$B40,'Division Lvl'!I$2:I$372) -> 13309313 | I40: =SUMIF('Division Lvl'!$A$2:$A$372,$B40,'Division Lvl'!J$2:J$372) -> 13547284 | J40: =SUMIF('Division Lvl'!$A$2:$A$372,$B40,'Division Lvl'!K$2:K$372) -> 13569703 | K40: =SUMIF('Division Lvl'!$A$2:$A$372,$B40,'Division Lvl'!L$2:L$372) -> 13590130 | L40: =SUMIF('Division Lvl'!$A$2:$A$372,$B40,'Division Lvl'!M$2:M$372) -> 13610660 | M40: =SUMIF('Division Lvl'!$A$2:$A$372,$B40,'Division Lvl'!N$2:N$372) -> 13651924 | N40: =SUMIF('Division Lvl'!$A$2:$A$372,$B40,'Division Lvl'!P$2:P$372) -> 10000000 | O40: =SUMIF('Division Lvl'!$A$2:$A$372,$B40,'Division Lvl'!Q$2:Q$372) -> 14182418.65 | P40: =SUMIF('Division Lvl'!$A$2:$A$372,$B40,'Division Lvl'!R$2:R$372) -> 13958796.01 | Q40: =SUMIF('Division Lvl'!$A$2:$A$372,$B40,'Division Lvl'!S$2:S$372) -> 14282150.99 | R40: =SUMIF('Division Lvl'!$A$2:$A$372,$B40,'Division Lvl'!T$2:T$372) -> 14690991.25 | S40: =SUMIF('Division Lvl'!$A$2:$A$372,$B40,'Division Lvl'!U$2:U$372) -> 15327508.38 | T40: =SUMIF('Division Lvl'!$A$2:$A$372,$B40,'Division Lvl'!V$2:V$372) -> 15736695.26 | U40: =SUMIF('Division Lvl'!$A$2:$A$372,$B40,'Division Lvl'!W$2:W$372) -> 16154393.92 | V40: =SUMIF('Division Lvl'!$A$2:$A$372,$B40,'Division Lvl'!X$2:X$372) -> 16583267.58 | W40: =SUMIF('Division Lvl'!$A$2:$A$372,$B40,'Division Lvl'!Y$2:Y$372) -> 17049382.35 | X40: 131664100 | Y40: 147965604.4 | Z40: Std | AA40: =INDEX('Division Lvl'!$AF$2:$AF$372,MATCH(B40,'Division Lvl'!$A$2:$A$372,0)) -> Network Connection
A41: =INDEX('Division Lvl'!$AD$2:$AD$372,MATCH(B41,'Division Lvl'!$A$2:$A$372,0)) -> LV | B41: LV001 | C41: =INDEX('Division Lvl'!$B$2:$B$372,MATCH(B41,'Division Lvl'!$A$2:$A$372,0)) -> Overloaded distribution sub uprates | D41: =SUMIF('Division Lvl'!$A$2:$A$372,$B41,'Division Lvl'!E$2:E$372) -> 120000 | E41: =SUMIF('Division Lvl'!$A$2:$A$372,$B41,'Division Lvl'!F$2:F$372) -> 120000 | F41: =SUMIF('Division Lvl'!$A$2:$A$372,$B41,'Division Lvl'!G$2:G$372) -> 120000 | G41: =SUMIF('Division Lvl'!$A$2:$A$372,$B41,'Division Lvl'!H$2:H$372) -> 120000 | H41: =SUMIF('Division Lvl'!$A$2:$A$372,$B41,'Division Lvl'!I$2:I$372) -> 120000 | I41: =SUMIF('Division Lvl'!$A$2:$A$372,$B41,'Division Lvl'!J$2:J$372) -> 120000 | J41: =SUMIF('Division Lvl'!$A$2:$A$372,$B41,'Division Lvl'!K$2:K$372) -> 120000 | K41: =SUMIF('Division Lvl'!$A$2:$A$372,$B41,'Division Lvl'!L$2:L$372) -> 120000 | L41: =SUMIF('Division Lvl'!$A$2:$A$372,$B41,'Division Lvl'!M$2:M$372) -> 120000 | M41: =SUMIF('Division Lvl'!$A$2:$A$372,$B41,'Division Lvl'!N$2:N$372) -> 120000 | N41: =SUMIF('Division Lvl'!$A$2:$A$372,$B41,'Division Lvl'!P$2:P$372) -> 120000 | O41: =SUMIF('Division Lvl'!$A$2:$A$372,$B41,'Division Lvl'!Q$2:Q$372) -> 123000 | P41: =SUMIF('Division Lvl'!$A$2:$A$372,$B41,'Division Lvl'!R$2:R$372) -> 126075 | Q41: =SUMIF('Division Lvl'!$A$2:$A$372,$B41,'Division Lvl'!S$2:S$372) -> 129226.875 | R41: =SUMIF('Division Lvl'!$A$2:$A$372,$B41,'Division Lvl'!T$2:T$372) -> 132457.5469 | S41: =SUMIF('Division Lvl'!$A$2:$A$372,$B41,'Division Lvl'!U$2:U$372) -> 135768.9855 | T41: =SUMIF('Division Lvl'!$A$2:$A$372,$B41,'Division Lvl'!V$2:V$372) -> 139163.2102 | U41: =SUMIF('Division Lvl'!$A$2:$A$372,$B41,'Division Lvl'!W$2:W$372) -> 142642.2904 | V41: =SUMIF('Division Lvl'!$A$2:$A$372,$B41,'Division Lvl'!X$2:X$372) -> 146208.3477 | W41: =SUMIF('Division Lvl'!$A$2:$A$372,$B41,'Division Lvl'!Y$2:Y$372) -> 149863.5564 | X41: 1200000 | Y41: 1344405.812 | Z41: Std | AA41: =INDEX('Division Lvl'!$AF$2:$AF$372,MATCH(B41,'Division Lvl'!$A$2:$A$372,0)) -> Capacity
A42: =INDEX('Division Lvl'!$AD$2:$AD$372,MATCH(B42,'Division Lvl'!$A$2:$A$372,0)) -> LV | B42: LV002 | C42: =INDEX('Division Lvl'!$B$2:$B$372,MATCH(B42,'Division Lvl'!$A$2:$A$372,0)) -> Quality of supply reactive projects | D42: =SUMIF('Division Lvl'!$A$2:$A$372,$B42,'Division Lvl'!E$2:E$372) -> 500000 | E42: =SUMIF('Division Lvl'!$A$2:$A$372,$B42,'Division Lvl'!F$2:F$372) -> 500000 | F42: =SUMIF('Division Lvl'!$A$2:$A$372,$B42,'Division Lvl'!G$2:G$372) -> 500000 | G42: =SUMIF('Division Lvl'!$A$2:$A$372,$B42,'Division Lvl'!H$2:H$372) -> 500000 | H42: =SUMIF('Division Lvl'!$A$2:$A$372,$B42,'Division Lvl'!I$2:I$372) -> 500000 | I42: =SUMIF('Division Lvl'!$A$2:$A$372,$B42,'Division Lvl'!J$2:J$372) -> 500000 | J42: =SUMIF('Division Lvl'!$A$2:$A$372,$B42,'Division Lvl'!K$2:K$372) -> 500000 | K42: =SUMIF('Division Lvl'!$A$2:$A$372,$B42,'Division Lvl'!L$2:L$372) -> 500000 | L42: =SUMIF('Division Lvl'!$A$2:$A$372,$B42,'Division Lvl'!M$2:M$372) -> 500000 | M42: =SUMIF('Division Lvl'!$A$2:$A$372,$B42,'Division Lvl'!N$2:N$372) -> 500000 | N42: =SUMIF('Division Lvl'!$A$2:$A$372,$B42,'Division Lvl'!P$2:P$372) -> 500000 | O42: =SUMIF('Division Lvl'!$A$2:$A$372,$B42,'Division Lvl'!Q$2:Q$372) -> 512500 | P42: =SUMIF('Division Lvl'!$A$2:$A$372,$B42,'Division Lvl'!R$2:R$372) -> 525312.5 | Q42: =SUMIF('Division Lvl'!$A$2:$A$372,$B42,'Division Lvl'!S$2:S$372) -> 538445.3125 | R42: =SUMIF('Division Lvl'!$A$2:$A$372,$B42,'Division Lvl'!T$2:T$372) -> 551906.4453 | S42: =SUMIF('Division Lvl'!$A$2:$A$372,$B42,'Division Lvl'!U$2:U$372) -> 565704.1064 | T42: =SUMIF('Division Lvl'!$A$2:$A$372,$B42,'Division Lvl'!V$2:V$372) -> 579846.7091 | U42: =SUMIF('Division Lvl'!$A$2:$A$372,$B42,'Division Lvl'!W$2:W$372) -> 594342.8768 | V42: =SUMIF('Division Lvl'!$A$2:$A$372,$B42,'Division Lvl'!X$2:X$372) -> 609201.4488 | W42: =SUMIF('Division Lvl'!$A$2:$A$372,$B42,'Division Lvl'!Y$2:Y$372) -> 624431.485 | X42: 5000000 | Y42: 5601690.884 | Z42: Std | AA42: =INDEX('Division Lvl'!$AF$2:$AF$372,MATCH(B42,'Division Lvl'!$A$2:$A$372,0)) -> Capacity
A43: =INDEX('Division Lvl'!$AD$2:$AD$372,MATCH(B43,'Division Lvl'!$A$2:$A$372,0)) -> LV | B43: LV003 | C43: =INDEX('Division Lvl'!$B$2:$B$372,MATCH(B43,'Division Lvl'!$A$2:$A$372,0)) -> LV planning reactive projects | D43: =SUMIF('Division Lvl'!$A$2:$A$372,$B43,'Division Lvl'!E$2:E$372) -> 1000000 | E43: =SUMIF('Division Lvl'!$A$2:$A$372,$B43,'Division Lvl'!F$2:F$372) -> 1000000 | F43: =SUMIF('Division Lvl'!$A$2:$A$372,$B43,'Division Lvl'!G$2:G$372) -> 1000000 | G43: =SUMIF('Division Lvl'!$A$2:$A$372,$B43,'Division Lvl'!H$2:H$372) -> 1000000 | H43: =SUMIF('Division Lvl'!$A$2:$A$372,$B43,'Division Lvl'!I$2:I$372) -> 1000000 | I43: =SUMIF('Division Lvl'!$A$2:$A$372,$B43,'Division Lvl'!J$2:J$372) -> 1000000 | J43: =SUMIF('Division Lvl'!$A$2:$A$372,$B43,'Division Lvl'!K$2:K$372) -> 1000000 | K43: =SUMIF('Division Lvl'!$A$2:$A$372,$B43,'Division Lvl'!L$2:L$372) -> 1000000 | L43: =SUMIF('Division Lvl'!$A$2:$A$372,$B43,'Division Lvl'!M$2:M$372) -> 1000000 | M43: =SUMIF('Division Lvl'!$A$2:$A$372,$B43,'Division Lvl'!N$2:N$372) -> 1000000 | N43: =SUMIF('Division Lvl'!$A$2:$A$372,$B43,'Division Lvl'!P$2:P$372) -> 1000000 | O43: =SUMIF('Division Lvl'!$A$2:$A$372,$B43,'Division Lvl'!Q$2:Q$372) -> 1025000 | P43: =SUMIF('Division Lvl'!$A$2:$A$372,$B43,'Division Lvl'!R$2:R$372) -> 1050625 | Q43: =SUMIF('Division Lvl'!$A$2:$A$372,$B43,'Division Lvl'!S$2:S$372) -> 1076890.625 | R43: =SUMIF('Division Lvl'!$A$2:$A$372,$B43,'Division Lvl'!T$2:T$372) -> 1103812.891 | S43: =SUMIF('Division Lvl'!$A$2:$A$372,$B43,'Division Lvl'!U$2:U$372) -> 1131408.213 | T43: =SUMIF('Division Lvl'!$A$2:$A$372,$B43,'Division Lvl'!V$2:V$372) -> 1159693.418 | U43: =SUMIF('Division Lvl'!$A$2:$A$372,$B43,'Division Lvl'!W$2:W$372) -> 1188685.754 | V43: =SUMIF('Division Lvl'!$A$2:$A$372,$B43,'Division Lvl'!X$2:X$372) -> 1218402.898 | W43: =SUMIF('Division Lvl'!$A$2:$A$372,$B43,'Division Lvl'!Y$2:Y$372) -> 1248862.97 | X43: 10000000 | Y43: 11203381.77 | Z43: Std | AA43: =INDEX('Division Lvl'!$AF$2:$AF$372,MATCH(B43,'Division Lvl'!$A$2:$A$372,0)) -> Capacity
A44: =INDEX('Division Lvl'!$AD$2:$AD$372,MATCH(B44,'Division Lvl'!$A$2:$A$372,0)) -> LV | B44: LV005 | C44: =INDEX('Division Lvl'!$B$2:$B$372,MATCH(B44,'Division Lvl'!$A$2:$A$372,0)) -> Dsub monitoring & LV feeder monitoring for solar PV | D44: =SUMIF('Division Lvl'!$A$2:$A$372,$B44,'Division Lvl'!E$2:E$372) -> 250000 | E44: =SUMIF('Division Lvl'!$A$2:$A$372,$B44,'Division Lvl'!F$2:F$372) -> 250000 | F44: =SUMIF('Division Lvl'!$A$2:$A$372,$B44,'Division Lvl'!G$2:G$372) -> 250000 | G44: =SUMIF('Division Lvl'!$A$2:$A$372,$B44,'Division Lvl'!H$2:H$372) -> 250000 | H44: =SUMIF('Division Lvl'!$A$2:$A$372,$B44,'Division Lvl'!I$2:I$372) -> 250000 | I44: =SUMIF('Division Lvl'!$A$2:$A$372,$B44,'Division Lvl'!J$2:J$372) -> 250000 | J44: =SUMIF('Division Lvl'!$A$2:$A$372,$B44,'Division Lvl'!K$2:K$372) -> 250000 | K44: =SUMIF('Division Lvl'!$A$2:$A$372,$B44,'Division Lvl'!L$2:L$372) -> 250000 | L44: =SUMIF('Division Lvl'!$A$2:$A$372,$B44,'Division Lvl'!M$2:M$372) -> 250000 | M44: =SUMIF('Division Lvl'!$A$2:$A$372,$B44,'Division Lvl'!N$2:N$372) -> 250000 | N44: =SUMIF('Division Lvl'!$A$2:$A$372,$B44,'Division Lvl'!P$2:P$372) -> 250000 | O44: =SUMIF('Division Lvl'!$A$2:$A$372,$B44,'Division Lvl'!Q$2:Q$372) -> 256250 | P44: =SUMIF('Division Lvl'!$A$2:$A$372,$B44,'Division Lvl'!R$2:R$372) -> 262656.25 | Q44: =SUMIF('Division Lvl'!$A$2:$A$372,$B44,'Division Lvl'!S$2:S$372) -> 269222.6562 | R44: =SUMIF('Division Lvl'!$A$2:$A$372,$B44,'Division Lvl'!T$2:T$372) -> 275953.2227 | S44: =SUMIF('Division Lvl'!$A$2:$A$372,$B44,'Division Lvl'!U$2:U$372) -> 282852.0532 | T44: =SUMIF('Division Lvl'!$A$2:$A$372,$B44,'Division Lvl'!V$2:V$372) -> 289923.3546 | U44: =SUMIF('Division Lvl'!$A$2:$A$372,$B44,'Division Lvl'!W$2:W$372) -> 297171.4384 | V44: =SUMIF('Division Lvl'!$A$2:$A$372,$B44,'Division Lvl'!X$2:X$372) -> 304600.7244 | W44: =SUMIF('Division Lvl'!$A$2:$A$372,$B44,'Division Lvl'!Y$2:Y$372) -> 312215.7425 | X44: 2500000 | Y44: 2800845.442 | Z44: Std | AA44: =INDEX('Division Lvl'!$AF$2:$AF$372,MATCH(B44,'Division Lvl'!$A$2:$A$372,0)) -> Capacity
A45: =INDEX('Division Lvl'!$AD$2:$AD$372,MATCH(B45,'Division Lvl'!$A$2:$A$372,0)) -> MC | B45: MC104 | C45: =INDEX('Division Lvl'!$B$2:$B$372,MATCH(B45,'Division Lvl'!$A$2:$A$372,0)) -> Meters - renewal | D45: =SUMIF('Division Lvl'!$A$2:$A$372,$B45,'Division Lvl'!E$2:E$372) -> 25000 | E45: =SUMIF('Division Lvl'!$A$2:$A$372,$B45,'Division Lvl'!F$2:F$372) -> 25000 | F45: =SUMIF('Division Lvl'!$A$2:$A$372,$B45,'Division Lvl'!G$2:G$372) -> 0 | G45: =SUMIF('Division Lvl'!$A$2:$A$372,$B45,'Division Lvl'!H$2:H$372) -> 0 | H45: =SUMIF('Division Lvl'!$A$2:$A$372,$B45,'Division Lvl'!I$2:I$372) -> 0 | I45: =SUMIF('Division Lvl'!$A$2:$A$372,$B45,'Division Lvl'!J$2:J$372) -> 0 | J45: =SUMIF('Division Lvl'!$A$2:$A$372,$B45,'Division Lvl'!K$2:K$372) -> 0 | K45: =SUMIF('Division Lvl'!$A$2:$A$372,$B45,'Division Lvl'!L$2:L$372) -> 0 | L45: =SUMIF('Division Lvl'!$A$2:$A$372,$B45,'Division Lvl'!M$2:M$372) -> 0 | M45: =SUMIF('Division Lvl'!$A$2:$A$372,$B45,'Division Lvl'!N$2:N$372) -> 0 | N45: =SUMIF('Division Lvl'!$A$2:$A$372,$B45,'Division Lvl'!P$2:P$372) -> 25000 | O45: =SUMIF('Division Lvl'!$A$2:$A$372,$B45,'Division Lvl'!Q$2:Q$372) -> 25625 | P45: =SUMIF('Division Lvl'!$A$2:$A$372,$B45,'Division Lvl'!R$2:R$372) -> 0 | Q45: =SUMIF('Division Lvl'!$A$2:$A$372,$B45,'Division Lvl'!S$2:S$372) -> 0 | R45: =SUMIF('Division Lvl'!$A$2:$A$372,$B45,'Division Lvl'!T$2:T$372) -> 0 | S45: =SUMIF('Division Lvl'!$A$2:$A$372,$B45,'Division Lvl'!U$2:U$372) -> 0 | T45: =SUMIF('Division Lvl'!$A$2:$A$372,$B45,'Division Lvl'!V$2:V$372) -> 0 | U45: =SUMIF('Division Lvl'!$A$2:$A$372,$B45,'Division Lvl'!W$2:W$372) -> 0 | V45: =SUMIF('Division Lvl'!$A$2:$A$372,$B45,'Division Lvl'!X$2:X$372) -> 0 | W45: =SUMIF('Division Lvl'!$A$2:$A$372,$B45,'Division Lvl'!Y$2:Y$372) -> 0 | X45: 50000 | Y45: 50625 | Z45: Alt | AA45: =INDEX('Division Lvl'!$AF$2:$AF$372,MATCH(B45,'Division Lvl'!$A$2:$A$372,0)) -> Renewal
A46: =INDEX('Division Lvl'!$AD$2:$AD$372,MATCH(B46,'Division Lvl'!$A$2:$A$372,0)) -> MC | B46: MC105 | C46: =INDEX('Division Lvl'!$B$2:$B$372,MATCH(B46,'Division Lvl'!$A$2:$A$372,0)) -> Relays - renewal | D46: =SUMIF('Division Lvl'!$A$2:$A$372,$B46,'Division Lvl'!E$2:E$372) -> 300000 | E46: =SUMIF('Division Lvl'!$A$2:$A$372,$B46,'Division Lvl'!F$2:F$372) -> 957584 | F46: =SUMIF('Division Lvl'!$A$2:$A$372,$B46,'Division Lvl'!G$2:G$372) -> 907185 | G46: =SUMIF('Division Lvl'!$A$2:$A$372,$B46,'Division Lvl'!H$2:H$372) -> 856786 | H46: =SUMIF('Division Lvl'!$A$2:$A$372,$B46,'Division Lvl'!I$2:I$372) -> 806386 | I46: =SUMIF('Division Lvl'!$A$2:$A$372,$B46,'Division Lvl'!J$2:J$372) -> 755987 | J46: =SUMIF('Division Lvl'!$A$2:$A$372,$B46,'Division Lvl'!K$2:K$372) -> 705588 | K46: =SUMIF('Division Lvl'!$A$2:$A$372,$B46,'Division Lvl'!L$2:L$372) -> 655189 | L46: =SUMIF('Division Lvl'!$A$2:$A$372,$B46,'Division Lvl'!M$2:M$372) -> 604790 | M46: =SUMIF('Division Lvl'!$A$2:$A$372,$B46,'Division Lvl'!N$2:N$372) -> 554391 | N46: =SUMIF('Division Lvl'!$A$2:$A$372,$B46,'Division Lvl'!P$2:P$372) -> 300000 | O46: =SUMIF('Division Lvl'!$A$2:$A$372,$B46,'Division Lvl'!Q$2:Q$372) -> 981523.6 | P46: =SUMIF('Division Lvl'!$A$2:$A$372,$B46,'Division Lvl'!R$2:R$372) -> 953111.2406 | Q46: =SUMIF('Division Lvl'!$A$2:$A$372,$B46,'Division Lvl'!S$2:S$372) -> 922664.811 | R46: =SUMIF('Division Lvl'!$A$2:$A$372,$B46,'Division Lvl'!T$2:T$372) -> 890099.2616 | S46: =SUMIF('Division Lvl'!$A$2:$A$372,$B46,'Division Lvl'!U$2:U$372) -> 855329.9006 | T46: =SUMIF('Division Lvl'!$A$2:$A$372,$B46,'Division Lvl'!V$2:V$372) -> 818265.7596 | U46: =SUMIF('Division Lvl'!$A$2:$A$372,$B46,'Division Lvl'!W$2:W$372) -> 778813.8303 | V46: =SUMIF('Division Lvl'!$A$2:$A$372,$B46,'Division Lvl'!X$2:X$372) -> 736877.8884 | W46: =SUMIF('Division Lvl'!$A$2:$A$372,$B46,'Division Lvl'!Y$2:Y$372) -> 692358.3908 | X46: 7103886 | Y46: 7929044.683 | Z46: Std | AA46: =INDEX('Division Lvl'!$AF$2:$AF$372,MATCH(B46,'Division Lvl'!$A$2:$A$372,0)) -> Renewal
A47: =INDEX('Division Lvl'!$AD$2:$AD$372,MATCH(B47,'Division Lvl'!$A$2:$A$372,0)) -> MC | B47: MC107 | C47: =INDEX('Division Lvl'!$B$2:$B$372,MATCH(B47,'Division Lvl'!$A$2:$A$372,0)) -> Test equipment | D47: =SUMIF('Division Lvl'!$A$2:$A$372,$B47,'Division Lvl'!E$2:E$372) -> 80000 | E47: =SUMIF('Division Lvl'!$A$2:$A$372,$B47,'Division Lvl'!F$2:F$372) -> 80000 | F47: =SUMIF('Division Lvl'!$A$2:$A$372,$B47,'Division Lvl'!G$2:G$372) -> 80000 | G47: =SUMIF('Division Lvl'!$A$2:$A$372,$B47,'Division Lvl'!H$2:H$372) -> 80000 | H47: =SUMIF('Division Lvl'!$A$2:$A$372,$B47,'Division Lvl'!I$2:I$372) -> 80000 | I47: =SUMIF('Division Lvl'!$A$2:$A$372,$B47,'Division Lvl'!J$2:J$372) -> 85000 | J47: =SUMIF('Division Lvl'!$A$2:$A$372,$B47,'Division Lvl'!K$2:K$372) -> 85000 | K47: =SUMIF('Division Lvl'!$A$2:$A$372,$B47,'Division Lvl'!L$2:L$372) -> 85000 | L47: =SUMIF('Division Lvl'!$A$2:$A$372,$B47,'Division Lvl'!M$2:M$372) -> 85000 | M47: =SUMIF('Division Lvl'!$A$2:$A$372,$B47,'Division Lvl'!N$2:N$372) -> 85000 | N47: =SUMIF('Division Lvl'!$A$2:$A$372,$B47,'Division Lvl'!P$2:P$372) -> 80000 | O47: =SUMIF('Division Lvl'!$A$2:$A$372,$B47,'Division Lvl'!Q$2:Q$372) -> 82000 | P47: =SUMIF('Division Lvl'!$A$2:$A$372,$B47,'Division Lvl'!R$2:R$372) -> 84050 | Q47: =SUMIF('Division Lvl'!$A$2:$A$372,$B47,'Division Lvl'!S$2:S$372) -> 86151.25 | R47: =SUMIF('Division Lvl'!$A$2:$A$372,$B47,'Division Lvl'!T$2:T$372) -> 88305.03125 | S47: =SUMIF('Division Lvl'!$A$2:$A$372,$B47,'Division Lvl'!U$2:U$372) -> 96169.6981 | T47: =SUMIF('Division Lvl'!$A$2:$A$372,$B47,'Division Lvl'!V$2:V$372) -> 98573.94055 | U47: =SUMIF('Division Lvl'!$A$2:$A$372,$B47,'Division Lvl'!W$2:W$372) -> 101038.2891 | V47: =SUMIF('Division Lvl'!$A$2:$A$372,$B47,'Division Lvl'!X$2:X$372) -> 103564.2463 | W47: =SUMIF('Division Lvl'!$A$2:$A$372,$B47,'Division Lvl'!Y$2:Y$372) -> 106153.3524 | X47: 825000 | Y47: 926005.8077 | Z47: Alt | AA47: =INDEX('Division Lvl'!$AF$2:$AF$372,MATCH(B47,'Division Lvl'!$A$2:$A$372,0)) -> Other System
A48: =INDEX('Division Lvl'!$AD$2:$AD$372,MATCH(B48,'Division Lvl'!$A$2:$A$372,0)) -> MC | B48: MC109 | C48: =INDEX('Division Lvl'!$B$2:$B$372,MATCH(B48,'Division Lvl'!$A$2:$A$372,0)) -> Demand management technology | D48: =SUMIF('Division Lvl'!$A$2:$A$372,$B48,'Division Lvl'!E$2:E$372) -> 500000 | E48: =SUMIF('Division Lvl'!$A$2:$A$372,$B48,'Division Lvl'!F$2:F$372) -> 1400000 | F48: =SUMIF('Division Lvl'!$A$2:$A$372,$B48,'Division Lvl'!G$2:G$372) -> 750000 | G48: =SUMIF('Division Lvl'!$A$2:$A$372,$B48,'Division Lvl'!H$2:H$372) -> 750000 | H48: =SUMIF('Division Lvl'!$A$2:$A$372,$B48,'Division Lvl'!I$2:I$372) -> 750000 | I48: =SUMIF('Division Lvl'!$A$2:$A$372,$B48,'Division Lvl'!J$2:J$372) -> 750000 | J48: =SUMIF('Division Lvl'!$A$2:$A$372,$B48,'Division Lvl'!K$2:K$372) -> 750000 | K48: =SUMIF('Division Lvl'!$A$2:$A$372,$B48,'Division Lvl'!L$2:L$372) -> 750000 | L48: =SUMIF('Division Lvl'!$A$2:$A$372,$B48,'Division Lvl'!M$2:M$372) -> 750000 | M48: =SUMIF('Division Lvl'!$A$2:$A$372,$B48,'Division Lvl'!N$2:N$372) -> 750000 | N48: =SUMIF('Division Lvl'!$A$2:$A$372,$B48,'Division Lvl'!P$2:P$372) -> 500000 | O48: =SUMIF('Division Lvl'!$A$2:$A$372,$B48,'Division Lvl'!Q$2:Q$372) -> 1435000 | P48: =SUMIF('Division Lvl'!$A$2:$A$372,$B48,'Division Lvl'!R$2:R$372) -> 787968.75 | Q48: =SUMIF('Division Lvl'!$A$2:$A$372,$B48,'Division Lvl'!S$2:S$372) -> 807667.9687 | R48: =SUMIF('Division Lvl'!$A$2:$A$372,$B48,'Division Lvl'!T$2:T$372) -> 827859.668 | S48: =SUMIF('Division Lvl'!$A$2:$A$372,$B48,'Division Lvl'!U$2:U$372) -> 848556.1597 | T48: =SUMIF('Division Lvl'!$A$2:$A$372,$B48,'Division Lvl'!V$2:V$372) -> 869770.0637 | U48: =SUMIF('Division Lvl'!$A$2:$A$372,$B48,'Division Lvl'!W$2:W$372) -> 891514.3153 | V48: =SUMIF('Division Lvl'!$A$2:$A$372,$B48,'Division Lvl'!X$2:X$372) -> 913802.1731 | W48: =SUMIF('Division Lvl'!$A$2:$A$372,$B48,'Division Lvl'!Y$2:Y$372) -> 936647.2275 | X48: 7900000 | Y48: 8818786.326 | Z48: Std | AA48: =INDEX('Division Lvl'!$AF$2:$AF$372,MATCH(B48,'Division Lvl'!$A$2:$A$372,0)) -> Other System
A49: =INDEX('Division Lvl'!$AD$2:$AD$372,MATCH(B49,'Division Lvl'!$A$2:$A$372,0)) -> NU | B49: NU | C49: =INDEX('Division Lvl'!$B$2:$B$372,MATCH(B49,'Division Lvl'!$A$2:$A$372,0)) -> Non urban extension | D49: =SUMIF('Division Lvl'!$A$2:$A$372,$B49,'Division Lvl'!E$2:E$372) -> 850000 | E49: =SUMIF('Division Lvl'!$A$2:$A$372,$B49,'Division Lvl'!F$2:F$372) -> 1731521 | F49: =SUMIF('Division Lvl'!$A$2:$A$372,$B49,'Division Lvl'!G$2:G$372) -> 1666575 | G49: =SUMIF('Division Lvl'!$A$2:$A$372,$B49,'Division Lvl'!H$2:H$372) -> 1664189 | H49: =SUMIF('Division Lvl'!$A$2:$A$372,$B49,'Division Lvl'!I$2:I$372) -> 1670205 | I49: =SUMIF('Division Lvl'!$A$2:$A$372,$B49,'Division Lvl'!J$2:J$372) -> 1698923 | J49: =SUMIF('Division Lvl'!$A$2:$A$372,$B49,'Division Lvl'!K$2:K$372) -> 1702034 | K49: =SUMIF('Division Lvl'!$A$2:$A$372,$B49,'Division Lvl'!L$2:L$372) -> 1704910 | L49: =SUMIF('Division Lvl'!$A$2:$A$372,$B49,'Division Lvl'!M$2:M$372) -> 1707800 | M49: =SUMIF('Division Lvl'!$A$2:$A$372,$B49,'Division Lvl'!N$2:N$372) -> 1713610 | N49: =SUMIF('Division Lvl'!$A$2:$A$372,$B49,'Division Lvl'!P$2:P$372) -> 850000 | O49: =SUMIF('Division Lvl'!$A$2:$A$372,$B49,'Division Lvl'!Q$2:Q$372) -> 1774809.025 | P49: =SUMIF('Division Lvl'!$A$2:$A$372,$B49,'Division Lvl'!R$2:R$372) -> 1750945.359 | Q49: =SUMIF('Division Lvl'!$A$2:$A$372,$B49,'Division Lvl'!S$2:S$372) -> 1792149.532 | R49: =SUMIF('Division Lvl'!$A$2:$A$372,$B49,'Division Lvl'!T$2:T$372) -> 1843593.809 | S49: =SUMIF('Division Lvl'!$A$2:$A$372,$B49,'Division Lvl'!U$2:U$372) -> 1922175.435 | T49: =SUMIF('Division Lvl'!$A$2:$A$372,$B49,'Division Lvl'!V$2:V$372) -> 1973837.627 | U49: =SUMIF('Division Lvl'!$A$2:$A$372,$B49,'Division Lvl'!W$2:W$372) -> 2026602.228 | V49: =SUMIF('Division Lvl'!$A$2:$A$372,$B49,'Division Lvl'!X$2:X$372) -> 2080788.468 | W49: =SUMIF('Division Lvl'!$A$2:$A$372,$B49,'Division Lvl'!Y$2:Y$372) -> 2140064.074 | X49: 16109767 | Y49: 18154965.56 | Z49: Std | AA49: =INDEX('Division Lvl'!$AF$2:$AF$372,MATCH(B49,'Division Lvl'!$A$2:$A$372,0)) -> Network Connection
A50: =INDEX('Division Lvl'!$AD$2:$AD$372,MATCH(B50,'Division Lvl'!$A$2:$A$372,0)) -> PQ | B50: PQ001 | C50: =INDEX('Division Lvl'!$B$2:$B$372,MATCH(B50,'Division Lvl'!$A$2:$A$372,0)) -> Permanent power quality monitoring | D50: =SUMIF('Division Lvl'!$A$2:$A$372,$B50,'Division Lvl'!E$2:E$372) -> 615000 | E50: =SUMIF('Division Lvl'!$A$2:$A$372,$B50,'Division Lvl'!F$2:F$372) -> 100000 | F50: =SUMIF('Division Lvl'!$A$2:$A$372,$B50,'Division Lvl'!G$2:G$372) -> 100000 | G50: =SUMIF('Division Lvl'!$A$2:$A$372,$B50,'Division Lvl'!H$2:H$372) -> 100000 | H50: =SUMIF('Division Lvl'!$A$2:$A$372,$B50,'Division Lvl'!I$2:I$372) -> 100000 | I50: =SUMIF('Division Lvl'!$A$2:$A$372,$B50,'Division Lvl'!J$2:J$372) -> 100000 | J50: =SUMIF('Division Lvl'!$A$2:$A$372,$B50,'Division Lvl'!K$2:K$372) -> 100000 | K50: =SUMIF('Division Lvl'!$A$2:$A$372,$B50,'Division Lvl'!L$2:L$372) -> 100000 | L50: =SUMIF('Division Lvl'!$A$2:$A$372,$B50,'Division Lvl'!M$2:M$372) -> 100000 | M50: =SUMIF('Division Lvl'!$A$2:$A$372,$B50,'Division Lvl'!N$2:N$372) -> 100000 | N50: =SUMIF('Division Lvl'!$A$2:$A$372,$B50,'Division Lvl'!P$2:P$372) -> 615000 | O50: =SUMIF('Division Lvl'!$A$2:$A$372,$B50,'Division Lvl'!Q$2:Q$372) -> 102500 | P50: =SUMIF('Division Lvl'!$A$2:$A$372,$B50,'Division Lvl'!R$2:R$372) -> 105062.5 | Q50: =SUMIF('Division Lvl'!$A$2:$A$372,$B50,'Division Lvl'!S$2:S$372) -> 107689.0625 | R50: =SUMIF('Division Lvl'!$A$2:$A$372,$B50,'Division Lvl'!T$2:T$372) -> 110381.2891 | S50: =SUMIF('Division Lvl'!$A$2:$A$372,$B50,'Division Lvl'!U$2:U$372) -> 113140.8213 | T50: =SUMIF('Division Lvl'!$A$2:$A$372,$B50,'Division Lvl'!V$2:V$372) -> 115969.3418 | U50: =SUMIF('Division Lvl'!$A$2:$A$372,$B50,'Division Lvl'!W$2:W$372) -> 118868.5754 | V50: =SUMIF('Division Lvl'!$A$2:$A$372,$B50,'Division Lvl'!X$2:X$372) -> 121840.2898 | W50: =SUMIF('Division Lvl'!$A$2:$A$372,$B50,'Division Lvl'!Y$2:Y$372) -> 124886.297 | X50: 1515000 | Y50: 1635338.177 | Z50: Std | AA50: =INDEX('Division Lvl'!$AF$2:$AF$372,MATCH(B50,'Division Lvl'!$A$2:$A$372,0)) -> Other System
A51: =INDEX('Division Lvl'!$AD$2:$AD$372,MATCH(B51,'Division Lvl'!$A$2:$A$372,0)) -> PQ | B51: PQ004 | C51: =INDEX('Division Lvl'!$B$2:$B$372,MATCH(B51,'Division Lvl'!$A$2:$A$372,0)) -> Power quality monitoring replacement | D51: =SUMIF('Division Lvl'!$A$2:$A$372,$B51,'Division Lvl'!E$2:E$372) -> 400000 | E51: =SUMIF('Division Lvl'!$A$2:$A$372,$B51,'Division Lvl'!F$2:F$372) -> 342400 | F51: =SUMIF('Division Lvl'!$A$2:$A$372,$B51,'Division Lvl'!G$2:G$372) -> 617700 | G51: =SUMIF('Division Lvl'!$A$2:$A$372,$B51,'Division Lvl'!H$2:H$372) -> 873300 | H51: =SUMIF('Division Lvl'!$A$2:$A$372,$B51,'Division Lvl'!I$2:I$372) -> 947600 | I51: =SUMIF('Division Lvl'!$A$2:$A$372,$B51,'Division Lvl'!J$2:J$372) -> 1364538 | J51: =SUMIF('Division Lvl'!$A$2:$A$372,$B51,'Division Lvl'!K$2:K$372) -> 1299560 | K51: =SUMIF('Division Lvl'!$A$2:$A$372,$B51,'Division Lvl'!L$2:L$372) -> 1429516 | L51: =SUMIF('Division Lvl'!$A$2:$A$372,$B51,'Division Lvl'!M$2:M$372) -> 1429516 | M51: =SUMIF('Division Lvl'!$A$2:$A$372,$B51,'Division Lvl'!N$2:N$372) -> 1169604 | N51: =SUMIF('Division Lvl'!$A$2:$A$372,$B51,'Division Lvl'!P$2:P$372) -> 400000 | O51: =SUMIF('Division Lvl'!$A$2:$A$372,$B51,'Division Lvl'!Q$2:Q$372) -> 350960 | P51: =SUMIF('Division Lvl'!$A$2:$A$372,$B51,'Division Lvl'!R$2:R$372) -> 648971.0625 | Q51: =SUMIF('Division Lvl'!$A$2:$A$372,$B51,'Division Lvl'!S$2:S$372) -> 940448.5828 | R51: =SUMIF('Division Lvl'!$A$2:$A$372,$B51,'Division Lvl'!T$2:T$372) -> 1045973.095 | S51: =SUMIF('Division Lvl'!$A$2:$A$372,$B51,'Division Lvl'!U$2:U$372) -> 1543849.5 | T51: =SUMIF('Division Lvl'!$A$2:$A$372,$B51,'Division Lvl'!V$2:V$372) -> 1507091.179 | U51: =SUMIF('Division Lvl'!$A$2:$A$372,$B51,'Division Lvl'!W$2:W$372) -> 1699245.304 | V51: =SUMIF('Division Lvl'!$A$2:$A$372,$B51,'Division Lvl'!X$2:X$372) -> 1741726.436 | W51: =SUMIF('Division Lvl'!$A$2:$A$372,$B51,'Division Lvl'!Y$2:Y$372) -> 1460675.125 | X51: 9873734 | Y51: 11338940.28 | Z51: Std | AA51: =INDEX('Division Lvl'!$AF$2:$AF$372,MATCH(B51,'Division Lvl'!$A$2:$A$372,0)) -> Other System
A52: =INDEX('Division Lvl'!$AD$2:$AD$372,MATCH(B52,'Division Lvl'!$A$2:$A$372,0)) -> PR | B52: PR081 | C52: =INDEX('Division Lvl'!$B$2:$B$372,MATCH(B52,'Division Lvl'!$A$2:$A$372,0)) -> Collimore Park ZS establishment | D52: =SUMIF('Division Lvl'!$A$2:$A$372,$B52,'Division Lvl'!E$2:E$372) -> 0 | E52: =SUMIF('Division Lvl'!$A$2:$A$372,$B52,'Division Lvl'!F$2:F$372) -> 0 | F52: =SUMIF('Division Lvl'!$A$2:$A$372,$B52,'Division Lvl'!G$2:G$372) -> 0 | G52: =SUMIF('Division Lvl'!$A$2:$A$372,$B52,'Division Lvl'!H$2:H$372) -> 0 | H52: =SUMIF('Division Lvl'!$A$2:$A$372,$B52,'Division Lvl'!I$2:I$372) -> 0 | I52: =SUMIF('Division Lvl'!$A$2:$A$372,$B52,'Division Lvl'!J$2:J$372) -> 0 | J52: =SUMIF('Division Lvl'!$A$2:$A$372,$B52,'Division Lvl'!K$2:K$372) -> 0 | K52: =SUMIF('Division Lvl'!$A$2:$A$372,$B52,'Division Lvl'!L$2:L$372) -> 5576000 | L52: =SUMIF('Division Lvl'!$A$2:$A$372,$B52,'Division Lvl'!M$2:M$372) -> 11152000 | M52: =SUMIF('Division Lvl'!$A$2:$A$372,$B52,'Division Lvl'!N$2:N$372) -> 11152000 | N52: =SUMIF('Division Lvl'!$A$2:$A$372,$B52,'Division Lvl'!P$2:P$372) -> 0 | O52: =SUMIF('Division Lvl'!$A$2:$A$372,$B52,'Division Lvl'!Q$2:Q$372) -> 0 | P52: =SUMIF('Division Lvl'!$A$2:$A$372,$B52,'Division Lvl'!R$2:R$372) -> 0 | Q52: =SUMIF('Division Lvl'!$A$2:$A$372,$B52,'Division Lvl'!S$2:S$372) -> 0 | R52: =SUMIF('Division Lvl'!$A$2:$A$372,$B52,'Division Lvl'!T$2:T$372) -> 0 | S52: =SUMIF('Division Lvl'!$A$2:$A$372,$B52,'Division Lvl'!U$2:U$372) -> 0 | T52: =SUMIF('Division Lvl'!$A$2:$A$372,$B52,'Division Lvl'!V$2:V$372) -> 0 | U52: =SUMIF('Division Lvl'!$A$2:$A$372,$B52,'Division Lvl'!W$2:W$372) -> 6628111.762 | V52: =SUMIF('Division Lvl'!$A$2:$A$372,$B52,'Division Lvl'!X$2:X$372) -> 13587629.11 | W52: =SUMIF('Division Lvl'!$A$2:$A$372,$B52,'Division Lvl'!Y$2:Y$372) -> 13927319.84 | X52: 27880000 | Y52: 34143060.72 | Z52: Std | AA52: =INDEX('Division Lvl'!$AF$2:$AF$372,MATCH(B52,'Division Lvl'!$A$2:$A$372,0)) -> Capacity
A53: =INDEX('Division Lvl'!$AD$2:$AD$372,MATCH(B53,'Division Lvl'!$A$2:$A$372,0)) -> PR | B53: PR110 | C53: =INDEX('Division Lvl'!$B$2:$B$372,MATCH(B53,'Division Lvl'!$A$2:$A$372,0)) -> Edmondson Park ZS establishment | D53: =SUMIF('Division Lvl'!$A$2:$A$372,$B53,'Division Lvl'!E$2:E$372) -> 2187000 | E53: =SUMIF('Division Lvl'!$A$2:$A$372,$B53,'Division Lvl'!F$2:F$372) -> 1887804.878 | F53: =SUMIF('Division Lvl'!$A$2:$A$372,$B53,'Division Lvl'!G$2:G$372) -> 5710.886377 | G53: =SUMIF('Division Lvl'!$A$2:$A$372,$B53,'Division Lvl'!H$2:H$372) -> 0 | H53: =SUMIF('Division Lvl'!$A$2:$A$372,$B53,'Division Lvl'!I$2:I$372) -> 0 | I53: =SUMIF('Division Lvl'!$A$2:$A$372,$B53,'Division Lvl'!J$2:J$372) -> 0 | J53: =SUMIF('Division Lvl'!$A$2:$A$372,$B53,'Division Lvl'!K$2:K$372) -> 0 | K53: =SUMIF('Division Lvl'!$A$2:$A$372,$B53,'Division Lvl'!L$2:L$372) -> 0 | L53: =SUMIF('Division Lvl'!$A$2:$A$372,$B53,'Division Lvl'!M$2:M$372) -> 0 | M53: =SUMIF('Division Lvl'!$A$2:$A$372,$B53,'Division Lvl'!N$2:N$372) -> 0 | N53: =SUMIF('Division Lvl'!$A$2:$A$372,$B53,'Division Lvl'!P$2:P$372) -> 2187000 | O53: =SUMIF('Division Lvl'!$A$2:$A$372,$B53,'Division Lvl'!Q$2:Q$372) -> 1935000 | P53: =SUMIF('Division Lvl'!$A$2:$A$372,$B53,'Division Lvl'!R$2:R$372) -> 6000 | Q53: =SUMIF('Division Lvl'!$A$2:$A$372,$B53,'Division Lvl'!S$2:S$372) -> 0 | R53: =SUMIF('Division Lvl'!$A$2:$A$372,$B53,'Division Lvl'!T$2:T$372) -> 0 | S53: =SUMIF('Division Lvl'!$A$2:$A$372,$B53,'Division Lvl'!U$2:U$372) -> 0 | T53: =SUMIF('Division Lvl'!$A$2:$A$372,$B53,'Division Lvl'!V$2:V$372) -> 0 | U53: =SUMIF('Division Lvl'!$A$2:$A$372,$B53,'Division Lvl'!W$2:W$372) -> 0 | V53: =SUMIF('Division Lvl'!$A$2:$A$372,$B53,'Division Lvl'!X$2:X$372) -> 0 | W53: =SUMIF('Division Lvl'!$A$2:$A$372,$B53,'Division Lvl'!Y$2:Y$372) -> 0 | X53: 4080515.764 | Y53: 4128000 | Z53: Std | AA53: =INDEX('Division Lvl'!$AF$2:$AF$372,MATCH(B53,'Division Lvl'!$A$2:$A$372,0)) -> Network Connection
A54: =INDEX('Division Lvl'!$AD$2:$AD$372,MATCH(B54,'Division Lvl'!$A$2:$A$372,0)) -> PR | B54: PR113 | C54: =INDEX('Division Lvl'!$B$2:$B$372,MATCH(B54,'Division Lvl'!$A$2:$A$372,0)) -> Augment feeder 308 Nepean to Douglas Park | D54: =SUMIF('Division Lvl'!$A$2:$A$372,$B54,'Division Lvl'!E$2:E$372) -> 518000 | E54: =SUMIF('Division Lvl'!$A$2:$A$372,$B54,'Division Lvl'!F$2:F$372) -> 6072000 | F54: =SUMIF('Division Lvl'!$A$2:$A$372,$B54,'Division Lvl'!G$2:G$372) -> 0 | G54: =SUMIF('Division Lvl'!$A$2:$A$372,$B54,'Division Lvl'!H$2:H$372) -> 0 | H54: =SUMIF('Division Lvl'!$A$2:$A$372,$B54,'Division Lvl'!I$2:I$372) -> 0 | I54: =SUMIF('Division Lvl'!$A$2:$A$372,$B54,'Division Lvl'!J$2:J$372) -> 0 | J54: =SUMIF('Division Lvl'!$A$2:$A$372,$B54,'Division Lvl'!K$2:K$372) -> 0 | K54: =SUMIF('Division Lvl'!$A$2:$A$372,$B54,'Division Lvl'!L$2:L$372) -> 0 | L54: =SUMIF('Division Lvl'!$A$2:$A$372,$B54,'Division Lvl'!M$2:M$372) -> 0 | M54: =SUMIF('Division Lvl'!$A$2:$A$372,$B54,'Division Lvl'!N$2:N$372) -> 0 | N54: =SUMIF('Division Lvl'!$A$2:$A$372,$B54,'Division Lvl'!P$2:P$372) -> 518000 | O54: =SUMIF('Division Lvl'!$A$2:$A$372,$B54,'Division Lvl'!Q$2:Q$372) -> 6223800 | P54: =SUMIF('Division Lvl'!$A$2:$A$372,$B54,'Division Lvl'!R$2:R$372) -> 0 | Q54: =SUMIF('Division Lvl'!$A$2:$A$372,$B54,'Division Lvl'!S$2:S$372) -> 0 | R54: =SUMIF('Division Lvl'!$A$2:$A$372,$B54,'Division Lvl'!T$2:T$372) -> 0 | S54: =SUMIF('Division Lvl'!$A$2:$A$372,$B54,'Division Lvl'!U$2:U$372) -> 0 | T54: =SUMIF('Division Lvl'!$A$2:$A$372,$B54,'Division Lvl'!V$2:V$372) -> 0 | U54: =SUMIF('Division Lvl'!$A$2:$A$372,$B54,'Division Lvl'!W$2:W$372) -> 0 | V54: =SUMIF('Division Lvl'!$A$2:$A$372,$B54,'Division Lvl'!X$2:X$372) -> 0 | W54: =SUMIF('Division Lvl'!$A$2:$A$372,$B54,'Division Lvl'!Y$2:Y$372) -> 0 | X54: 6590000 | Y54: 6741800 | Z54: Std | AA54: =INDEX('Division Lvl'!$AF$2:$AF$372,MATCH(B54,'Division Lvl'!$A$2:$A$372,0)) -> Capacity
A55: =INDEX('Division Lvl'!$AD$2:$AD$372,MATCH(B55,'Division Lvl'!$A$2:$A$372,0)) -> PR | B55: PR170 | C55: =INDEX('Division Lvl'!$B$2:$B$372,MATCH(B55,'Division Lvl'!$A$2:$A$372,0)) -> Holsworthy 33/11kV ZS establishment | D55: =SUMIF('Division Lvl'!$A$2:$A$372,$B55,'Division Lvl'!E$2:E$372) -> 0 | E55: =SUMIF('Division Lvl'!$A$2:$A$372,$B55,'Division Lvl'!F$2:F$372) -> 0 | F55: =SUMIF('Division Lvl'!$A$2:$A$372,$B55,'Division Lvl'!G$2:G$372) -> 0 | G55: =SUMIF('Division Lvl'!$A$2:$A$372,$B55,'Division Lvl'!H$2:H$372) -> 0 | H55: =SUMIF('Division Lvl'!$A$2:$A$372,$B55,'Division Lvl'!I$2:I$372) -> 0 | I55: =SUMIF('Division Lvl'!$A$2:$A$372,$B55,'Division Lvl'!J$2:J$372) -> 0 | J55: =SUMIF('Division Lvl'!$A$2:$A$372,$B55,'Division Lvl'!K$2:K$372) -> 0 | K55: =SUMIF('Division Lvl'!$A$2:$A$372,$B55,'Division Lvl'!L$2:L$372) -> 4082000 | L55: =SUMIF('Division Lvl'!$A$2:$A$372,$B55,'Division Lvl'!M$2:M$372) -> 8164000 | M55: =SUMIF('Division Lvl'!$A$2:$A$372,$B55,'Division Lvl'!N$2:N$372) -> 8164000 | N55: =SUMIF('Division Lvl'!$A$2:$A$372,$B55,'Division Lvl'!P$2:P$372) -> 0 | O55: =SUMIF('Division Lvl'!$A$2:$A$372,$B55,'Division Lvl'!Q$2:Q$372) -> 0 | P55: =SUMIF('Division Lvl'!$A$2:$A$372,$B55,'Division Lvl'!R$2:R$372) -> 0 | Q55: =SUMIF('Division Lvl'!$A$2:$A$372,$B55,'Division Lvl'!S$2:S$372) -> 0 | R55: =SUMIF('Division Lvl'!$A$2:$A$372,$B55,'Division Lvl'!T$2:T$372) -> 0 | S55: =SUMIF('Division Lvl'!$A$2:$A$372,$B55,'Division Lvl'!U$2:U$372) -> 0 | T55: =SUMIF('Division Lvl'!$A$2:$A$372,$B55,'Division Lvl'!V$2:V$372) -> 0 | U55: =SUMIF('Division Lvl'!$A$2:$A$372,$B55,'Division Lvl'!W$2:W$372) -> 4852215.246 | V55: =SUMIF('Division Lvl'!$A$2:$A$372,$B55,'Division Lvl'!X$2:X$372) -> 9947041.255 | W55: =SUMIF('Division Lvl'!$A$2:$A$372,$B55,'Division Lvl'!Y$2:Y$372) -> 10195717.29 | X55: 20410000 | Y55: 24994973.79 | Z55: Std | AA55: =INDEX('Division Lvl'!$AF$2:$AF$372,MATCH(B55,'Division Lvl'!$A$2:$A$372,0)) -> Network Connection
A56: =INDEX('Division Lvl'!$AD$2:$AD$372,MATCH(B56,'Division Lvl'!$A$2:$A$372,0)) -> PR | B56: PR190 | C56: =INDEX('Division Lvl'!$B$2:$B$372,MATCH(B56,'Division Lvl'!$A$2:$A$372,0)) -> Eschol Park ZS establishment | D56: =SUMIF('Division Lvl'!$A$2:$A$372,$B56,'Division Lvl'!E$2:E$372) -> 0 | E56: =SUMIF('Division Lvl'!$A$2:$A$372,$B56,'Division Lvl'!F$2:F$372) -> 0 | F56: =SUMIF('Division Lvl'!$A$2:$A$372,$B56,'Division Lvl'!G$2:G$372) -> 0 | G56: =SUMIF('Division Lvl'!$A$2:$A$372,$B56,'Division Lvl'!H$2:H$372) -> 0 | H56: =SUMIF('Division Lvl'!$A$2:$A$372,$B56,'Division Lvl'!I$2:I$372) -> 0 | I56: =SUMIF('Division Lvl'!$A$2:$A$372,$B56,'Division Lvl'!J$2:J$372) -> 0 | J56: =SUMIF('Division Lvl'!$A$2:$A$372,$B56,'Division Lvl'!K$2:K$372) -> 0 | K56: =SUMIF('Division Lvl'!$A$2:$A$372,$B56,'Division Lvl'!L$2:L$372) -> 4208000 | L56: =SUMIF('Division Lvl'!$A$2:$A$372,$B56,'Division Lvl'!M$2:M$372) -> 8416000 | M56: =SUMIF('Division Lvl'!$A$2:$A$372,$B56,'Division Lvl'!N$2:N$372) -> 8416000 | N56: =SUMIF('Division Lvl'!$A$2:$A$372,$B56,'Division Lvl'!P$2:P$372) -> 0 | O56: =SUMIF('Division Lvl'!$A$2:$A$372,$B56,'Division Lvl'!Q$2:Q$372) -> 0 | P56: =SUMIF('Division Lvl'!$A$2:$A$372,$B56,'Division Lvl'!R$2:R$372) -> 0 | Q56: =SUMIF('Division Lvl'!$A$2:$A$372,$B56,'Division Lvl'!S$2:S$372) -> 0 | R56: =SUMIF('Division Lvl'!$A$2:$A$372,$B56,'Division Lvl'!T$2:T$372) -> 0 | S56: =SUMIF('Division Lvl'!$A$2:$A$372,$B56,'Division Lvl'!U$2:U$372) -> 0 | T56: =SUMIF('Division Lvl'!$A$2:$A$372,$B56,'Division Lvl'!V$2:V$372) -> 0 | U56: =SUMIF('Division Lvl'!$A$2:$A$372,$B56,'Division Lvl'!W$2:W$372) -> 5001989.651 | V56: =SUMIF('Division Lvl'!$A$2:$A$372,$B56,'Division Lvl'!X$2:X$372) -> 10254078.79 | W56: =SUMIF('Division Lvl'!$A$2:$A$372,$B56,'Division Lvl'!Y$2:Y$372) -> 10510430.76 | X56: 21040000 | Y56: 25766499.19 | Z56: Std | AA56: =INDEX('Division Lvl'!$AF$2:$AF$372,MATCH(B56,'Division Lvl'!$A$2:$A$372,0)) -> Network Connection
A57: =INDEX('Division Lvl'!$AD$2:$AD$372,MATCH(B57,'Division Lvl'!$A$2:$A$372,0)) -> PRL | B57: PR248 | C57: =INDEX('Division Lvl'!$B$2:$B$372,MATCH(B57,'Division Lvl'!$A$2:$A$372,0)) -> Penrith Lakes ZS site acquisition | D57: =SUMIF('Division Lvl'!$A$2:$A$372,$B57,'Division Lvl'!E$2:E$372) -> 0 | E57: =SUMIF('Division Lvl'!$A$2:$A$372,$B57,'Division Lvl'!F$2:F$372) -> 0 | F57: =SUMIF('Division Lvl'!$A$2:$A$372,$B57,'Division Lvl'!G$2:G$372) -> 0 | G57: =SUMIF('Division Lvl'!$A$2:$A$372,$B57,'Division Lvl'!H$2:H$372) -> 0 | H57: =SUMIF('Division Lvl'!$A$2:$A$372,$B57,'Division Lvl'!I$2:I$372) -> 1000000 | I57: =SUMIF('Division Lvl'!$A$2:$A$372,$B57,'Division Lvl'!J$2:J$372) -> 0 | J57: =SUMIF('Division Lvl'!$A$2:$A$372,$B57,'Division Lvl'!K$2:K$372) -> 0 | K57: =SUMIF('Division Lvl'!$A$2:$A$372,$B57,'Division Lvl'!L$2:L$372) -> 0 | L57: =SUMIF('Division Lvl'!$A$2:$A$372,$B57,'Division Lvl'!M$2:M$372) -> 0 | M57: =SUMIF('Division Lvl'!$A$2:$A$372,$B57,'Division Lvl'!N$2:N$372) -> 0 | N57: =SUMIF('Division Lvl'!$A$2:$A$372,$B57,'Division Lvl'!P$2:P$372) -> 0 | O57: =SUMIF('Division Lvl'!$A$2:$A$372,$B57,'Division Lvl'!Q$2:Q$372) -> 0 | P57: =SUMIF('Division Lvl'!$A$2:$A$372,$B57,'Division Lvl'!R$2:R$372) -> 0 | Q57: =SUMIF('Division Lvl'!$A$2:$A$372,$B57,'Division Lvl'!S$2:S$372) -> 0 | R57: =SUMIF('Division Lvl'!$A$2:$A$372,$B57,'Division Lvl'!T$2:T$372) -> 1103812.891 | S57: =SUMIF('Division Lvl'!$A$2:$A$372,$B57,'Division Lvl'!U$2:U$372) -> 0 | T57: =SUMIF('Division Lvl'!$A$2:$A$372,$B57,'Division Lvl'!V$2:V$372) -> 0 | U57: =SUMIF('Division Lvl'!$A$2:$A$372,$B57,'Division Lvl'!W$2:W$372) -> 0 | V57: =SUMIF('Division Lvl'!$A$2:$A$372,$B57,'Division Lvl'!X$2:X$372) -> 0 | W57: =SUMIF('Division Lvl'!$A$2:$A$372,$B57,'Division Lvl'!Y$2:Y$372) -> 0 | X57: 1000000 | Y57: 1103812.891 | Z57: Std | AA57: =INDEX('Division Lvl'!$AF$2:$AF$372,MATCH(B57,'Division Lvl'!$A$2:$A$372,0)) -> Network Connection
A58: =INDEX('Division Lvl'!$AD$2:$AD$372,MATCH(B58,'Division Lvl'!$A$2:$A$372,0)) -> PR | B58: PR249 | C58: =INDEX('Division Lvl'!$B$2:$B$372,MATCH(B58,'Division Lvl'!$A$2:$A$372,0)) -> Establish Penrith Lakes 33/11kV Zone Substation | D58: =SUMIF('Division Lvl'!$A$2:$A$372,$B58,'Division Lvl'!E$2:E$372) -> 0 | E58: =SUMIF('Division Lvl'!$A$2:$A$372,$B58,'Division Lvl'!F$2:F$372) -> 0 | F58: =SUMIF('Division Lvl'!$A$2:$A$372,$B58,'Division Lvl'!G$2:G$372) -> 0 | G58: =SUMIF('Division Lvl'!$A$2:$A$372,$B58,'Division Lvl'!H$2:H$372) -> 0 | H58: =SUMIF('Division Lvl'!$A$2:$A$372,$B58,'Division Lvl'!I$2:I$372) -> 0 | I58: =SUMIF('Division Lvl'!$A$2:$A$372,$B58,'Division Lvl'!J$2:J$372) -> 3610000 | J58: =SUMIF('Division Lvl'!$A$2:$A$372,$B58,'Division Lvl'!K$2:K$372) -> 14440000 | K58: =SUMIF('Division Lvl'!$A$2:$A$372,$B58,'Division Lvl'!L$2:L$372) -> 0 | L58: =SUMIF('Division Lvl'!$A$2:$A$372,$B58,'Division Lvl'!M$2:M$372) -> 0 | M58: =SUMIF('Division Lvl'!$A$2:$A$372,$B58,'Division Lvl'!N$2:N$372) -> 0 | N58: =SUMIF('Division Lvl'!$A$2:$A$372,$B58,'Division Lvl'!P$2:P$372) -> 0 | O58: =SUMIF('Division Lvl'!$A$2:$A$372,$B58,'Division Lvl'!Q$2:Q$372) -> 0 | P58: =SUMIF('Division Lvl'!$A$2:$A$372,$B58,'Division Lvl'!R$2:R$372) -> 0 | Q58: =SUMIF('Division Lvl'!$A$2:$A$372,$B58,'Division Lvl'!S$2:S$372) -> 0 | R58: =SUMIF('Division Lvl'!$A$2:$A$372,$B58,'Division Lvl'!T$2:T$372) -> 0 | S58: =SUMIF('Division Lvl'!$A$2:$A$372,$B58,'Division Lvl'!U$2:U$372) -> 4084383.649 | T58: =SUMIF('Division Lvl'!$A$2:$A$372,$B58,'Division Lvl'!V$2:V$372) -> 16745972.96 | U58: =SUMIF('Division Lvl'!$A$2:$A$372,$B58,'Division Lvl'!W$2:W$372) -> 0 | V58: =SUMIF('Division Lvl'!$A$2:$A$372,$B58,'Division Lvl'!X$2:X$372) -> 0 | W58: =SUMIF('Division Lvl'!$A$2:$A$372,$B58,'Division Lvl'!Y$2:Y$372) -> 0 | X58: 18050000 | Y58: 20830356.61 | Z58: Std | AA58: =INDEX('Division Lvl'!$AF$2:$AF$372,MATCH(B58,'Division Lvl'!$A$2:$A$372,0)) -> Network Connection
A59: =INDEX('Division Lvl'!$AD$2:$AD$372,MATCH(B59,'Division Lvl'!$A$2:$A$372,0)) -> PR | B59: PR258 | C59: =INDEX('Division Lvl'!$B$2:$B$372,MATCH(B59,'Division Lvl'!$A$2:$A$372,0)) -> Menangle Park 66/11kV ZS establishment | D59: =SUMIF('Division Lvl'!$A$2:$A$372,$B59,'Division Lvl'!E$2:E$372) -> 3800000 | E59: =SUMIF('Division Lvl'!$A$2:$A$372,$B59,'Division Lvl'!F$2:F$372) -> 3500000 | F59: =SUMIF('Division Lvl'!$A$2:$A$372,$B59,'Division Lvl'!G$2:G$372) -> 0 | G59: =SUMIF('Division Lvl'!$A$2:$A$372,$B59,'Division Lvl'!H$2:H$372) -> 0 | H59: =SUMIF('Division Lvl'!$A$2:$A$372,$B59,'Division Lvl'!I$2:I$372) -> 0 | I59: =SUMIF('Division Lvl'!$A$2:$A$372,$B59,'Division Lvl'!J$2:J$372) -> 0 | J59: =SUMIF('Division Lvl'!$A$2:$A$372,$B59,'Division Lvl'!K$2:K$372) -> 0 | K59: =SUMIF('Division Lvl'!$A$2:$A$372,$B59,'Division Lvl'!L$2:L$372) -> 0 | L59: =SUMIF('Division Lvl'!$A$2:$A$372,$B59,'Division Lvl'!M$2:M$372) -> 0 | M59: =SUMIF('Division Lvl'!$A$2:$A$372,$B59,'Division Lvl'!N$2:N$372) -> 0 | N59: =SUMIF('Division Lvl'!$A$2:$A$372,$B59,'Division Lvl'!P$2:P$372) -> 3800000 | O59: =SUMIF('Division Lvl'!$A$2:$A$372,$B59,'Division Lvl'!Q$2:Q$372) -> 3587500 | P59: =SUMIF('Division Lvl'!$A$2:$A$372,$B59,'Division Lvl'!R$2:R$372) -> 0 | Q59: =SUMIF('Division Lvl'!$A$2:$A$372,$B59,'Division Lvl'!S$2:S$372) -> 0 | R59: =SUMIF('Division Lvl'!$A$2:$A$372,$B59,'Division Lvl'!T$2:T$372) -> 0 | S59: =SUMIF('Division Lvl'!$A$2:$A$372,$B59,'Division Lvl'!U$2:U$372) -> 0 | T59: =SUMIF('Division Lvl'!$A$2:$A$372,$B59,'Division Lvl'!V$2:V$372) -> 0 | U59: =SUMIF('Division Lvl'!$A$2:$A$372,$B59,'Division Lvl'!W$2:W$372) -> 0 | V59: =SUMIF('Division Lvl'!$A$2:$A$372,$B59,'Division Lvl'!X$2:X$372) -> 0 | W59: =SUMIF('Division Lvl'!$A$2:$A$372,$B59,'Division Lvl'!Y$2:Y$372) -> 0 | X59: 7300000 | Y59: 7387500 | Z59: Std | AA59: =INDEX('Division Lvl'!$AF$2:$AF$372,MATCH(B59,'Division Lvl'!$A$2:$A$372,0)) -> Network Connection
A60: =INDEX('Division Lvl'!$AD$2:$AD$372,MATCH(B60,'Division Lvl'!$A$2:$A$372,0)) -> PR | B60: PR270 | C60: =INDEX('Division Lvl'!$B$2:$B$372,MATCH(B60,'Division Lvl'!$A$2:$A$372,0)) -> West Epping Zone Substation establishment | D60: =SUMIF('Division Lvl'!$A$2:$A$372,$B60,'Division Lvl'!E$2:E$372) -> 0 | E60: =SUMIF('Division Lvl'!$A$2:$A$372,$B60,'Division Lvl'!F$2:F$372) -> 0 | F60: =SUMIF('Division Lvl'!$A$2:$A$372,$B60,'Division Lvl'!G$2:G$372) -> 0 | G60: =SUMIF('Division Lvl'!$A$2:$A$372,$B60,'Division Lvl'!H$2:H$372) -> 0 | H60: =SUMIF('Division Lvl'!$A$2:$A$372,$B60,'Division Lvl'!I$2:I$372) -> 0 | I60: =SUMIF('Division Lvl'!$A$2:$A$372,$B60,'Division Lvl'!J$2:J$372) -> 0 | J60: =SUMIF('Division Lvl'!$A$2:$A$372,$B60,'Division Lvl'!K$2:K$372) -> 0 | K60: =SUMIF('Division Lvl'!$A$2:$A$372,$B60,'Division Lvl'!L$2:L$372) -> 6472000 | L60: =SUMIF('Division Lvl'!$A$2:$A$372,$B60,'Division Lvl'!M$2:M$372) -> 12944000 | M60: =SUMIF('Division Lvl'!$A$2:$A$372,$B60,'Division Lvl'!N$2:N$372) -> 12944000 | N60: =SUMIF('Division Lvl'!$A$2:$A$372,$B60,'Division Lvl'!P$2:P$372) -> 0 | O60: =SUMIF('Division Lvl'!$A$2:$A$372,$B60,'Division Lvl'!Q$2:Q$372) -> 0 | P60: =SUMIF('Division Lvl'!$A$2:$A$372,$B60,'Division Lvl'!R$2:R$372) -> 0 | Q60: =SUMIF('Division Lvl'!$A$2:$A$372,$B60,'Division Lvl'!S$2:S$372) -> 0 | R60: =SUMIF('Division Lvl'!$A$2:$A$372,$B60,'Division Lvl'!T$2:T$372) -> 0 | S60: =SUMIF('Division Lvl'!$A$2:$A$372,$B60,'Division Lvl'!U$2:U$372) -> 0 | T60: =SUMIF('Division Lvl'!$A$2:$A$372,$B60,'Division Lvl'!V$2:V$372) -> 0 | U60: =SUMIF('Division Lvl'!$A$2:$A$372,$B60,'Division Lvl'!W$2:W$372) -> 7693174.198 | V60: =SUMIF('Division Lvl'!$A$2:$A$372,$B60,'Division Lvl'!X$2:X$372) -> 15771007.11 | W60: =SUMIF('Division Lvl'!$A$2:$A$372,$B60,'Division Lvl'!Y$2:Y$372) -> 16165282.28 | X60: 32360000 | Y60: 39629463.59 | Z60: Std | AA60: =INDEX('Division Lvl'!$AF$2:$AF$372,MATCH(B60,'Division Lvl'!$A$2:$A$372,0)) -> Capacity
A61: =INDEX('Division Lvl'!$AD$2:$AD$372,MATCH(B61,'Division Lvl'!$A$2:$A$372,0)) -> PR | B61: PR278 | C61: =INDEX('Division Lvl'!$B$2:$B$372,MATCH(B61,'Division Lvl'!$A$2:$A$372,0)) -> Kemps Creek new BSP associated works | D61: =SUMIF('Division Lvl'!$A$2:$A$372,$B61,'Division Lvl'!E$2:E$372) -> 0 | E61: =SUMIF('Division Lvl'!$A$2:$A$372,$B61,'Division Lvl'!F$2:F$372) -> 0 | F61: =SUMIF('Division Lvl'!$A$2:$A$372,$B61,'Division Lvl'!G$2:G$372) -> 0 | G61: =SUMIF('Division Lvl'!$A$2:$A$372,$B61,'Division Lvl'!H$2:H$372) -> 0 | H61: =SUMIF('Division Lvl'!$A$2:$A$372,$B61,'Division Lvl'!I$2:I$372) -> 0 | I61: =SUMIF('Division Lvl'!$A$2:$A$372,$B61,'Division Lvl'!J$2:J$372) -> 0 | J61: =SUMIF('Division Lvl'!$A$2:$A$372,$B61,'Division Lvl'!K$2:K$372) -> 0 | K61: =SUMIF('Division Lvl'!$A$2:$A$372,$B61,'Division Lvl'!L$2:L$372) -> 0 | L61: =SUMIF('Division Lvl'!$A$2:$A$372,$B61,'Division Lvl'!M$2:M$372) -> 2140000 | M61: =SUMIF('Division Lvl'!$A$2:$A$372,$B61,'Division Lvl'!N$2:N$372) -> 2140000 | N61: =SUMIF('Division Lvl'!$A$2:$A$372,$B61,'Division Lvl'!P$2:P$372) -> 0 | O61: =SUMIF('Division Lvl'!$A$2:$A$372,$B61,'Division Lvl'!Q$2:Q$372) -> 0 | P61: =SUMIF('Division Lvl'!$A$2:$A$372,$B61,'Division Lvl'!R$2:R$372) -> 0 | Q61: =SUMIF('Division Lvl'!$A$2:$A$372,$B61,'Division Lvl'!S$2:S$372) -> 0 | R61: =SUMIF('Division Lvl'!$A$2:$A$372,$B61,'Division Lvl'!T$2:T$372) -> 0 | S61: =SUMIF('Division Lvl'!$A$2:$A$372,$B61,'Division Lvl'!U$2:U$372) -> 0 | T61: =SUMIF('Division Lvl'!$A$2:$A$372,$B61,'Division Lvl'!V$2:V$372) -> 0 | U61: =SUMIF('Division Lvl'!$A$2:$A$372,$B61,'Division Lvl'!W$2:W$372) -> 0 | V61: =SUMIF('Division Lvl'!$A$2:$A$372,$B61,'Division Lvl'!X$2:X$372) -> 2607382.201 | W61: =SUMIF('Division Lvl'!$A$2:$A$372,$B61,'Division Lvl'!Y$2:Y$372) -> 2672566.756 | X61: 4280000 | Y61: 5279948.956 | Z61: Std | AA61: =INDEX('Division Lvl'!$AF$2:$AF$372,MATCH(B61,'Division Lvl'!$A$2:$A$372,0)) -> Network Connection
A62: =INDEX('Division Lvl'!$AD$2:$AD$372,MATCH(B62,'Division Lvl'!$A$2:$A$372,0)) -> PR | B62: PR292 | C62: =INDEX('Division Lvl'!$B$2:$B$372,MATCH(B62,'Division Lvl'!$A$2:$A$372,0)) -> South Marsden Park (industrial) 132/11kV ZS establishment | D62: =SUMIF('Division Lvl'!$A$2:$A$372,$B62,'Division Lvl'!E$2:E$372) -> 14500000 | E62: =SUMIF('Division Lvl'!$A$2:$A$372,$B62,'Division Lvl'!F$2:F$372) -> 9560975.61 | F62: =SUMIF('Division Lvl'!$A$2:$A$372,$B62,'Division Lvl'!G$2:G$372) -> 0 | G62: =SUMIF('Division Lvl'!$A$2:$A$372,$B62,'Division Lvl'!H$2:H$372) -> 0 | H62: =SUMIF('Division Lvl'!$A$2:$A$372,$B62,'Division Lvl'!I$2:I$372) -> 0 | I62: =SUMIF('Division Lvl'!$A$2:$A$372,$B62,'Division Lvl'!J$2:J$372) -> 0 | J62: =SUMIF('Division Lvl'!$A$2:$A$372,$B62,'Division Lvl'!K$2:K$372) -> 0 | K62: =SUMIF('Division Lvl'!$A$2:$A$372,$B62,'Division Lvl'!L$2:L$372) -> 0 | L62: =SUMIF('Division Lvl'!$A$2:$A$372,$B62,'Division Lvl'!M$2:M$372) -> 0 | M62: =SUMIF('Division Lvl'!$A$2:$A$372,$B62,'Division Lvl'!N$2:N$372) -> 0 | N62: =SUMIF('Division Lvl'!$A$2:$A$372,$B62,'Division Lvl'!P$2:P$372) -> 14500000 | O62: =SUMIF('Division Lvl'!$A$2:$A$372,$B62,'Division Lvl'!Q$2:Q$372) -> 9800000 | P62: =SUMIF('Division Lvl'!$A$2:$A$372,$B62,'Division Lvl'!R$2:R$372) -> 0 | Q62: =SUMIF('Division Lvl'!$A$2:$A$372,$B62,'Division Lvl'!S$2:S$372) -> 0 | R62: =SUMIF('Division Lvl'!$A$2:$A$372,$B62,'Division Lvl'!T$2:T$372) -> 0 | S62: =SUMIF('Division Lvl'!$A$2:$A$372,$B62,'Division Lvl'!U$2:U$372) -> 0 | T62: =SUMIF('Division Lvl'!$A$2:$A$372,$B62,'Division Lvl'!V$2:V$372) -> 0 | U62: =SUMIF('Division Lvl'!$A$2:$A$372,$B62,'Division Lvl'!W$2:W$372) -> 0 | V62: =SUMIF('Division Lvl'!$A$2:$A$372,$B62,'Division Lvl'!X$2:X$372) -> 0 | W62: =SUMIF('Division Lvl'!$A$2:$A$372,$B62,'Division Lvl'!Y$2:Y$372) -> 0 | X62: 24060975.61 | Y62: 24300000 | Z62: Std | AA62: =INDEX('Division Lvl'!$AF$2:$AF$372,MATCH(B62,'Division Lvl'!$A$2:$A$372,0)) -> Network Connection
A63: =INDEX('Division Lvl'!$AD$2:$AD$372,MATCH(B63,'Division Lvl'!$A$2:$A$372,0)) -> PR | B63: PR423 | C63: =INDEX('Division Lvl'!$B$2:$B$372,MATCH(B63,'Division Lvl'!$A$2:$A$372,0)) -> Maryland ZS establishment | D63: =SUMIF('Division Lvl'!$A$2:$A$372,$B63,'Division Lvl'!E$2:E$372) -> 0 | E63: =SUMIF('Division Lvl'!$A$2:$A$372,$B63,'Division Lvl'!F$2:F$372) -> 0 | F63: =SUMIF('Division Lvl'!$A$2:$A$372,$B63,'Division Lvl'!G$2:G$372) -> 4166800 | G63: =SUMIF('Division Lvl'!$A$2:$A$372,$B63,'Division Lvl'!H$2:H$372) -> 8333600 | H63: =SUMIF('Division Lvl'!$A$2:$A$372,$B63,'Division Lvl'!I$2:I$372) -> 8333600 | I63: =SUMIF('Division Lvl'!$A$2:$A$372,$B63,'Division Lvl'!J$2:J$372) -> 0 | J63: =SUMIF('Division Lvl'!$A$2:$A$372,$B63,'Division Lvl'!K$2:K$372) -> 0 | K63: =SUMIF('Division Lvl'!$A$2:$A$372,$B63,'Division Lvl'!L$2:L$372) -> 0 | L63: =SUMIF('Division Lvl'!$A$2:$A$372,$B63,'Division Lvl'!M$2:M$372) -> 0 | M63: =SUMIF('Division Lvl'!$A$2:$A$372,$B63,'Division Lvl'!N$2:N$372) -> 0 | N63: =SUMIF('Division Lvl'!$A$2:$A$372,$B63,'Division Lvl'!P$2:P$372) -> 0 | O63: =SUMIF('Division Lvl'!$A$2:$A$372,$B63,'Division Lvl'!Q$2:Q$372) -> 0 | P63: =SUMIF('Division Lvl'!$A$2:$A$372,$B63,'Division Lvl'!R$2:R$372) -> 4377744.25 | Q63: =SUMIF('Division Lvl'!$A$2:$A$372,$B63,'Division Lvl'!S$2:S$372) -> 8974375.712 | R63: =SUMIF('Division Lvl'!$A$2:$A$372,$B63,'Division Lvl'!T$2:T$372) -> 9198735.105 | S63: =SUMIF('Division Lvl'!$A$2:$A$372,$B63,'Division Lvl'!U$2:U$372) -> 0 | T63: =SUMIF('Division Lvl'!$A$2:$A$372,$B63,'Division Lvl'!V$2:V$372) -> 0 | U63: =SUMIF('Division Lvl'!$A$2:$A$372,$B63,'Division Lvl'!W$2:W$372) -> 0 | V63: =SUMIF('Division Lvl'!$A$2:$A$372,$B63,'Division Lvl'!X$2:X$372) -> 0 | W63: =SUMIF('Division Lvl'!$A$2:$A$372,$B63,'Division Lvl'!Y$2:Y$372) -> 0 | X63: 20834000 | Y63: 22550855.07 | Z63: Std | AA63: =INDEX('Division Lvl'!$AF$2:$AF$372,MATCH(B63,'Division Lvl'!$A$2:$A$372,0)) -> Network Connection
A64: =INDEX('Division Lvl'!$AD$2:$AD$372,MATCH(B64,'Division Lvl'!$A$2:$A$372,0)) -> PR | B64: PR425 | C64: =INDEX('Division Lvl'!$B$2:$B$372,MATCH(B64,'Division Lvl'!$A$2:$A$372,0)) -> Austral ZS establishment (interim initially) | D64: =SUMIF('Division Lvl'!$A$2:$A$372,$B64,'Division Lvl'!E$2:E$372) -> 0 | E64: =SUMIF('Division Lvl'!$A$2:$A$372,$B64,'Division Lvl'!F$2:F$372) -> 0 | F64: =SUMIF('Division Lvl'!$A$2:$A$372,$B64,'Division Lvl'!G$2:G$372) -> 2379535.99 | G64: =SUMIF('Division Lvl'!$A$2:$A$372,$B64,'Division Lvl'!H$2:H$372) -> 0 | H64: =SUMIF('Division Lvl'!$A$2:$A$372,$B64,'Division Lvl'!I$2:I$372) -> 0 | I64: =SUMIF('Division Lvl'!$A$2:$A$372,$B64,'Division Lvl'!J$2:J$372) -> 0 | J64: =SUMIF('Division Lvl'!$A$2:$A$372,$B64,'Division Lvl'!K$2:K$372) -> 0 | K64: =SUMIF('Division Lvl'!$A$2:$A$372,$B64,'Division Lvl'!L$2:L$372) -> 0 | L64: =SUMIF('Division Lvl'!$A$2:$A$372,$B64,'Division Lvl'!M$2:M$372) -> 0 | M64: =SUMIF('Division Lvl'!$A$2:$A$372,$B64,'Division Lvl'!N$2:N$372) -> 0 | N64: =SUMIF('Division Lvl'!$A$2:$A$372,$B64,'Division Lvl'!P$2:P$372) -> 0 | O64: =SUMIF('Division Lvl'!$A$2:$A$372,$B64,'Division Lvl'!Q$2:Q$372) -> 0 | P64: =SUMIF('Division Lvl'!$A$2:$A$372,$B64,'Division Lvl'!R$2:R$372) -> 2500000 | Q64: =SUMIF('Division Lvl'!$A$2:$A$372,$B64,'Division Lvl'!S$2:S$372) -> 0 | R64: =SUMIF('Division Lvl'!$A$2:$A$372,$B64,'Division Lvl'!T$2:T$372) -> 0 | S64: =SUMIF('Division Lvl'!$A$2:$A$372,$B64,'Division Lvl'!U$2:U$372) -> 0 | T64: =SUMIF('Division Lvl'!$A$2:$A$372,$B64,'Division Lvl'!V$2:V$372) -> 0 | U64: =SUMIF('Division Lvl'!$A$2:$A$372,$B64,'Division Lvl'!W$2:W$372) -> 0 | V64: =SUMIF('Division Lvl'!$A$2:$A$372,$B64,'Division Lvl'!X$2:X$372) -> 0 | W64: =SUMIF('Division Lvl'!$A$2:$A$372,$B64,'Division Lvl'!Y$2:Y$372) -> 0 | X64: 2379535.99 | Y64: 2500000 | Z64: Std | AA64: =INDEX('Division Lvl'!$AF$2:$AF$372,MATCH(B64,'Division Lvl'!$A$2:$A$372,0)) -> Network Connection
A65: =INDEX('Division Lvl'!$AD$2:$AD$372,MATCH(B65,'Division Lvl'!$A$2:$A$372,0)) -> PR | B65: PR427 | C65: =INDEX('Division Lvl'!$B$2:$B$372,MATCH(B65,'Division Lvl'!$A$2:$A$372,0)) -> Leppington North ZS establishment | D65: =SUMIF('Division Lvl'!$A$2:$A$372,$B65,'Division Lvl'!E$2:E$372) -> 10000000 | E65: =SUMIF('Division Lvl'!$A$2:$A$372,$B65,'Division Lvl'!F$2:F$372) -> 2911434.146 | F65: =SUMIF('Division Lvl'!$A$2:$A$372,$B65,'Division Lvl'!G$2:G$372) -> 284587.7454 | G65: =SUMIF('Division Lvl'!$A$2:$A$372,$B65,'Division Lvl'!H$2:H$372) -> 0 | H65: =SUMIF('Division Lvl'!$A$2:$A$372,$B65,'Division Lvl'!I$2:I$372) -> 0 | I65: =SUMIF('Division Lvl'!$A$2:$A$372,$B65,'Division Lvl'!J$2:J$372) -> 0 | J65: =SUMIF('Division Lvl'!$A$2:$A$372,$B65,'Division Lvl'!K$2:K$372) -> 0 | K65: =SUMIF('Division Lvl'!$A$2:$A$372,$B65,'Division Lvl'!L$2:L$372) -> 0 | L65: =SUMIF('Division Lvl'!$A$2:$A$372,$B65,'Division Lvl'!M$2:M$372) -> 0 | M65: =SUMIF('Division Lvl'!$A$2:$A$372,$B65,'Division Lvl'!N$2:N$372) -> 0 | N65: =SUMIF('Division Lvl'!$A$2:$A$372,$B65,'Division Lvl'!P$2:P$372) -> 10000000 | O65: =SUMIF('Division Lvl'!$A$2:$A$372,$B65,'Division Lvl'!Q$2:Q$372) -> 2984220 | P65: =SUMIF('Division Lvl'!$A$2:$A$372,$B65,'Division Lvl'!R$2:R$372) -> 298995 | Q65: =SUMIF('Division Lvl'!$A$2:$A$372,$B65,'Division Lvl'!S$2:S$372) -> 0 | R65: =SUMIF('Division Lvl'!$A$2:$A$372,$B65,'Division Lvl'!T$2:T$372) -> 0 | S65: =SUMIF('Division Lvl'!$A$2:$A$372,$B65,'Division Lvl'!U$2:U$372) -> 0 | T65: =SUMIF('Division Lvl'!$A$2:$A$372,$B65,'Division Lvl'!V$2:V$372) -> 0 | U65: =SUMIF('Division Lvl'!$A$2:$A$372,$B65,'Division Lvl'!W$2:W$372) -> 0 | V65: =SUMIF('Division Lvl'!$A$2:$A$372,$B65,'Division Lvl'!X$2:X$372) -> 0 | W65: =SUMIF('Division Lvl'!$A$2:$A$372,$B65,'Division Lvl'!Y$2:Y$372) -> 0 | X65: 13196021.89 | Y65: 13283215 | Z65: Std | AA65: =INDEX('Division Lvl'!$AF$2:$AF$372,MATCH(B65,'Division Lvl'!$A$2:$A$372,0)) -> Network Connection
A66: =INDEX('Division Lvl'!$AD$2:$AD$372,MATCH(B66,'Division Lvl'!$A$2:$A$372,0)) -> PRL | B66: PR430 | C66: =INDEX('Division Lvl'!$B$2:$B$372,MATCH(B66,'Division Lvl'!$A$2:$A$372,0)) -> North Rossmore ZS site purchase | D66: =SUMIF('Division Lvl'!$A$2:$A$372,$B66,'Division Lvl'!E$2:E$372) -> 0 | E66: =SUMIF('Division Lvl'!$A$2:$A$372,$B66,'Division Lvl'!F$2:F$372) -> 0 | F66: =SUMIF('Division Lvl'!$A$2:$A$372,$B66,'Division Lvl'!G$2:G$372) -> 0 | G66: =SUMIF('Division Lvl'!$A$2:$A$372,$B66,'Division Lvl'!H$2:H$372) -> 0 | H66: =SUMIF('Division Lvl'!$A$2:$A$372,$B66,'Division Lvl'!I$2:I$372) -> 3000000 | I66: =SUMIF('Division Lvl'!$A$2:$A$372,$B66,'Division Lvl'!J$2:J$372) -> 0 | J66: =SUMIF('Division Lvl'!$A$2:$A$372,$B66,'Division Lvl'!K$2:K$372) -> 0 | K66: =SUMIF('Division Lvl'!$A$2:$A$372,$B66,'Division Lvl'!L$2:L$372) -> 0 | L66: =SUMIF('Division Lvl'!$A$2:$A$372,$B66,'Division Lvl'!M$2:M$372) -> 0 | M66: =SUMIF('Division Lvl'!$A$2:$A$372,$B66,'Division Lvl'!N$2:N$372) -> 0 | N66: =SUMIF('Division Lvl'!$A$2:$A$372,$B66,'Division Lvl'!P$2:P$372) -> 0 | O66: =SUMIF('Division Lvl'!$A$2:$A$372,$B66,'Division Lvl'!Q$2:Q$372) -> 0 | P66: =SUMIF('Division Lvl'!$A$2:$A$372,$B66,'Division Lvl'!R$2:R$372) -> 0 | Q66: =SUMIF('Division Lvl'!$A$2:$A$372,$B66,'Division Lvl'!S$2:S$372) -> 0 | R66: =SUMIF('Division Lvl'!$A$2:$A$372,$B66,'Division Lvl'!T$2:T$372) -> 3311438.672 | S66: =SUMIF('Division Lvl'!$A$2:$A$372,$B66,'Division Lvl'!U$2:U$372) -> 0 | T66: =SUMIF('Division Lvl'!$A$2:$A$372,$B66,'Division Lvl'!V$2:V$372) -> 0 | U66: =SUMIF('Division Lvl'!$A$2:$A$372,$B66,'Division Lvl'!W$2:W$372) -> 0 | V66: =SUMIF('Division Lvl'!$A$2:$A$372,$B66,'Division Lvl'!X$2:X$372) -> 0 | W66: =SUMIF('Division Lvl'!$A$2:$A$372,$B66,'Division Lvl'!Y$2:Y$372) -> 0 | X66: =SUM(D66:M66) -> 3000000 | Y66: =SUM(N66:W66) -> 3311438.672 | Z66: Std | AA66: =INDEX('Division Lvl'!$AF$2:$AF$372,MATCH(B66,'Division Lvl'!$A$2:$A$372,0)) -> Network Connection
A67: =INDEX('Division Lvl'!$AD$2:$AD$372,MATCH(B67,'Division Lvl'!$A$2:$A$372,0)) -> PRL | B67: PR432 | C67: =INDEX('Division Lvl'!$B$2:$B$372,MATCH(B67,'Division Lvl'!$A$2:$A$372,0)) -> Rossmore ZS site purchase | D67: =SUMIF('Division Lvl'!$A$2:$A$372,$B67,'Division Lvl'!E$2:E$372) -> 0 | E67: =SUMIF('Division Lvl'!$A$2:$A$372,$B67,'Division Lvl'!F$2:F$372) -> 0 | F67: =SUMIF('Division Lvl'!$A$2:$A$372,$B67,'Division Lvl'!G$2:G$372) -> 0 | G67: =SUMIF('Division Lvl'!$A$2:$A$372,$B67,'Division Lvl'!H$2:H$372) -> 0 | H67: =SUMIF('Division Lvl'!$A$2:$A$372,$B67,'Division Lvl'!I$2:I$372) -> 0 | I67: =SUMIF('Division Lvl'!$A$2:$A$372,$B67,'Division Lvl'!J$2:J$372) -> 3000000 | J67: =SUMIF('Division Lvl'!$A$2:$A$372,$B67,'Division Lvl'!K$2:K$372) -> 0 | K67: =SUMIF('Division Lvl'!$A$2:$A$372,$B67,'Division Lvl'!L$2:L$372) -> 0 | L67: =SUMIF('Division Lvl'!$A$2:$A$372,$B67,'Division Lvl'!M$2:M$372) -> 0 | M67: =SUMIF('Division Lvl'!$A$2:$A$372,$B67,'Division Lvl'!N$2:N$372) -> 0 | N67: =SUMIF('Division Lvl'!$A$2:$A$372,$B67,'Division Lvl'!P$2:P$372) -> 0 | O67: =SUMIF('Division Lvl'!$A$2:$A$372,$B67,'Division Lvl'!Q$2:Q$372) -> 0 | P67: =SUMIF('Division Lvl'!$A$2:$A$372,$B67,'Division Lvl'!R$2:R$372) -> 0 | Q67: =SUMIF('Division Lvl'!$A$2:$A$372,$B67,'Division Lvl'!S$2:S$372) -> 0 | R67: =SUMIF('Division Lvl'!$A$2:$A$372,$B67,'Division Lvl'!T$2:T$372) -> 0 | S67: =SUMIF('Division Lvl'!$A$2:$A$372,$B67,'Division Lvl'!U$2:U$372) -> 3394224.639 | T67: =SUMIF('Division Lvl'!$A$2:$A$372,$B67,'Division Lvl'!V$2:V$372) -> 0 | U67: =SUMIF('Division Lvl'!$A$2:$A$372,$B67,'Division Lvl'!W$2:W$372) -> 0 | V67: =SUMIF('Division Lvl'!$A$2:$A$372,$B67,'Division Lvl'!X$2:X$372) -> 0 | W67: =SUMIF('Division Lvl'!$A$2:$A$372,$B67,'Division Lvl'!Y$2:Y$372) -> 0 | X67: 3000000 | Y67: 3394224.639 | Z67: Std | AA67: =INDEX('Division Lvl'!$AF$2:$AF$372,MATCH(B67,'Division Lvl'!$A$2:$A$372,0)) -> Network Connection
A68: =INDEX('Division Lvl'!$AD$2:$AD$372,MATCH(B68,'Division Lvl'!$A$2:$A$372,0)) -> PR | B68: PR433 | C68: =INDEX('Division Lvl'!$B$2:$B$372,MATCH(B68,'Division Lvl'!$A$2:$A$372,0)) -> Rossmore ZS establishment | D68: =SUMIF('Division Lvl'!$A$2:$A$372,$B68,'Division Lvl'!E$2:E$372) -> 0 | E68: =SUMIF('Division Lvl'!$A$2:$A$372,$B68,'Division Lvl'!F$2:F$372) -> 0 | F68: =SUMIF('Division Lvl'!$A$2:$A$372,$B68,'Division Lvl'!G$2:G$372) -> 0 | G68: =SUMIF('Division Lvl'!$A$2:$A$372,$B68,'Division Lvl'!H$2:H$372) -> 0 | H68: =SUMIF('Division Lvl'!$A$2:$A$372,$B68,'Division Lvl'!I$2:I$372) -> 0 | I68: =SUMIF('Division Lvl'!$A$2:$A$372,$B68,'Division Lvl'!J$2:J$372) -> 0 | J68: =SUMIF('Division Lvl'!$A$2:$A$372,$B68,'Division Lvl'!K$2:K$372) -> 0 | K68: =SUMIF('Division Lvl'!$A$2:$A$372,$B68,'Division Lvl'!L$2:L$372) -> 0 | L68: =SUMIF('Division Lvl'!$A$2:$A$372,$B68,'Division Lvl'!M$2:M$372) -> 0 | M68: =SUMIF('Division Lvl'!$A$2:$A$372,$B68,'Division Lvl'!N$2:N$372) -> 10000000 | N68: =SUMIF('Division Lvl'!$A$2:$A$372,$B68,'Division Lvl'!P$2:P$372) -> 0 | O68: =SUMIF('Division Lvl'!$A$2:$A$372,$B68,'Division Lvl'!Q$2:Q$372) -> 0 | P68: =SUMIF('Division Lvl'!$A$2:$A$372,$B68,'Division Lvl'!R$2:R$372) -> 0 | Q68: =SUMIF('Division Lvl'!$A$2:$A$372,$B68,'Division Lvl'!S$2:S$372) -> 0 | R68: =SUMIF('Division Lvl'!$A$2:$A$372,$B68,'Division Lvl'!T$2:T$372) -> 0 | S68: =SUMIF('Division Lvl'!$A$2:$A$372,$B68,'Division Lvl'!U$2:U$372) -> 0 | T68: =SUMIF('Division Lvl'!$A$2:$A$372,$B68,'Division Lvl'!V$2:V$372) -> 0 | U68: =SUMIF('Division Lvl'!$A$2:$A$372,$B68,'Division Lvl'!W$2:W$372) -> 0 | V68: =SUMIF('Division Lvl'!$A$2:$A$372,$B68,'Division Lvl'!X$2:X$372) -> 0 | W68: =SUMIF('Division Lvl'!$A$2:$A$372,$B68,'Division Lvl'!Y$2:Y$372) -> 12488629.7 | X68: 10000000 | Y68: 12488629.7 | Z68: Std | AA68: =INDEX('Division Lvl'!$AF$2:$AF$372,MATCH(B68,'Division Lvl'!$A$2:$A$372,0)) -> Network Connection
A69: =INDEX('Division Lvl'!$AD$2:$AD$372,MATCH(B69,'Division Lvl'!$A$2:$A$372,0)) -> PR | B69: PR435 | C69: =INDEX('Division Lvl'!$B$2:$B$372,MATCH(B69,'Division Lvl'!$A$2:$A$372,0)) -> Catherine Fields North ZS establishment (interim) | D69: =SUMIF('Division Lvl'!$A$2:$A$372,$B69,'Division Lvl'!E$2:E$372) -> 0 | E69: =SUMIF('Division Lvl'!$A$2:$A$372,$B69,'Division Lvl'!F$2:F$372) -> 0 | F69: =SUMIF('Division Lvl'!$A$2:$A$372,$B69,'Division Lvl'!G$2:G$372) -> 0 | G69: =SUMIF('Division Lvl'!$A$2:$A$372,$B69,'Division Lvl'!H$2:H$372) -> 0 | H69: =SUMIF('Division Lvl'!$A$2:$A$372,$B69,'Division Lvl'!I$2:I$372) -> 0 | I69: =SUMIF('Division Lvl'!$A$2:$A$372,$B69,'Division Lvl'!J$2:J$372) -> 0 | J69: =SUMIF('Division Lvl'!$A$2:$A$372,$B69,'Division Lvl'!K$2:K$372) -> 5652000 | K69: =SUMIF('Division Lvl'!$A$2:$A$372,$B69,'Division Lvl'!L$2:L$372) -> 11304000 | L69: =SUMIF('Division Lvl'!$A$2:$A$372,$B69,'Division Lvl'!M$2:M$372) -> 11304000 | M69: =SUMIF('Division Lvl'!$A$2:$A$372,$B69,'Division Lvl'!N$2:N$372) -> 0 | N69: =SUMIF('Division Lvl'!$A$2:$A$372,$B69,'Division Lvl'!P$2:P$372) -> 0 | O69: =SUMIF('Division Lvl'!$A$2:$A$372,$B69,'Division Lvl'!Q$2:Q$372) -> 0 | P69: =SUMIF('Division Lvl'!$A$2:$A$372,$B69,'Division Lvl'!R$2:R$372) -> 0 | Q69: =SUMIF('Division Lvl'!$A$2:$A$372,$B69,'Division Lvl'!S$2:S$372) -> 0 | R69: =SUMIF('Division Lvl'!$A$2:$A$372,$B69,'Division Lvl'!T$2:T$372) -> 0 | S69: =SUMIF('Division Lvl'!$A$2:$A$372,$B69,'Division Lvl'!U$2:U$372) -> 0 | T69: =SUMIF('Division Lvl'!$A$2:$A$372,$B69,'Division Lvl'!V$2:V$372) -> 6554587.2 | U69: =SUMIF('Division Lvl'!$A$2:$A$372,$B69,'Division Lvl'!W$2:W$372) -> 13436903.76 | V69: =SUMIF('Division Lvl'!$A$2:$A$372,$B69,'Division Lvl'!X$2:X$372) -> 13772826.35 | W69: =SUMIF('Division Lvl'!$A$2:$A$372,$B69,'Division Lvl'!Y$2:Y$372) -> 0 | X69: 28260000 | Y69: 33764317.31 | Z69: Std | AA69: =INDEX('Division Lvl'!$AF$2:$AF$372,MATCH(B69,'Division Lvl'!$A$2:$A$372,0)) -> Network Connection
A70: =INDEX('Division Lvl'!$AD$2:$AD$372,MATCH(B70,'Division Lvl'!$A$2:$A$372,0)) -> PR | B70: PR437 | C70: =INDEX('Division Lvl'!$B$2:$B$372,MATCH(B70,'Division Lvl'!$A$2:$A$372,0)) -> Catherine Fields 11kV feeder works | D70: =SUMIF('Division Lvl'!$A$2:$A$372,$B70,'Division Lvl'!E$2:E$372) -> 530000 | E70: =SUMIF('Division Lvl'!$A$2:$A$372,$B70,'Division Lvl'!F$2:F$372) -> 0 | F70: =SUMIF('Division Lvl'!$A$2:$A$372,$B70,'Division Lvl'!G$2:G$372) -> 0 | G70: =SUMIF('Division Lvl'!$A$2:$A$372,$B70,'Division Lvl'!H$2:H$372) -> 0 | H70: =SUMIF('Division Lvl'!$A$2:$A$372,$B70,'Division Lvl'!I$2:I$372) -> 0 | I70: =SUMIF('Division Lvl'!$A$2:$A$372,$B70,'Division Lvl'!J$2:J$372) -> 0 | J70: =SUMIF('Division Lvl'!$A$2:$A$372,$B70,'Division Lvl'!K$2:K$372) -> 0 | K70: =SUMIF('Division Lvl'!$A$2:$A$372,$B70,'Division Lvl'!L$2:L$372) -> 0 | L70: =SUMIF('Division Lvl'!$A$2:$A$372,$B70,'Division Lvl'!M$2:M$372) -> 0 | M70: =SUMIF('Division Lvl'!$A$2:$A$372,$B70,'Division Lvl'!N$2:N$372) -> 0 | N70: =SUMIF('Division Lvl'!$A$2:$A$372,$B70,'Division Lvl'!P$2:P$372) -> 530000 | O70: =SUMIF('Division Lvl'!$A$2:$A$372,$B70,'Division Lvl'!Q$2:Q$372) -> 0 | P70: =SUMIF('Division Lvl'!$A$2:$A$372,$B70,'Division Lvl'!R$2:R$372) -> 0 | Q70: =SUMIF('Division Lvl'!$A$2:$A$372,$B70,'Division Lvl'!S$2:S$372) -> 0 | R70: =SUMIF('Division Lvl'!$A$2:$A$372,$B70,'Division Lvl'!T$2:T$372) -> 0 | S70: =SUMIF('Division Lvl'!$A$2:$A$372,$B70,'Division Lvl'!U$2:U$372) -> 0 | T70: =SUMIF('Division Lvl'!$A$2:$A$372,$B70,'Division Lvl'!V$2:V$372) -> 0 | U70: =SUMIF('Division Lvl'!$A$2:$A$372,$B70,'Division Lvl'!W$2:W$372) -> 0 | V70: =SUMIF('Division Lvl'!$A$2:$A$372,$B70,'Division Lvl'!X$2:X$372) -> 0 | W70: =SUMIF('Division Lvl'!$A$2:$A$372,$B70,'Division Lvl'!Y$2:Y$372) -> 0 | X70: 530000 | Y70: 530000 | Z70: Std | AA70: =INDEX('Division Lvl'!$AF$2:$AF$372,MATCH(B70,'Division Lvl'!$A$2:$A$372,0)) -> Network Connection
A71: =INDEX('Division Lvl'!$AD$2:$AD$372,MATCH(B71,'Division Lvl'!$A$2:$A$372,0)) -> PRL | B71: PR438 | C71: =INDEX('Division Lvl'!$B$2:$B$372,MATCH(B71,'Division Lvl'!$A$2:$A$372,0)) -> North Bringelly ZS site purchase | D71: =SUMIF('Division Lvl'!$A$2:$A$372,$B71,'Division Lvl'!E$2:E$372) -> 0 | E71: =SUMIF('Division Lvl'!$A$2:$A$372,$B71,'Division Lvl'!F$2:F$372) -> 0 | F71: =SUMIF('Division Lvl'!$A$2:$A$372,$B71,'Division Lvl'!G$2:G$372) -> 0 | G71: =SUMIF('Division Lvl'!$A$2:$A$372,$B71,'Division Lvl'!H$2:H$372) -> 0 | H71: =SUMIF('Division Lvl'!$A$2:$A$372,$B71,'Division Lvl'!I$2:I$372) -> 0 | I71: =SUMIF('Division Lvl'!$A$2:$A$372,$B71,'Division Lvl'!J$2:J$372) -> 3500000 | J71: =SUMIF('Division Lvl'!$A$2:$A$372,$B71,'Division Lvl'!K$2:K$372) -> 0 | K71: =SUMIF('Division Lvl'!$A$2:$A$372,$B71,'Division Lvl'!L$2:L$372) -> 0 | L71: =SUMIF('Division Lvl'!$A$2:$A$372,$B71,'Division Lvl'!M$2:M$372) -> 0 | M71: =SUMIF('Division Lvl'!$A$2:$A$372,$B71,'Division Lvl'!N$2:N$372) -> 0 | N71: =SUMIF('Division Lvl'!$A$2:$A$372,$B71,'Division Lvl'!P$2:P$372) -> 0 | O71: =SUMIF('Division Lvl'!$A$2:$A$372,$B71,'Division Lvl'!Q$2:Q$372) -> 0 | P71: =SUMIF('Division Lvl'!$A$2:$A$372,$B71,'Division Lvl'!R$2:R$372) -> 0 | Q71: =SUMIF('Division Lvl'!$A$2:$A$372,$B71,'Division Lvl'!S$2:S$372) -> 0 | R71: =SUMIF('Division Lvl'!$A$2:$A$372,$B71,'Division Lvl'!T$2:T$372) -> 0 | S71: =SUMIF('Division Lvl'!$A$2:$A$372,$B71,'Division Lvl'!U$2:U$372) -> 3959928.745 | T71: =SUMIF('Division Lvl'!$A$2:$A$372,$B71,'Division Lvl'!V$2:V$372) -> 0 | U71: =SUMIF('Division Lvl'!$A$2:$A$372,$B71,'Division Lvl'!W$2:W$372) -> 0 | V71: =SUMIF('Division Lvl'!$A$2:$A$372,$B71,'Division Lvl'!X$2:X$372) -> 0 | W71: =SUMIF('Division Lvl'!$A$2:$A$372,$B71,'Division Lvl'!Y$2:Y$372) -> 0 | X71: 3500000 | Y71: 3959928.745 | Z71: Std | AA71: =INDEX('Division Lvl'!$AF$2:$AF$372,MATCH(B71,'Division Lvl'!$A$2:$A$372,0)) -> Network Connection
A72: =INDEX('Division Lvl'!$AD$2:$AD$372,MATCH(B72,'Division Lvl'!$A$2:$A$372,0)) -> PR | B72: PR439 | C72: =INDEX('Division Lvl'!$B$2:$B$372,MATCH(B72,'Division Lvl'!$A$2:$A$372,0)) -> North Bringelly ZS establishment | D72: =SUMIF('Division Lvl'!$A$2:$A$372,$B72,'Division Lvl'!E$2:E$372) -> 0 | E72: =SUMIF('Division Lvl'!$A$2:$A$372,$B72,'Division Lvl'!F$2:F$372) -> 0 | F72: =SUMIF('Division Lvl'!$A$2:$A$372,$B72,'Division Lvl'!G$2:G$372) -> 0 | G72: =SUMIF('Division Lvl'!$A$2:$A$372,$B72,'Division Lvl'!H$2:H$372) -> 0 | H72: =SUMIF('Division Lvl'!$A$2:$A$372,$B72,'Division Lvl'!I$2:I$372) -> 0 | I72: =SUMIF('Division Lvl'!$A$2:$A$372,$B72,'Division Lvl'!J$2:J$372) -> 0 | J72: =SUMIF('Division Lvl'!$A$2:$A$372,$B72,'Division Lvl'!K$2:K$372) -> 0 | K72: =SUMIF('Division Lvl'!$A$2:$A$372,$B72,'Division Lvl'!L$2:L$372) -> 4420000 | L72: =SUMIF('Division Lvl'!$A$2:$A$372,$B72,'Division Lvl'!M$2:M$372) -> 8840000 | M72: =SUMIF('Division Lvl'!$A$2:$A$372,$B72,'Division Lvl'!N$2:N$372) -> 8840000 | N72: =SUMIF('Division Lvl'!$A$2:$A$372,$B72,'Division Lvl'!P$2:P$372) -> 0 | O72: =SUMIF('Division Lvl'!$A$2:$A$372,$B72,'Division Lvl'!Q$2:Q$372) -> 0 | P72: =SUMIF('Division Lvl'!$A$2:$A$372,$B72,'Division Lvl'!R$2:R$372) -> 0 | Q72: =SUMIF('Division Lvl'!$A$2:$A$372,$B72,'Division Lvl'!S$2:S$372) -> 0 | R72: =SUMIF('Division Lvl'!$A$2:$A$372,$B72,'Division Lvl'!T$2:T$372) -> 0 | S72: =SUMIF('Division Lvl'!$A$2:$A$372,$B72,'Division Lvl'!U$2:U$372) -> 0 | T72: =SUMIF('Division Lvl'!$A$2:$A$372,$B72,'Division Lvl'!V$2:V$372) -> 0 | U72: =SUMIF('Division Lvl'!$A$2:$A$372,$B72,'Division Lvl'!W$2:W$372) -> 5253991.031 | V72: =SUMIF('Division Lvl'!$A$2:$A$372,$B72,'Division Lvl'!X$2:X$372) -> 10770681.61 | W72: =SUMIF('Division Lvl'!$A$2:$A$372,$B72,'Division Lvl'!Y$2:Y$372) -> 11039948.65 | X72: 22100000 | Y72: 27064621.3 | Z72: Std | AA72: =INDEX('Division Lvl'!$AF$2:$AF$372,MATCH(B72,'Division Lvl'!$A$2:$A$372,0)) -> Network Connection
A73: =INDEX('Division Lvl'!$AD$2:$AD$372,MATCH(B73,'Division Lvl'!$A$2:$A$372,0)) -> PR | B73: PR444 | C73: =INDEX('Division Lvl'!$B$2:$B$372,MATCH(B73,'Division Lvl'!$A$2:$A$372,0)) -> Culburra Beach development (33kV fdr and single transformer ZS) | D73: =SUMIF('Division Lvl'!$A$2:$A$372,$B73,'Division Lvl'!E$2:E$372) -> 0 | E73: =SUMIF('Division Lvl'!$A$2:$A$372,$B73,'Division Lvl'!F$2:F$372) -> 0 | F73: =SUMIF('Division Lvl'!$A$2:$A$372,$B73,'Division Lvl'!G$2:G$372) -> 0 | G73: =SUMIF('Division Lvl'!$A$2:$A$372,$B73,'Division Lvl'!H$2:H$372) -> 0 | H73: =SUMIF('Division Lvl'!$A$2:$A$372,$B73,'Division Lvl'!I$2:I$372) -> 0 | I73: =SUMIF('Division Lvl'!$A$2:$A$372,$B73,'Division Lvl'!J$2:J$372) -> 0 | J73: =SUMIF('Division Lvl'!$A$2:$A$372,$B73,'Division Lvl'!K$2:K$372) -> 0 | K73: =SUMIF('Division Lvl'!$A$2:$A$372,$B73,'Division Lvl'!L$2:L$372) -> 0 | L73: =SUMIF('Division Lvl'!$A$2:$A$372,$B73,'Division Lvl'!M$2:M$372) -> 3665000 | M73: =SUMIF('Division Lvl'!$A$2:$A$372,$B73,'Division Lvl'!N$2:N$372) -> 3665000 | N73: =SUMIF('Division Lvl'!$A$2:$A$372,$B73,'Division Lvl'!P$2:P$372) -> 0 | O73: =SUMIF('Division Lvl'!$A$2:$A$372,$B73,'Division Lvl'!Q$2:Q$372) -> 0 | P73: =SUMIF('Division Lvl'!$A$2:$A$372,$B73,'Division Lvl'!R$2:R$372) -> 0 | Q73: =SUMIF('Division Lvl'!$A$2:$A$372,$B73,'Division Lvl'!S$2:S$372) -> 0 | R73: =SUMIF('Division Lvl'!$A$2:$A$372,$B73,'Division Lvl'!T$2:T$372) -> 0 | S73: =SUMIF('Division Lvl'!$A$2:$A$372,$B73,'Division Lvl'!U$2:U$372) -> 0 | T73: =SUMIF('Division Lvl'!$A$2:$A$372,$B73,'Division Lvl'!V$2:V$372) -> 0 | U73: =SUMIF('Division Lvl'!$A$2:$A$372,$B73,'Division Lvl'!W$2:W$372) -> 0 | V73: =SUMIF('Division Lvl'!$A$2:$A$372,$B73,'Division Lvl'!X$2:X$372) -> 4465446.619 | W73: =SUMIF('Division Lvl'!$A$2:$A$372,$B73,'Division Lvl'!Y$2:Y$372) -> 4577082.785 | X73: 7330000 | Y73: 9042529.404 | Z73: Std | AA73: =INDEX('Division Lvl'!$AF$2:$AF$372,MATCH(B73,'Division Lvl'!$A$2:$A$372,0)) -> Network Connection
A74: =INDEX('Division Lvl'!$AD$2:$AD$372,MATCH(B74,'Division Lvl'!$A$2:$A$372,0)) -> PR | B74: PR499 | C74: =INDEX('Division Lvl'!$B$2:$B$372,MATCH(B74,'Division Lvl'!$A$2:$A$372,0)) -> Southpipe (Oakdale Estate) ZS 132/11kV establishment | D74: =SUMIF('Division Lvl'!$A$2:$A$372,$B74,'Division Lvl'!E$2:E$372) -> 0 | E74: =SUMIF('Division Lvl'!$A$2:$A$372,$B74,'Division Lvl'!F$2:F$372) -> 5452000 | F74: =SUMIF('Division Lvl'!$A$2:$A$372,$B74,'Division Lvl'!G$2:G$372) -> 12904000 | G74: =SUMIF('Division Lvl'!$A$2:$A$372,$B74,'Division Lvl'!H$2:H$372) -> 8904000 | H74: =SUMIF('Division Lvl'!$A$2:$A$372,$B74,'Division Lvl'!I$2:I$372) -> 0 | I74: =SUMIF('Division Lvl'!$A$2:$A$372,$B74,'Division Lvl'!J$2:J$372) -> 0 | J74: =SUMIF('Division Lvl'!$A$2:$A$372,$B74,'Division Lvl'!K$2:K$372) -> 0 | K74: =SUMIF('Division Lvl'!$A$2:$A$372,$B74,'Division Lvl'!L$2:L$372) -> 0 | L74: =SUMIF('Division Lvl'!$A$2:$A$372,$B74,'Division Lvl'!M$2:M$372) -> 0 | M74: =SUMIF('Division Lvl'!$A$2:$A$372,$B74,'Division Lvl'!N$2:N$372) -> 0 | N74: =SUMIF('Division Lvl'!$A$2:$A$372,$B74,'Division Lvl'!P$2:P$372) -> 0 | O74: =SUMIF('Division Lvl'!$A$2:$A$372,$B74,'Division Lvl'!Q$2:Q$372) -> 5588300 | P74: =SUMIF('Division Lvl'!$A$2:$A$372,$B74,'Division Lvl'!R$2:R$372) -> 13557265 | Q74: =SUMIF('Division Lvl'!$A$2:$A$372,$B74,'Division Lvl'!S$2:S$372) -> 9588634.125 | R74: =SUMIF('Division Lvl'!$A$2:$A$372,$B74,'Division Lvl'!T$2:T$372) -> 0 | S74: =SUMIF('Division Lvl'!$A$2:$A$372,$B74,'Division Lvl'!U$2:U$372) -> 0 | T74: =SUMIF('Division Lvl'!$A$2:$A$372,$B74,'Division Lvl'!V$2:V$372) -> 0 | U74: =SUMIF('Division Lvl'!$A$2:$A$372,$B74,'Division Lvl'!W$2:W$372) -> 0 | V74: =SUMIF('Division Lvl'!$A$2:$A$372,$B74,'Division Lvl'!X$2:X$372) -> 0 | W74: =SUMIF('Division Lvl'!$A$2:$A$372,$B74,'Division Lvl'!Y$2:Y$372) -> 0 | X74: 27260000 | Y74: 28734199.12 | Z74: Std | AA74: =INDEX('Division Lvl'!$AF$2:$AF$372,MATCH(B74,'Division Lvl'!$A$2:$A$372,0)) -> Network Connection
A75: =INDEX('Division Lvl'!$AD$2:$AD$372,MATCH(B75,'Division Lvl'!$A$2:$A$372,0)) -> PRL | B75: PR599 | C75: =INDEX('Division Lvl'!$B$2:$B$372,MATCH(B75,'Division Lvl'!$A$2:$A$372,0)) -> Penrith CBD ZS site purchase | D75: =SUMIF('Division Lvl'!$A$2:$A$372,$B75,'Division Lvl'!E$2:E$372) -> 3720000 | E75: =SUMIF('Division Lvl'!$A$2:$A$372,$B75,'Division Lvl'!F$2:F$372) -> 0 | F75: =SUMIF('Division Lvl'!$A$2:$A$372,$B75,'Division Lvl'!G$2:G$372) -> 0 | G75: =SUMIF('Division Lvl'!$A$2:$A$372,$B75,'Division Lvl'!H$2:H$372) -> 0 | H75: =SUMIF('Division Lvl'!$A$2:$A$372,$B75,'Division Lvl'!I$2:I$372) -> 0 | I75: =SUMIF('Division Lvl'!$A$2:$A$372,$B75,'Division Lvl'!J$2:J$372) -> 0 | J75: =SUMIF('Division Lvl'!$A$2:$A$372,$B75,'Division Lvl'!K$2:K$372) -> 0 | K75: =SUMIF('Division Lvl'!$A$2:$A$372,$B75,'Division Lvl'!L$2:L$372) -> 0 | L75: =SUMIF('Division Lvl'!$A$2:$A$372,$B75,'Division Lvl'!M$2:M$372) -> 0 | M75: =SUMIF('Division Lvl'!$A$2:$A$372,$B75,'Division Lvl'!N$2:N$372) -> 0 | N75: =SUMIF('Division Lvl'!$A$2:$A$372,$B75,'Division Lvl'!P$2:P$372) -> 3720000 | O75: =SUMIF('Division Lvl'!$A$2:$A$372,$B75,'Division Lvl'!Q$2:Q$372) -> 0 | P75: =SUMIF('Division Lvl'!$A$2:$A$372,$B75,'Division Lvl'!R$2:R$372) -> 0 | Q75: =SUMIF('Division Lvl'!$A$2:$A$372,$B75,'Division Lvl'!S$2:S$372) -> 0 | R75: =SUMIF('Division Lvl'!$A$2:$A$372,$B75,'Division Lvl'!T$2:T$372) -> 0 | S75: =SUMIF('Division Lvl'!$A$2:$A$372,$B75,'Division Lvl'!U$2:U$372) -> 0 | T75: =SUMIF('Division Lvl'!$A$2:$A$372,$B75,'Division Lvl'!V$2:V$372) -> 0 | U75: =SUMIF('Division Lvl'!$A$2:$A$372,$B75,'Division Lvl'!W$2:W$372) -> 0 | V75: =SUMIF('Division Lvl'!$A$2:$A$372,$B75,'Division Lvl'!X$2:X$372) -> 0 | W75: =SUMIF('Division Lvl'!$A$2:$A$372,$B75,'Division Lvl'!Y$2:Y$372) -> 0 | X75: 3720000 | Y75: 3720000 | Z75: Std | AA75: =INDEX('Division Lvl'!$AF$2:$AF$372,MATCH(B75,'Division Lvl'!$A$2:$A$372,0)) -> Capacity
A76: =INDEX('Division Lvl'!$AD$2:$AD$372,MATCH(B76,'Division Lvl'!$A$2:$A$372,0)) -> PRL | B76: PR602 | C76: =INDEX('Division Lvl'!$B$2:$B$372,MATCH(B76,'Division Lvl'!$A$2:$A$372,0)) -> Riverstone West site purchase | D76: =SUMIF('Division Lvl'!$A$2:$A$372,$B76,'Division Lvl'!E$2:E$372) -> 0 | E76: =SUMIF('Division Lvl'!$A$2:$A$372,$B76,'Division Lvl'!F$2:F$372) -> 0 | F76: =SUMIF('Division Lvl'!$A$2:$A$372,$B76,'Division Lvl'!G$2:G$372) -> 0 | G76: =SUMIF('Division Lvl'!$A$2:$A$372,$B76,'Division Lvl'!H$2:H$372) -> 0 | H76: =SUMIF('Division Lvl'!$A$2:$A$372,$B76,'Division Lvl'!I$2:I$372) -> 0 | I76: =SUMIF('Division Lvl'!$A$2:$A$372,$B76,'Division Lvl'!J$2:J$372) -> 0 | J76: =SUMIF('Division Lvl'!$A$2:$A$372,$B76,'Division Lvl'!K$2:K$372) -> 0 | K76: =SUMIF('Division Lvl'!$A$2:$A$372,$B76,'Division Lvl'!L$2:L$372) -> 5000000 | L76: =SUMIF('Division Lvl'!$A$2:$A$372,$B76,'Division Lvl'!M$2:M$372) -> 0 | M76: =SUMIF('Division Lvl'!$A$2:$A$372,$B76,'Division Lvl'!N$2:N$372) -> 0 | N76: =SUMIF('Division Lvl'!$A$2:$A$372,$B76,'Division Lvl'!P$2:P$372) -> 0 | O76: =SUMIF('Division Lvl'!$A$2:$A$372,$B76,'Division Lvl'!Q$2:Q$372) -> 0 | P76: =SUMIF('Division Lvl'!$A$2:$A$372,$B76,'Division Lvl'!R$2:R$372) -> 0 | Q76: =SUMIF('Division Lvl'!$A$2:$A$372,$B76,'Division Lvl'!S$2:S$372) -> 0 | R76: =SUMIF('Division Lvl'!$A$2:$A$372,$B76,'Division Lvl'!T$2:T$372) -> 0 | S76: =SUMIF('Division Lvl'!$A$2:$A$372,$B76,'Division Lvl'!U$2:U$372) -> 0 | T76: =SUMIF('Division Lvl'!$A$2:$A$372,$B76,'Division Lvl'!V$2:V$372) -> 0 | U76: =SUMIF('Division Lvl'!$A$2:$A$372,$B76,'Division Lvl'!W$2:W$372) -> 5943428.768 | V76: =SUMIF('Division Lvl'!$A$2:$A$372,$B76,'Division Lvl'!X$2:X$372) -> 0 | W76: =SUMIF('Division Lvl'!$A$2:$A$372,$B76,'Division Lvl'!Y$2:Y$372) -> 0 | X76: 5000000 | Y76: 5943428.768 | Z76: Std | AA76: =INDEX('Division Lvl'!$AF$2:$AF$372,MATCH(B76,'Division Lvl'!$A$2:$A$372,0)) -> Network Connection
A77: =INDEX('Division Lvl'!$AD$2:$AD$372,MATCH(B77,'Division Lvl'!$A$2:$A$372,0)) -> PRL | B77: PR603 | C77: =INDEX('Division Lvl'!$B$2:$B$372,MATCH(B77,'Division Lvl'!$A$2:$A$372,0)) -> Eschol Park ZS site purchase | D77: =SUMIF('Division Lvl'!$A$2:$A$372,$B77,'Division Lvl'!E$2:E$372) -> 0 | E77: =SUMIF('Division Lvl'!$A$2:$A$372,$B77,'Division Lvl'!F$2:F$372) -> 0 | F77: =SUMIF('Division Lvl'!$A$2:$A$372,$B77,'Division Lvl'!G$2:G$372) -> 0 | G77: =SUMIF('Division Lvl'!$A$2:$A$372,$B77,'Division Lvl'!H$2:H$372) -> 0 | H77: =SUMIF('Division Lvl'!$A$2:$A$372,$B77,'Division Lvl'!I$2:I$372) -> 0 | I77: =SUMIF('Division Lvl'!$A$2:$A$372,$B77,'Division Lvl'!J$2:J$372) -> 0 | J77: =SUMIF('Division Lvl'!$A$2:$A$372,$B77,'Division Lvl'!K$2:K$372) -> 3000000 | K77: =SUMIF('Division Lvl'!$A$2:$A$372,$B77,'Division Lvl'!L$2:L$372) -> 0 | L77: =SUMIF('Division Lvl'!$A$2:$A$372,$B77,'Division Lvl'!M$2:M$372) -> 0 | M77: =SUMIF('Division Lvl'!$A$2:$A$372,$B77,'Division Lvl'!N$2:N$372) -> 0 | N77: =SUMIF('Division Lvl'!$A$2:$A$372,$B77,'Division Lvl'!P$2:P$372) -> 0 | O77: =SUMIF('Division Lvl'!$A$2:$A$372,$B77,'Division Lvl'!Q$2:Q$372) -> 0 | P77: =SUMIF('Division Lvl'!$A$2:$A$372,$B77,'Division Lvl'!R$2:R$372) -> 0 | Q77: =SUMIF('Division Lvl'!$A$2:$A$372,$B77,'Division Lvl'!S$2:S$372) -> 0 | R77: =SUMIF('Division Lvl'!$A$2:$A$372,$B77,'Division Lvl'!T$2:T$372) -> 0 | S77: =SUMIF('Division Lvl'!$A$2:$A$372,$B77,'Division Lvl'!U$2:U$372) -> 0 | T77: =SUMIF('Division Lvl'!$A$2:$A$372,$B77,'Division Lvl'!V$2:V$372) -> 3479080.255 | U77: =SUMIF('Division Lvl'!$A$2:$A$372,$B77,'Division Lvl'!W$2:W$372) -> 0 | V77: =SUMIF('Division Lvl'!$A$2:$A$372,$B77,'Division Lvl'!X$2:X$372) -> 0 | W77: =SUMIF('Division Lvl'!$A$2:$A$372,$B77,'Division Lvl'!Y$2:Y$372) -> 0 | X77: 3000000 | Y77: 3479080.255 | Z77: Std | AA77: =INDEX('Division Lvl'!$AF$2:$AF$372,MATCH(B77,'Division Lvl'!$A$2:$A$372,0)) -> Network Connection
A78: =INDEX('Division Lvl'!$AD$2:$AD$372,MATCH(B78,'Division Lvl'!$A$2:$A$372,0)) -> PR | B78: PR620 | C78: =INDEX('Division Lvl'!$B$2:$B$372,MATCH(B78,'Division Lvl'!$A$2:$A$372,0)) -> West Dapto ZS establishment | D78: =SUMIF('Division Lvl'!$A$2:$A$372,$B78,'Division Lvl'!E$2:E$372) -> 0 | E78: =SUMIF('Division Lvl'!$A$2:$A$372,$B78,'Division Lvl'!F$2:F$372) -> 0 | F78: =SUMIF('Division Lvl'!$A$2:$A$372,$B78,'Division Lvl'!G$2:G$372) -> 0 | G78: =SUMIF('Division Lvl'!$A$2:$A$372,$B78,'Division Lvl'!H$2:H$372) -> 2467000 | H78: =SUMIF('Division Lvl'!$A$2:$A$372,$B78,'Division Lvl'!I$2:I$372) -> 4934000 | I78: =SUMIF('Division Lvl'!$A$2:$A$372,$B78,'Division Lvl'!J$2:J$372) -> 4934000 | J78: =SUMIF('Division Lvl'!$A$2:$A$372,$B78,'Division Lvl'!K$2:K$372) -> 0 | K78: =SUMIF('Division Lvl'!$A$2:$A$372,$B78,'Division Lvl'!L$2:L$372) -> 0 | L78: =SUMIF('Division Lvl'!$A$2:$A$372,$B78,'Division Lvl'!M$2:M$372) -> 0 | M78: =SUMIF('Division Lvl'!$A$2:$A$372,$B78,'Division Lvl'!N$2:N$372) -> 0 | N78: =SUMIF('Division Lvl'!$A$2:$A$372,$B78,'Division Lvl'!P$2:P$372) -> 0 | O78: =SUMIF('Division Lvl'!$A$2:$A$372,$B78,'Division Lvl'!Q$2:Q$372) -> 0 | P78: =SUMIF('Division Lvl'!$A$2:$A$372,$B78,'Division Lvl'!R$2:R$372) -> 0 | Q78: =SUMIF('Division Lvl'!$A$2:$A$372,$B78,'Division Lvl'!S$2:S$372) -> 2656689.172 | R78: =SUMIF('Division Lvl'!$A$2:$A$372,$B78,'Division Lvl'!T$2:T$372) -> 5446212.802 | S78: =SUMIF('Division Lvl'!$A$2:$A$372,$B78,'Division Lvl'!U$2:U$372) -> 5582368.122 | T78: =SUMIF('Division Lvl'!$A$2:$A$372,$B78,'Division Lvl'!V$2:V$372) -> 0 | U78: =SUMIF('Division Lvl'!$A$2:$A$372,$B78,'Division Lvl'!W$2:W$372) -> 0 | V78: =SUMIF('Division Lvl'!$A$2:$A$372,$B78,'Division Lvl'!X$2:X$372) -> 0 | W78: =SUMIF('Division Lvl'!$A$2:$A$372,$B78,'Division Lvl'!Y$2:Y$372) -> 0 | X78: 12335000 | Y78: 13685270.1 | Z78: Std | AA78: =INDEX('Division Lvl'!$AF$2:$AF$372,MATCH(B78,'Division Lvl'!$A$2:$A$372,0)) -> Network Connection
A79: =INDEX('Division Lvl'!$AD$2:$AD$372,MATCH(B79,'Division Lvl'!$A$2:$A$372,0)) -> PR | B79: PR653 | C79: =INDEX('Division Lvl'!$B$2:$B$372,MATCH(B79,'Division Lvl'!$A$2:$A$372,0)) -> Avondale (South West Dapto) 132/11kV ZS establishment | D79: =SUMIF('Division Lvl'!$A$2:$A$372,$B79,'Division Lvl'!E$2:E$372) -> 0 | E79: =SUMIF('Division Lvl'!$A$2:$A$372,$B79,'Division Lvl'!F$2:F$372) -> 0 | F79: =SUMIF('Division Lvl'!$A$2:$A$372,$B79,'Division Lvl'!G$2:G$372) -> 0 | G79: =SUMIF('Division Lvl'!$A$2:$A$372,$B79,'Division Lvl'!H$2:H$372) -> 0 | H79: =SUMIF('Division Lvl'!$A$2:$A$372,$B79,'Division Lvl'!I$2:I$372) -> 0 | I79: =SUMIF('Division Lvl'!$A$2:$A$372,$B79,'Division Lvl'!J$2:J$372) -> 0 | J79: =SUMIF('Division Lvl'!$A$2:$A$372,$B79,'Division Lvl'!K$2:K$372) -> 0 | K79: =SUMIF('Division Lvl'!$A$2:$A$372,$B79,'Division Lvl'!L$2:L$372) -> 5000000 | L79: =SUMIF('Division Lvl'!$A$2:$A$372,$B79,'Division Lvl'!M$2:M$372) -> 5000000 | M79: =SUMIF('Division Lvl'!$A$2:$A$372,$B79,'Division Lvl'!N$2:N$372) -> 5000000 | N79: =SUMIF('Division Lvl'!$A$2:$A$372,$B79,'Division Lvl'!P$2:P$372) -> 0 | O79: =SUMIF('Division Lvl'!$A$2:$A$372,$B79,'Division Lvl'!Q$2:Q$372) -> 0 | P79: =SUMIF('Division Lvl'!$A$2:$A$372,$B79,'Division Lvl'!R$2:R$372) -> 0 | Q79: =SUMIF('Division Lvl'!$A$2:$A$372,$B79,'Division Lvl'!S$2:S$372) -> 0 | R79: =SUMIF('Division Lvl'!$A$2:$A$372,$B79,'Division Lvl'!T$2:T$372) -> 0 | S79: =SUMIF('Division Lvl'!$A$2:$A$372,$B79,'Division Lvl'!U$2:U$372) -> 0 | T79: =SUMIF('Division Lvl'!$A$2:$A$372,$B79,'Division Lvl'!V$2:V$372) -> 0 | U79: =SUMIF('Division Lvl'!$A$2:$A$372,$B79,'Division Lvl'!W$2:W$372) -> 5943428.768 | V79: =SUMIF('Division Lvl'!$A$2:$A$372,$B79,'Division Lvl'!X$2:X$372) -> 6092014.488 | W79: =SUMIF('Division Lvl'!$A$2:$A$372,$B79,'Division Lvl'!Y$2:Y$372) -> 6244314.85 | X79: 15000000 | Y79: 18279758.11 | Z79: Std | AA79: =INDEX('Division Lvl'!$AF$2:$AF$372,MATCH(B79,'Division Lvl'!$A$2:$A$372,0)) -> Network Connection
A80: =INDEX('Division Lvl'!$AD$2:$AD$372,MATCH(B80,'Division Lvl'!$A$2:$A$372,0)) -> PR | B80: PR656 | C80: =INDEX('Division Lvl'!$B$2:$B$372,MATCH(B80,'Division Lvl'!$A$2:$A$372,0)) -> Leppington South ZS establishment (permanent) | D80: =SUMIF('Division Lvl'!$A$2:$A$372,$B80,'Division Lvl'!E$2:E$372) -> 10900000 | E80: =SUMIF('Division Lvl'!$A$2:$A$372,$B80,'Division Lvl'!F$2:F$372) -> 12195121.95 | F80: =SUMIF('Division Lvl'!$A$2:$A$372,$B80,'Division Lvl'!G$2:G$372) -> 1903628.792 | G80: =SUMIF('Division Lvl'!$A$2:$A$372,$B80,'Division Lvl'!H$2:H$372) -> 0 | H80: =SUMIF('Division Lvl'!$A$2:$A$372,$B80,'Division Lvl'!I$2:I$372) -> 0 | I80: =SUMIF('Division Lvl'!$A$2:$A$372,$B80,'Division Lvl'!J$2:J$372) -> 0 | J80: =SUMIF('Division Lvl'!$A$2:$A$372,$B80,'Division Lvl'!K$2:K$372) -> 0 | K80: =SUMIF('Division Lvl'!$A$2:$A$372,$B80,'Division Lvl'!L$2:L$372) -> 0 | L80: =SUMIF('Division Lvl'!$A$2:$A$372,$B80,'Division Lvl'!M$2:M$372) -> 0 | M80: =SUMIF('Division Lvl'!$A$2:$A$372,$B80,'Division Lvl'!N$2:N$372) -> 0 | N80: =SUMIF('Division Lvl'!$A$2:$A$372,$B80,'Division Lvl'!P$2:P$372) -> 10900000 | O80: =SUMIF('Division Lvl'!$A$2:$A$372,$B80,'Division Lvl'!Q$2:Q$372) -> 12500000 | P80: =SUMIF('Division Lvl'!$A$2:$A$372,$B80,'Division Lvl'!R$2:R$372) -> 2000000 | Q80: =SUMIF('Division Lvl'!$A$2:$A$372,$B80,'Division Lvl'!S$2:S$372) -> 0 | R80: =SUMIF('Division Lvl'!$A$2:$A$372,$B80,'Division Lvl'!T$2:T$372) -> 0 | S80: =SUMIF('Division Lvl'!$A$2:$A$372,$B80,'Division Lvl'!U$2:U$372) -> 0 | T80: =SUMIF('Division Lvl'!$A$2:$A$372,$B80,'Division Lvl'!V$2:V$372) -> 0 | U80: =SUMIF('Division Lvl'!$A$2:$A$372,$B80,'Division Lvl'!W$2:W$372) -> 0 | V80: =SUMIF('Division Lvl'!$A$2:$A$372,$B80,'Division Lvl'!X$2:X$372) -> 0 | W80: =SUMIF('Division Lvl'!$A$2:$A$372,$B80,'Division Lvl'!Y$2:Y$372) -> 0 | X80: 24998750.74 | Y80: 25400000 | Z80: Std | AA80: =INDEX('Division Lvl'!$AF$2:$AF$372,MATCH(B80,'Division Lvl'!$A$2:$A$372,0)) -> Network Connection
A81: =INDEX('Division Lvl'!$AD$2:$AD$372,MATCH(B81,'Division Lvl'!$A$2:$A$372,0)) -> PR | B81: PR657 | C81: =INDEX('Division Lvl'!$B$2:$B$372,MATCH(B81,'Division Lvl'!$A$2:$A$372,0)) -> Calderwood ZS establishment (interim initially) | D81: =SUMIF('Division Lvl'!$A$2:$A$372,$B81,'Division Lvl'!E$2:E$372) -> 200000 | E81: =SUMIF('Division Lvl'!$A$2:$A$372,$B81,'Division Lvl'!F$2:F$372) -> 7851000 | F81: =SUMIF('Division Lvl'!$A$2:$A$372,$B81,'Division Lvl'!G$2:G$372) -> 7851000 | G81: =SUMIF('Division Lvl'!$A$2:$A$372,$B81,'Division Lvl'!H$2:H$372) -> 0 | H81: =SUMIF('Division Lvl'!$A$2:$A$372,$B81,'Division Lvl'!I$2:I$372) -> 0 | I81: =SUMIF('Division Lvl'!$A$2:$A$372,$B81,'Division Lvl'!J$2:J$372) -> 0 | J81: =SUMIF('Division Lvl'!$A$2:$A$372,$B81,'Division Lvl'!K$2:K$372) -> 0 | K81: =SUMIF('Division Lvl'!$A$2:$A$372,$B81,'Division Lvl'!L$2:L$372) -> 0 | L81: =SUMIF('Division Lvl'!$A$2:$A$372,$B81,'Division Lvl'!M$2:M$372) -> 0 | M81: =SUMIF('Division Lvl'!$A$2:$A$372,$B81,'Division Lvl'!N$2:N$372) -> 0 | N81: =SUMIF('Division Lvl'!$A$2:$A$372,$B81,'Division Lvl'!P$2:P$372) -> 200000 | O81: =SUMIF('Division Lvl'!$A$2:$A$372,$B81,'Division Lvl'!Q$2:Q$372) -> 8047275 | P81: =SUMIF('Division Lvl'!$A$2:$A$372,$B81,'Division Lvl'!R$2:R$372) -> 8248456.875 | Q81: =SUMIF('Division Lvl'!$A$2:$A$372,$B81,'Division Lvl'!S$2:S$372) -> 0 | R81: =SUMIF('Division Lvl'!$A$2:$A$372,$B81,'Division Lvl'!T$2:T$372) -> 0 | S81: =SUMIF('Division Lvl'!$A$2:$A$372,$B81,'Division Lvl'!U$2:U$372) -> 0 | T81: =SUMIF('Division Lvl'!$A$2:$A$372,$B81,'Division Lvl'!V$2:V$372) -> 0 | U81: =SUMIF('Division Lvl'!$A$2:$A$372,$B81,'Division Lvl'!W$2:W$372) -> 0 | V81: =SUMIF('Division Lvl'!$A$2:$A$372,$B81,'Division Lvl'!X$2:X$372) -> 0 | W81: =SUMIF('Division Lvl'!$A$2:$A$372,$B81,'Division Lvl'!Y$2:Y$372) -> 0 | X81: 15902000 | Y81: 16495731.87 | Z81: Std | AA81: =INDEX('Division Lvl'!$AF$2:$AF$372,MATCH(B81,'Division Lvl'!$A$2:$A$372,0)) -> Network Connection
A82: =INDEX('Division Lvl'!$AD$2:$AD$372,MATCH(B82,'Division Lvl'!$A$2:$A$372,0)) -> PRL | B82: PR659 | C82: =INDEX('Division Lvl'!$B$2:$B$372,MATCH(B82,'Division Lvl'!$A$2:$A$372,0)) -> Avondale (South West Dapto) 132/11kV Zone Substation establishment site purchase | D82: =SUMIF('Division Lvl'!$A$2:$A$372,$B82,'Division Lvl'!E$2:E$372) -> 0 | E82: =SUMIF('Division Lvl'!$A$2:$A$372,$B82,'Division Lvl'!F$2:F$372) -> 0 | F82: =SUMIF('Division Lvl'!$A$2:$A$372,$B82,'Division Lvl'!G$2:G$372) -> 0 | G82: =SUMIF('Division Lvl'!$A$2:$A$372,$B82,'Division Lvl'!H$2:H$372) -> 0 | H82: =SUMIF('Division Lvl'!$A$2:$A$372,$B82,'Division Lvl'!I$2:I$372) -> 0 | I82: =SUMIF('Division Lvl'!$A$2:$A$372,$B82,'Division Lvl'!J$2:J$372) -> 0 | J82: =SUMIF('Division Lvl'!$A$2:$A$372,$B82,'Division Lvl'!K$2:K$372) -> 2500000 | K82: =SUMIF('Division Lvl'!$A$2:$A$372,$B82,'Division Lvl'!L$2:L$372) -> 0 | L82: =SUMIF('Division Lvl'!$A$2:$A$372,$B82,'Division Lvl'!M$2:M$372) -> 0 | M82: =SUMIF('Division Lvl'!$A$2:$A$372,$B82,'Division Lvl'!N$2:N$372) -> 0 | N82: =SUMIF('Division Lvl'!$A$2:$A$372,$B82,'Division Lvl'!P$2:P$372) -> 0 | O82: =SUMIF('Division Lvl'!$A$2:$A$372,$B82,'Division Lvl'!Q$2:Q$372) -> 0 | P82: =SUMIF('Division Lvl'!$A$2:$A$372,$B82,'Division Lvl'!R$2:R$372) -> 0 | Q82: =SUMIF('Division Lvl'!$A$2:$A$372,$B82,'Division Lvl'!S$2:S$372) -> 0 | R82: =SUMIF('Division Lvl'!$A$2:$A$372,$B82,'Division Lvl'!T$2:T$372) -> 0 | S82: =SUMIF('Division Lvl'!$A$2:$A$372,$B82,'Division Lvl'!U$2:U$372) -> 0 | T82: =SUMIF('Division Lvl'!$A$2:$A$372,$B82,'Division Lvl'!V$2:V$372) -> 2899233.546 | U82: =SUMIF('Division Lvl'!$A$2:$A$372,$B82,'Division Lvl'!W$2:W$372) -> 0 | V82: =SUMIF('Division Lvl'!$A$2:$A$372,$B82,'Division Lvl'!X$2:X$372) -> 0 | W82: =SUMIF('Division Lvl'!$A$2:$A$372,$B82,'Division Lvl'!Y$2:Y$372) -> 0 | X82: 2500000 | Y82: 2899233.546 | Z82: Std | AA82: =INDEX('Division Lvl'!$AF$2:$AF$372,MATCH(B82,'Division Lvl'!$A$2:$A$372,0)) -> Network Connection
A83: =INDEX('Division Lvl'!$AD$2:$AD$372,MATCH(B83,'Division Lvl'!$A$2:$A$372,0)) -> PR | B83: PR673 | C83: =INDEX('Division Lvl'!$B$2:$B$372,MATCH(B83,'Division Lvl'!$A$2:$A$372,0)) -> Liverpool ZS 11kV switchboard extension & distribution works | D83: =SUMIF('Division Lvl'!$A$2:$A$372,$B83,'Division Lvl'!E$2:E$372) -> 950000 | E83: =SUMIF('Division Lvl'!$A$2:$A$372,$B83,'Division Lvl'!F$2:F$372) -> 0 | F83: =SUMIF('Division Lvl'!$A$2:$A$372,$B83,'Division Lvl'!G$2:G$372) -> 0 | G83: =SUMIF('Division Lvl'!$A$2:$A$372,$B83,'Division Lvl'!H$2:H$372) -> 0 | H83: =SUMIF('Division Lvl'!$A$2:$A$372,$B83,'Division Lvl'!I$2:I$372) -> 0 | I83: =SUMIF('Division Lvl'!$A$2:$A$372,$B83,'Division Lvl'!J$2:J$372) -> 0 | J83: =SUMIF('Division Lvl'!$A$2:$A$372,$B83,'Division Lvl'!K$2:K$372) -> 0 | K83: =SUMIF('Division Lvl'!$A$2:$A$372,$B83,'Division Lvl'!L$2:L$372) -> 0 | L83: =SUMIF('Division Lvl'!$A$2:$A$372,$B83,'Division Lvl'!M$2:M$372) -> 0 | M83: =SUMIF('Division Lvl'!$A$2:$A$372,$B83,'Division Lvl'!N$2:N$372) -> 0 | N83: =SUMIF('Division Lvl'!$A$2:$A$372,$B83,'Division Lvl'!P$2:P$372) -> 950000 | O83: =SUMIF('Division Lvl'!$A$2:$A$372,$B83,'Division Lvl'!Q$2:Q$372) -> 0 | P83: =SUMIF('Division Lvl'!$A$2:$A$372,$B83,'Division Lvl'!R$2:R$372) -> 0 | Q83: =SUMIF('Division Lvl'!$A$2:$A$372,$B83,'Division Lvl'!S$2:S$372) -> 0 | R83: =SUMIF('Division Lvl'!$A$2:$A$372,$B83,'Division Lvl'!T$2:T$372) -> 0 | S83: =SUMIF('Division Lvl'!$A$2:$A$372,$B83,'Division Lvl'!U$2:U$372) -> 0 | T83: =SUMIF('Division Lvl'!$A$2:$A$372,$B83,'Division Lvl'!V$2:V$372) -> 0 | U83: =SUMIF('Division Lvl'!$A$2:$A$372,$B83,'Division Lvl'!W$2:W$372) -> 0 | V83: =SUMIF('Division Lvl'!$A$2:$A$372,$B83,'Division Lvl'!X$2:X$372) -> 0 | W83: =SUMIF('Division Lvl'!$A$2:$A$372,$B83,'Division Lvl'!Y$2:Y$372) -> 0 | X83: 950000 | Y83: 950000 | Z83: Std | AA83: =INDEX('Division Lvl'!$AF$2:$AF$372,MATCH(B83,'Division Lvl'!$A$2:$A$372,0)) -> Capacity
A84: =INDEX('Division Lvl'!$AD$2:$AD$372,MATCH(B84,'Division Lvl'!$A$2:$A$372,0)) -> PR | B84: PR677 | C84: =INDEX('Division Lvl'!$B$2:$B$372,MATCH(B84,'Division Lvl'!$A$2:$A$372,0)) -> South Penrith Zone Substation | D84: =SUMIF('Division Lvl'!$A$2:$A$372,$B84,'Division Lvl'!E$2:E$372) -> 0 | E84: =SUMIF('Division Lvl'!$A$2:$A$372,$B84,'Division Lvl'!F$2:F$372) -> 4615000 | F84: =SUMIF('Division Lvl'!$A$2:$A$372,$B84,'Division Lvl'!G$2:G$372) -> 13230000 | G84: =SUMIF('Division Lvl'!$A$2:$A$372,$B84,'Division Lvl'!H$2:H$372) -> 10230000 | H84: =SUMIF('Division Lvl'!$A$2:$A$372,$B84,'Division Lvl'!I$2:I$372) -> 0 | I84: =SUMIF('Division Lvl'!$A$2:$A$372,$B84,'Division Lvl'!J$2:J$372) -> 0 | J84: =SUMIF('Division Lvl'!$A$2:$A$372,$B84,'Division Lvl'!K$2:K$372) -> 0 | K84: =SUMIF('Division Lvl'!$A$2:$A$372,$B84,'Division Lvl'!L$2:L$372) -> 0 | L84: =SUMIF('Division Lvl'!$A$2:$A$372,$B84,'Division Lvl'!M$2:M$372) -> 0 | M84: =SUMIF('Division Lvl'!$A$2:$A$372,$B84,'Division Lvl'!N$2:N$372) -> 0 | N84: =SUMIF('Division Lvl'!$A$2:$A$372,$B84,'Division Lvl'!P$2:P$372) -> 0 | O84: =SUMIF('Division Lvl'!$A$2:$A$372,$B84,'Division Lvl'!Q$2:Q$372) -> 4730375 | P84: =SUMIF('Division Lvl'!$A$2:$A$372,$B84,'Division Lvl'!R$2:R$372) -> 13899768.75 | Q84: =SUMIF('Division Lvl'!$A$2:$A$372,$B84,'Division Lvl'!S$2:S$372) -> 11016591.09 | R84: =SUMIF('Division Lvl'!$A$2:$A$372,$B84,'Division Lvl'!T$2:T$372) -> 0 | S84: =SUMIF('Division Lvl'!$A$2:$A$372,$B84,'Division Lvl'!U$2:U$372) -> 0 | T84: =SUMIF('Division Lvl'!$A$2:$A$372,$B84,'Division Lvl'!V$2:V$372) -> 0 | U84: =SUMIF('Division Lvl'!$A$2:$A$372,$B84,'Division Lvl'!W$2:W$372) -> 0 | V84: =SUMIF('Division Lvl'!$A$2:$A$372,$B84,'Division Lvl'!X$2:X$372) -> 0 | W84: =SUMIF('Division Lvl'!$A$2:$A$372,$B84,'Division Lvl'!Y$2:Y$372) -> 0 | X84: 28075000 | Y84: 29646734.84 | Z84: Std | AA84: =INDEX('Division Lvl'!$AF$2:$AF$372,MATCH(B84,'Division Lvl'!$A$2:$A$372,0)) -> Capacity
A85: =INDEX('Division Lvl'!$AD$2:$AD$372,MATCH(B85,'Division Lvl'!$A$2:$A$372,0)) -> PR | B85: PR698 | C85: =INDEX('Division Lvl'!$B$2:$B$372,MATCH(B85,'Division Lvl'!$A$2:$A$372,0)) -> Marsden Park (residential) 132/11kV ZS - stage 2 | D85: =SUMIF('Division Lvl'!$A$2:$A$372,$B85,'Division Lvl'!E$2:E$372) -> 0 | E85: =SUMIF('Division Lvl'!$A$2:$A$372,$B85,'Division Lvl'!F$2:F$372) -> 3462500 | F85: =SUMIF('Division Lvl'!$A$2:$A$372,$B85,'Division Lvl'!G$2:G$372) -> 5462500 | G85: =SUMIF('Division Lvl'!$A$2:$A$372,$B85,'Division Lvl'!H$2:H$372) -> 0 | H85: =SUMIF('Division Lvl'!$A$2:$A$372,$B85,'Division Lvl'!I$2:I$372) -> 0 | I85: =SUMIF('Division Lvl'!$A$2:$A$372,$B85,'Division Lvl'!J$2:J$372) -> 0 | J85: =SUMIF('Division Lvl'!$A$2:$A$372,$B85,'Division Lvl'!K$2:K$372) -> 0 | K85: =SUMIF('Division Lvl'!$A$2:$A$372,$B85,'Division Lvl'!L$2:L$372) -> 0 | L85: =SUMIF('Division Lvl'!$A$2:$A$372,$B85,'Division Lvl'!M$2:M$372) -> 0 | M85: =SUMIF('Division Lvl'!$A$2:$A$372,$B85,'Division Lvl'!N$2:N$372) -> 0 | N85: =SUMIF('Division Lvl'!$A$2:$A$372,$B85,'Division Lvl'!P$2:P$372) -> 0 | O85: =SUMIF('Division Lvl'!$A$2:$A$372,$B85,'Division Lvl'!Q$2:Q$372) -> 3549062.5 | P85: =SUMIF('Division Lvl'!$A$2:$A$372,$B85,'Division Lvl'!R$2:R$372) -> 5739039.062 | Q85: =SUMIF('Division Lvl'!$A$2:$A$372,$B85,'Division Lvl'!S$2:S$372) -> 0 | R85: =SUMIF('Division Lvl'!$A$2:$A$372,$B85,'Division Lvl'!T$2:T$372) -> 0 | S85: =SUMIF('Division Lvl'!$A$2:$A$372,$B85,'Division Lvl'!U$2:U$372) -> 0 | T85: =SUMIF('Division Lvl'!$A$2:$A$372,$B85,'Division Lvl'!V$2:V$372) -> 0 | U85: =SUMIF('Division Lvl'!$A$2:$A$372,$B85,'Division Lvl'!W$2:W$372) -> 0 | V85: =SUMIF('Division Lvl'!$A$2:$A$372,$B85,'Division Lvl'!X$2:X$372) -> 0 | W85: =SUMIF('Division Lvl'!$A$2:$A$372,$B85,'Division Lvl'!Y$2:Y$372) -> 0 | X85: 8925000 | Y85: 9288101.562 | Z85: Std | AA85: =INDEX('Division Lvl'!$AF$2:$AF$372,MATCH(B85,'Division Lvl'!$A$2:$A$372,0)) -> Network Connection
A86: =INDEX('Division Lvl'!$AD$2:$AD$372,MATCH(B86,'Division Lvl'!$A$2:$A$372,0)) -> PR | B86: PR700 | C86: =INDEX('Division Lvl'!$B$2:$B$372,MATCH(B86,'Division Lvl'!$A$2:$A$372,0)) -> Riverstone east ZS establishment | D86: =SUMIF('Division Lvl'!$A$2:$A$372,$B86,'Division Lvl'!E$2:E$372) -> 0 | E86: =SUMIF('Division Lvl'!$A$2:$A$372,$B86,'Division Lvl'!F$2:F$372) -> 0 | F86: =SUMIF('Division Lvl'!$A$2:$A$372,$B86,'Division Lvl'!G$2:G$372) -> 0 | G86: =SUMIF('Division Lvl'!$A$2:$A$372,$B86,'Division Lvl'!H$2:H$372) -> 4129000 | H86: =SUMIF('Division Lvl'!$A$2:$A$372,$B86,'Division Lvl'!I$2:I$372) -> 8258000 | I86: =SUMIF('Division Lvl'!$A$2:$A$372,$B86,'Division Lvl'!J$2:J$372) -> 8258000 | J86: =SUMIF('Division Lvl'!$A$2:$A$372,$B86,'Division Lvl'!K$2:K$372) -> 0 | K86: =SUMIF('Division Lvl'!$A$2:$A$372,$B86,'Division Lvl'!L$2:L$372) -> 0 | L86: =SUMIF('Division Lvl'!$A$2:$A$372,$B86,'Division Lvl'!M$2:M$372) -> 0 | M86: =SUMIF('Division Lvl'!$A$2:$A$372,$B86,'Division Lvl'!N$2:N$372) -> 0 | N86: =SUMIF('Division Lvl'!$A$2:$A$372,$B86,'Division Lvl'!P$2:P$372) -> 0 | O86: =SUMIF('Division Lvl'!$A$2:$A$372,$B86,'Division Lvl'!Q$2:Q$372) -> 0 | P86: =SUMIF('Division Lvl'!$A$2:$A$372,$B86,'Division Lvl'!R$2:R$372) -> 0 | Q86: =SUMIF('Division Lvl'!$A$2:$A$372,$B86,'Division Lvl'!S$2:S$372) -> 4446481.391 | R86: =SUMIF('Division Lvl'!$A$2:$A$372,$B86,'Division Lvl'!T$2:T$372) -> 9115286.851 | S86: =SUMIF('Division Lvl'!$A$2:$A$372,$B86,'Division Lvl'!U$2:U$372) -> 9343169.022 | T86: =SUMIF('Division Lvl'!$A$2:$A$372,$B86,'Division Lvl'!V$2:V$372) -> 0 | U86: =SUMIF('Division Lvl'!$A$2:$A$372,$B86,'Division Lvl'!W$2:W$372) -> 0 | V86: =SUMIF('Division Lvl'!$A$2:$A$372,$B86,'Division Lvl'!X$2:X$372) -> 0 | W86: =SUMIF('Division Lvl'!$A$2:$A$372,$B86,'Division Lvl'!Y$2:Y$372) -> 0 | X86: 20645000 | Y86: 22904937.26 | Z86: Std | AA86: =INDEX('Division Lvl'!$AF$2:$AF$372,MATCH(B86,'Division Lvl'!$A$2:$A$372,0)) -> Capacity
A87: =INDEX('Division Lvl'!$AD$2:$AD$372,MATCH(B87,'Division Lvl'!$A$2:$A$372,0)) -> PR | B87: PR702 | C87: =INDEX('Division Lvl'!$B$2:$B$372,MATCH(B87,'Division Lvl'!$A$2:$A$372,0)) -> Penrith ZS 11kV transformer cable constraints | D87: =SUMIF('Division Lvl'!$A$2:$A$372,$B87,'Division Lvl'!E$2:E$372) -> 50400 | E87: =SUMIF('Division Lvl'!$A$2:$A$372,$B87,'Division Lvl'!F$2:F$372) -> 0 | F87: =SUMIF('Division Lvl'!$A$2:$A$372,$B87,'Division Lvl'!G$2:G$372) -> 0 | G87: =SUMIF('Division Lvl'!$A$2:$A$372,$B87,'Division Lvl'!H$2:H$372) -> 0 | H87: =SUMIF('Division Lvl'!$A$2:$A$372,$B87,'Division Lvl'!I$2:I$372) -> 0 | I87: =SUMIF('Division Lvl'!$A$2:$A$372,$B87,'Division Lvl'!J$2:J$372) -> 0 | J87: =SUMIF('Division Lvl'!$A$2:$A$372,$B87,'Division Lvl'!K$2:K$372) -> 0 | K87: =SUMIF('Division Lvl'!$A$2:$A$372,$B87,'Division Lvl'!L$2:L$372) -> 0 | L87: =SUMIF('Division Lvl'!$A$2:$A$372,$B87,'Division Lvl'!M$2:M$372) -> 0 | M87: =SUMIF('Division Lvl'!$A$2:$A$372,$B87,'Division Lvl'!N$2:N$372) -> 0 | N87: =SUMIF('Division Lvl'!$A$2:$A$372,$B87,'Division Lvl'!P$2:P$372) -> 50400 | O87: =SUMIF('Division Lvl'!$A$2:$A$372,$B87,'Division Lvl'!Q$2:Q$372) -> 0 | P87: =SUMIF('Division Lvl'!$A$2:$A$372,$B87,'Division Lvl'!R$2:R$372) -> 0 | Q87: =SUMIF('Division Lvl'!$A$2:$A$372,$B87,'Division Lvl'!S$2:S$372) -> 0 | R87: =SUMIF('Division Lvl'!$A$2:$A$372,$B87,'Division Lvl'!T$2:T$372) -> 0 | S87: =SUMIF('Division Lvl'!$A$2:$A$372,$B87,'Division Lvl'!U$2:U$372) -> 0 | T87: =SUMIF('Division Lvl'!$A$2:$A$372,$B87,'Division Lvl'!V$2:V$372) -> 0 | U87: =SUMIF('Division Lvl'!$A$2:$A$372,$B87,'Division Lvl'!W$2:W$372) -> 0 | V87: =SUMIF('Division Lvl'!$A$2:$A$372,$B87,'Division Lvl'!X$2:X$372) -> 0 | W87: =SUMIF('Division Lvl'!$A$2:$A$372,$B87,'Division Lvl'!Y$2:Y$372) -> 0 | X87: 50400 | Y87: 50400 | Z87: Std | AA87: =INDEX('Division Lvl'!$AF$2:$AF$372,MATCH(B87,'Division Lvl'!$A$2:$A$372,0)) -> Capacity
A88: =INDEX('Division Lvl'!$AD$2:$AD$372,MATCH(B88,'Division Lvl'!$A$2:$A$372,0)) -> PRL | B88: PR703 | C88: =INDEX('Division Lvl'!$B$2:$B$372,MATCH(B88,'Division Lvl'!$A$2:$A$372,0)) -> Riverstone East site purchase | D88: =SUMIF('Division Lvl'!$A$2:$A$372,$B88,'Division Lvl'!E$2:E$372) -> 0 | E88: =SUMIF('Division Lvl'!$A$2:$A$372,$B88,'Division Lvl'!F$2:F$372) -> 6000000 | F88: =SUMIF('Division Lvl'!$A$2:$A$372,$B88,'Division Lvl'!G$2:G$372) -> 0 | G88: =SUMIF('Division Lvl'!$A$2:$A$372,$B88,'Division Lvl'!H$2:H$372) -> 0 | H88: =SUMIF('Division Lvl'!$A$2:$A$372,$B88,'Division Lvl'!I$2:I$372) -> 0 | I88: =SUMIF('Division Lvl'!$A$2:$A$372,$B88,'Division Lvl'!J$2:J$372) -> 0 | J88: =SUMIF('Division Lvl'!$A$2:$A$372,$B88,'Division Lvl'!K$2:K$372) -> 0 | K88: =SUMIF('Division Lvl'!$A$2:$A$372,$B88,'Division Lvl'!L$2:L$372) -> 0 | L88: =SUMIF('Division Lvl'!$A$2:$A$372,$B88,'Division Lvl'!M$2:M$372) -> 0 | M88: =SUMIF('Division Lvl'!$A$2:$A$372,$B88,'Division Lvl'!N$2:N$372) -> 0 | N88: =SUMIF('Division Lvl'!$A$2:$A$372,$B88,'Division Lvl'!P$2:P$372) -> 0 | O88: =SUMIF('Division Lvl'!$A$2:$A$372,$B88,'Division Lvl'!Q$2:Q$372) -> 6150000 | P88: =SUMIF('Division Lvl'!$A$2:$A$372,$B88,'Division Lvl'!R$2:R$372) -> 0 | Q88: =SUMIF('Division Lvl'!$A$2:$A$372,$B88,'Division Lvl'!S$2:S$372) -> 0 | R88: =SUMIF('Division Lvl'!$A$2:$A$372,$B88,'Division Lvl'!T$2:T$372) -> 0 | S88: =SUMIF('Division Lvl'!$A$2:$A$372,$B88,'Division Lvl'!U$2:U$372) -> 0 | T88: =SUMIF('Division Lvl'!$A$2:$A$372,$B88,'Division Lvl'!V$2:V$372) -> 0 | U88: =SUMIF('Division Lvl'!$A$2:$A$372,$B88,'Division Lvl'!W$2:W$372) -> 0 | V88: =SUMIF('Division Lvl'!$A$2:$A$372,$B88,'Division Lvl'!X$2:X$372) -> 0 | W88: =SUMIF('Division Lvl'!$A$2:$A$372,$B88,'Division Lvl'!Y$2:Y$372) -> 0 | X88: 6000000 | Y88: 6150000 | Z88: Std | AA88: =INDEX('Division Lvl'!$AF$2:$AF$372,MATCH(B88,'Division Lvl'!$A$2:$A$372,0)) -> Network Connection
A89: =INDEX('Division Lvl'!$AD$2:$AD$372,MATCH(B89,'Division Lvl'!$A$2:$A$372,0)) -> PRL | B89: PR704 | C89: =INDEX('Division Lvl'!$B$2:$B$372,MATCH(B89,'Division Lvl'!$A$2:$A$372,0)) -> Oakdale (Southpipe) site purchase | D89: =SUMIF('Division Lvl'!$A$2:$A$372,$B89,'Division Lvl'!E$2:E$372) -> 300000 | E89: =SUMIF('Division Lvl'!$A$2:$A$372,$B89,'Division Lvl'!F$2:F$372) -> 0 | F89: =SUMIF('Division Lvl'!$A$2:$A$372,$B89,'Division Lvl'!G$2:G$372) -> 0 | G89: =SUMIF('Division Lvl'!$A$2:$A$372,$B89,'Division Lvl'!H$2:H$372) -> 0 | H89: =SUMIF('Division Lvl'!$A$2:$A$372,$B89,'Division Lvl'!I$2:I$372) -> 0 | I89: =SUMIF('Division Lvl'!$A$2:$A$372,$B89,'Division Lvl'!J$2:J$372) -> 0 | J89: =SUMIF('Division Lvl'!$A$2:$A$372,$B89,'Division Lvl'!K$2:K$372) -> 0 | K89: =SUMIF('Division Lvl'!$A$2:$A$372,$B89,'Division Lvl'!L$2:L$372) -> 0 | L89: =SUMIF('Division Lvl'!$A$2:$A$372,$B89,'Division Lvl'!M$2:M$372) -> 0 | M89: =SUMIF('Division Lvl'!$A$2:$A$372,$B89,'Division Lvl'!N$2:N$372) -> 0 | N89: =SUMIF('Division Lvl'!$A$2:$A$372,$B89,'Division Lvl'!P$2:P$372) -> 300000 | O89: =SUMIF('Division Lvl'!$A$2:$A$372,$B89,'Division Lvl'!Q$2:Q$372) -> 0 | P89: =SUMIF('Division Lvl'!$A$2:$A$372,$B89,'Division Lvl'!R$2:R$372) -> 0 | Q89: =SUMIF('Division Lvl'!$A$2:$A$372,$B89,'Division Lvl'!S$2:S$372) -> 0 | R89: =SUMIF('Division Lvl'!$A$2:$A$372,$B89,'Division Lvl'!T$2:T$372) -> 0 | S89: =SUMIF('Division Lvl'!$A$2:$A$372,$B89,'Division Lvl'!U$2:U$372) -> 0 | T89: =SUMIF('Division Lvl'!$A$2:$A$372,$B89,'Division Lvl'!V$2:V$372) -> 0 | U89: =SUMIF('Division Lvl'!$A$2:$A$372,$B89,'Division Lvl'!W$2:W$372) -> 0 | V89: =SUMIF('Division Lvl'!$A$2:$A$372,$B89,'Division Lvl'!X$2:X$372) -> 0 | W89: =SUMIF('Division Lvl'!$A$2:$A$372,$B89,'Division Lvl'!Y$2:Y$372) -> 0 | X89: 300000 | Y89: 300000 | Z89: Std | AA89: =INDEX('Division Lvl'!$AF$2:$AF$372,MATCH(B89,'Division Lvl'!$A$2:$A$372,0)) -> Network Connection
A90: =INDEX('Division Lvl'!$AD$2:$AD$372,MATCH(B90,'Division Lvl'!$A$2:$A$372,0)) -> PR | B90: PR710 | C90: =INDEX('Division Lvl'!$B$2:$B$372,MATCH(B90,'Division Lvl'!$A$2:$A$372,0)) -> Feeder 868 rebuild & rearrangement South32 | D90: =SUMIF('Division Lvl'!$A$2:$A$372,$B90,'Division Lvl'!E$2:E$372) -> 22000 | E90: =SUMIF('Division Lvl'!$A$2:$A$372,$B90,'Division Lvl'!F$2:F$372) -> 0 | F90: =SUMIF('Division Lvl'!$A$2:$A$372,$B90,'Division Lvl'!G$2:G$372) -> 0 | G90: =SUMIF('Division Lvl'!$A$2:$A$372,$B90,'Division Lvl'!H$2:H$372) -> 0 | H90: =SUMIF('Division Lvl'!$A$2:$A$372,$B90,'Division Lvl'!I$2:I$372) -> 0 | I90: =SUMIF('Division Lvl'!$A$2:$A$372,$B90,'Division Lvl'!J$2:J$372) -> 0 | J90: =SUMIF('Division Lvl'!$A$2:$A$372,$B90,'Division Lvl'!K$2:K$372) -> 0 | K90: =SUMIF('Division Lvl'!$A$2:$A$372,$B90,'Division Lvl'!L$2:L$372) -> 0 | L90: =SUMIF('Division Lvl'!$A$2:$A$372,$B90,'Division Lvl'!M$2:M$372) -> 0 | M90: =SUMIF('Division Lvl'!$A$2:$A$372,$B90,'Division Lvl'!N$2:N$372) -> 0 | N90: =SUMIF('Division Lvl'!$A$2:$A$372,$B90,'Division Lvl'!P$2:P$372) -> 22000 | O90: =SUMIF('Division Lvl'!$A$2:$A$372,$B90,'Division Lvl'!Q$2:Q$372) -> 0 | P90: =SUMIF('Division Lvl'!$A$2:$A$372,$B90,'Division Lvl'!R$2:R$372) -> 0 | Q90: =SUMIF('Division Lvl'!$A$2:$A$372,$B90,'Division Lvl'!S$2:S$372) -> 0 | R90: =SUMIF('Division Lvl'!$A$2:$A$372,$B90,'Division Lvl'!T$2:T$372) -> 0 | S90: =SUMIF('Division Lvl'!$A$2:$A$372,$B90,'Division Lvl'!U$2:U$372) -> 0 | T90: =SUMIF('Division Lvl'!$A$2:$A$372,$B90,'Division Lvl'!V$2:V$372) -> 0 | U90: =SUMIF('Division Lvl'!$A$2:$A$372,$B90,'Division Lvl'!W$2:W$372) -> 0 | V90: =SUMIF('Division Lvl'!$A$2:$A$372,$B90,'Division Lvl'!X$2:X$372) -> 0 | W90: =SUMIF('Division Lvl'!$A$2:$A$372,$B90,'Division Lvl'!Y$2:Y$372) -> 0 | X90: 22000 | Y90: 22000 | Z90: Std | AA90: =INDEX('Division Lvl'!$AF$2:$AF$372,MATCH(B90,'Division Lvl'!$A$2:$A$372,0)) -> Capacity
A91: =INDEX('Division Lvl'!$AD$2:$AD$372,MATCH(B91,'Division Lvl'!$A$2:$A$372,0)) -> PR | B91: PR713 | C91: =INDEX('Division Lvl'!$B$2:$B$372,MATCH(B91,'Division Lvl'!$A$2:$A$372,0)) -> Box Hill 132/22kV ZS establishment | D91: =SUMIF('Division Lvl'!$A$2:$A$372,$B91,'Division Lvl'!E$2:E$372) -> 0 | E91: =SUMIF('Division Lvl'!$A$2:$A$372,$B91,'Division Lvl'!F$2:F$372) -> 4964000 | F91: =SUMIF('Division Lvl'!$A$2:$A$372,$B91,'Division Lvl'!G$2:G$372) -> 15928000 | G91: =SUMIF('Division Lvl'!$A$2:$A$372,$B91,'Division Lvl'!H$2:H$372) -> 13928000 | H91: =SUMIF('Division Lvl'!$A$2:$A$372,$B91,'Division Lvl'!I$2:I$372) -> 0 | I91: =SUMIF('Division Lvl'!$A$2:$A$372,$B91,'Division Lvl'!J$2:J$372) -> 0 | J91: =SUMIF('Division Lvl'!$A$2:$A$372,$B91,'Division Lvl'!K$2:K$372) -> 0 | K91: =SUMIF('Division Lvl'!$A$2:$A$372,$B91,'Division Lvl'!L$2:L$372) -> 0 | L91: =SUMIF('Division Lvl'!$A$2:$A$372,$B91,'Division Lvl'!M$2:M$372) -> 0 | M91: =SUMIF('Division Lvl'!$A$2:$A$372,$B91,'Division Lvl'!N$2:N$372) -> 0 | N91: =SUMIF('Division Lvl'!$A$2:$A$372,$B91,'Division Lvl'!P$2:P$372) -> 0 | O91: =SUMIF('Division Lvl'!$A$2:$A$372,$B91,'Division Lvl'!Q$2:Q$372) -> 5088100 | P91: =SUMIF('Division Lvl'!$A$2:$A$372,$B91,'Division Lvl'!R$2:R$372) -> 16734355 | Q91: =SUMIF('Division Lvl'!$A$2:$A$372,$B91,'Division Lvl'!S$2:S$372) -> 14998932.62 | R91: =SUMIF('Division Lvl'!$A$2:$A$372,$B91,'Division Lvl'!T$2:T$372) -> 0 | S91: =SUMIF('Division Lvl'!$A$2:$A$372,$B91,'Division Lvl'!U$2:U$372) -> 0 | T91: =SUMIF('Division Lvl'!$A$2:$A$372,$B91,'Division Lvl'!V$2:V$372) -> 0 | U91: =SUMIF('Division Lvl'!$A$2:$A$372,$B91,'Division Lvl'!W$2:W$372) -> 0 | V91: =SUMIF('Division Lvl'!$A$2:$A$372,$B91,'Division Lvl'!X$2:X$372) -> 0 | W91: =SUMIF('Division Lvl'!$A$2:$A$372,$B91,'Division Lvl'!Y$2:Y$372) -> 0 | X91: 34820000 | Y91: 36821387.62 | Z91: Std | AA91: =INDEX('Division Lvl'!$AF$2:$AF$372,MATCH(B91,'Division Lvl'!$A$2:$A$372,0)) -> Network Connection
A92: =INDEX('Division Lvl'!$AD$2:$AD$372,MATCH(B92,'Division Lvl'!$A$2:$A$372,0)) -> PRL | B92: PR717 | C92: =INDEX('Division Lvl'!$B$2:$B$372,MATCH(B92,'Division Lvl'!$A$2:$A$372,0)) -> Acquire improved site for West Dapto ZS | D92: =SUMIF('Division Lvl'!$A$2:$A$372,$B92,'Division Lvl'!E$2:E$372) -> 0 | E92: =SUMIF('Division Lvl'!$A$2:$A$372,$B92,'Division Lvl'!F$2:F$372) -> 2000000 | F92: =SUMIF('Division Lvl'!$A$2:$A$372,$B92,'Division Lvl'!G$2:G$372) -> 0 | G92: =SUMIF('Division Lvl'!$A$2:$A$372,$B92,'Division Lvl'!H$2:H$372) -> 0 | H92: =SUMIF('Division Lvl'!$A$2:$A$372,$B92,'Division Lvl'!I$2:I$372) -> 0 | I92: =SUMIF('Division Lvl'!$A$2:$A$372,$B92,'Division Lvl'!J$2:J$372) -> 0 | J92: =SUMIF('Division Lvl'!$A$2:$A$372,$B92,'Division Lvl'!K$2:K$372) -> 0 | K92: =SUMIF('Division Lvl'!$A$2:$A$372,$B92,'Division Lvl'!L$2:L$372) -> 0 | L92: =SUMIF('Division Lvl'!$A$2:$A$372,$B92,'Division Lvl'!M$2:M$372) -> 0 | M92: =SUMIF('Division Lvl'!$A$2:$A$372,$B92,'Division Lvl'!N$2:N$372) -> 0 | N92: =SUMIF('Division Lvl'!$A$2:$A$372,$B92,'Division Lvl'!P$2:P$372) -> 0 | O92: =SUMIF('Division Lvl'!$A$2:$A$372,$B92,'Division Lvl'!Q$2:Q$372) -> 2050000 | P92: =SUMIF('Division Lvl'!$A$2:$A$372,$B92,'Division Lvl'!R$2:R$372) -> 0 | Q92: =SUMIF('Division Lvl'!$A$2:$A$372,$B92,'Division Lvl'!S$2:S$372) -> 0 | R92: =SUMIF('Division Lvl'!$A$2:$A$372,$B92,'Division Lvl'!T$2:T$372) -> 0 | S92: =SUMIF('Division Lvl'!$A$2:$A$372,$B92,'Division Lvl'!U$2:U$372) -> 0 | T92: =SUMIF('Division Lvl'!$A$2:$A$372,$B92,'Division Lvl'!V$2:V$372) -> 0 | U92: =SUMIF('Division Lvl'!$A$2:$A$372,$B92,'Division Lvl'!W$2:W$372) -> 0 | V92: =SUMIF('Division Lvl'!$A$2:$A$372,$B92,'Division Lvl'!X$2:X$372) -> 0 | W92: =SUMIF('Division Lvl'!$A$2:$A$372,$B92,'Division Lvl'!Y$2:Y$372) -> 0 | X92: 2000000 | Y92: 2050000 | Z92: Std | AA92: =INDEX('Division Lvl'!$AF$2:$AF$372,MATCH(B92,'Division Lvl'!$A$2:$A$372,0)) -> Network Connection
A93: =INDEX('Division Lvl'!$AD$2:$AD$372,MATCH(B93,'Division Lvl'!$A$2:$A$372,0)) -> PR | B93: PR722 | C93: =INDEX('Division Lvl'!$B$2:$B$372,MATCH(B93,'Division Lvl'!$A$2:$A$372,0)) -> Camellia TS connection works for Ausgrid | D93: =SUMIF('Division Lvl'!$A$2:$A$372,$B93,'Division Lvl'!E$2:E$372) -> 187082 | E93: =SUMIF('Division Lvl'!$A$2:$A$372,$B93,'Division Lvl'!F$2:F$372) -> 31070.2439 | F93: =SUMIF('Division Lvl'!$A$2:$A$372,$B93,'Division Lvl'!G$2:G$372) -> 95724.92564 | G93: =SUMIF('Division Lvl'!$A$2:$A$372,$B93,'Division Lvl'!H$2:H$372) -> 0 | H93: =SUMIF('Division Lvl'!$A$2:$A$372,$B93,'Division Lvl'!I$2:I$372) -> 0 | I93: =SUMIF('Division Lvl'!$A$2:$A$372,$B93,'Division Lvl'!J$2:J$372) -> 0 | J93: =SUMIF('Division Lvl'!$A$2:$A$372,$B93,'Division Lvl'!K$2:K$372) -> 0 | K93: =SUMIF('Division Lvl'!$A$2:$A$372,$B93,'Division Lvl'!L$2:L$372) -> 0 | L93: =SUMIF('Division Lvl'!$A$2:$A$372,$B93,'Division Lvl'!M$2:M$372) -> 0 | M93: =SUMIF('Division Lvl'!$A$2:$A$372,$B93,'Division Lvl'!N$2:N$372) -> 0 | N93: =SUMIF('Division Lvl'!$A$2:$A$372,$B93,'Division Lvl'!P$2:P$372) -> 187082 | O93: =SUMIF('Division Lvl'!$A$2:$A$372,$B93,'Division Lvl'!Q$2:Q$372) -> 31847 | P93: =SUMIF('Division Lvl'!$A$2:$A$372,$B93,'Division Lvl'!R$2:R$372) -> 100571 | Q93: =SUMIF('Division Lvl'!$A$2:$A$372,$B93,'Division Lvl'!S$2:S$372) -> 0 | R93: =SUMIF('Division Lvl'!$A$2:$A$372,$B93,'Division Lvl'!T$2:T$372) -> 0 | S93: =SUMIF('Division Lvl'!$A$2:$A$372,$B93,'Division Lvl'!U$2:U$372) -> 0 | T93: =SUMIF('Division Lvl'!$A$2:$A$372,$B93,'Division Lvl'!V$2:V$372) -> 0 | U93: =SUMIF('Division Lvl'!$A$2:$A$372,$B93,'Division Lvl'!W$2:W$372) -> 0 | V93: =SUMIF('Division Lvl'!$A$2:$A$372,$B93,'Division Lvl'!X$2:X$372) -> 0 | W93: =SUMIF('Division Lvl'!$A$2:$A$372,$B93,'Division Lvl'!Y$2:Y$372) -> 0 | X93: 313877.1695 | Y93: 319500 | Z93: Std | AA93: =INDEX('Division Lvl'!$AF$2:$AF$372,MATCH(B93,'Division Lvl'!$A$2:$A$372,0)) -> Network Connection
A94: =INDEX('Division Lvl'!$AD$2:$AD$372,MATCH(B94,'Division Lvl'!$A$2:$A$372,0)) -> PR | B94: PR723 | C94: =INDEX('Division Lvl'!$B$2:$B$372,MATCH(B94,'Division Lvl'!$A$2:$A$372,0)) -> Supply to Luddenham Science Park | D94: =SUMIF('Division Lvl'!$A$2:$A$372,$B94,'Division Lvl'!E$2:E$372) -> 0 | E94: =SUMIF('Division Lvl'!$A$2:$A$372,$B94,'Division Lvl'!F$2:F$372) -> 6104000 | F94: =SUMIF('Division Lvl'!$A$2:$A$372,$B94,'Division Lvl'!G$2:G$372) -> 18208000 | G94: =SUMIF('Division Lvl'!$A$2:$A$372,$B94,'Division Lvl'!H$2:H$372) -> 16208000 | H94: =SUMIF('Division Lvl'!$A$2:$A$372,$B94,'Division Lvl'!I$2:I$372) -> 0 | I94: =SUMIF('Division Lvl'!$A$2:$A$372,$B94,'Division Lvl'!J$2:J$372) -> 0 | J94: =SUMIF('Division Lvl'!$A$2:$A$372,$B94,'Division Lvl'!K$2:K$372) -> 0 | K94: =SUMIF('Division Lvl'!$A$2:$A$372,$B94,'Division Lvl'!L$2:L$372) -> 0 | L94: =SUMIF('Division Lvl'!$A$2:$A$372,$B94,'Division Lvl'!M$2:M$372) -> 0 | M94: =SUMIF('Division Lvl'!$A$2:$A$372,$B94,'Division Lvl'!N$2:N$372) -> 0 | N94: =SUMIF('Division Lvl'!$A$2:$A$372,$B94,'Division Lvl'!P$2:P$372) -> 0 | O94: =SUMIF('Division Lvl'!$A$2:$A$372,$B94,'Division Lvl'!Q$2:Q$372) -> 6256600 | P94: =SUMIF('Division Lvl'!$A$2:$A$372,$B94,'Division Lvl'!R$2:R$372) -> 19129780 | Q94: =SUMIF('Division Lvl'!$A$2:$A$372,$B94,'Division Lvl'!S$2:S$372) -> 17454243.25 | R94: =SUMIF('Division Lvl'!$A$2:$A$372,$B94,'Division Lvl'!T$2:T$372) -> 0 | S94: =SUMIF('Division Lvl'!$A$2:$A$372,$B94,'Division Lvl'!U$2:U$372) -> 0 | T94: =SUMIF('Division Lvl'!$A$2:$A$372,$B94,'Division Lvl'!V$2:V$372) -> 0 | U94: =SUMIF('Division Lvl'!$A$2:$A$372,$B94,'Division Lvl'!W$2:W$372) -> 0 | V94: =SUMIF('Division Lvl'!$A$2:$A$372,$B94,'Division Lvl'!X$2:X$372) -> 0 | W94: =SUMIF('Division Lvl'!$A$2:$A$372,$B94,'Division Lvl'!Y$2:Y$372) -> 0 | X94: 40520000 | Y94: 42840623.25 | Z94: Std | AA94: =INDEX('Division Lvl'!$AF$2:$AF$372,MATCH(B94,'Division Lvl'!$A$2:$A$372,0)) -> Network Connection
A95: =INDEX('Division Lvl'!$AD$2:$AD$372,MATCH(B95,'Division Lvl'!$A$2:$A$372,0)) -> PR | B95: PR724 | C95: =INDEX('Division Lvl'!$B$2:$B$372,MATCH(B95,'Division Lvl'!$A$2:$A$372,0)) -> Establish Mt Gilead ZS | D95: =SUMIF('Division Lvl'!$A$2:$A$372,$B95,'Division Lvl'!E$2:E$372) -> 0 | E95: =SUMIF('Division Lvl'!$A$2:$A$372,$B95,'Division Lvl'!F$2:F$372) -> 0 | F95: =SUMIF('Division Lvl'!$A$2:$A$372,$B95,'Division Lvl'!G$2:G$372) -> 0 | G95: =SUMIF('Division Lvl'!$A$2:$A$372,$B95,'Division Lvl'!H$2:H$372) -> 3854000 | H95: =SUMIF('Division Lvl'!$A$2:$A$372,$B95,'Division Lvl'!I$2:I$372) -> 7708000 | I95: =SUMIF('Division Lvl'!$A$2:$A$372,$B95,'Division Lvl'!J$2:J$372) -> 7708000 | J95: =SUMIF('Division Lvl'!$A$2:$A$372,$B95,'Division Lvl'!K$2:K$372) -> 0 | K95: =SUMIF('Division Lvl'!$A$2:$A$372,$B95,'Division Lvl'!L$2:L$372) -> 0 | L95: =SUMIF('Division Lvl'!$A$2:$A$372,$B95,'Division Lvl'!M$2:M$372) -> 0 | M95: =SUMIF('Division Lvl'!$A$2:$A$372,$B95,'Division Lvl'!N$2:N$372) -> 0 | N95: =SUMIF('Division Lvl'!$A$2:$A$372,$B95,'Division Lvl'!P$2:P$372) -> 0 | O95: =SUMIF('Division Lvl'!$A$2:$A$372,$B95,'Division Lvl'!Q$2:Q$372) -> 0 | P95: =SUMIF('Division Lvl'!$A$2:$A$372,$B95,'Division Lvl'!R$2:R$372) -> 0 | Q95: =SUMIF('Division Lvl'!$A$2:$A$372,$B95,'Division Lvl'!S$2:S$372) -> 4150336.469 | R95: =SUMIF('Division Lvl'!$A$2:$A$372,$B95,'Division Lvl'!T$2:T$372) -> 8508189.761 | S95: =SUMIF('Division Lvl'!$A$2:$A$372,$B95,'Division Lvl'!U$2:U$372) -> 8720894.505 | T95: =SUMIF('Division Lvl'!$A$2:$A$372,$B95,'Division Lvl'!V$2:V$372) -> 0 | U95: =SUMIF('Division Lvl'!$A$2:$A$372,$B95,'Division Lvl'!W$2:W$372) -> 0 | V95: =SUMIF('Division Lvl'!$A$2:$A$372,$B95,'Division Lvl'!X$2:X$372) -> 0 | W95: =SUMIF('Division Lvl'!$A$2:$A$372,$B95,'Division Lvl'!Y$2:Y$372) -> 0 | X95: 19270000 | Y95: 21379420.73 | Z95: Std | AA95: =INDEX('Division Lvl'!$AF$2:$AF$372,MATCH(B95,'Division Lvl'!$A$2:$A$372,0)) -> Network Connection
A96: =INDEX('Division Lvl'!$AD$2:$AD$372,MATCH(B96,'Division Lvl'!$A$2:$A$372,0)) -> PRL | B96: PR727 | C96: =INDEX('Division Lvl'!$B$2:$B$372,MATCH(B96,'Division Lvl'!$A$2:$A$372,0)) -> Luddenham ZS site purchase | D96: =SUMIF('Division Lvl'!$A$2:$A$372,$B96,'Division Lvl'!E$2:E$372) -> 0 | E96: =SUMIF('Division Lvl'!$A$2:$A$372,$B96,'Division Lvl'!F$2:F$372) -> 975609.7561 | F96: =SUMIF('Division Lvl'!$A$2:$A$372,$B96,'Division Lvl'!G$2:G$372) -> 0 | G96: =SUMIF('Division Lvl'!$A$2:$A$372,$B96,'Division Lvl'!H$2:H$372) -> 0 | H96: =SUMIF('Division Lvl'!$A$2:$A$372,$B96,'Division Lvl'!I$2:I$372) -> 0 | I96: =SUMIF('Division Lvl'!$A$2:$A$372,$B96,'Division Lvl'!J$2:J$372) -> 0 | J96: =SUMIF('Division Lvl'!$A$2:$A$372,$B96,'Division Lvl'!K$2:K$372) -> 0 | K96: =SUMIF('Division Lvl'!$A$2:$A$372,$B96,'Division Lvl'!L$2:L$372) -> 0 | L96: =SUMIF('Division Lvl'!$A$2:$A$372,$B96,'Division Lvl'!M$2:M$372) -> 0 | M96: =SUMIF('Division Lvl'!$A$2:$A$372,$B96,'Division Lvl'!N$2:N$372) -> 0 | N96: =SUMIF('Division Lvl'!$A$2:$A$372,$B96,'Division Lvl'!P$2:P$372) -> 0 | O96: =SUMIF('Division Lvl'!$A$2:$A$372,$B96,'Division Lvl'!Q$2:Q$372) -> 1000000 | P96: =SUMIF('Division Lvl'!$A$2:$A$372,$B96,'Division Lvl'!R$2:R$372) -> 0 | Q96: =SUMIF('Division Lvl'!$A$2:$A$372,$B96,'Division Lvl'!S$2:S$372) -> 0 | R96: =SUMIF('Division Lvl'!$A$2:$A$372,$B96,'Division Lvl'!T$2:T$372) -> 0 | S96: =SUMIF('Division Lvl'!$A$2:$A$372,$B96,'Division Lvl'!U$2:U$372) -> 0 | T96: =SUMIF('Division Lvl'!$A$2:$A$372,$B96,'Division Lvl'!V$2:V$372) -> 0 | U96: =SUMIF('Division Lvl'!$A$2:$A$372,$B96,'Division Lvl'!W$2:W$372) -> 0 | V96: =SUMIF('Division Lvl'!$A$2:$A$372,$B96,'Division Lvl'!X$2:X$372) -> 0 | W96: =SUMIF('Division Lvl'!$A$2:$A$372,$B96,'Division Lvl'!Y$2:Y$372) -> 0 | X96: 975609.7561 | Y96: 1000000 | Z96: Std | AA96: =INDEX('Division Lvl'!$AF$2:$AF$372,MATCH(B96,'Division Lvl'!$A$2:$A$372,0)) -> Network Connection
A97: =INDEX('Division Lvl'!$AD$2:$AD$372,MATCH(B97,'Division Lvl'!$A$2:$A$372,0)) -> PR | B97: PR728 | C97: =INDEX('Division Lvl'!$B$2:$B$372,MATCH(B97,'Division Lvl'!$A$2:$A$372,0)) -> Western Sydney Employment Lands ZS | D97: =SUMIF('Division Lvl'!$A$2:$A$372,$B97,'Division Lvl'!E$2:E$372) -> 0 | E97: =SUMIF('Division Lvl'!$A$2:$A$372,$B97,'Division Lvl'!F$2:F$372) -> 0 | F97: =SUMIF('Division Lvl'!$A$2:$A$372,$B97,'Division Lvl'!G$2:G$372) -> 0 | G97: =SUMIF('Division Lvl'!$A$2:$A$372,$B97,'Division Lvl'!H$2:H$372) -> 4696000 | H97: =SUMIF('Division Lvl'!$A$2:$A$372,$B97,'Division Lvl'!I$2:I$372) -> 9392000 | I97: =SUMIF('Division Lvl'!$A$2:$A$372,$B97,'Division Lvl'!J$2:J$372) -> 9392000 | J97: =SUMIF('Division Lvl'!$A$2:$A$372,$B97,'Division Lvl'!K$2:K$372) -> 0 | K97: =SUMIF('Division Lvl'!$A$2:$A$372,$B97,'Division Lvl'!L$2:L$372) -> 0 | L97: =SUMIF('Division Lvl'!$A$2:$A$372,$B97,'Division Lvl'!M$2:M$372) -> 0 | M97: =SUMIF('Division Lvl'!$A$2:$A$372,$B97,'Division Lvl'!N$2:N$372) -> 0 | N97: =SUMIF('Division Lvl'!$A$2:$A$372,$B97,'Division Lvl'!P$2:P$372) -> 0 | O97: =SUMIF('Division Lvl'!$A$2:$A$372,$B97,'Division Lvl'!Q$2:Q$372) -> 0 | P97: =SUMIF('Division Lvl'!$A$2:$A$372,$B97,'Division Lvl'!R$2:R$372) -> 0 | Q97: =SUMIF('Division Lvl'!$A$2:$A$372,$B97,'Division Lvl'!S$2:S$372) -> 5057078.375 | R97: =SUMIF('Division Lvl'!$A$2:$A$372,$B97,'Division Lvl'!T$2:T$372) -> 10367010.67 | S97: =SUMIF('Division Lvl'!$A$2:$A$372,$B97,'Division Lvl'!U$2:U$372) -> 10626185.94 | T97: =SUMIF('Division Lvl'!$A$2:$A$372,$B97,'Division Lvl'!V$2:V$372) -> 0 | U97: =SUMIF('Division Lvl'!$A$2:$A$372,$B97,'Division Lvl'!W$2:W$372) -> 0 | V97: =SUMIF('Division Lvl'!$A$2:$A$372,$B97,'Division Lvl'!X$2:X$372) -> 0 | W97: =SUMIF('Division Lvl'!$A$2:$A$372,$B97,'Division Lvl'!Y$2:Y$372) -> 0 | X97: 23480000 | Y97: 26050274.98 | Z97: Std | AA97: =INDEX('Division Lvl'!$AF$2:$AF$372,MATCH(B97,'Division Lvl'!$A$2:$A$372,0)) -> Network Connection
A98: =INDEX('Division Lvl'!$AD$2:$AD$372,MATCH(B98,'Division Lvl'!$A$2:$A$372,0)) -> PR | B98: PR729 | C98: =INDEX('Division Lvl'!$B$2:$B$372,MATCH(B98,'Division Lvl'!$A$2:$A$372,0)) -> Cheriton Avenue 3rd transformer | D98: =SUMIF('Division Lvl'!$A$2:$A$372,$B98,'Division Lvl'!E$2:E$372) -> 0 | E98: =SUMIF('Division Lvl'!$A$2:$A$372,$B98,'Division Lvl'!F$2:F$372) -> 0 | F98: =SUMIF('Division Lvl'!$A$2:$A$372,$B98,'Division Lvl'!G$2:G$372) -> 0 | G98: =SUMIF('Division Lvl'!$A$2:$A$372,$B98,'Division Lvl'!H$2:H$372) -> 0 | H98: =SUMIF('Division Lvl'!$A$2:$A$372,$B98,'Division Lvl'!I$2:I$372) -> 0 | I98: =SUMIF('Division Lvl'!$A$2:$A$372,$B98,'Division Lvl'!J$2:J$372) -> 0 | J98: =SUMIF('Division Lvl'!$A$2:$A$372,$B98,'Division Lvl'!K$2:K$372) -> 0 | K98: =SUMIF('Division Lvl'!$A$2:$A$372,$B98,'Division Lvl'!L$2:L$372) -> 7480000 | L98: =SUMIF('Division Lvl'!$A$2:$A$372,$B98,'Division Lvl'!M$2:M$372) -> 0 | M98: =SUMIF('Division Lvl'!$A$2:$A$372,$B98,'Division Lvl'!N$2:N$372) -> 0 | N98: =SUMIF('Division Lvl'!$A$2:$A$372,$B98,'Division Lvl'!P$2:P$372) -> 0 | O98: =SUMIF('Division Lvl'!$A$2:$A$372,$B98,'Division Lvl'!Q$2:Q$372) -> 0 | P98: =SUMIF('Division Lvl'!$A$2:$A$372,$B98,'Division Lvl'!R$2:R$372) -> 0 | Q98: =SUMIF('Division Lvl'!$A$2:$A$372,$B98,'Division Lvl'!S$2:S$372) -> 0 | R98: =SUMIF('Division Lvl'!$A$2:$A$372,$B98,'Division Lvl'!T$2:T$372) -> 0 | S98: =SUMIF('Division Lvl'!$A$2:$A$372,$B98,'Division Lvl'!U$2:U$372) -> 0 | T98: =SUMIF('Division Lvl'!$A$2:$A$372,$B98,'Division Lvl'!V$2:V$372) -> 0 | U98: =SUMIF('Division Lvl'!$A$2:$A$372,$B98,'Division Lvl'!W$2:W$372) -> 8891369.437 | V98: =SUMIF('Division Lvl'!$A$2:$A$372,$B98,'Division Lvl'!X$2:X$372) -> 0 | W98: =SUMIF('Division Lvl'!$A$2:$A$372,$B98,'Division Lvl'!Y$2:Y$372) -> 0 | X98: =SUM(D98:M98) -> 7480000 | Y98: =SUM(N98:W98) -> 8891369.437 | Z98: Std | AA98: =INDEX('Division Lvl'!$AF$2:$AF$372,MATCH(B98,'Division Lvl'!$A$2:$A$372,0)) -> Capacity
A99: =INDEX('Division Lvl'!$AD$2:$AD$372,MATCH(B99,'Division Lvl'!$A$2:$A$372,0)) -> PR | B99: PR732 | C99: =INDEX('Division Lvl'!$B$2:$B$372,MATCH(B99,'Division Lvl'!$A$2:$A$372,0)) -> Feeder 214/215 contraints | D99: =SUMIF('Division Lvl'!$A$2:$A$372,$B99,'Division Lvl'!E$2:E$372) -> 0 | E99: =SUMIF('Division Lvl'!$A$2:$A$372,$B99,'Division Lvl'!F$2:F$372) -> 4725000 | F99: =SUMIF('Division Lvl'!$A$2:$A$372,$B99,'Division Lvl'!G$2:G$372) -> 4725000 | G99: =SUMIF('Division Lvl'!$A$2:$A$372,$B99,'Division Lvl'!H$2:H$372) -> 0 | H99: =SUMIF('Division Lvl'!$A$2:$A$372,$B99,'Division Lvl'!I$2:I$372) -> 0 | I99: =SUMIF('Division Lvl'!$A$2:$A$372,$B99,'Division Lvl'!J$2:J$372) -> 0 | J99: =SUMIF('Division Lvl'!$A$2:$A$372,$B99,'Division Lvl'!K$2:K$372) -> 0 | K99: =SUMIF('Division Lvl'!$A$2:$A$372,$B99,'Division Lvl'!L$2:L$372) -> 0 | L99: =SUMIF('Division Lvl'!$A$2:$A$372,$B99,'Division Lvl'!M$2:M$372) -> 0 | M99: =SUMIF('Division Lvl'!$A$2:$A$372,$B99,'Division Lvl'!N$2:N$372) -> 0 | N99: =SUMIF('Division Lvl'!$A$2:$A$372,$B99,'Division Lvl'!P$2:P$372) -> 0 | O99: =SUMIF('Division Lvl'!$A$2:$A$372,$B99,'Division Lvl'!Q$2:Q$372) -> 4843125 | P99: =SUMIF('Division Lvl'!$A$2:$A$372,$B99,'Division Lvl'!R$2:R$372) -> 4964203.125 | Q99: =SUMIF('Division Lvl'!$A$2:$A$372,$B99,'Division Lvl'!S$2:S$372) -> 0 | R99: =SUMIF('Division Lvl'!$A$2:$A$372,$B99,'Division Lvl'!T$2:T$372) -> 0 | S99: =SUMIF('Division Lvl'!$A$2:$A$372,$B99,'Division Lvl'!U$2:U$372) -> 0 | T99: =SUMIF('Division Lvl'!$A$2:$A$372,$B99,'Division Lvl'!V$2:V$372) -> 0 | U99: =SUMIF('Division Lvl'!$A$2:$A$372,$B99,'Division Lvl'!W$2:W$372) -> 0 | V99: =SUMIF('Division Lvl'!$A$2:$A$372,$B99,'Division Lvl'!X$2:X$372) -> 0 | W99: =SUMIF('Division Lvl'!$A$2:$A$372,$B99,'Division Lvl'!Y$2:Y$372) -> 0 | X99: 9450000 | Y99: 9807328.125 | Z99: Std | AA99: =INDEX('Division Lvl'!$AF$2:$AF$372,MATCH(B99,'Division Lvl'!$A$2:$A$372,0)) -> Capacity
A100: =INDEX('Division Lvl'!$AD$2:$AD$372,MATCH(B100,'Division Lvl'!$A$2:$A$372,0)) -> PR | B100: PR733 | C100: =INDEX('Division Lvl'!$B$2:$B$372,MATCH(B100,'Division Lvl'!$A$2:$A$372,0)) -> Bringelly ZS augmentation | D100: =SUMIF('Division Lvl'!$A$2:$A$372,$B100,'Division Lvl'!E$2:E$372) -> 0 | E100: =SUMIF('Division Lvl'!$A$2:$A$372,$B100,'Division Lvl'!F$2:F$372) -> 0 | F100: =SUMIF('Division Lvl'!$A$2:$A$372,$B100,'Division Lvl'!G$2:G$372) -> 0 | G100: =SUMIF('Division Lvl'!$A$2:$A$372,$B100,'Division Lvl'!H$2:H$372) -> 0 | H100: =SUMIF('Division Lvl'!$A$2:$A$372,$B100,'Division Lvl'!I$2:I$372) -> 0 | I100: =SUMIF('Division Lvl'!$A$2:$A$372,$B100,'Division Lvl'!J$2:J$372) -> 0 | J100: =SUMIF('Division Lvl'!$A$2:$A$372,$B100,'Division Lvl'!K$2:K$372) -> 0 | K100: =SUMIF('Division Lvl'!$A$2:$A$372,$B100,'Division Lvl'!L$2:L$372) -> 4134000 | L100: =SUMIF('Division Lvl'!$A$2:$A$372,$B100,'Division Lvl'!M$2:M$372) -> 8268000 | M100: =SUMIF('Division Lvl'!$A$2:$A$372,$B100,'Division Lvl'!N$2:N$372) -> 8268000 | N100: =SUMIF('Division Lvl'!$A$2:$A$372,$B100,'Division Lvl'!P$2:P$372) -> 0 | O100: =SUMIF('Division Lvl'!$A$2:$A$372,$B100,'Division Lvl'!Q$2:Q$372) -> 0 | P100: =SUMIF('Division Lvl'!$A$2:$A$372,$B100,'Division Lvl'!R$2:R$372) -> 0 | Q100: =SUMIF('Division Lvl'!$A$2:$A$372,$B100,'Division Lvl'!S$2:S$372) -> 0 | R100: =SUMIF('Division Lvl'!$A$2:$A$372,$B100,'Division Lvl'!T$2:T$372) -> 0 | S100: =SUMIF('Division Lvl'!$A$2:$A$372,$B100,'Division Lvl'!U$2:U$372) -> 0 | T100: =SUMIF('Division Lvl'!$A$2:$A$372,$B100,'Division Lvl'!V$2:V$372) -> 0 | U100: =SUMIF('Division Lvl'!$A$2:$A$372,$B100,'Division Lvl'!W$2:W$372) -> 4914026.906 | V100: =SUMIF('Division Lvl'!$A$2:$A$372,$B100,'Division Lvl'!X$2:X$372) -> 10073755.16 | W100: =SUMIF('Division Lvl'!$A$2:$A$372,$B100,'Division Lvl'!Y$2:Y$372) -> 10325599.04 | X100: 20670000 | Y100: 25313381.1 | Z100: Std | AA100: =INDEX('Division Lvl'!$AF$2:$AF$372,MATCH(B100,'Division Lvl'!$A$2:$A$372,0)) -> Capacity
A101: =INDEX('Division Lvl'!$AD$2:$AD$372,MATCH(B101,'Division Lvl'!$A$2:$A$372,0)) -> PR | B101: PR739 | C101: =INDEX('Division Lvl'!$B$2:$B$372,MATCH(B101,'Division Lvl'!$A$2:$A$372,0)) -> South Gilead (South Campbelltown) | D101: =SUMIF('Division Lvl'!$A$2:$A$372,$B101,'Division Lvl'!E$2:E$372) -> 0 | E101: =SUMIF('Division Lvl'!$A$2:$A$372,$B101,'Division Lvl'!F$2:F$372) -> 0 | F101: =SUMIF('Division Lvl'!$A$2:$A$372,$B101,'Division Lvl'!G$2:G$372) -> 0 | G101: =SUMIF('Division Lvl'!$A$2:$A$372,$B101,'Division Lvl'!H$2:H$372) -> 0 | H101: =SUMIF('Division Lvl'!$A$2:$A$372,$B101,'Division Lvl'!I$2:I$372) -> 0 | I101: =SUMIF('Division Lvl'!$A$2:$A$372,$B101,'Division Lvl'!J$2:J$372) -> 3854000 | J101: =SUMIF('Division Lvl'!$A$2:$A$372,$B101,'Division Lvl'!K$2:K$372) -> 7708000 | K101: =SUMIF('Division Lvl'!$A$2:$A$372,$B101,'Division Lvl'!L$2:L$372) -> 7708000 | L101: =SUMIF('Division Lvl'!$A$2:$A$372,$B101,'Division Lvl'!M$2:M$372) -> 0 | M101: =SUMIF('Division Lvl'!$A$2:$A$372,$B101,'Division Lvl'!N$2:N$372) -> 0 | N101: =SUMIF('Division Lvl'!$A$2:$A$372,$B101,'Division Lvl'!P$2:P$372) -> 0 | O101: =SUMIF('Division Lvl'!$A$2:$A$372,$B101,'Division Lvl'!Q$2:Q$372) -> 0 | P101: =SUMIF('Division Lvl'!$A$2:$A$372,$B101,'Division Lvl'!R$2:R$372) -> 0 | Q101: =SUMIF('Division Lvl'!$A$2:$A$372,$B101,'Division Lvl'!S$2:S$372) -> 0 | R101: =SUMIF('Division Lvl'!$A$2:$A$372,$B101,'Division Lvl'!T$2:T$372) -> 0 | S101: =SUMIF('Division Lvl'!$A$2:$A$372,$B101,'Division Lvl'!U$2:U$372) -> 4360447.252 | T101: =SUMIF('Division Lvl'!$A$2:$A$372,$B101,'Division Lvl'!V$2:V$372) -> 8938916.868 | U101: =SUMIF('Division Lvl'!$A$2:$A$372,$B101,'Division Lvl'!W$2:W$372) -> 9162389.789 | V101: =SUMIF('Division Lvl'!$A$2:$A$372,$B101,'Division Lvl'!X$2:X$372) -> 0 | W101: =SUMIF('Division Lvl'!$A$2:$A$372,$B101,'Division Lvl'!Y$2:Y$372) -> 0 | X101: 19270000 | Y101: 22461753.91 | Z101: Std | AA101: =INDEX('Division Lvl'!$AF$2:$AF$372,MATCH(B101,'Division Lvl'!$A$2:$A$372,0)) -> Network Connection
A102: =INDEX('Division Lvl'!$AD$2:$AD$372,MATCH(B102,'Division Lvl'!$A$2:$A$372,0)) -> PR | B102: PR740 | C102: =INDEX('Division Lvl'!$B$2:$B$372,MATCH(B102,'Division Lvl'!$A$2:$A$372,0)) -> AFIC upgrade Minto, Prospect, Kingswood | D102: =SUMIF('Division Lvl'!$A$2:$A$372,$B102,'Division Lvl'!E$2:E$372) -> 1900000 | E102: =SUMIF('Division Lvl'!$A$2:$A$372,$B102,'Division Lvl'!F$2:F$372) -> 0 | F102: =SUMIF('Division Lvl'!$A$2:$A$372,$B102,'Division Lvl'!G$2:G$372) -> 0 | G102: =SUMIF('Division Lvl'!$A$2:$A$372,$B102,'Division Lvl'!H$2:H$372) -> 0 | H102: =SUMIF('Division Lvl'!$A$2:$A$372,$B102,'Division Lvl'!I$2:I$372) -> 0 | I102: =SUMIF('Division Lvl'!$A$2:$A$372,$B102,'Division Lvl'!J$2:J$372) -> 0 | J102: =SUMIF('Division Lvl'!$A$2:$A$372,$B102,'Division Lvl'!K$2:K$372) -> 0 | K102: =SUMIF('Division Lvl'!$A$2:$A$372,$B102,'Division Lvl'!L$2:L$372) -> 0 | L102: =SUMIF('Division Lvl'!$A$2:$A$372,$B102,'Division Lvl'!M$2:M$372) -> 0 | M102: =SUMIF('Division Lvl'!$A$2:$A$372,$B102,'Division Lvl'!N$2:N$372) -> 0 | N102: =SUMIF('Division Lvl'!$A$2:$A$372,$B102,'Division Lvl'!P$2:P$372) -> 1900000 | O102: =SUMIF('Division Lvl'!$A$2:$A$372,$B102,'Division Lvl'!Q$2:Q$372) -> 0 | P102: =SUMIF('Division Lvl'!$A$2:$A$372,$B102,'Division Lvl'!R$2:R$372) -> 0 | Q102: =SUMIF('Division Lvl'!$A$2:$A$372,$B102,'Division Lvl'!S$2:S$372) -> 0 | R102: =SUMIF('Division Lvl'!$A$2:$A$372,$B102,'Division Lvl'!T$2:T$372) -> 0 | S102: =SUMIF('Division Lvl'!$A$2:$A$372,$B102,'Division Lvl'!U$2:U$372) -> 0 | T102: =SUMIF('Division Lvl'!$A$2:$A$372,$B102,'Division Lvl'!V$2:V$372) -> 0 | U102: =SUMIF('Division Lvl'!$A$2:$A$372,$B102,'Division Lvl'!W$2:W$372) -> 0 | V102: =SUMIF('Division Lvl'!$A$2:$A$372,$B102,'Division Lvl'!X$2:X$372) -> 0 | W102: =SUMIF('Division Lvl'!$A$2:$A$372,$B102,'Division Lvl'!Y$2:Y$372) -> 0 | X102: 1900000 | Y102: 1900000 | Z102: Std | AA102: =INDEX('Division Lvl'!$AF$2:$AF$372,MATCH(B102,'Division Lvl'!$A$2:$A$372,0)) -> Capacity
A103: =INDEX('Division Lvl'!$AD$2:$AD$372,MATCH(B103,'Division Lvl'!$A$2:$A$372,0)) -> PR | B103: PR741 | C103: =INDEX('Division Lvl'!$B$2:$B$372,MATCH(B103,'Division Lvl'!$A$2:$A$372,0)) -> Western Sydney Airport 132kV supply | D103: =SUMIF('Division Lvl'!$A$2:$A$372,$B103,'Division Lvl'!E$2:E$372) -> 0 | E103: =SUMIF('Division Lvl'!$A$2:$A$372,$B103,'Division Lvl'!F$2:F$372) -> 0 | F103: =SUMIF('Division Lvl'!$A$2:$A$372,$B103,'Division Lvl'!G$2:G$372) -> 0 | G103: =SUMIF('Division Lvl'!$A$2:$A$372,$B103,'Division Lvl'!H$2:H$372) -> 20411167 | H103: =SUMIF('Division Lvl'!$A$2:$A$372,$B103,'Division Lvl'!I$2:I$372) -> 20411167 | I103: =SUMIF('Division Lvl'!$A$2:$A$372,$B103,'Division Lvl'!J$2:J$372) -> 20411167 | J103: =SUMIF('Division Lvl'!$A$2:$A$372,$B103,'Division Lvl'!K$2:K$372) -> 0 | K103: =SUMIF('Division Lvl'!$A$2:$A$372,$B103,'Division Lvl'!L$2:L$372) -> 0 | L103: =SUMIF('Division Lvl'!$A$2:$A$372,$B103,'Division Lvl'!M$2:M$372) -> 0 | M103: =SUMIF('Division Lvl'!$A$2:$A$372,$B103,'Division Lvl'!N$2:N$372) -> 0 | N103: =SUMIF('Division Lvl'!$A$2:$A$372,$B103,'Division Lvl'!P$2:P$372) -> 0 | O103: =SUMIF('Division Lvl'!$A$2:$A$372,$B103,'Division Lvl'!Q$2:Q$372) -> 0 | P103: =SUMIF('Division Lvl'!$A$2:$A$372,$B103,'Division Lvl'!R$2:R$372) -> 0 | Q103: =SUMIF('Division Lvl'!$A$2:$A$372,$B103,'Division Lvl'!S$2:S$372) -> 21980594.39 | R103: =SUMIF('Division Lvl'!$A$2:$A$372,$B103,'Division Lvl'!T$2:T$372) -> 22530109.25 | S103: =SUMIF('Division Lvl'!$A$2:$A$372,$B103,'Division Lvl'!U$2:U$372) -> 23093361.98 | T103: =SUMIF('Division Lvl'!$A$2:$A$372,$B103,'Division Lvl'!V$2:V$372) -> 0 | U103: =SUMIF('Division Lvl'!$A$2:$A$372,$B103,'Division Lvl'!W$2:W$372) -> 0 | V103: =SUMIF('Division Lvl'!$A$2:$A$372,$B103,'Division Lvl'!X$2:X$372) -> 0 | W103: =SUMIF('Division Lvl'!$A$2:$A$372,$B103,'Division Lvl'!Y$2:Y$372) -> 0 | X103: 61233501 | Y103: 67604065.61 | Z103: Std | AA103: =INDEX('Division Lvl'!$AF$2:$AF$372,MATCH(B103,'Division Lvl'!$A$2:$A$372,0)) -> Network Connection
A104: =INDEX('Division Lvl'!$AD$2:$AD$372,MATCH(B104,'Division Lvl'!$A$2:$A$372,0)) -> PR | B104: PR742 | C104: =INDEX('Division Lvl'!$B$2:$B$372,MATCH(B104,'Division Lvl'!$A$2:$A$372,0)) -> North Bomaderry ZS establishment | D104: =SUMIF('Division Lvl'!$A$2:$A$372,$B104,'Division Lvl'!E$2:E$372) -> 0 | E104: =SUMIF('Division Lvl'!$A$2:$A$372,$B104,'Division Lvl'!F$2:F$372) -> 0 | F104: =SUMIF('Division Lvl'!$A$2:$A$372,$B104,'Division Lvl'!G$2:G$372) -> 0 | G104: =SUMIF('Division Lvl'!$A$2:$A$372,$B104,'Division Lvl'!H$2:H$372) -> 3692000 | H104: =SUMIF('Division Lvl'!$A$2:$A$372,$B104,'Division Lvl'!I$2:I$372) -> 7384000 | I104: =SUMIF('Division Lvl'!$A$2:$A$372,$B104,'Division Lvl'!J$2:J$372) -> 7384000 | J104: =SUMIF('Division Lvl'!$A$2:$A$372,$B104,'Division Lvl'!K$2:K$372) -> 0 | K104: =SUMIF('Division Lvl'!$A$2:$A$372,$B104,'Division Lvl'!L$2:L$372) -> 0 | L104: =SUMIF('Division Lvl'!$A$2:$A$372,$B104,'Division Lvl'!M$2:M$372) -> 0 | M104: =SUMIF('Division Lvl'!$A$2:$A$372,$B104,'Division Lvl'!N$2:N$372) -> 0 | N104: =SUMIF('Division Lvl'!$A$2:$A$372,$B104,'Division Lvl'!P$2:P$372) -> 0 | O104: =SUMIF('Division Lvl'!$A$2:$A$372,$B104,'Division Lvl'!Q$2:Q$372) -> 0 | P104: =SUMIF('Division Lvl'!$A$2:$A$372,$B104,'Division Lvl'!R$2:R$372) -> 0 | Q104: =SUMIF('Division Lvl'!$A$2:$A$372,$B104,'Division Lvl'!S$2:S$372) -> 3975880.187 | R104: =SUMIF('Division Lvl'!$A$2:$A$372,$B104,'Division Lvl'!T$2:T$372) -> 8150554.384 | S104: =SUMIF('Division Lvl'!$A$2:$A$372,$B104,'Division Lvl'!U$2:U$372) -> 8354318.244 | T104: =SUMIF('Division Lvl'!$A$2:$A$372,$B104,'Division Lvl'!V$2:V$372) -> 0 | U104: =SUMIF('Division Lvl'!$A$2:$A$372,$B104,'Division Lvl'!W$2:W$372) -> 0 | V104: =SUMIF('Division Lvl'!$A$2:$A$372,$B104,'Division Lvl'!X$2:X$372) -> 0 | W104: =SUMIF('Division Lvl'!$A$2:$A$372,$B104,'Division Lvl'!Y$2:Y$372) -> 0 | X104: 18460000 | Y104: 20480752.82 | Z104: Std | AA104: =INDEX('Division Lvl'!$AF$2:$AF$372,MATCH(B104,'Division Lvl'!$A$2:$A$372,0)) -> Network Connection
A105: =INDEX('Division Lvl'!$AD$2:$AD$372,MATCH(B105,'Division Lvl'!$A$2:$A$372,0)) -> PR | B105: PR744 | C105: =INDEX('Division Lvl'!$B$2:$B$372,MATCH(B105,'Division Lvl'!$A$2:$A$372,0)) -> Termeil ZS establishment | D105: =SUMIF('Division Lvl'!$A$2:$A$372,$B105,'Division Lvl'!E$2:E$372) -> 0 | E105: =SUMIF('Division Lvl'!$A$2:$A$372,$B105,'Division Lvl'!F$2:F$372) -> 0 | F105: =SUMIF('Division Lvl'!$A$2:$A$372,$B105,'Division Lvl'!G$2:G$372) -> 0 | G105: =SUMIF('Division Lvl'!$A$2:$A$372,$B105,'Division Lvl'!H$2:H$372) -> 0 | H105: =SUMIF('Division Lvl'!$A$2:$A$372,$B105,'Division Lvl'!I$2:I$372) -> 3972500 | I105: =SUMIF('Division Lvl'!$A$2:$A$372,$B105,'Division Lvl'!J$2:J$372) -> 3972500 | J105: =SUMIF('Division Lvl'!$A$2:$A$372,$B105,'Division Lvl'!K$2:K$372) -> 0 | K105: =SUMIF('Division Lvl'!$A$2:$A$372,$B105,'Division Lvl'!L$2:L$372) -> 0 | L105: =SUMIF('Division Lvl'!$A$2:$A$372,$B105,'Division Lvl'!M$2:M$372) -> 0 | M105: =SUMIF('Division Lvl'!$A$2:$A$372,$B105,'Division Lvl'!N$2:N$372) -> 0 | N105: =SUMIF('Division Lvl'!$A$2:$A$372,$B105,'Division Lvl'!P$2:P$372) -> 0 | O105: =SUMIF('Division Lvl'!$A$2:$A$372,$B105,'Division Lvl'!Q$2:Q$372) -> 0 | P105: =SUMIF('Division Lvl'!$A$2:$A$372,$B105,'Division Lvl'!R$2:R$372) -> 0 | Q105: =SUMIF('Division Lvl'!$A$2:$A$372,$B105,'Division Lvl'!S$2:S$372) -> 0 | R105: =SUMIF('Division Lvl'!$A$2:$A$372,$B105,'Division Lvl'!T$2:T$372) -> 4384896.708 | S105: =SUMIF('Division Lvl'!$A$2:$A$372,$B105,'Division Lvl'!U$2:U$372) -> 4494519.126 | T105: =SUMIF('Division Lvl'!$A$2:$A$372,$B105,'Division Lvl'!V$2:V$372) -> 0 | U105: =SUMIF('Division Lvl'!$A$2:$A$372,$B105,'Division Lvl'!W$2:W$372) -> 0 | V105: =SUMIF('Division Lvl'!$A$2:$A$372,$B105,'Division Lvl'!X$2:X$372) -> 0 | W105: =SUMIF('Division Lvl'!$A$2:$A$372,$B105,'Division Lvl'!Y$2:Y$372) -> 0 | X105: 7945000 | Y105: 8879415.834 | Z105: Std | AA105: =INDEX('Division Lvl'!$AF$2:$AF$372,MATCH(B105,'Division Lvl'!$A$2:$A$372,0)) -> Network Connection
A106: =INDEX('Division Lvl'!$AD$2:$AD$372,MATCH(B106,'Division Lvl'!$A$2:$A$372,0)) -> PR | B106: PR745 | C106: =INDEX('Division Lvl'!$B$2:$B$372,MATCH(B106,'Division Lvl'!$A$2:$A$372,0)) -> Austral Permanent ZS establishment | D106: =SUMIF('Division Lvl'!$A$2:$A$372,$B106,'Division Lvl'!E$2:E$372) -> 0 | E106: =SUMIF('Division Lvl'!$A$2:$A$372,$B106,'Division Lvl'!F$2:F$372) -> 0 | F106: =SUMIF('Division Lvl'!$A$2:$A$372,$B106,'Division Lvl'!G$2:G$372) -> 0 | G106: =SUMIF('Division Lvl'!$A$2:$A$372,$B106,'Division Lvl'!H$2:H$372) -> 0 | H106: =SUMIF('Division Lvl'!$A$2:$A$372,$B106,'Division Lvl'!I$2:I$372) -> 0 | I106: =SUMIF('Division Lvl'!$A$2:$A$372,$B106,'Division Lvl'!J$2:J$372) -> 0 | J106: =SUMIF('Division Lvl'!$A$2:$A$372,$B106,'Division Lvl'!K$2:K$372) -> 11295000 | K106: =SUMIF('Division Lvl'!$A$2:$A$372,$B106,'Division Lvl'!L$2:L$372) -> 11295000 | L106: =SUMIF('Division Lvl'!$A$2:$A$372,$B106,'Division Lvl'!M$2:M$372) -> 0 | M106: =SUMIF('Division Lvl'!$A$2:$A$372,$B106,'Division Lvl'!N$2:N$372) -> 0 | N106: =SUMIF('Division Lvl'!$A$2:$A$372,$B106,'Division Lvl'!P$2:P$372) -> 0 | O106: =SUMIF('Division Lvl'!$A$2:$A$372,$B106,'Division Lvl'!Q$2:Q$372) -> 0 | P106: =SUMIF('Division Lvl'!$A$2:$A$372,$B106,'Division Lvl'!R$2:R$372) -> 0 | Q106: =SUMIF('Division Lvl'!$A$2:$A$372,$B106,'Division Lvl'!S$2:S$372) -> 0 | R106: =SUMIF('Division Lvl'!$A$2:$A$372,$B106,'Division Lvl'!T$2:T$372) -> 0 | S106: =SUMIF('Division Lvl'!$A$2:$A$372,$B106,'Division Lvl'!U$2:U$372) -> 0 | T106: =SUMIF('Division Lvl'!$A$2:$A$372,$B106,'Division Lvl'!V$2:V$372) -> 13098737.16 | U106: =SUMIF('Division Lvl'!$A$2:$A$372,$B106,'Division Lvl'!W$2:W$372) -> 13426205.59 | V106: =SUMIF('Division Lvl'!$A$2:$A$372,$B106,'Division Lvl'!X$2:X$372) -> 0 | W106: =SUMIF('Division Lvl'!$A$2:$A$372,$B106,'Division Lvl'!Y$2:Y$372) -> 0 | X106: 22590000 | Y106: 26524942.75 | Z106: Std | AA106: =INDEX('Division Lvl'!$AF$2:$AF$372,MATCH(B106,'Division Lvl'!$A$2:$A$372,0)) -> Network Connection
A107: =INDEX('Division Lvl'!$AD$2:$AD$372,MATCH(B107,'Division Lvl'!$A$2:$A$372,0)) -> PR | B107: PR746 | C107: =INDEX('Division Lvl'!$B$2:$B$372,MATCH(B107,'Division Lvl'!$A$2:$A$372,0)) -> Sydney University - Western Sydney Employment Lands ZS establishment | D107: =SUMIF('Division Lvl'!$A$2:$A$372,$B107,'Division Lvl'!E$2:E$372) -> 0 | E107: =SUMIF('Division Lvl'!$A$2:$A$372,$B107,'Division Lvl'!F$2:F$372) -> 0 | F107: =SUMIF('Division Lvl'!$A$2:$A$372,$B107,'Division Lvl'!G$2:G$372) -> 0 | G107: =SUMIF('Division Lvl'!$A$2:$A$372,$B107,'Division Lvl'!H$2:H$372) -> 0 | H107: =SUMIF('Division Lvl'!$A$2:$A$372,$B107,'Division Lvl'!I$2:I$372) -> 0 | I107: =SUMIF('Division Lvl'!$A$2:$A$372,$B107,'Division Lvl'!J$2:J$372) -> 0 | J107: =SUMIF('Division Lvl'!$A$2:$A$372,$B107,'Division Lvl'!K$2:K$372) -> 0 | K107: =SUMIF('Division Lvl'!$A$2:$A$372,$B107,'Division Lvl'!L$2:L$372) -> 0 | L107: =SUMIF('Division Lvl'!$A$2:$A$372,$B107,'Division Lvl'!M$2:M$372) -> 12240000 | M107: =SUMIF('Division Lvl'!$A$2:$A$372,$B107,'Division Lvl'!N$2:N$372) -> 12240000 | N107: =SUMIF('Division Lvl'!$A$2:$A$372,$B107,'Division Lvl'!P$2:P$372) -> 0 | O107: =SUMIF('Division Lvl'!$A$2:$A$372,$B107,'Division Lvl'!Q$2:Q$372) -> 0 | P107: =SUMIF('Division Lvl'!$A$2:$A$372,$B107,'Division Lvl'!R$2:R$372) -> 0 | Q107: =SUMIF('Division Lvl'!$A$2:$A$372,$B107,'Division Lvl'!S$2:S$372) -> 0 | R107: =SUMIF('Division Lvl'!$A$2:$A$372,$B107,'Division Lvl'!T$2:T$372) -> 0 | S107: =SUMIF('Division Lvl'!$A$2:$A$372,$B107,'Division Lvl'!U$2:U$372) -> 0 | T107: =SUMIF('Division Lvl'!$A$2:$A$372,$B107,'Division Lvl'!V$2:V$372) -> 0 | U107: =SUMIF('Division Lvl'!$A$2:$A$372,$B107,'Division Lvl'!W$2:W$372) -> 0 | V107: =SUMIF('Division Lvl'!$A$2:$A$372,$B107,'Division Lvl'!X$2:X$372) -> 14913251.47 | W107: =SUMIF('Division Lvl'!$A$2:$A$372,$B107,'Division Lvl'!Y$2:Y$372) -> 15286082.75 | X107: 24480000 | Y107: 30199334.22 | Z107: Std | AA107: =INDEX('Division Lvl'!$AF$2:$AF$372,MATCH(B107,'Division Lvl'!$A$2:$A$372,0)) -> Network Connection
A108: =INDEX('Division Lvl'!$AD$2:$AD$372,MATCH(B108,'Division Lvl'!$A$2:$A$372,0)) -> PR | B108: PR748 | C108: =INDEX('Division Lvl'!$B$2:$B$372,MATCH(B108,'Division Lvl'!$A$2:$A$372,0)) -> Establish permanent Catherine Park ZS | D108: =SUMIF('Division Lvl'!$A$2:$A$372,$B108,'Division Lvl'!E$2:E$372) -> 0 | E108: =SUMIF('Division Lvl'!$A$2:$A$372,$B108,'Division Lvl'!F$2:F$372) -> 0 | F108: =SUMIF('Division Lvl'!$A$2:$A$372,$B108,'Division Lvl'!G$2:G$372) -> 0 | G108: =SUMIF('Division Lvl'!$A$2:$A$372,$B108,'Division Lvl'!H$2:H$372) -> 1913000 | H108: =SUMIF('Division Lvl'!$A$2:$A$372,$B108,'Division Lvl'!I$2:I$372) -> 3827000 | I108: =SUMIF('Division Lvl'!$A$2:$A$372,$B108,'Division Lvl'!J$2:J$372) -> 3827000 | J108: =SUMIF('Division Lvl'!$A$2:$A$372,$B108,'Division Lvl'!K$2:K$372) -> 0 | K108: =SUMIF('Division Lvl'!$A$2:$A$372,$B108,'Division Lvl'!L$2:L$372) -> 0 | L108: =SUMIF('Division Lvl'!$A$2:$A$372,$B108,'Division Lvl'!M$2:M$372) -> 0 | M108: =SUMIF('Division Lvl'!$A$2:$A$372,$B108,'Division Lvl'!N$2:N$372) -> 0 | N108: =SUMIF('Division Lvl'!$A$2:$A$372,$B108,'Division Lvl'!P$2:P$372) -> 0 | O108: =SUMIF('Division Lvl'!$A$2:$A$372,$B108,'Division Lvl'!Q$2:Q$372) -> 0 | P108: =SUMIF('Division Lvl'!$A$2:$A$372,$B108,'Division Lvl'!R$2:R$372) -> 0 | Q108: =SUMIF('Division Lvl'!$A$2:$A$372,$B108,'Division Lvl'!S$2:S$372) -> 2060091.766 | R108: =SUMIF('Division Lvl'!$A$2:$A$372,$B108,'Division Lvl'!T$2:T$372) -> 4224291.932 | S108: =SUMIF('Division Lvl'!$A$2:$A$372,$B108,'Division Lvl'!U$2:U$372) -> 4329899.231 | T108: =SUMIF('Division Lvl'!$A$2:$A$372,$B108,'Division Lvl'!V$2:V$372) -> 0 | U108: =SUMIF('Division Lvl'!$A$2:$A$372,$B108,'Division Lvl'!W$2:W$372) -> 0 | V108: =SUMIF('Division Lvl'!$A$2:$A$372,$B108,'Division Lvl'!X$2:X$372) -> 0 | W108: =SUMIF('Division Lvl'!$A$2:$A$372,$B108,'Division Lvl'!Y$2:Y$372) -> 0 | X108: 9567000 | Y108: 10614282.93 | Z108: Std | AA108: =INDEX('Division Lvl'!$AF$2:$AF$372,MATCH(B108,'Division Lvl'!$A$2:$A$372,0)) -> Network Connection
A109: =INDEX('Division Lvl'!$AD$2:$AD$372,MATCH(B109,'Division Lvl'!$A$2:$A$372,0)) -> PR | B109: PR749 | C109: =INDEX('Division Lvl'!$B$2:$B$372,MATCH(B109,'Division Lvl'!$A$2:$A$372,0)) -> Nepean ZS augmentation | D109: =SUMIF('Division Lvl'!$A$2:$A$372,$B109,'Division Lvl'!E$2:E$372) -> 0 | E109: =SUMIF('Division Lvl'!$A$2:$A$372,$B109,'Division Lvl'!F$2:F$372) -> 0 | F109: =SUMIF('Division Lvl'!$A$2:$A$372,$B109,'Division Lvl'!G$2:G$372) -> 0 | G109: =SUMIF('Division Lvl'!$A$2:$A$372,$B109,'Division Lvl'!H$2:H$372) -> 0 | H109: =SUMIF('Division Lvl'!$A$2:$A$372,$B109,'Division Lvl'!I$2:I$372) -> 0 | I109: =SUMIF('Division Lvl'!$A$2:$A$372,$B109,'Division Lvl'!J$2:J$372) -> 0 | J109: =SUMIF('Division Lvl'!$A$2:$A$372,$B109,'Division Lvl'!K$2:K$372) -> 7102439.024 | K109: =SUMIF('Division Lvl'!$A$2:$A$372,$B109,'Division Lvl'!L$2:L$372) -> 0 | L109: =SUMIF('Division Lvl'!$A$2:$A$372,$B109,'Division Lvl'!M$2:M$372) -> 0 | M109: =SUMIF('Division Lvl'!$A$2:$A$372,$B109,'Division Lvl'!N$2:N$372) -> 0 | N109: =SUMIF('Division Lvl'!$A$2:$A$372,$B109,'Division Lvl'!P$2:P$372) -> 0 | O109: =SUMIF('Division Lvl'!$A$2:$A$372,$B109,'Division Lvl'!Q$2:Q$372) -> 0 | P109: =SUMIF('Division Lvl'!$A$2:$A$372,$B109,'Division Lvl'!R$2:R$372) -> 0 | Q109: =SUMIF('Division Lvl'!$A$2:$A$372,$B109,'Division Lvl'!S$2:S$372) -> 0 | R109: =SUMIF('Division Lvl'!$A$2:$A$372,$B109,'Division Lvl'!T$2:T$372) -> 0 | S109: =SUMIF('Division Lvl'!$A$2:$A$372,$B109,'Division Lvl'!U$2:U$372) -> 0 | T109: =SUMIF('Division Lvl'!$A$2:$A$372,$B109,'Division Lvl'!V$2:V$372) -> 8236651.79 | U109: =SUMIF('Division Lvl'!$A$2:$A$372,$B109,'Division Lvl'!W$2:W$372) -> 0 | V109: =SUMIF('Division Lvl'!$A$2:$A$372,$B109,'Division Lvl'!X$2:X$372) -> 0 | W109: =SUMIF('Division Lvl'!$A$2:$A$372,$B109,'Division Lvl'!Y$2:Y$372) -> 0 | X109: 7102439.024 | Y109: 8236651.79 | Z109: Std | AA109: =INDEX('Division Lvl'!$AF$2:$AF$372,MATCH(B109,'Division Lvl'!$A$2:$A$372,0)) -> Capacity
A110: =INDEX('Division Lvl'!$AD$2:$AD$372,MATCH(B110,'Division Lvl'!$A$2:$A$372,0)) -> PR | B110: PR750 | C110: =INDEX('Division Lvl'!$B$2:$B$372,MATCH(B110,'Division Lvl'!$A$2:$A$372,0)) -> Feeder 512 augmentation | D110: =SUMIF('Division Lvl'!$A$2:$A$372,$B110,'Division Lvl'!E$2:E$372) -> 280000 | E110: =SUMIF('Division Lvl'!$A$2:$A$372,$B110,'Division Lvl'!F$2:F$372) -> 0 | F110: =SUMIF('Division Lvl'!$A$2:$A$372,$B110,'Division Lvl'!G$2:G$372) -> 0 | G110: =SUMIF('Division Lvl'!$A$2:$A$372,$B110,'Division Lvl'!H$2:H$372) -> 0 | H110: =SUMIF('Division Lvl'!$A$2:$A$372,$B110,'Division Lvl'!I$2:I$372) -> 0 | I110: =SUMIF('Division Lvl'!$A$2:$A$372,$B110,'Division Lvl'!J$2:J$372) -> 0 | J110: =SUMIF('Division Lvl'!$A$2:$A$372,$B110,'Division Lvl'!K$2:K$372) -> 0 | K110: =SUMIF('Division Lvl'!$A$2:$A$372,$B110,'Division Lvl'!L$2:L$372) -> 0 | L110: =SUMIF('Division Lvl'!$A$2:$A$372,$B110,'Division Lvl'!M$2:M$372) -> 0 | M110: =SUMIF('Division Lvl'!$A$2:$A$372,$B110,'Division Lvl'!N$2:N$372) -> 0 | N110: =SUMIF('Division Lvl'!$A$2:$A$372,$B110,'Division Lvl'!P$2:P$372) -> 280000 | O110: =SUMIF('Division Lvl'!$A$2:$A$372,$B110,'Division Lvl'!Q$2:Q$372) -> 0 | P110: =SUMIF('Division Lvl'!$A$2:$A$372,$B110,'Division Lvl'!R$2:R$372) -> 0 | Q110: =SUMIF('Division Lvl'!$A$2:$A$372,$B110,'Division Lvl'!S$2:S$372) -> 0 | R110: =SUMIF('Division Lvl'!$A$2:$A$372,$B110,'Division Lvl'!T$2:T$372) -> 0 | S110: =SUMIF('Division Lvl'!$A$2:$A$372,$B110,'Division Lvl'!U$2:U$372) -> 0 | T110: =SUMIF('Division Lvl'!$A$2:$A$372,$B110,'Division Lvl'!V$2:V$372) -> 0 | U110: =SUMIF('Division Lvl'!$A$2:$A$372,$B110,'Division Lvl'!W$2:W$372) -> 0 | V110: =SUMIF('Division Lvl'!$A$2:$A$372,$B110,'Division Lvl'!X$2:X$372) -> 0 | W110: =SUMIF('Division Lvl'!$A$2:$A$372,$B110,'Division Lvl'!Y$2:Y$372) -> 0 | X110: 280000 | Y110: 280000 | Z110: Std | AA110: =INDEX('Division Lvl'!$AF$2:$AF$372,MATCH(B110,'Division Lvl'!$A$2:$A$372,0)) -> Capacity
A111: =INDEX('Division Lvl'!$AD$2:$AD$372,MATCH(B111,'Division Lvl'!$A$2:$A$372,0)) -> PR | B111: PR751 | C111: =INDEX('Division Lvl'!$B$2:$B$372,MATCH(B111,'Division Lvl'!$A$2:$A$372,0)) -> Parklea ZS to Bella Vista ZS load transfer | D111: =SUMIF('Division Lvl'!$A$2:$A$372,$B111,'Division Lvl'!E$2:E$372) -> 0 | E111: =SUMIF('Division Lvl'!$A$2:$A$372,$B111,'Division Lvl'!F$2:F$372) -> 4000000 | F111: =SUMIF('Division Lvl'!$A$2:$A$372,$B111,'Division Lvl'!G$2:G$372) -> 0 | G111: =SUMIF('Division Lvl'!$A$2:$A$372,$B111,'Division Lvl'!H$2:H$372) -> 0 | H111: =SUMIF('Division Lvl'!$A$2:$A$372,$B111,'Division Lvl'!I$2:I$372) -> 0 | I111: =SUMIF('Division Lvl'!$A$2:$A$372,$B111,'Division Lvl'!J$2:J$372) -> 0 | J111: =SUMIF('Division Lvl'!$A$2:$A$372,$B111,'Division Lvl'!K$2:K$372) -> 0 | K111: =SUMIF('Division Lvl'!$A$2:$A$372,$B111,'Division Lvl'!L$2:L$372) -> 0 | L111: =SUMIF('Division Lvl'!$A$2:$A$372,$B111,'Division Lvl'!M$2:M$372) -> 0 | M111: =SUMIF('Division Lvl'!$A$2:$A$372,$B111,'Division Lvl'!N$2:N$372) -> 0 | N111: =SUMIF('Division Lvl'!$A$2:$A$372,$B111,'Division Lvl'!P$2:P$372) -> 0 | O111: =SUMIF('Division Lvl'!$A$2:$A$372,$B111,'Division Lvl'!Q$2:Q$372) -> 4100000 | P111: =SUMIF('Division Lvl'!$A$2:$A$372,$B111,'Division Lvl'!R$2:R$372) -> 0 | Q111: =SUMIF('Division Lvl'!$A$2:$A$372,$B111,'Division Lvl'!S$2:S$372) -> 0 | R111: =SUMIF('Division Lvl'!$A$2:$A$372,$B111,'Division Lvl'!T$2:T$372) -> 0 | S111: =SUMIF('Division Lvl'!$A$2:$A$372,$B111,'Division Lvl'!U$2:U$372) -> 0 | T111: =SUMIF('Division Lvl'!$A$2:$A$372,$B111,'Division Lvl'!V$2:V$372) -> 0 | U111: =SUMIF('Division Lvl'!$A$2:$A$372,$B111,'Division Lvl'!W$2:W$372) -> 0 | V111: =SUMIF('Division Lvl'!$A$2:$A$372,$B111,'Division Lvl'!X$2:X$372) -> 0 | W111: =SUMIF('Division Lvl'!$A$2:$A$372,$B111,'Division Lvl'!Y$2:Y$372) -> 0 | X111: 4000000 | Y111: 4100000 | Z111: Std | AA111: =INDEX('Division Lvl'!$AF$2:$AF$372,MATCH(B111,'Division Lvl'!$A$2:$A$372,0)) -> Capacity
A112: =INDEX('Division Lvl'!$AD$2:$AD$372,MATCH(B112,'Division Lvl'!$A$2:$A$372,0)) -> PR | B112: PR752 | C112: =INDEX('Division Lvl'!$B$2:$B$372,MATCH(B112,'Division Lvl'!$A$2:$A$372,0)) -> Kemps Creek 132kV conversion | D112: =SUMIF('Division Lvl'!$A$2:$A$372,$B112,'Division Lvl'!E$2:E$372) -> 0 | E112: =SUMIF('Division Lvl'!$A$2:$A$372,$B112,'Division Lvl'!F$2:F$372) -> 0 | F112: =SUMIF('Division Lvl'!$A$2:$A$372,$B112,'Division Lvl'!G$2:G$372) -> 0 | G112: =SUMIF('Division Lvl'!$A$2:$A$372,$B112,'Division Lvl'!H$2:H$372) -> 0 | H112: =SUMIF('Division Lvl'!$A$2:$A$372,$B112,'Division Lvl'!I$2:I$372) -> 0 | I112: =SUMIF('Division Lvl'!$A$2:$A$372,$B112,'Division Lvl'!J$2:J$372) -> 0 | J112: =SUMIF('Division Lvl'!$A$2:$A$372,$B112,'Division Lvl'!K$2:K$372) -> 20762000 | K112: =SUMIF('Division Lvl'!$A$2:$A$372,$B112,'Division Lvl'!L$2:L$372) -> 8898000 | L112: =SUMIF('Division Lvl'!$A$2:$A$372,$B112,'Division Lvl'!M$2:M$372) -> 0 | M112: =SUMIF('Division Lvl'!$A$2:$A$372,$B112,'Division Lvl'!N$2:N$372) -> 0 | N112: =SUMIF('Division Lvl'!$A$2:$A$372,$B112,'Division Lvl'!P$2:P$372) -> 0 | O112: =SUMIF('Division Lvl'!$A$2:$A$372,$B112,'Division Lvl'!Q$2:Q$372) -> 0 | P112: =SUMIF('Division Lvl'!$A$2:$A$372,$B112,'Division Lvl'!R$2:R$372) -> 0 | Q112: =SUMIF('Division Lvl'!$A$2:$A$372,$B112,'Division Lvl'!S$2:S$372) -> 0 | R112: =SUMIF('Division Lvl'!$A$2:$A$372,$B112,'Division Lvl'!T$2:T$372) -> 0 | S112: =SUMIF('Division Lvl'!$A$2:$A$372,$B112,'Division Lvl'!U$2:U$372) -> 0 | T112: =SUMIF('Division Lvl'!$A$2:$A$372,$B112,'Division Lvl'!V$2:V$372) -> 24077554.75 | U112: =SUMIF('Division Lvl'!$A$2:$A$372,$B112,'Division Lvl'!W$2:W$372) -> 10576925.84 | V112: =SUMIF('Division Lvl'!$A$2:$A$372,$B112,'Division Lvl'!X$2:X$372) -> 0 | W112: =SUMIF('Division Lvl'!$A$2:$A$372,$B112,'Division Lvl'!Y$2:Y$372) -> 0 | X112: 29660000 | Y112: 34654480.59 | Z112: Std | AA112: =INDEX('Division Lvl'!$AF$2:$AF$372,MATCH(B112,'Division Lvl'!$A$2:$A$372,0)) -> Capacity
A113: =INDEX('Division Lvl'!$AD$2:$AD$372,MATCH(B113,'Division Lvl'!$A$2:$A$372,0)) -> PR | B113: PR754 | C113: =INDEX('Division Lvl'!$B$2:$B$372,MATCH(B113,'Division Lvl'!$A$2:$A$372,0)) -> Augment Westmead Zone Substation | D113: =SUMIF('Division Lvl'!$A$2:$A$372,$B113,'Division Lvl'!E$2:E$372) -> 0 | E113: =SUMIF('Division Lvl'!$A$2:$A$372,$B113,'Division Lvl'!F$2:F$372) -> 0 | F113: =SUMIF('Division Lvl'!$A$2:$A$372,$B113,'Division Lvl'!G$2:G$372) -> 0 | G113: =SUMIF('Division Lvl'!$A$2:$A$372,$B113,'Division Lvl'!H$2:H$372) -> 0 | H113: =SUMIF('Division Lvl'!$A$2:$A$372,$B113,'Division Lvl'!I$2:I$372) -> 6417500 | I113: =SUMIF('Division Lvl'!$A$2:$A$372,$B113,'Division Lvl'!J$2:J$372) -> 6417500 | J113: =SUMIF('Division Lvl'!$A$2:$A$372,$B113,'Division Lvl'!K$2:K$372) -> 6040000 | K113: =SUMIF('Division Lvl'!$A$2:$A$372,$B113,'Division Lvl'!L$2:L$372) -> 0 | L113: =SUMIF('Division Lvl'!$A$2:$A$372,$B113,'Division Lvl'!M$2:M$372) -> 0 | M113: =SUMIF('Division Lvl'!$A$2:$A$372,$B113,'Division Lvl'!N$2:N$372) -> 0 | N113: =SUMIF('Division Lvl'!$A$2:$A$372,$B113,'Division Lvl'!P$2:P$372) -> 0 | O113: =SUMIF('Division Lvl'!$A$2:$A$372,$B113,'Division Lvl'!Q$2:Q$372) -> 0 | P113: =SUMIF('Division Lvl'!$A$2:$A$372,$B113,'Division Lvl'!R$2:R$372) -> 0 | Q113: =SUMIF('Division Lvl'!$A$2:$A$372,$B113,'Division Lvl'!S$2:S$372) -> 0 | R113: =SUMIF('Division Lvl'!$A$2:$A$372,$B113,'Division Lvl'!T$2:T$372) -> 7083719.226 | S113: =SUMIF('Division Lvl'!$A$2:$A$372,$B113,'Division Lvl'!U$2:U$372) -> 7260812.206 | T113: =SUMIF('Division Lvl'!$A$2:$A$372,$B113,'Division Lvl'!V$2:V$372) -> 7004548.246 | U113: =SUMIF('Division Lvl'!$A$2:$A$372,$B113,'Division Lvl'!W$2:W$372) -> 0 | V113: =SUMIF('Division Lvl'!$A$2:$A$372,$B113,'Division Lvl'!X$2:X$372) -> 0 | W113: =SUMIF('Division Lvl'!$A$2:$A$372,$B113,'Division Lvl'!Y$2:Y$372) -> 0 | X113: 18875000 | Y113: 21349079.68 | Z113: Std | AA113: =INDEX('Division Lvl'!$AF$2:$AF$372,MATCH(B113,'Division Lvl'!$A$2:$A$372,0)) -> Capacity
A114: =INDEX('Division Lvl'!$AD$2:$AD$372,MATCH(B114,'Division Lvl'!$A$2:$A$372,0)) -> PR | B114: PR755 | C114: =INDEX('Division Lvl'!$B$2:$B$372,MATCH(B114,'Division Lvl'!$A$2:$A$372,0)) -> Narellan ZS busbar augmentation | D114: =SUMIF('Division Lvl'!$A$2:$A$372,$B114,'Division Lvl'!E$2:E$372) -> 0 | E114: =SUMIF('Division Lvl'!$A$2:$A$372,$B114,'Division Lvl'!F$2:F$372) -> 0 | F114: =SUMIF('Division Lvl'!$A$2:$A$372,$B114,'Division Lvl'!G$2:G$372) -> 0 | G114: =SUMIF('Division Lvl'!$A$2:$A$372,$B114,'Division Lvl'!H$2:H$372) -> 0 | H114: =SUMIF('Division Lvl'!$A$2:$A$372,$B114,'Division Lvl'!I$2:I$372) -> 0 | I114: =SUMIF('Division Lvl'!$A$2:$A$372,$B114,'Division Lvl'!J$2:J$372) -> 0 | J114: =SUMIF('Division Lvl'!$A$2:$A$372,$B114,'Division Lvl'!K$2:K$372) -> 7280000 | K114: =SUMIF('Division Lvl'!$A$2:$A$372,$B114,'Division Lvl'!L$2:L$372) -> 0 | L114: =SUMIF('Division Lvl'!$A$2:$A$372,$B114,'Division Lvl'!M$2:M$372) -> 0 | M114: =SUMIF('Division Lvl'!$A$2:$A$372,$B114,'Division Lvl'!N$2:N$372) -> 0 | N114: =SUMIF('Division Lvl'!$A$2:$A$372,$B114,'Division Lvl'!P$2:P$372) -> 0 | O114: =SUMIF('Division Lvl'!$A$2:$A$372,$B114,'Division Lvl'!Q$2:Q$372) -> 0 | P114: =SUMIF('Division Lvl'!$A$2:$A$372,$B114,'Division Lvl'!R$2:R$372) -> 0 | Q114: =SUMIF('Division Lvl'!$A$2:$A$372,$B114,'Division Lvl'!S$2:S$372) -> 0 | R114: =SUMIF('Division Lvl'!$A$2:$A$372,$B114,'Division Lvl'!T$2:T$372) -> 0 | S114: =SUMIF('Division Lvl'!$A$2:$A$372,$B114,'Division Lvl'!U$2:U$372) -> 0 | T114: =SUMIF('Division Lvl'!$A$2:$A$372,$B114,'Division Lvl'!V$2:V$372) -> 8442568.085 | U114: =SUMIF('Division Lvl'!$A$2:$A$372,$B114,'Division Lvl'!W$2:W$372) -> 0 | V114: =SUMIF('Division Lvl'!$A$2:$A$372,$B114,'Division Lvl'!X$2:X$372) -> 0 | W114: =SUMIF('Division Lvl'!$A$2:$A$372,$B114,'Division Lvl'!Y$2:Y$372) -> 0 | X114: 7280000 | Y114: 8442568.085 | Z114: Std | AA114: =INDEX('Division Lvl'!$AF$2:$AF$372,MATCH(B114,'Division Lvl'!$A$2:$A$372,0)) -> Capacity
A115: =INDEX('Division Lvl'!$AD$2:$AD$372,MATCH(B115,'Division Lvl'!$A$2:$A$372,0)) -> PR | B115: PR756 | C115: =INDEX('Division Lvl'!$B$2:$B$372,MATCH(B115,'Division Lvl'!$A$2:$A$372,0)) -> Luddenham ZS augmentation | D115: =SUMIF('Division Lvl'!$A$2:$A$372,$B115,'Division Lvl'!E$2:E$372) -> 0 | E115: =SUMIF('Division Lvl'!$A$2:$A$372,$B115,'Division Lvl'!F$2:F$372) -> 0 | F115: =SUMIF('Division Lvl'!$A$2:$A$372,$B115,'Division Lvl'!G$2:G$372) -> 0 | G115: =SUMIF('Division Lvl'!$A$2:$A$372,$B115,'Division Lvl'!H$2:H$372) -> 0 | H115: =SUMIF('Division Lvl'!$A$2:$A$372,$B115,'Division Lvl'!I$2:I$372) -> 0 | I115: =SUMIF('Division Lvl'!$A$2:$A$372,$B115,'Division Lvl'!J$2:J$372) -> 0 | J115: =SUMIF('Division Lvl'!$A$2:$A$372,$B115,'Division Lvl'!K$2:K$372) -> 11970000 | K115: =SUMIF('Division Lvl'!$A$2:$A$372,$B115,'Division Lvl'!L$2:L$372) -> 5130000 | L115: =SUMIF('Division Lvl'!$A$2:$A$372,$B115,'Division Lvl'!M$2:M$372) -> 0 | M115: =SUMIF('Division Lvl'!$A$2:$A$372,$B115,'Division Lvl'!N$2:N$372) -> 0 | N115: =SUMIF('Division Lvl'!$A$2:$A$372,$B115,'Division Lvl'!P$2:P$372) -> 0 | O115: =SUMIF('Division Lvl'!$A$2:$A$372,$B115,'Division Lvl'!Q$2:Q$372) -> 0 | P115: =SUMIF('Division Lvl'!$A$2:$A$372,$B115,'Division Lvl'!R$2:R$372) -> 0 | Q115: =SUMIF('Division Lvl'!$A$2:$A$372,$B115,'Division Lvl'!S$2:S$372) -> 0 | R115: =SUMIF('Division Lvl'!$A$2:$A$372,$B115,'Division Lvl'!T$2:T$372) -> 0 | S115: =SUMIF('Division Lvl'!$A$2:$A$372,$B115,'Division Lvl'!U$2:U$372) -> 0 | T115: =SUMIF('Division Lvl'!$A$2:$A$372,$B115,'Division Lvl'!V$2:V$372) -> 13881530.22 | U115: =SUMIF('Division Lvl'!$A$2:$A$372,$B115,'Division Lvl'!W$2:W$372) -> 6097957.916 | V115: =SUMIF('Division Lvl'!$A$2:$A$372,$B115,'Division Lvl'!X$2:X$372) -> 0 | W115: =SUMIF('Division Lvl'!$A$2:$A$372,$B115,'Division Lvl'!Y$2:Y$372) -> 0 | X115: 17100000 | Y115: 19979488.13 | Z115: Std | AA115: =INDEX('Division Lvl'!$AF$2:$AF$372,MATCH(B115,'Division Lvl'!$A$2:$A$372,0)) -> Capacity
A116: =INDEX('Division Lvl'!$AD$2:$AD$372,MATCH(B116,'Division Lvl'!$A$2:$A$372,0)) -> PS | B116: PS008 | C116: =INDEX('Division Lvl'!$B$2:$B$372,MATCH(B116,'Division Lvl'!$A$2:$A$372,0)) -> Substation protection relay refurbishment | D116: =SUMIF('Division Lvl'!$A$2:$A$372,$B116,'Division Lvl'!E$2:E$372) -> 3600000 | E116: =SUMIF('Division Lvl'!$A$2:$A$372,$B116,'Division Lvl'!F$2:F$372) -> 4218000 | F116: =SUMIF('Division Lvl'!$A$2:$A$372,$B116,'Division Lvl'!G$2:G$372) -> 4218000 | G116: =SUMIF('Division Lvl'!$A$2:$A$372,$B116,'Division Lvl'!H$2:H$372) -> 4218000 | H116: =SUMIF('Division Lvl'!$A$2:$A$372,$B116,'Division Lvl'!I$2:I$372) -> 4218000 | I116: =SUMIF('Division Lvl'!$A$2:$A$372,$B116,'Division Lvl'!J$2:J$372) -> 4218000 | J116: =SUMIF('Division Lvl'!$A$2:$A$372,$B116,'Division Lvl'!K$2:K$372) -> 4218000 | K116: =SUMIF('Division Lvl'!$A$2:$A$372,$B116,'Division Lvl'!L$2:L$372) -> 4218000 | L116: =SUMIF('Division Lvl'!$A$2:$A$372,$B116,'Division Lvl'!M$2:M$372) -> 4218000 | M116: =SUMIF('Division Lvl'!$A$2:$A$372,$B116,'Division Lvl'!N$2:N$372) -> 4218000 | N116: =SUMIF('Division Lvl'!$A$2:$A$372,$B116,'Division Lvl'!P$2:P$372) -> 3600000 | O116: =SUMIF('Division Lvl'!$A$2:$A$372,$B116,'Division Lvl'!Q$2:Q$372) -> 4323450 | P116: =SUMIF('Division Lvl'!$A$2:$A$372,$B116,'Division Lvl'!R$2:R$372) -> 4431536.25 | Q116: =SUMIF('Division Lvl'!$A$2:$A$372,$B116,'Division Lvl'!S$2:S$372) -> 4542324.656 | R116: =SUMIF('Division Lvl'!$A$2:$A$372,$B116,'Division Lvl'!T$2:T$372) -> 4655882.773 | S116: =SUMIF('Division Lvl'!$A$2:$A$372,$B116,'Division Lvl'!U$2:U$372) -> 4772279.842 | T116: =SUMIF('Division Lvl'!$A$2:$A$372,$B116,'Division Lvl'!V$2:V$372) -> 4891586.838 | U116: =SUMIF('Division Lvl'!$A$2:$A$372,$B116,'Division Lvl'!W$2:W$372) -> 5013876.509 | V116: =SUMIF('Division Lvl'!$A$2:$A$372,$B116,'Division Lvl'!X$2:X$372) -> 5139223.422 | W116: =SUMIF('Division Lvl'!$A$2:$A$372,$B116,'Division Lvl'!Y$2:Y$372) -> 5267704.007 | X116: 41562000 | Y116: 46637864.3 | Z116: Std | AA116: =INDEX('Division Lvl'!$AF$2:$AF$372,MATCH(B116,'Division Lvl'!$A$2:$A$372,0)) -> Renewal
A117: =INDEX('Division Lvl'!$AD$2:$AD$372,MATCH(B117,'Division Lvl'!$A$2:$A$372,0)) -> PS | B117: PS011 | C117: =INDEX('Division Lvl'!$B$2:$B$372,MATCH(B117,'Division Lvl'!$A$2:$A$372,0)) -> Protection refurbishment (miscellaneous) | D117: =SUMIF('Division Lvl'!$A$2:$A$372,$B117,'Division Lvl'!E$2:E$372) -> 895000 | E117: =SUMIF('Division Lvl'!$A$2:$A$372,$B117,'Division Lvl'!F$2:F$372) -> 700000 | F117: =SUMIF('Division Lvl'!$A$2:$A$372,$B117,'Division Lvl'!G$2:G$372) -> 700000 | G117: =SUMIF('Division Lvl'!$A$2:$A$372,$B117,'Division Lvl'!H$2:H$372) -> 700000 | H117: =SUMIF('Division Lvl'!$A$2:$A$372,$B117,'Division Lvl'!I$2:I$372) -> 700000 | I117: =SUMIF('Division Lvl'!$A$2:$A$372,$B117,'Division Lvl'!J$2:J$372) -> 700000 | J117: =SUMIF('Division Lvl'!$A$2:$A$372,$B117,'Division Lvl'!K$2:K$372) -> 700000 | K117: =SUMIF('Division Lvl'!$A$2:$A$372,$B117,'Division Lvl'!L$2:L$372) -> 700000 | L117: =SUMIF('Division Lvl'!$A$2:$A$372,$B117,'Division Lvl'!M$2:M$372) -> 700000 | M117: =SUMIF('Division Lvl'!$A$2:$A$372,$B117,'Division Lvl'!N$2:N$372) -> 700000 | N117: =SUMIF('Division Lvl'!$A$2:$A$372,$B117,'Division Lvl'!P$2:P$372) -> 895000 | O117: =SUMIF('Division Lvl'!$A$2:$A$372,$B117,'Division Lvl'!Q$2:Q$372) -> 717500 | P117: =SUMIF('Division Lvl'!$A$2:$A$372,$B117,'Division Lvl'!R$2:R$372) -> 735437.5 | Q117: =SUMIF('Division Lvl'!$A$2:$A$372,$B117,'Division Lvl'!S$2:S$372) -> 753823.4375 | R117: =SUMIF('Division Lvl'!$A$2:$A$372,$B117,'Division Lvl'!T$2:T$372) -> 772669.0234 | S117: =SUMIF('Division Lvl'!$A$2:$A$372,$B117,'Division Lvl'!U$2:U$372) -> 791985.749 | T117: =SUMIF('Division Lvl'!$A$2:$A$372,$B117,'Division Lvl'!V$2:V$372) -> 811785.3927 | U117: =SUMIF('Division Lvl'!$A$2:$A$372,$B117,'Division Lvl'!W$2:W$372) -> 832080.0276 | V117: =SUMIF('Division Lvl'!$A$2:$A$372,$B117,'Division Lvl'!X$2:X$372) -> 852882.0283 | W117: =SUMIF('Division Lvl'!$A$2:$A$372,$B117,'Division Lvl'!Y$2:Y$372) -> 874204.079 | X117: 7195000 | Y117: 8037367.237 | Z117: Std | AA117: =INDEX('Division Lvl'!$AF$2:$AF$372,MATCH(B117,'Division Lvl'!$A$2:$A$372,0)) -> Renewal
A118: =INDEX('Division Lvl'!$AD$2:$AD$372,MATCH(B118,'Division Lvl'!$A$2:$A$372,0)) -> PS | B118: PS012 | C118: =INDEX('Division Lvl'!$B$2:$B$372,MATCH(B118,'Division Lvl'!$A$2:$A$372,0)) -> Distribution feeder safety improvement | D118: =SUMIF('Division Lvl'!$A$2:$A$372,$B118,'Division Lvl'!E$2:E$372) -> 4615800 | E118: =SUMIF('Division Lvl'!$A$2:$A$372,$B118,'Division Lvl'!F$2:F$372) -> 3100000 | F118: =SUMIF('Division Lvl'!$A$2:$A$372,$B118,'Division Lvl'!G$2:G$372) -> 0 | G118: =SUMIF('Division Lvl'!$A$2:$A$372,$B118,'Division Lvl'!H$2:H$372) -> 0 | H118: =SUMIF('Division Lvl'!$A$2:$A$372,$B118,'Division Lvl'!I$2:I$372) -> 0 | I118: =SUMIF('Division Lvl'!$A$2:$A$372,$B118,'Division Lvl'!J$2:J$372) -> 0 | J118: =SUMIF('Division Lvl'!$A$2:$A$372,$B118,'Division Lvl'!K$2:K$372) -> 0 | K118: =SUMIF('Division Lvl'!$A$2:$A$372,$B118,'Division Lvl'!L$2:L$372) -> 0 | L118: =SUMIF('Division Lvl'!$A$2:$A$372,$B118,'Division Lvl'!M$2:M$372) -> 0 | M118: =SUMIF('Division Lvl'!$A$2:$A$372,$B118,'Division Lvl'!N$2:N$372) -> 0 | N118: =SUMIF('Division Lvl'!$A$2:$A$372,$B118,'Division Lvl'!P$2:P$372) -> 4615800 | O118: =SUMIF('Division Lvl'!$A$2:$A$372,$B118,'Division Lvl'!Q$2:Q$372) -> 3177500 | P118: =SUMIF('Division Lvl'!$A$2:$A$372,$B118,'Division Lvl'!R$2:R$372) -> 0 | Q118: =SUMIF('Division Lvl'!$A$2:$A$372,$B118,'Division Lvl'!S$2:S$372) -> 0 | R118: =SUMIF('Division Lvl'!$A$2:$A$372,$B118,'Division Lvl'!T$2:T$372) -> 0 | S118: =SUMIF('Division Lvl'!$A$2:$A$372,$B118,'Division Lvl'!U$2:U$372) -> 0 | T118: =SUMIF('Division Lvl'!$A$2:$A$372,$B118,'Division Lvl'!V$2:V$372) -> 0 | U118: =SUMIF('Division Lvl'!$A$2:$A$372,$B118,'Division Lvl'!W$2:W$372) -> 0 | V118: =SUMIF('Division Lvl'!$A$2:$A$372,$B118,'Division Lvl'!X$2:X$372) -> 0 | W118: =SUMIF('Division Lvl'!$A$2:$A$372,$B118,'Division Lvl'!Y$2:Y$372) -> 0 | X118: 7715800 | Y118: 7793300 | Z118: Std | AA118: =INDEX('Division Lvl'!$AF$2:$AF$372,MATCH(B118,'Division Lvl'!$A$2:$A$372,0)) -> Renewal
A119: =INDEX('Division Lvl'!$AD$2:$AD$372,MATCH(B119,'Division Lvl'!$A$2:$A$372,0)) -> PS | B119: PS013 | C119: =INDEX('Division Lvl'!$B$2:$B$372,MATCH(B119,'Division Lvl'!$A$2:$A$372,0)) -> Feeder differential relay replacement | D119: =SUMIF('Division Lvl'!$A$2:$A$372,$B119,'Division Lvl'!E$2:E$372) -> 330000 | E119: =SUMIF('Division Lvl'!$A$2:$A$372,$B119,'Division Lvl'!F$2:F$372) -> 330000 | F119: =SUMIF('Division Lvl'!$A$2:$A$372,$B119,'Division Lvl'!G$2:G$372) -> 330000 | G119: =SUMIF('Division Lvl'!$A$2:$A$372,$B119,'Division Lvl'!H$2:H$372) -> 330000 | H119: =SUMIF('Division Lvl'!$A$2:$A$372,$B119,'Division Lvl'!I$2:I$372) -> 330000 | I119: =SUMIF('Division Lvl'!$A$2:$A$372,$B119,'Division Lvl'!J$2:J$372) -> 330000 | J119: =SUMIF('Division Lvl'!$A$2:$A$372,$B119,'Division Lvl'!K$2:K$372) -> 330000 | K119: =SUMIF('Division Lvl'!$A$2:$A$372,$B119,'Division Lvl'!L$2:L$372) -> 330000 | L119: =SUMIF('Division Lvl'!$A$2:$A$372,$B119,'Division Lvl'!M$2:M$372) -> 330000 | M119: =SUMIF('Division Lvl'!$A$2:$A$372,$B119,'Division Lvl'!N$2:N$372) -> 330000 | N119: =SUMIF('Division Lvl'!$A$2:$A$372,$B119,'Division Lvl'!P$2:P$372) -> 330000 | O119: =SUMIF('Division Lvl'!$A$2:$A$372,$B119,'Division Lvl'!Q$2:Q$372) -> 338250 | P119: =SUMIF('Division Lvl'!$A$2:$A$372,$B119,'Division Lvl'!R$2:R$372) -> 346706.25 | Q119: =SUMIF('Division Lvl'!$A$2:$A$372,$B119,'Division Lvl'!S$2:S$372) -> 355373.9062 | R119: =SUMIF('Division Lvl'!$A$2:$A$372,$B119,'Division Lvl'!T$2:T$372) -> 364258.2539 | S119: =SUMIF('Division Lvl'!$A$2:$A$372,$B119,'Division Lvl'!U$2:U$372) -> 373364.7103 | T119: =SUMIF('Division Lvl'!$A$2:$A$372,$B119,'Division Lvl'!V$2:V$372) -> 382698.828 | U119: =SUMIF('Division Lvl'!$A$2:$A$372,$B119,'Division Lvl'!W$2:W$372) -> 392266.2987 | V119: =SUMIF('Division Lvl'!$A$2:$A$372,$B119,'Division Lvl'!X$2:X$372) -> 402072.9562 | W119: =SUMIF('Division Lvl'!$A$2:$A$372,$B119,'Division Lvl'!Y$2:Y$372) -> 412124.7801 | X119: 3300000 | Y119: 3697115.983 | Z119: Std | AA119: =INDEX('Division Lvl'!$AF$2:$AF$372,MATCH(B119,'Division Lvl'!$A$2:$A$372,0)) -> Renewal
A120: =INDEX('Division Lvl'!$AD$2:$AD$372,MATCH(B120,'Division Lvl'!$A$2:$A$372,0)) -> PS | B120: PS014 | C120: =INDEX('Division Lvl'!$B$2:$B$372,MATCH(B120,'Division Lvl'!$A$2:$A$372,0)) -> Under frequency load shedding | D120: =SUMIF('Division Lvl'!$A$2:$A$372,$B120,'Division Lvl'!E$2:E$372) -> 500000 | E120: =SUMIF('Division Lvl'!$A$2:$A$372,$B120,'Division Lvl'!F$2:F$372) -> 550000 | F120: =SUMIF('Division Lvl'!$A$2:$A$372,$B120,'Division Lvl'!G$2:G$372) -> 550000 | G120: =SUMIF('Division Lvl'!$A$2:$A$372,$B120,'Division Lvl'!H$2:H$372) -> 0 | H120: =SUMIF('Division Lvl'!$A$2:$A$372,$B120,'Division Lvl'!I$2:I$372) -> 0 | I120: =SUMIF('Division Lvl'!$A$2:$A$372,$B120,'Division Lvl'!J$2:J$372) -> 0 | J120: =SUMIF('Division Lvl'!$A$2:$A$372,$B120,'Division Lvl'!K$2:K$372) -> 0 | K120: =SUMIF('Division Lvl'!$A$2:$A$372,$B120,'Division Lvl'!L$2:L$372) -> 0 | L120: =SUMIF('Division Lvl'!$A$2:$A$372,$B120,'Division Lvl'!M$2:M$372) -> 0 | M120: =SUMIF('Division Lvl'!$A$2:$A$372,$B120,'Division Lvl'!N$2:N$372) -> 0 | N120: =SUMIF('Division Lvl'!$A$2:$A$372,$B120,'Division Lvl'!P$2:P$372) -> 500000 | O120: =SUMIF('Division Lvl'!$A$2:$A$372,$B120,'Division Lvl'!Q$2:Q$372) -> 563750 | P120: =SUMIF('Division Lvl'!$A$2:$A$372,$B120,'Division Lvl'!R$2:R$372) -> 577843.75 | Q120: =SUMIF('Division Lvl'!$A$2:$A$372,$B120,'Division Lvl'!S$2:S$372) -> 0 | R120: =SUMIF('Division Lvl'!$A$2:$A$372,$B120,'Division Lvl'!T$2:T$372) -> 0 | S120: =SUMIF('Division Lvl'!$A$2:$A$372,$B120,'Division Lvl'!U$2:U$372) -> 0 | T120: =SUMIF('Division Lvl'!$A$2:$A$372,$B120,'Division Lvl'!V$2:V$372) -> 0 | U120: =SUMIF('Division Lvl'!$A$2:$A$372,$B120,'Division Lvl'!W$2:W$372) -> 0 | V120: =SUMIF('Division Lvl'!$A$2:$A$372,$B120,'Division Lvl'!X$2:X$372) -> 0 | W120: =SUMIF('Division Lvl'!$A$2:$A$372,$B120,'Division Lvl'!Y$2:Y$372) -> 0 | X120: 1600000 | Y120: 1641593.75 | Z120: Std | AA120: =INDEX('Division Lvl'!$AF$2:$AF$372,MATCH(B120,'Division Lvl'!$A$2:$A$372,0)) -> Renewal
A121: =INDEX('Division Lvl'!$AD$2:$AD$372,MATCH(B121,'Division Lvl'!$A$2:$A$372,0)) -> RC | B121: RC | C121: =INDEX('Division Lvl'!$B$2:$B$372,MATCH(B121,'Division Lvl'!$A$2:$A$372,0)) -> Reliability compliance | D121: =SUMIF('Division Lvl'!$A$2:$A$372,$B121,'Division Lvl'!E$2:E$372) -> 4000000 | E121: =SUMIF('Division Lvl'!$A$2:$A$372,$B121,'Division Lvl'!F$2:F$372) -> 4000000 | F121: =SUMIF('Division Lvl'!$A$2:$A$372,$B121,'Division Lvl'!G$2:G$372) -> 4000000 | G121: =SUMIF('Division Lvl'!$A$2:$A$372,$B121,'Division Lvl'!H$2:H$372) -> 4000000 | H121: =SUMIF('Division Lvl'!$A$2:$A$372,$B121,'Division Lvl'!I$2:I$372) -> 4000000 | I121: =SUMIF('Division Lvl'!$A$2:$A$372,$B121,'Division Lvl'!J$2:J$372) -> 4000000 | J121: =SUMIF('Division Lvl'!$A$2:$A$372,$B121,'Division Lvl'!K$2:K$372) -> 4000000 | K121: =SUMIF('Division Lvl'!$A$2:$A$372,$B121,'Division Lvl'!L$2:L$372) -> 4000000 | L121: =SUMIF('Division Lvl'!$A$2:$A$372,$B121,'Division Lvl'!M$2:M$372) -> 4000000 | M121: =SUMIF('Division Lvl'!$A$2:$A$372,$B121,'Division Lvl'!N$2:N$372) -> 4000000 | N121: =SUMIF('Division Lvl'!$A$2:$A$372,$B121,'Division Lvl'!P$2:P$372) -> 4000000 | O121: =SUMIF('Division Lvl'!$A$2:$A$372,$B121,'Division Lvl'!Q$2:Q$372) -> 4100000 | P121: =SUMIF('Division Lvl'!$A$2:$A$372,$B121,'Division Lvl'!R$2:R$372) -> 4202500 | Q121: =SUMIF('Division Lvl'!$A$2:$A$372,$B121,'Division Lvl'!S$2:S$372) -> 4307562.5 | R121: =SUMIF('Division Lvl'!$A$2:$A$372,$B121,'Division Lvl'!T$2:T$372) -> 4415251.562 | S121: =SUMIF('Division Lvl'!$A$2:$A$372,$B121,'Division Lvl'!U$2:U$372) -> 4525632.852 | T121: =SUMIF('Division Lvl'!$A$2:$A$372,$B121,'Division Lvl'!V$2:V$372) -> 4638773.673 | U121: =SUMIF('Division Lvl'!$A$2:$A$372,$B121,'Division Lvl'!W$2:W$372) -> 4754743.015 | V121: =SUMIF('Division Lvl'!$A$2:$A$372,$B121,'Division Lvl'!X$2:X$372) -> 4873611.59 | W121: =SUMIF('Division Lvl'!$A$2:$A$372,$B121,'Division Lvl'!Y$2:Y$372) -> 4995451.88 | X121: 40000000 | Y121: 44813527.07 | Z121: Std | AA121: =INDEX('Division Lvl'!$AF$2:$AF$372,MATCH(B121,'Division Lvl'!$A$2:$A$372,0)) -> Reliability
A122: =INDEX('Division Lvl'!$AD$2:$AD$372,MATCH(B122,'Division Lvl'!$A$2:$A$372,0)) -> SL | B122: SL001 | C122: =INDEX('Division Lvl'!$B$2:$B$372,MATCH(B122,'Division Lvl'!$A$2:$A$372,0)) -> Streetlighting growth | D122: =SUMIF('Division Lvl'!$A$2:$A$372,$B122,'Division Lvl'!E$2:E$372) -> 1400000 | E122: =SUMIF('Division Lvl'!$A$2:$A$372,$B122,'Division Lvl'!F$2:F$372) -> 1750000 | F122: =SUMIF('Division Lvl'!$A$2:$A$372,$B122,'Division Lvl'!G$2:G$372) -> 1750000 | G122: =SUMIF('Division Lvl'!$A$2:$A$372,$B122,'Division Lvl'!H$2:H$372) -> 1750000 | H122: =SUMIF('Division Lvl'!$A$2:$A$372,$B122,'Division Lvl'!I$2:I$372) -> 1750000 | I122: =SUMIF('Division Lvl'!$A$2:$A$372,$B122,'Division Lvl'!J$2:J$372) -> 1750000 | J122: =SUMIF('Division Lvl'!$A$2:$A$372,$B122,'Division Lvl'!K$2:K$372) -> 1750000 | K122: =SUMIF('Division Lvl'!$A$2:$A$372,$B122,'Division Lvl'!L$2:L$372) -> 1750000 | L122: =SUMIF('Division Lvl'!$A$2:$A$372,$B122,'Division Lvl'!M$2:M$372) -> 1750000 | M122: =SUMIF('Division Lvl'!$A$2:$A$372,$B122,'Division Lvl'!N$2:N$372) -> 1750000 | N122: =SUMIF('Division Lvl'!$A$2:$A$372,$B122,'Division Lvl'!P$2:P$372) -> 1400000 | O122: =SUMIF('Division Lvl'!$A$2:$A$372,$B122,'Division Lvl'!Q$2:Q$372) -> 1793750 | P122: =SUMIF('Division Lvl'!$A$2:$A$372,$B122,'Division Lvl'!R$2:R$372) -> 1838593.75 | Q122: =SUMIF('Division Lvl'!$A$2:$A$372,$B122,'Division Lvl'!S$2:S$372) -> 1884558.594 | R122: =SUMIF('Division Lvl'!$A$2:$A$372,$B122,'Division Lvl'!T$2:T$372) -> 1931672.559 | S122: =SUMIF('Division Lvl'!$A$2:$A$372,$B122,'Division Lvl'!U$2:U$372) -> 1979964.373 | T122: =SUMIF('Division Lvl'!$A$2:$A$372,$B122,'Division Lvl'!V$2:V$372) -> 2029463.482 | U122: =SUMIF('Division Lvl'!$A$2:$A$372,$B122,'Division Lvl'!W$2:W$372) -> 2080200.069 | V122: =SUMIF('Division Lvl'!$A$2:$A$372,$B122,'Division Lvl'!X$2:X$372) -> 2132205.071 | W122: =SUMIF('Division Lvl'!$A$2:$A$372,$B122,'Division Lvl'!Y$2:Y$372) -> 2185510.197 | X122: 17150000 | Y122: 19255918.09 | Z122: Alt | AA122: =INDEX('Division Lvl'!$AF$2:$AF$372,MATCH(B122,'Division Lvl'!$A$2:$A$372,0)) -> Capacity
A123: =INDEX('Division Lvl'!$AD$2:$AD$372,MATCH(B123,'Division Lvl'!$A$2:$A$372,0)) -> SL | B123: SL002 | C123: =INDEX('Division Lvl'!$B$2:$B$372,MATCH(B123,'Division Lvl'!$A$2:$A$372,0)) -> Streetlighting refurbishment | D123: =SUMIF('Division Lvl'!$A$2:$A$372,$B123,'Division Lvl'!E$2:E$372) -> 3000000 | E123: =SUMIF('Division Lvl'!$A$2:$A$372,$B123,'Division Lvl'!F$2:F$372) -> 3000000 | F123: =SUMIF('Division Lvl'!$A$2:$A$372,$B123,'Division Lvl'!G$2:G$372) -> 3000000 | G123: =SUMIF('Division Lvl'!$A$2:$A$372,$B123,'Division Lvl'!H$2:H$372) -> 3000000 | H123: =SUMIF('Division Lvl'!$A$2:$A$372,$B123,'Division Lvl'!I$2:I$372) -> 3000000 | I123: =SUMIF('Division Lvl'!$A$2:$A$372,$B123,'Division Lvl'!J$2:J$372) -> 3000000 | J123: =SUMIF('Division Lvl'!$A$2:$A$372,$B123,'Division Lvl'!K$2:K$372) -> 3000000 | K123: =SUMIF('Division Lvl'!$A$2:$A$372,$B123,'Division Lvl'!L$2:L$372) -> 3000000 | L123: =SUMIF('Division Lvl'!$A$2:$A$372,$B123,'Division Lvl'!M$2:M$372) -> 3000000 | M123: =SUMIF('Division Lvl'!$A$2:$A$372,$B123,'Division Lvl'!N$2:N$372) -> 3000000 | N123: =SUMIF('Division Lvl'!$A$2:$A$372,$B123,'Division Lvl'!P$2:P$372) -> 3000000 | O123: =SUMIF('Division Lvl'!$A$2:$A$372,$B123,'Division Lvl'!Q$2:Q$372) -> 3075000 | P123: =SUMIF('Division Lvl'!$A$2:$A$372,$B123,'Division Lvl'!R$2:R$372) -> 3151875 | Q123: =SUMIF('Division Lvl'!$A$2:$A$372,$B123,'Division Lvl'!S$2:S$372) -> 3230671.875 | R123: =SUMIF('Division Lvl'!$A$2:$A$372,$B123,'Division Lvl'!T$2:T$372) -> 3311438.672 | S123: =SUMIF('Division Lvl'!$A$2:$A$372,$B123,'Division Lvl'!U$2:U$372) -> 3394224.639 | T123: =SUMIF('Division Lvl'!$A$2:$A$372,$B123,'Division Lvl'!V$2:V$372) -> 3479080.255 | U123: =SUMIF('Division Lvl'!$A$2:$A$372,$B123,'Division Lvl'!W$2:W$372) -> 3566057.261 | V123: =SUMIF('Division Lvl'!$A$2:$A$372,$B123,'Division Lvl'!X$2:X$372) -> 3655208.693 | W123: =SUMIF('Division Lvl'!$A$2:$A$372,$B123,'Division Lvl'!Y$2:Y$372) -> 3746588.91 | X123: 30000000 | Y123: 33610145.3 | Z123: Alt | AA123: =INDEX('Division Lvl'!$AF$2:$AF$372,MATCH(B123,'Division Lvl'!$A$2:$A$372,0)) -> Renewal
A124: =INDEX('Division Lvl'!$AD$2:$AD$372,MATCH(B124,'Division Lvl'!$A$2:$A$372,0)) -> SP | B124: SP | C124: =INDEX('Division Lvl'!$B$2:$B$372,MATCH(B124,'Division Lvl'!$A$2:$A$372,0)) -> Essential spares | D124: =SUMIF('Division Lvl'!$A$2:$A$372,$B124,'Division Lvl'!E$2:E$372) -> 1239026 | E124: =SUMIF('Division Lvl'!$A$2:$A$372,$B124,'Division Lvl'!F$2:F$372) -> 1000000 | F124: =SUMIF('Division Lvl'!$A$2:$A$372,$B124,'Division Lvl'!G$2:G$372) -> 1000000 | G124: =SUMIF('Division Lvl'!$A$2:$A$372,$B124,'Division Lvl'!H$2:H$372) -> 1000000 | H124: =SUMIF('Division Lvl'!$A$2:$A$372,$B124,'Division Lvl'!I$2:I$372) -> 1000000 | I124: =SUMIF('Division Lvl'!$A$2:$A$372,$B124,'Division Lvl'!J$2:J$372) -> 1000000 | J124: =SUMIF('Division Lvl'!$A$2:$A$372,$B124,'Division Lvl'!K$2:K$372) -> 1000000 | K124: =SUMIF('Division Lvl'!$A$2:$A$372,$B124,'Division Lvl'!L$2:L$372) -> 1000000 | L124: =SUMIF('Division Lvl'!$A$2:$A$372,$B124,'Division Lvl'!M$2:M$372) -> 1000000 | M124: =SUMIF('Division Lvl'!$A$2:$A$372,$B124,'Division Lvl'!N$2:N$372) -> 1000000 | N124: =SUMIF('Division Lvl'!$A$2:$A$372,$B124,'Division Lvl'!P$2:P$372) -> 1239026 | O124: =SUMIF('Division Lvl'!$A$2:$A$372,$B124,'Division Lvl'!Q$2:Q$372) -> 1025000 | P124: =SUMIF('Division Lvl'!$A$2:$A$372,$B124,'Division Lvl'!R$2:R$372) -> 1050625 | Q124: =SUMIF('Division Lvl'!$A$2:$A$372,$B124,'Division Lvl'!S$2:S$372) -> 1076890.625 | R124: =SUMIF('Division Lvl'!$A$2:$A$372,$B124,'Division Lvl'!T$2:T$372) -> 1103812.891 | S124: =SUMIF('Division Lvl'!$A$2:$A$372,$B124,'Division Lvl'!U$2:U$372) -> 1131408.213 | T124: =SUMIF('Division Lvl'!$A$2:$A$372,$B124,'Division Lvl'!V$2:V$372) -> 1159693.418 | U124: =SUMIF('Division Lvl'!$A$2:$A$372,$B124,'Division Lvl'!W$2:W$372) -> 1188685.754 | V124: =SUMIF('Division Lvl'!$A$2:$A$372,$B124,'Division Lvl'!X$2:X$372) -> 1218402.898 | W124: =SUMIF('Division Lvl'!$A$2:$A$372,$B124,'Division Lvl'!Y$2:Y$372) -> 1248862.97 | X124: 10239026 | Y124: 11442407.77 | Z124: Std | AA124: =INDEX('Division Lvl'!$AF$2:$AF$372,MATCH(B124,'Division Lvl'!$A$2:$A$372,0)) -> Renewal
A125: =INDEX('Division Lvl'!$AD$2:$AD$372,MATCH(B125,'Division Lvl'!$A$2:$A$372,0)) -> TM | B125: TM012 | C125: =INDEX('Division Lvl'!$B$2:$B$372,MATCH(B125,'Division Lvl'!$A$2:$A$372,0)) -> Sub-transmission pole replacement | D125: =SUMIF('Division Lvl'!$A$2:$A$372,$B125,'Division Lvl'!E$2:E$372) -> 2500000 | E125: =SUMIF('Division Lvl'!$A$2:$A$372,$B125,'Division Lvl'!F$2:F$372) -> 3720000 | F125: =SUMIF('Division Lvl'!$A$2:$A$372,$B125,'Division Lvl'!G$2:G$372) -> 3720000 | G125: =SUMIF('Division Lvl'!$A$2:$A$372,$B125,'Division Lvl'!H$2:H$372) -> 3720000 | H125: =SUMIF('Division Lvl'!$A$2:$A$372,$B125,'Division Lvl'!I$2:I$372) -> 3720000 | I125: =SUMIF('Division Lvl'!$A$2:$A$372,$B125,'Division Lvl'!J$2:J$372) -> 4920000 | J125: =SUMIF('Division Lvl'!$A$2:$A$372,$B125,'Division Lvl'!K$2:K$372) -> 4920000 | K125: =SUMIF('Division Lvl'!$A$2:$A$372,$B125,'Division Lvl'!L$2:L$372) -> 4920000 | L125: =SUMIF('Division Lvl'!$A$2:$A$372,$B125,'Division Lvl'!M$2:M$372) -> 4920000 | M125: =SUMIF('Division Lvl'!$A$2:$A$372,$B125,'Division Lvl'!N$2:N$372) -> 4920000 | N125: =SUMIF('Division Lvl'!$A$2:$A$372,$B125,'Division Lvl'!P$2:P$372) -> 2500000 | O125: =SUMIF('Division Lvl'!$A$2:$A$372,$B125,'Division Lvl'!Q$2:Q$372) -> 3813000 | P125: =SUMIF('Division Lvl'!$A$2:$A$372,$B125,'Division Lvl'!R$2:R$372) -> 3908325 | Q125: =SUMIF('Division Lvl'!$A$2:$A$372,$B125,'Division Lvl'!S$2:S$372) -> 4006033.125 | R125: =SUMIF('Division Lvl'!$A$2:$A$372,$B125,'Division Lvl'!T$2:T$372) -> 4106183.953 | S125: =SUMIF('Division Lvl'!$A$2:$A$372,$B125,'Division Lvl'!U$2:U$372) -> 5566528.407 | T125: =SUMIF('Division Lvl'!$A$2:$A$372,$B125,'Division Lvl'!V$2:V$372) -> 5705691.618 | U125: =SUMIF('Division Lvl'!$A$2:$A$372,$B125,'Division Lvl'!W$2:W$372) -> 5848333.908 | V125: =SUMIF('Division Lvl'!$A$2:$A$372,$B125,'Division Lvl'!X$2:X$372) -> 5994542.256 | W125: =SUMIF('Division Lvl'!$A$2:$A$372,$B125,'Division Lvl'!Y$2:Y$372) -> 6144405.812 | X125: 41980000 | Y125: 47593044.08 | Z125: Std | AA125: =INDEX('Division Lvl'!$AF$2:$AF$372,MATCH(B125,'Division Lvl'!$A$2:$A$372,0)) -> Renewal
A126: =INDEX('Division Lvl'!$AD$2:$AD$372,MATCH(B126,'Division Lvl'!$A$2:$A$372,0)) -> TM | B126: TM014 | C126: =INDEX('Division Lvl'!$B$2:$B$372,MATCH(B126,'Division Lvl'!$A$2:$A$372,0)) -> Renewal of 33kV and 66kV gas and oil filled cables | D126: =SUMIF('Division Lvl'!$A$2:$A$372,$B126,'Division Lvl'!E$2:E$372) -> 0 | E126: =SUMIF('Division Lvl'!$A$2:$A$372,$B126,'Division Lvl'!F$2:F$372) -> 0 | F126: =SUMIF('Division Lvl'!$A$2:$A$372,$B126,'Division Lvl'!G$2:G$372) -> 0 | G126: =SUMIF('Division Lvl'!$A$2:$A$372,$B126,'Division Lvl'!H$2:H$372) -> 0 | H126: =SUMIF('Division Lvl'!$A$2:$A$372,$B126,'Division Lvl'!I$2:I$372) -> 0 | I126: =SUMIF('Division Lvl'!$A$2:$A$372,$B126,'Division Lvl'!J$2:J$372) -> 720000 | J126: =SUMIF('Division Lvl'!$A$2:$A$372,$B126,'Division Lvl'!K$2:K$372) -> 765000 | K126: =SUMIF('Division Lvl'!$A$2:$A$372,$B126,'Division Lvl'!L$2:L$372) -> 1530000 | L126: =SUMIF('Division Lvl'!$A$2:$A$372,$B126,'Division Lvl'!M$2:M$372) -> 1485000 | M126: =SUMIF('Division Lvl'!$A$2:$A$372,$B126,'Division Lvl'!N$2:N$372) -> 1485000 | N126: =SUMIF('Division Lvl'!$A$2:$A$372,$B126,'Division Lvl'!P$2:P$372) -> 0 | O126: =SUMIF('Division Lvl'!$A$2:$A$372,$B126,'Division Lvl'!Q$2:Q$372) -> 0 | P126: =SUMIF('Division Lvl'!$A$2:$A$372,$B126,'Division Lvl'!R$2:R$372) -> 0 | Q126: =SUMIF('Division Lvl'!$A$2:$A$372,$B126,'Division Lvl'!S$2:S$372) -> 0 | R126: =SUMIF('Division Lvl'!$A$2:$A$372,$B126,'Division Lvl'!T$2:T$372) -> 0 | S126: =SUMIF('Division Lvl'!$A$2:$A$372,$B126,'Division Lvl'!U$2:U$372) -> 814613.9133 | T126: =SUMIF('Division Lvl'!$A$2:$A$372,$B126,'Division Lvl'!V$2:V$372) -> 887165.4649 | U126: =SUMIF('Division Lvl'!$A$2:$A$372,$B126,'Division Lvl'!W$2:W$372) -> 1818689.203 | V126: =SUMIF('Division Lvl'!$A$2:$A$372,$B126,'Division Lvl'!X$2:X$372) -> 1809328.303 | W126: =SUMIF('Division Lvl'!$A$2:$A$372,$B126,'Division Lvl'!Y$2:Y$372) -> 1854561.51 | X126: 5985000 | Y126: 7184358.395 | Z126: Std | AA126: =INDEX('Division Lvl'!$AF$2:$AF$372,MATCH(B126,'Division Lvl'!$A$2:$A$372,0)) -> Renewal
A127: =INDEX('Division Lvl'!$AD$2:$AD$372,MATCH(B127,'Division Lvl'!$A$2:$A$372,0)) -> TM | B127: TM015 | C127: =INDEX('Division Lvl'!$B$2:$B$372,MATCH(B127,'Division Lvl'!$A$2:$A$372,0)) -> Subtransmission tower replacement | D127: =SUMIF('Division Lvl'!$A$2:$A$372,$B127,'Division Lvl'!E$2:E$372) -> 1600000 | E127: =SUMIF('Division Lvl'!$A$2:$A$372,$B127,'Division Lvl'!F$2:F$372) -> 1600000 | F127: =SUMIF('Division Lvl'!$A$2:$A$372,$B127,'Division Lvl'!G$2:G$372) -> 1600000 | G127: =SUMIF('Division Lvl'!$A$2:$A$372,$B127,'Division Lvl'!H$2:H$372) -> 4000000 | H127: =SUMIF('Division Lvl'!$A$2:$A$372,$B127,'Division Lvl'!I$2:I$372) -> 5600000 | I127: =SUMIF('Division Lvl'!$A$2:$A$372,$B127,'Division Lvl'!J$2:J$372) -> 5600000 | J127: =SUMIF('Division Lvl'!$A$2:$A$372,$B127,'Division Lvl'!K$2:K$372) -> 5600000 | K127: =SUMIF('Division Lvl'!$A$2:$A$372,$B127,'Division Lvl'!L$2:L$372) -> 5600000 | L127: =SUMIF('Division Lvl'!$A$2:$A$372,$B127,'Division Lvl'!M$2:M$372) -> 5600000 | M127: =SUMIF('Division Lvl'!$A$2:$A$372,$B127,'Division Lvl'!N$2:N$372) -> 5600000 | N127: =SUMIF('Division Lvl'!$A$2:$A$372,$B127,'Division Lvl'!P$2:P$372) -> 1600000 | O127: =SUMIF('Division Lvl'!$A$2:$A$372,$B127,'Division Lvl'!Q$2:Q$372) -> 1640000 | P127: =SUMIF('Division Lvl'!$A$2:$A$372,$B127,'Division Lvl'!R$2:R$372) -> 1681000 | Q127: =SUMIF('Division Lvl'!$A$2:$A$372,$B127,'Division Lvl'!S$2:S$372) -> 4307562.5 | R127: =SUMIF('Division Lvl'!$A$2:$A$372,$B127,'Division Lvl'!T$2:T$372) -> 6181352.187 | S127: =SUMIF('Division Lvl'!$A$2:$A$372,$B127,'Division Lvl'!U$2:U$372) -> 6335885.992 | T127: =SUMIF('Division Lvl'!$A$2:$A$372,$B127,'Division Lvl'!V$2:V$372) -> 6494283.142 | U127: =SUMIF('Division Lvl'!$A$2:$A$372,$B127,'Division Lvl'!W$2:W$372) -> 6656640.221 | V127: =SUMIF('Division Lvl'!$A$2:$A$372,$B127,'Division Lvl'!X$2:X$372) -> 6823056.226 | W127: =SUMIF('Division Lvl'!$A$2:$A$372,$B127,'Division Lvl'!Y$2:Y$372) -> 6993632.632 | X127: 42400000 | Y127: 48713412.9 | Z127: Std | AA127: =INDEX('Division Lvl'!$AF$2:$AF$372,MATCH(B127,'Division Lvl'!$A$2:$A$372,0)) -> Renewal
A128: =INDEX('Division Lvl'!$AD$2:$AD$372,MATCH(B128,'Division Lvl'!$A$2:$A$372,0)) -> TM | B128: TM027 | C128: =INDEX('Division Lvl'!$B$2:$B$372,MATCH(B128,'Division Lvl'!$A$2:$A$372,0)) -> Steel tower asbestos removal | D128: =SUMIF('Division Lvl'!$A$2:$A$372,$B128,'Division Lvl'!E$2:E$372) -> 3013000 | E128: =SUMIF('Division Lvl'!$A$2:$A$372,$B128,'Division Lvl'!F$2:F$372) -> 0 | F128: =SUMIF('Division Lvl'!$A$2:$A$372,$B128,'Division Lvl'!G$2:G$372) -> 0 | G128: =SUMIF('Division Lvl'!$A$2:$A$372,$B128,'Division Lvl'!H$2:H$372) -> 0 | H128: =SUMIF('Division Lvl'!$A$2:$A$372,$B128,'Division Lvl'!I$2:I$372) -> 0 | I128: =SUMIF('Division Lvl'!$A$2:$A$372,$B128,'Division Lvl'!J$2:J$372) -> 0 | J128: =SUMIF('Division Lvl'!$A$2:$A$372,$B128,'Division Lvl'!K$2:K$372) -> 0 | K128: =SUMIF('Division Lvl'!$A$2:$A$372,$B128,'Division Lvl'!L$2:L$372) -> 0 | L128: =SUMIF('Division Lvl'!$A$2:$A$372,$B128,'Division Lvl'!M$2:M$372) -> 0 | M128: =SUMIF('Division Lvl'!$A$2:$A$372,$B128,'Division Lvl'!N$2:N$372) -> 0 | N128: =SUMIF('Division Lvl'!$A$2:$A$372,$B128,'Division Lvl'!P$2:P$372) -> 3013000 | O128: =SUMIF('Division Lvl'!$A$2:$A$372,$B128,'Division Lvl'!Q$2:Q$372) -> 0 | P128: =SUMIF('Division Lvl'!$A$2:$A$372,$B128,'Division Lvl'!R$2:R$372) -> 0 | Q128: =SUMIF('Division Lvl'!$A$2:$A$372,$B128,'Division Lvl'!S$2:S$372) -> 0 | R128: =SUMIF('Division Lvl'!$A$2:$A$372,$B128,'Division Lvl'!T$2:T$372) -> 0 | S128: =SUMIF('Division Lvl'!$A$2:$A$372,$B128,'Division Lvl'!U$2:U$372) -> 0 | T128: =SUMIF('Division Lvl'!$A$2:$A$372,$B128,'Division Lvl'!V$2:V$372) -> 0 | U128: =SUMIF('Division Lvl'!$A$2:$A$372,$B128,'Division Lvl'!W$2:W$372) -> 0 | V128: =SUMIF('Division Lvl'!$A$2:$A$372,$B128,'Division Lvl'!X$2:X$372) -> 0 | W128: =SUMIF('Division Lvl'!$A$2:$A$372,$B128,'Division Lvl'!Y$2:Y$372) -> 0 | X128: 3013000 | Y128: 3013000 | Z128: Std | AA128: =INDEX('Division Lvl'!$AF$2:$AF$372,MATCH(B128,'Division Lvl'!$A$2:$A$372,0)) -> Renewal
